Workbook

Sheet Simulation retraite
A2: Simulateur de prestations
G3: Calcul à 1.75% à la date de retraite
A4: Données de base (remplir uniquement les cases grisées) | G4: Préfinancement | H4: =B$41 -> 0.01 | I4: =C$41 -> 0.0175 | J4: =D$41 -> 0.025
A5: Informations personnelles au | B5: 2021-01-01 | C5: =IF(OR(DAY(B5)<>1,MONTH(B5)<>1),"**","") ->  | G5: KRAV | H5: =MIN(B43,IF(B8="Base",(B28*E29),(B28-($F$25*2)/E30)*E29)) -> 0 | I5: =MIN(C43,IF(B8="Base",(B28*E29),(B28-($F$25*2)/E30)*E29)) -> 0 | J5: =MIN(D43,IF(B8="Base",(B28*E29),(B28-($F$25*2)/E30)*E29)) -> 0
A6: Date de naissance | B6: 1960-02-01 | G6: RAV_fin | H6: =IF(E29=0,0,H5/E29) -> 0 | I6: =IF(E29=0,0,I5/E29) -> 0 | J6: =IF(E29=0,0,J5/E29) -> 0
A7: Sexe | B7: Masculin | G7: Durée fin | H7: =IF(B8="Base",0,($F$25*2)/(B28-H6)) -> 0 | I7: =IF(B8="Base",0,($F$25*2)/(B28-I6)) -> 0 | J7: =IF(B8="Base",0,($F$25*2)/(B28-J6)) -> 0
A8: Collectif | B8: Base | G8: RRET mensuelle | H8: =-IF(B43>H5,0,ROUNDDOWN(((B28-H6)*$E$23*(E30-H7)/12)*20,0)/20) -> -114.7 | I8: =-IF(B43>I5,0,ROUNDDOWN(((B28-I6)*$E$23*(E30-I7)/12)*20,0)/20) -> -114.7 | J8: =-IF(B43>J5,0,ROUNDDOWN(((B28-J6)*$E$23*(E30-J7)/12)*20,0)/20) -> -114.7
A9: Plan Epargne+ | B9: oui
A10: Traitement cotisant | B10: 75000
A11: Avoir de vieillesse | B11: 400000 | G11: Rente préfinancée mensuelle | H11: =IF(B12=0,0,CEILING((IF(B43<H5,0,(B43-MAX(H5,0))*D36)/12),0.05)) -> 0 | I11: =IF(B12=0,0,CEILING((IF(C43<I5,0,(C43-MAX(I5,0))*D36)/12),0.05)) -> 0 | J11: =IF(B12=0,0,CEILING((IF(D43<J5,0,(D43-MAX(J5,0))*D36)/12),0.05)) -> 0
A12: Compte de préfinancement
A14: Âge de retraite | D14: =IF(B8="Base",64,61)&" ans" -> 64 ans | E14: =IF(B8="Base",64,61) -> 64
A15: Date ordinaire de retraite | D15: =EDATE(EOMONTH(B6,0)+1,12*IF(B8="PPP",61,64)) -> 2024-03-01 | E15: =IF(B8="PPP",IF(B7="Masculin",DATE(YEAR(D15)+4,MONTH(D15),DAY(D15)),DATE(YEAR(D15)+3,MONTH(D15),DAY(D15))),IF(B7="Masculin",DATE(YEAR(D15)+1,MONTH(D15),DAY(D15)),D15)) -> 2025-03-01 | F15: =E15-1 -> 2025-02-28
A16: Taux de conversion à l'âge de retraite ordinaire | D16: =IF(B8="PPP",4.97%,5.41%) -> 0.0541
A18: Informations facultatives
A19: Rachat personnel envisagé à futur
A20: Date du rachat
A21: Montant du rachat
A23: Informations sur la retraite | E23: =IF(B24<DATE(2022,2,1),5.2%,4.8%) -> 0.048 | F23: taux de retenue pont-AVS
A24: Date de retraite souhaitée pour la simulation | B24: =D15 -> 2024-03-01 | E24: =IF(B20="",DATE(2019,2,1),EOMONTH(B20,0)+1) -> 2019-02-01 | F24: date de retraite min rachat
B25: Pourcent | C25: Montant en CHF | E25: RAVS max | F25: =IF(B24>DATE(2021,1,1),28680,28440) -> 28680 | G25: montant fixe
A26: Part en capital souhaitée (% OU montant) | E26: max capital | F26: =IF(D46=B41,B42*25%,IF(D46=C41,C42*25%,IF(D46=D41,D42*25%))) -> 121567.9125
A27: Pont-AVS | E27: 50% R.base mens. | F27: =ROUNDDOWN(D52/2/0.05,0)*0.05 -> 1096.15
A28: Montant du pont-AVS annuel souhaité | B28: =F28 -> 28680 | E28: Rente pont-AVS max | F28: =IF(B24>=E15,0,MIN(ROUNDUP(IF(B8="Base",F27*12/$E$23/E30,(F27*12+$F$25*2*$E$23)/($E$23*E30))/12/0.05,0)*0.05*12,$F$25)) -> 28680
A29: Durée de versement du pont-AVS | B29: Début du versement | C29: =B24 -> 2024-03-01 | E29: =ROUND(YEARFRAC(B24,E15),8) -> 1 | F29: Durée jusqu'à âge AVS/tarif pour tous
B30: Fin du versement | C30: =F15 -> 2025-02-28 | E30: =ROUND(YEARFRAC(C29,C30+1),8) -> 1 | F30: Durée de versement du pont souhaitée
A33: ="Simulation au "&TEXT(B24,"jj.mm.aaaa") -> Simulation au 01.03.2024 | G33: =YEARFRAC(B5,B24) -> 3.166666667
A34: Informations
A35: ="Âge au "&TEXT(B24,"jj.mm.aaaa") -> Âge au 01.03.2024 | D35: =INT(E35)&" ans et "&ROUND(((E35-INT(E35))*12),0)&" mois" -> 64 ans et 0 mois | E35: =YEARFRAC(EOMONTH(B6,0)+1,B24) -> 64
A36: ="Taux de conversion au "&TEXT(B24,"jj.mm.aaaa") -> Taux de conversion au 01.03.2024 | D36: =ROUND(IF(E35<70,VLOOKUP(INT($E$35),Para_simu!$J$1:$K$14,2,FALSE)*(INT($E$35)+1-$E$35)+VLOOKUP(INT($E$35)+1,Para_simu!$J$1:$K$14,2,FALSE)*($E$35-INT($E$35)),Para_simu!K14),5) -> 0.0541
A37: =IF(E35>(IF(B8="Base",64,61)),"Nombre de mois de différé","Nombre de mois d'anticipation") -> Nombre de mois d'anticipation | D37: =ABS(E14-$E$35)*12 -> 0 | E37: =(IF(B7="Masculin",65,64)-E35)*12 -> 12
A38: Taux de retenue pour financer la rente pont-AVS | D38: =IF(C54=0,0,-C54/C57) -> 0.0479916318
D39: 2019
A40: Projections selon différentes hypothèses de taux d'intérêt
A41: Taux d'intérêt utilisé pour la projection* | B41: 0.01 | C41: 0.0175 | D41: 0.025 | E41: 0 | F41: sbfut
A42: Avoir de vieillesse projeté avec intérêts | B42: =CEILING(MAX('Détails projection'!H4:H50)+MAX('Détails projection'!M4:M50),0.05) -> 482232.95 | C42: =CEILING(MAX('Détails projection'!W4:W50)+MAX('Détails projection'!AB4:AB50),0.05) -> 486271.65 | D42: =CEILING(MAX('Détails projection'!AL4:AL50)+MAX('Détails projection'!AQ4:AQ50),0.05) -> 490318.95 | E42: =MAX('Détails projection'!G:G) -> 452500
A43: Compte de préfinancement projeté avec intérêts | B43: =MAX(Préfinancement!$D$4:$D$55) -> 0 | C43: =MAX(Préfinancement!$I$4:$I$55) -> 0 | D43: =MAX(Préfinancement!$N$4:$N$55) -> 0
A44: ="Rente de retraite annuelle au "&TEXT(B24,"jj.mm.aaaa") -> Rente de retraite annuelle au 01.03.2024 | B44: =CEILING(B42*$D$36,0.05) -> 26088.85 | C44: =CEILING(C42*$D$36,0.05) -> 26307.3 | D44: =CEILING(D42*$D$36,0.05) -> 26526.3
A46: Prestations selon l'hypothèse d'intérêt de 1.75% | D46: =IF(A46="Prestations selon l'hypothèse d'intérêt de 1.00%",$B$41,IF(A46="Prestations selon l'hypothèse d'intérêt de 1.75%",$C$41,IF(A46="Prestations selon l'hypothèse d'intérêt de 2.50%",$D$41,"Erreur"))) -> 0.0175
A48: Montant de la PLP versé en capital | D48: =ROUND((IF(D46=B41,IF(IF(AND(B26="",C26=""),0,IF(AND(B26<>"",C26<>""),"Erreur dans la saisie du montant capital!",IF(B26="",C26,B26/100*B42)))<=25%*B42,IF(AND(B26="",C26=""),0,IF(AND(B26<>"",C26<>""),"Erreur dans la saisie du montant en capital!",IF(B26="",C26,B26/100*B42))),"Erreur dans la saisie du montant en capital"),IF(D46=C41,IF(IF(AND(B26="",C26=""),0,IF(AND(B26<>"",C26<>""),"Erreur dans la saisie du montant capital!",IF(B26="",C26,B26/100*C42)))<=25%*C42,IF(AND(B26="",C26=""),0,IF(AND(B26<>"",C26<>""),"Erreur dans la saisie du montant en capital!",IF(B26="",C26,B26/100*C42))),"Erreur dans la saisie du montant en capital"),IF(D46=D41,IF(IF(AND(B26="",C26=""),0,IF(AND(B26<>"",C26<>""),"Erreur dans la saisie du montant capital!",IF(B26="",C26,B26/100*D42)))<=25%*D42,IF(AND(B26="",C26=""),0,IF(AND(B26<>"",C26<>""),"Erreur dans la saisie du montant en capital!",IF(B26="",C26,B26/100*D42))),"Erreur dans la saisie du montant en capital"),"Erreur"))))*20,0)/20 -> 0
A50: Rentes | C50: Par an | D50: Par mois
A52: Rente de retraite de base | C52: =D52*12 -> 26307.6 | D52: =IF(D46=B41,IF(D48=0,CEILING(B44/12,0.05),CEILING((1-(D48/B42))*B44/12,0.05)),IF(D46=C41,IF(D48=0,CEILING(C44/12,0.05),CEILING((1-(D48/C42))*C44/12,0.05)),IF(D46=D41,IF(D48=0,CEILING(D44/12,0.05),CEILING((1-(D48/D42))*D44/12,0.05)),"Erreur"))) -> 2192.3
A53: Rente préfinancée | C53: =D53*12 -> 0 | D53: =IF(D46=B41,H11,IF(D46=C41,I11,IF(D46=D41,J11,"Erreur"))) -> 0
A54: Retenue viagère pour financer le pont-AVS | C54: =D54*12 -> -1376.4 | D54: =IF(D46=B41,IF(H8<=50%*D52,H8,"Problème"),IF(D46=C41,IF(I8<=50%*D52,I8,"Retenue > 50% R.base"),IF(D46=D41,IF(J8<=50%*D52,J8,"Retenue > 50% R.base"),"Erreur"))) -> -114.7
A55: ="Rente totale viagère versée dès le"&" "&TEXT(IF(OR(B28="",B28=0),B24,C30+1),"jj.mm.aaaa") -> Rente totale viagère versée dès le 01.03.2025 | C55: =SUM(C52:C54) -> 24931.2 | D55: =SUM(D52:D54) -> 2077.6
A57: Rente pont-AVS | C57: =IF(E37<0,0,IF($B$28="",0,$B$28)) -> 28680 | D57: =C57/12 -> 2390
A59: =IF(OR(B28="",B28=0),"","Rente totale versée du"&" "&TEXT(C29,"jj.mm.aaaa")&" au "&TEXT(C30,"jj.mm.aaaa")) -> Rente totale versée du 01.03.2024 au 28.02.2025 | C59: =IF(OR(B28="",B28=0),"",C57+C55) -> 53611.2 | D59: =IF(OR(B28="",B28=0),"",D57+D55) -> 4467.6
A60: =IF(OR(B28="",B28=0),"",IF(C29<=B24,"","Rente totale versée du"&" "&TEXT(B24,"jj.mm.aaaa")&" au "&TEXT(C29-1,"jj.mm.aaaa"))) ->  | C60: =IF(A60="","",C52+C53) ->  | D60: =IF(A60="","",D52+D53) -> 
A61: * Les calculs tiennent compte d'un taux d'intérêt de 5% pour 2021, 1% pour 2022 et d'une hypothèse d'intérêt pour les années suivantes.
A62: =IF(C5="**","** En raison des intérêts, le montant de la rente peut varier de quelques francs si les données renseignées ne sont pas au 01.01.","") -> 
A63: Les informations contenues sur ce document ne sont fournies qu'à titre indicatif. L'exhaustivité des montants n'est garantie que sur les documents émis par la CPCN.

Sheet Détails projection (hidden)
A1: Détails avoir vieillesse | D1: Taux 1 | I1: Détails apports | M1: ='Simulation retraite'!H44 -> 0 | P1: Détails avoir vieillesse | S1: Taux 2 | X1: Détails apports | AB1: 0.0175 | AE1: Détails avoir vieillesse | AH1: Taux 3 | AM1: Détails apports | AQ1: 0.025
A2: Date | B2: Age LPP | C2: Nb jours | D2: Intérêts | E2: Taux de bonif | F2: Montant bonif | G2: Avoir vieillesse sans intérêt | H2: Avoir vieillesse | I2: Date | J2: Age LPP | K2: Nb jours | L2: Intérêts | M2: Apport | N2: Somme bonif futures | P2: Date | Q2: Age LPP | R2: Nb jours | S2: Intérêts | T2: Taux de bonif | U2: Montant bonif | V2: Avoir vieillesse sans intérêt | W2: Avoir vieillesse | X2: Date | Y2: Age LPP | Z2: Nb jours | AA2: Intérêts | AB2: Apport | AC2: Somme bonif futures | AE2: Date | AF2: Age LPP | AG2: Nb jours | AH2: Intérêts | AI2: Taux de bonif | AJ2: Montant bonif | AK2: Avoir vieillesse sans intérêt | AL2: Avoir vieillesse | AM2: Date | AN2: Age LPP | AO2: Nb jours | AP2: Intérêts | AQ2: Apport | AR2: Somme bonif futures
A4: ='Simulation retraite'!$B$5 -> 2021-01-01 | G4: ='Simulation retraite'!$B$11 -> 400000 | H4: ='Simulation retraite'!$B$11 -> 400000 | I4: ='Simulation retraite'!$B$20 -> 00:00:00 | M4: =IF('Simulation retraite'!$B$20=0,0,'Simulation retraite'!$B$21) -> 0 | P4: ='Simulation retraite'!$B$5 -> 2021-01-01 | V4: ='Simulation retraite'!$B$11 -> 400000 | W4: ='Simulation retraite'!$B$11 -> 400000 | X4: ='Simulation retraite'!$B$20 -> 00:00:00 | AB4: =IF('Simulation retraite'!$B$20=0,0,'Simulation retraite'!$B$21) -> 0 | AE4: ='Simulation retraite'!$B$5 -> 2021-01-01 | AK4: ='Simulation retraite'!$B$11 -> 400000 | AL4: ='Simulation retraite'!$B$11 -> 400000 | AM4: ='Simulation retraite'!$B$20 -> 00:00:00 | AQ4: =IF('Simulation retraite'!$B$20=0,0,'Simulation retraite'!$B$21) -> 0
A5: =IF(A4="","",IF(YEAR('Simulation retraite'!$B$24)=YEAR(A4),'Simulation retraite'!$B$24,IF(YEAR('Simulation retraite'!$B$24)-1<YEAR(A4),"",EOMONTH(A4,(12-MONTH(A4)))))) -> 2021-12-31 | B5: =IF(A5="","",YEAR(A5)-YEAR('Simulation retraite'!$B$6)) -> 61 | C5: =IF(AND(DAY(A5)=1,YEAR(A5)<>YEAR('Simulation retraite'!$B$24)),DAYS360(A4,A5)-1,DAYS360(A4,A5)) -> 360 | D5: =IF(A5="","",IF(YEAR(A5)=2019,CEILING(Para_simu!$Q$2*H4*C5/360,0.05),IF(YEAR(A5)=2020,CEILING(H4*Para_simu!$Q$3*C5/360,0.05),IF(YEAR(A5)=2021,CEILING(H4*Para_simu!$Q$4*C5/360,0.05),IF(YEAR(A5)=2022,CEILING(H4*Para_simu!$Q$5*C5/360,0.05),CEILING(H4*'Simulation retraite'!$B$41*C5/360,0.05)))))) -> 20000 | E5: =IF(A5="","",IF(OR('Simulation retraite'!$B$9="non",YEAR(A5)<=2021),IF(YEAR(A5)<2024,IF('Simulation retraite'!$B$8="Base",VLOOKUP(B5,Para_simu!$A$1:$I$55,2,FALSE),VLOOKUP(B5,Para_simu!$A$1:$I$55,3,FALSE)),IF('Simulation retraite'!$B$8="Base",VLOOKUP(B5,Para_simu!$A$1:$I$55,4,FALSE),VLOOKUP(B5,Para_simu!$A$1:$I$55,5,FALSE))),IF(YEAR(A5)<2024,IF('Simulation retraite'!$B$8="Base",VLOOKUP(B5,Para_simu!$A$1:$I$55,6,FALSE),VLOOKUP(B5,Para_simu!$A$1:$I$55,7,FALSE)),IF('Simulation retraite'!$B$8="Base",VLOOKUP(B5,Para_simu!$A$1:$I$55,8,FALSE),VLOOKUP(B5,Para_simu!$A$1:$I$55,9,FALSE))))) -> 0.215 | F5: =CEILING(E5*'Simulation retraite'!$B$10/12,0.05)*12*(C5/360) -> 16125 | G5: =IF(A5="","",CEILING(G4+F5,0.05)) -> 416125 | H5: =IF(A5="","",CEILING(H4+D5+F5,0.05)) -> 436125 | I5: =IF(I4="","",IF(YEAR('Simulation retraite'!$B$24)=YEAR(I4),'Simulation retraite'!$B$24,IF(YEAR('Simulation retraite'!$B$24)-1<YEAR(I4),"",EOMONTH(I4,(12-MONTH(I4)))))) -> 1900-12-31 | J5: =IF(I5="","",YEAR(I5)-YEAR('Simulation retraite'!$B$6)) -> -60 | K5: =IF(AND(DAY(I5)=1,YEAR(I5)<>YEAR('Simulation retraite'!$B$24)),DAYS360(I4,I5)-1,DAYS360(I4,I5)) -> 361 | L5: =IF(I5="","",IF(YEAR(I5)=2019,CEILING(M4*Para_simu!$Q$2*K5/360,0.05),IF(YEAR(I5)=2020,CEILING(M4*Para_simu!$Q$3*K5/360,0.05),IF(YEAR(I5)=2021,CEILING(M4*Para_simu!$Q$4*K5/360,0.05),IF(YEAR(I5)=2022,CEILING(M4*Para_simu!$Q$5*K5/360,0.05),CEILING(M4*'Simulation retraite'!$B$41*K5/360,0.05)))))) -> 0 | M5: =IF(I5="","",M4+L5) -> 0 | N5: =IF(A5="","",E5*C5/360) -> 0.215 | P5: =IF(P4="","",IF(YEAR('Simulation retraite'!$B$24)=YEAR(P4),'Simulation retraite'!$B$24,IF(YEAR('Simulation retraite'!$B$24)-1<YEAR(P4),"",EOMONTH(P4,(12-MONTH(P4)))))) -> 2021-12-31 | Q5: =IF(P5="","",YEAR(P5)-YEAR('Simulation retraite'!$B$6)) -> 61 | R5: =IF(AND(DAY(P5)=1,YEAR(P5)<>YEAR('Simulation retraite'!$B$24)),DAYS360(P4,P5)-1,DAYS360(P4,P5)) -> 360 | S5: =IF(P5="","",IF(YEAR(P5)=2019,CEILING(Para_simu!$Q$2*W4*R5/360,0.05),IF(YEAR(P5)=2020,CEILING(W4*Para_simu!$Q$3*R5/360,0.05),IF(YEAR(P5)=2021,CEILING(W4*Para_simu!$Q$4*R5/360,0.05),IF(YEAR(P5)=2022,CEILING(W4*Para_simu!$Q$5*R5/360,0.05),CEILING(W4*'Simulation retraite'!$C$41*R5/360,0.05)))))) -> 20000 | T5: =IF(P5="","",IF(OR('Simulation retraite'!$B$9="non",YEAR(P5)<=2021),IF(YEAR(P5)<2024,IF('Simulation retraite'!$B$8="Base",VLOOKUP(Q5,Para_simu!$A$1:$I$55,2,FALSE),VLOOKUP(Q5,Para_simu!$A$1:$I$55,3,FALSE)),IF('Simulation retraite'!$B$8="Base",VLOOKUP(Q5,Para_simu!$A$1:$I$55,4,FALSE),VLOOKUP(Q5,Para_simu!$A$1:$I$55,5,FALSE))),IF(YEAR(P5)<2024,IF('Simulation retraite'!$B$8="Base",VLOOKUP(Q5,Para_simu!$A$1:$I$55,6,FALSE),VLOOKUP(Q5,Para_simu!$A$1:$I$55,7,FALSE)),IF('Simulation retraite'!$B$8="Base",VLOOKUP(Q5,Para_simu!$A$1:$I$55,8,FALSE),VLOOKUP(Q5,Para_simu!$A$1:$I$55,9,FALSE))))) -> 0.215 | U5: =CEILING(T5*'Simulation retraite'!$B$10/12,0.05)*12*(R5/360) -> 16125 | V5: =IF(P5="","",CEILING(V4+U5,0.05)) -> 416125 | W5: =IF(P5="","",CEILING(W4+S5+U5,0.05)) -> 436125 | X5: =IF(X4="","",IF(YEAR('Simulation retraite'!$B$24)=YEAR(X4),'Simulation retraite'!$B$24,IF(YEAR('Simulation retraite'!$B$24)-1<YEAR(X4),"",EOMONTH(X4,(12-MONTH(X4)))))) -> 1900-12-31 | Y5: =IF(X5="","",YEAR(X5)-YEAR('Simulation retraite'!$B$6)) -> -60 | Z5: =IF(AND(DAY(X5)=1,YEAR(X5)<>YEAR('Simulation retraite'!$B$24)),DAYS360(X4,X5)-1,DAYS360(X4,X5)) -> 361 | AA5: =IF(X5="","",IF(YEAR(X5)=2019,CEILING(AB4*Para_simu!$Q$2*Z5/360,0.05),IF(YEAR(X5)=2020,CEILING(AB4*Para_simu!$Q$3*Z5/360,0.05),IF(YEAR(X5)=2021,CEILING(AB4*Para_simu!$Q$4*Z5/360,0.05),IF(YEAR(X5)=2022,CEILING(AB4*Para_simu!$Q$5*Z5/360,0.05),CEILING(AB4*'Simulation retraite'!$C$41*Z5/360,0.05)))))) -> 0 | AB5: =IF(X5="","",AB4+AA5) -> 0 | AC5: =IF(P5="","",T5) -> 0.215 | AE5: =IF(AE4="","",IF(YEAR('Simulation retraite'!$B$24)=YEAR(AE4),'Simulation retraite'!$B$24,IF(YEAR('Simulation retraite'!$B$24)-1<YEAR(AE4),"",EOMONTH(AE4,(12-MONTH(AE4)))))) -> 2021-12-31 | AF5: =IF(AE5="","",YEAR(AE5)-YEAR('Simulation retraite'!$B$6)) -> 61 | AG5: =IF(AND(DAY(AE5)=1,YEAR(AE5)<>YEAR('Simulation retraite'!$B$24)),DAYS360(AE4,AE5)-1,DAYS360(AE4,AE5)) -> 360 | AH5: =IF(AE5="","",IF(YEAR(AE5)=2019,CEILING(Para_simu!$Q$2*AL4*AG5/360,0.05),IF(YEAR(AE5)=2020,CEILING(AL4*Para_simu!$Q$3*AG5/360,0.05),IF(YEAR(AE5)=2021,CEILING(AL4*Para_simu!$Q$4*AG5/360,0.05),IF(YEAR(AE5)=2022,CEILING(AL4*Para_simu!$Q$5*AG5/360,0.05),CEILING(AL4*'Simulation retraite'!$D$41*AG5/360,0.05)))))) -> 20000 | AI5: =IF(AE5="","",IF(OR('Simulation retraite'!$B$9="non",YEAR(AE5)<=2021),IF(YEAR(AE5)<2024,IF('Simulation retraite'!$B$8="Base",VLOOKUP(AF5,Para_simu!$A$1:$I$55,2,FALSE),VLOOKUP(AF5,Para_simu!$A$1:$I$55,3,FALSE)),IF('Simulation retraite'!$B$8="Base",VLOOKUP(AF5,Para_simu!$A$1:$I$55,4,FALSE),VLOOKUP(AF5,Para_simu!$A$1:$I$55,5,FALSE))),IF(YEAR(AE5)<2024,IF('Simulation retraite'!$B$8="Base",VLOOKUP(AF5,Para_simu!$A$1:$I$55,6,FALSE),VLOOKUP(AF5,Para_simu!$A$1:$I$55,7,FALSE)),IF('Simulation retraite'!$B$8="Base",VLOOKUP(AF5,Para_simu!$A$1:$I$55,8,FALSE),VLOOKUP(AF5,Para_simu!$A$1:$I$55,9,FALSE))))) -> 0.215 | AJ5: =CEILING(AI5*'Simulation retraite'!$B$10/12,0.05)*12*(AG5/360) -> 16125 | AK5: =IF(AE5="","",CEILING(AK4+AJ5,0.05)) -> 416125 | AL5: =IF(AE5="","",CEILING(AL4+AH5+AJ5,0.05)) -> 436125 | AM5: =IF(AM4="","",IF(YEAR('Simulation retraite'!$B$24)=YEAR(AM4),'Simulation retraite'!$B$24,IF(YEAR('Simulation retraite'!$B$24)-1<YEAR(AM4),"",EOMONTH(AM4,(12-MONTH(AM4)))))) -> 1900-12-31 | AN5: =IF(AM5="","",YEAR(AM5)-YEAR('Simulation retraite'!$B$6)) -> -60 | AO5: =IF(AND(DAY(AM5)=1,YEAR(AM5)<>YEAR('Simulation retraite'!$B$24)),DAYS360(AM4,AM5)-1,DAYS360(AM4,AM5)) -> 361 | AP5: =IF(AM5="","",IF(YEAR(AM5)=2019,CEILING(AQ4*Para_simu!$Q$2*AO5/360,0.05),IF(YEAR(AM5)=2020,CEILING(AQ4*Para_simu!$Q$3*AO5/360,0.05),IF(YEAR(AM5)=2021,CEILING(AQ4*Para_simu!$Q$4*AO5/360,0.05),IF(YEAR(AM5)=2022,CEILING(AQ4*Para_simu!$Q$5*AO5/360,0.05),CEILING(AQ4*'Simulation retraite'!$D$41*AO5/360,0.05)))))) -> 0 | AQ5: =IF(AM5="","",AQ4+AP5) -> 0 | AR5: =IF(AE5="","",AI5) -> 0.215
A6: =IF(A5="","",IF(YEAR('Simulation retraite'!$B$24)-1=YEAR(A5),'Simulation retraite'!$B$24,IF(YEAR('Simulation retraite'!$B$24)-1<YEAR(A5),"",(EDATE(A5,12))))) -> 2022-12-31 | B6: =IF(A6="","",YEAR(A6)-YEAR('Simulation retraite'!$B$6)) -> 62 | C6: =IF(A6="","",IF(DAY(A6)=1,DAYS360(A5,A6)-1,DAYS360(A5,A6))) -> 360 | D6: =IF(A6="","",IF(YEAR(A6)=2019,CEILING(Para_simu!$Q$2*H5*C6/360,0.05),IF(YEAR(A6)=2020,CEILING(H5*Para_simu!$Q$3*C6/360,0.05),IF(YEAR(A6)=2021,CEILING(H5*Para_simu!$Q$4*C6/360,0.05),IF(YEAR(A6)=2022,CEILING(H5*Para_simu!$Q$5*C6/360,0.05),CEILING(H5*'Simulation retraite'!$B$41*C6/360,0.05)))))) -> 4361.25 | E6: =IF(A6="","",IF(OR('Simulation retraite'!$B$9="non",YEAR(A6)<=2021),IF(YEAR(A6)<2024,IF('Simulation retraite'!$B$8="Base",VLOOKUP(B6,Para_simu!$A$1:$I$55,2,FALSE),VLOOKUP(B6,Para_simu!$A$1:$I$55,3,FALSE)),IF('Simulation retraite'!$B$8="Base",VLOOKUP(B6,Para_simu!$A$1:$I$55,4,FALSE),VLOOKUP(B6,Para_simu!$A$1:$I$55,5,FALSE))),IF(YEAR(A6)<2024,IF('Simulation retraite'!$B$8="Base",VLOOKUP(B6,Para_simu!$A$1:$I$55,6,FALSE),VLOOKUP(B6,Para_simu!$A$1:$I$55,7,FALSE)),IF('Simulation retraite'!$B$8="Base",VLOOKUP(B6,Para_simu!$A$1:$I$55,8,FALSE),VLOOKUP(B6,Para_simu!$A$1:$I$55,9,FALSE))))) -> 0.225 | F6: =IF(A6="","",CEILING(E6*'Simulation retraite'!$B$10/12,0.05)*12*(C6/360)) -> 16875 | G6: =IF(A6="","",CEILING(G5+F6,0.05)) -> 433000 | H6: 457361.25 | I6: =IF(I5="","",IF(YEAR('Simulation retraite'!$B$24)-1=YEAR(I5),'Simulation retraite'!$B$24,IF(YEAR('Simulation retraite'!$B$24)-1<YEAR(I5),"",(EDATE(I5,12))))) -> 1901-12-31 | J6: =IF(I6="","",YEAR(I6)-YEAR('Simulation retraite'!$B$6)) -> -59 | K6: =IF(I6="","",IF(DAY(I6)=1,DAYS360(I5,I6)-1,DAYS360(I5,I6))) -> 360 | L6: =IF(I6="","",IF(YEAR(I6)=2020,CEILING(M5*Para_simu!$Q$3*K6/360,0.05),IF(YEAR(I6)=2021,CEILING(M5*Para_simu!$Q$4*K6/360,0.05),IF(YEAR(I6)=2022,CEILING(M5*Para_simu!$Q$5*K6/360,0.05),CEILING(M5*'Simulation retraite'!$B$41*K6/360,0.05))))) -> 0 | M6: =IF(I6="","",M5+L6) -> 0 | N6: =IF(A6="","",ROUND(N5+N5*($M$1*C6/360)+E6*C6/360,6)) -> 0.44 | P6: =IF(P5="","",IF(YEAR('Simulation retraite'!$B$24)-1=YEAR(P5),'Simulation retraite'!$B$24,IF(YEAR('Simulation retraite'!$B$24)-1<YEAR(P5),"",(EDATE(P5,12))))) -> 2022-12-31 | Q6: =IF(P6="","",YEAR(P6)-YEAR('Simulation retraite'!$B$6)) -> 62 | R6: =IF(P6="","",IF(DAY(P6)=1,DAYS360(P5,P6)-1,DAYS360(P5,P6))) -> 360 | S6: =IF(P6="","",IF(YEAR(P6)=2019,CEILING(Para_simu!$Q$2*W5*R6/360,0.05),IF(YEAR(P6)=2020,CEILING(W5*Para_simu!$Q$3*R6/360,0.05),IF(YEAR(P6)=2021,CEILING(W5*Para_simu!$Q$4*R6/360,0.05),IF(YEAR(P6)=2022,CEILING(W5*Para_simu!$Q$5*R6/360,0.05),CEILING(W5*'Simulation retraite'!$C$41*R6/360,0.05)))))) -> 4361.25 | T6: =IF(P6="","",IF(OR('Simulation retraite'!$B$9="non",YEAR(P6)<=2021),IF(YEAR(P6)<2024,IF('Simulation retraite'!$B$8="Base",VLOOKUP(Q6,Para_simu!$A$1:$I$55,2,FALSE),VLOOKUP(Q6,Para_simu!$A$1:$I$55,3,FALSE)),IF('Simulation retraite'!$B$8="Base",VLOOKUP(Q6,Para_simu!$A$1:$I$55,4,FALSE),VLOOKUP(Q6,Para_simu!$A$1:$I$55,5,FALSE))),IF(YEAR(P6)<2024,IF('Simulation retraite'!$B$8="Base",VLOOKUP(Q6,Para_simu!$A$1:$I$55,6,FALSE),VLOOKUP(Q6,Para_simu!$A$1:$I$55,7,FALSE)),IF('Simulation retraite'!$B$8="Base",VLOOKUP(Q6,Para_simu!$A$1:$I$55,8,FALSE),VLOOKUP(Q6,Para_simu!$A$1:$I$55,9,FALSE))))) -> 0.225 | U6: =IF(P6="","",CEILING(T6*'Simulation retraite'!$B$10/12,0.05)*12*(R6/360)) -> 16875 | V6: 433000 | W6: 457361.25 | X6: =IF(X5="","",IF(YEAR('Simulation retraite'!$B$24)-1=YEAR(X5),'Simulation retraite'!$B$24,IF(YEAR('Simulation retraite'!$B$24)-1<YEAR(X5),"",(EDATE(X5,12))))) -> 1901-12-31 | Y6: =IF(X6="","",YEAR(X6)-YEAR('Simulation retraite'!$B$6)) -> -59 | Z6: =IF(X6="","",IF(DAY(X6)=1,DAYS360(X5,X6)-1,DAYS360(X5,X6))) -> 360 | AA6: =IF(X6="","",IF(YEAR(X6)=2020,CEILING(AB5*Para_simu!$Q$3*Z6/360,0.05),IF(YEAR(X6)=2021,CEILING(AB5*Para_simu!$Q$4*Z6/360,0.05),IF(YEAR(X6)=2022,CEILING(AB5*Para_simu!$Q$5*Z6/360,0.05),CEILING(AB5*'Simulation retraite'!$C$41*Z6/360,0.05))))) -> 0 | AB6: 0 | AC6: =IF(P6="","",ROUND(AC5+AC5*($AB$1*R6/360)+T6*R6/360,6)) -> 0.443763 | AE6: =IF(AE5="","",IF(YEAR('Simulation retraite'!$B$24)-1=YEAR(AE5),'Simulation retraite'!$B$24,IF(YEAR('Simulation retraite'!$B$24)-1<YEAR(AE5),"",(EDATE(AE5,12))))) -> 2022-12-31 | AF6: =IF(AE6="","",YEAR(AE6)-YEAR('Simulation retraite'!$B$6)) -> 62 | AG6: =IF(AE6="","",IF(DAY(AE6)=1,DAYS360(AE5,AE6)-1,DAYS360(AE5,AE6))) -> 360 | AH6: =IF(AE6="","",IF(YEAR(AE6)=2019,CEILING(Para_simu!$Q$2*AL5*AG6/360,0.05),IF(YEAR(AE6)=2020,CEILING(AL5*Para_simu!$Q$3*AG6/360,0.05),IF(YEAR(AE6)=2021,CEILING(AL5*Para_simu!$Q$4*AG6/360,0.05),IF(YEAR(AE6)=2022,CEILING(AL5*Para_simu!$Q$5*AG6/360,0.05),CEILING(AL5*'Simulation retraite'!$D$41*AG6/360,0.05)))))) -> 4361.25 | AI6: =IF(AE6="","",IF(OR('Simulation retraite'!$B$9="non",YEAR(AE6)<=2021),IF(YEAR(AE6)<2024,IF('Simulation retraite'!$B$8="Base",VLOOKUP(AF6,Para_simu!$A$1:$I$55,2,FALSE),VLOOKUP(AF6,Para_simu!$A$1:$I$55,3,FALSE)),IF('Simulation retraite'!$B$8="Base",VLOOKUP(AF6,Para_simu!$A$1:$I$55,4,FALSE),VLOOKUP(AF6,Para_simu!$A$1:$I$55,5,FALSE))),IF(YEAR(AE6)<2024,IF('Simulation retraite'!$B$8="Base",VLOOKUP(AF6,Para_simu!$A$1:$I$55,6,FALSE),VLOOKUP(AF6,Para_simu!$A$1:$I$55,7,FALSE)),IF('Simulation retraite'!$B$8="Base",VLOOKUP(AF6,Para_simu!$A$1:$I$55,8,FALSE),VLOOKUP(AF6,Para_simu!$A$1:$I$55,9,FALSE))))) -> 0.225 | AJ6: =IF(AE6="","",CEILING(AI6*'Simulation retraite'!$B$10/12,0.05)*12*(AG6/360)) -> 16875 | AK6: 433000 | AL6: 457361.25 | AM6: =IF(AM5="","",IF(YEAR('Simulation retraite'!$B$24)-1=YEAR(AM5),'Simulation retraite'!$B$24,IF(YEAR('Simulation retraite'!$B$24)-1<YEAR(AM5),"",(EDATE(AM5,12))))) -> 1901-12-31 | AN6: =IF(AM6="","",YEAR(AM6)-YEAR('Simulation retraite'!$B$6)) -> -59 | AO6: =IF(AM6="","",IF(DAY(AM6)=1,DAYS360(AM5,AM6)-1,DAYS360(AM5,AM6))) -> 360 | AP6: =IF(AM6="","",IF(YEAR(AM6)=2020,CEILING(AQ5*Para_simu!$Q$3*AO6/360,0.05),IF(YEAR(AM6)=2021,CEILING(AQ5*Para_simu!$Q$4*AO6/360,0.05),IF(YEAR(AM6)=2022,CEILING(AQ5*Para_simu!$Q$5*AO6/360,0.05),CEILING(AQ5*'Simulation retraite'!$D$41*AO6/360,0.05))))) -> 0 | AQ6: 0 | AR6: =IF(AE6="","",ROUND(AR5+AR5*($AQ$1*AG6/360)+AI6*AG6/360,6)) -> 0.445375
A7: =IF(A6="","",IF(YEAR('Simulation retraite'!$B$24)-1=YEAR(A6),'Simulation retraite'!$B$24,IF(YEAR('Simulation retraite'!$B$24)-1<YEAR(A6),"",(EDATE(A6,12))))) -> 2023-12-31 | B7: =IF(A7="","",YEAR(A7)-YEAR('Simulation retraite'!$B$6)) -> 63 | C7: 360 | D7: =IF(A7="","",IF(YEAR(A7)=2019,CEILING(Para_simu!$Q$2*H6*C7/360,0.05),IF(YEAR(A7)=2020,CEILING(H6*Para_simu!$Q$3*C7/360,0.05),IF(YEAR(A7)=2021,CEILING(H6*Para_simu!$Q$4*C7/360,0.05),IF(YEAR(A7)=2022,CEILING(H6*Para_simu!$Q$5*C7/360,0.05),CEILING(H6*'Simulation retraite'!$B$41*C7/360,0.05)))))) -> 4573.65 | E7: =IF(A7="","",IF(OR('Simulation retraite'!$B$9="non",YEAR(A7)<=2021),IF(YEAR(A7)<2024,IF('Simulation retraite'!$B$8="Base",VLOOKUP(B7,Para_simu!$A$1:$I$55,2,FALSE),VLOOKUP(B7,Para_simu!$A$1:$I$55,3,FALSE)),IF('Simulation retraite'!$B$8="Base",VLOOKUP(B7,Para_simu!$A$1:$I$55,4,FALSE),VLOOKUP(B7,Para_simu!$A$1:$I$55,5,FALSE))),IF(YEAR(A7)<2024,IF('Simulation retraite'!$B$8="Base",VLOOKUP(B7,Para_simu!$A$1:$I$55,6,FALSE),VLOOKUP(B7,Para_simu!$A$1:$I$55,7,FALSE)),IF('Simulation retraite'!$B$8="Base",VLOOKUP(B7,Para_simu!$A$1:$I$55,8,FALSE),VLOOKUP(B7,Para_simu!$A$1:$I$55,9,FALSE))))) -> 0.225 | F7: =IF(A7="","",CEILING(E7*'Simulation retraite'!$B$10/12,0.05)*12*(C7/360)) -> 16875 | G7: =IF(A7="","",CEILING(G6+F7,0.05)) -> 449875 | H7: 478809.9 | I7: =IF(I6="","",IF(YEAR('Simulation retraite'!$B$24)-1=YEAR(I6),'Simulation retraite'!$B$24,IF(YEAR('Simulation retraite'!$B$24)-1<YEAR(I6),"",(EDATE(I6,12))))) -> 1902-12-31 | J7: =IF(I7="","",YEAR(I7)-YEAR('Simulation retraite'!$B$6)) -> -58 | K7: 360 | L7: =IF(I7="","",IF(YEAR(I7)=2020,CEILING(M6*Para_simu!$Q$3*K7/360,0.05),IF(YEAR(I7)=2021,CEILING(M6*Para_simu!$Q$4*K7/360,0.05),IF(YEAR(I7)=2022,CEILING(M6*Para_simu!$Q$5*K7/360,0.05),CEILING(M6*'Simulation retraite'!$B$41*K7/360,0.05))))) -> 0 | M7: 0 | N7: =IF(A7="","",ROUND(N6+N6*($M$1*C7/360)+E7*C7/360,6)) -> 0.665 | P7: =IF(P6="","",IF(YEAR('Simulation retraite'!$B$24)-1=YEAR(P6),'Simulation retraite'!$B$24,IF(YEAR('Simulation retraite'!$B$24)-1<YEAR(P6),"",(EDATE(P6,12))))) -> 2023-12-31 | Q7: =IF(P7="","",YEAR(P7)-YEAR('Simulation retraite'!$B$6)) -> 63 | R7: 360 | S7: =IF(P7="","",IF(YEAR(P7)=2019,CEILING(Para_simu!$Q$2*W6*R7/360,0.05),IF(YEAR(P7)=2020,CEILING(W6*Para_simu!$Q$3*R7/360,0.05),IF(YEAR(P7)=2021,CEILING(W6*Para_simu!$Q$4*R7/360,0.05),IF(YEAR(P7)=2022,CEILING(W6*Para_simu!$Q$5*R7/360,0.05),CEILING(W6*'Simulation retraite'!$C$41*R7/360,0.05)))))) -> 8003.85 | T7: =IF(P7="","",IF(OR('Simulation retraite'!$B$9="non",YEAR(P7)<=2021),IF(YEAR(P7)<2024,IF('Simulation retraite'!$B$8="Base",VLOOKUP(Q7,Para_simu!$A$1:$I$55,2,FALSE),VLOOKUP(Q7,Para_simu!$A$1:$I$55,3,FALSE)),IF('Simulation retraite'!$B$8="Base",VLOOKUP(Q7,Para_simu!$A$1:$I$55,4,FALSE),VLOOKUP(Q7,Para_simu!$A$1:$I$55,5,FALSE))),IF(YEAR(P7)<2024,IF('Simulation retraite'!$B$8="Base",VLOOKUP(Q7,Para_simu!$A$1:$I$55,6,FALSE),VLOOKUP(Q7,Para_simu!$A$1:$I$55,7,FALSE)),IF('Simulation retraite'!$B$8="Base",VLOOKUP(Q7,Para_simu!$A$1:$I$55,8,FALSE),VLOOKUP(Q7,Para_simu!$A$1:$I$55,9,FALSE))))) -> 0.225 | U7: =IF(P7="","",CEILING(T7*'Simulation retraite'!$B$10/12,0.05)*12*(R7/360)) -> 16875 | V7: 449875 | W7: 482240.1 | X7: =IF(X6="","",IF(YEAR('Simulation retraite'!$B$24)-1=YEAR(X6),'Simulation retraite'!$B$24,IF(YEAR('Simulation retraite'!$B$24)-1<YEAR(X6),"",(EDATE(X6,12))))) -> 1902-12-31 | Y7: =IF(X7="","",YEAR(X7)-YEAR('Simulation retraite'!$B$6)) -> -58 | Z7: 360 | AA7: =IF(X7="","",IF(YEAR(X7)=2020,CEILING(AB6*Para_simu!$Q$3*Z7/360,0.05),IF(YEAR(X7)=2021,CEILING(AB6*Para_simu!$Q$4*Z7/360,0.05),IF(YEAR(X7)=2022,CEILING(AB6*Para_simu!$Q$5*Z7/360,0.05),CEILING(AB6*'Simulation retraite'!$C$41*Z7/360,0.05))))) -> 0 | AB7: 0 | AC7: =IF(P7="","",ROUND(AC6+AC6*($AB$1*R7/360)+T7*R7/360,6)) -> 0.676529 | AE7: =IF(AE6="","",IF(YEAR('Simulation retraite'!$B$24)-1=YEAR(AE6),'Simulation retraite'!$B$24,IF(YEAR('Simulation retraite'!$B$24)-1<YEAR(AE6),"",(EDATE(AE6,12))))) -> 2023-12-31 | AF7: =IF(AE7="","",YEAR(AE7)-YEAR('Simulation retraite'!$B$6)) -> 63 | AG7: 360 | AH7: =IF(AE7="","",IF(YEAR(AE7)=2019,CEILING(Para_simu!$Q$2*AL6*AG7/360,0.05),IF(YEAR(AE7)=2020,CEILING(AL6*Para_simu!$Q$3*AG7/360,0.05),IF(YEAR(AE7)=2021,CEILING(AL6*Para_simu!$Q$4*AG7/360,0.05),IF(YEAR(AE7)=2022,CEILING(AL6*Para_simu!$Q$5*AG7/360,0.05),CEILING(AL6*'Simulation retraite'!$D$41*AG7/360,0.05)))))) -> 11434.05 | AI7: =IF(AE7="","",IF(OR('Simulation retraite'!$B$9="non",YEAR(AE7)<=2021),IF(YEAR(AE7)<2024,IF('Simulation retraite'!$B$8="Base",VLOOKUP(AF7,Para_simu!$A$1:$I$55,2,FALSE),VLOOKUP(AF7,Para_simu!$A$1:$I$55,3,FALSE)),IF('Simulation retraite'!$B$8="Base",VLOOKUP(AF7,Para_simu!$A$1:$I$55,4,FALSE),VLOOKUP(AF7,Para_simu!$A$1:$I$55,5,FALSE))),IF(YEAR(AE7)<2024,IF('Simulation retraite'!$B$8="Base",VLOOKUP(AF7,Para_simu!$A$1:$I$55,6,FALSE),VLOOKUP(AF7,Para_simu!$A$1:$I$55,7,FALSE)),IF('Simulation retraite'!$B$8="Base",VLOOKUP(AF7,Para_simu!$A$1:$I$55,8,FALSE),VLOOKUP(AF7,Para_simu!$A$1:$I$55,9,FALSE))))) -> 0.225 | AJ7: =IF(AE7="","",CEILING(AI7*'Simulation retraite'!$B$10/12,0.05)*12*(AG7/360)) -> 16875 | AK7: 449875 | AL7: 485670.3 | AM7: =IF(AM6="","",IF(YEAR('Simulation retraite'!$B$24)-1=YEAR(AM6),'Simulation retraite'!$B$24,IF(YEAR('Simulation retraite'!$B$24)-1<YEAR(AM6),"",(EDATE(AM6,12))))) -> 1902-12-31 | AN7: =IF(AM7="","",YEAR(AM7)-YEAR('Simulation retraite'!$B$6)) -> -58 | AO7: 360 | AP7: =IF(AM7="","",IF(YEAR(AM7)=2020,CEILING(AQ6*Para_simu!$Q$3*AO7/360,0.05),IF(YEAR(AM7)=2021,CEILING(AQ6*Para_simu!$Q$4*AO7/360,0.05),IF(YEAR(AM7)=2022,CEILING(AQ6*Para_simu!$Q$5*AO7/360,0.05),CEILING(AQ6*'Simulation retraite'!$D$41*AO7/360,0.05))))) -> 0 | AQ7: 0 | AR7: =IF(AE7="","",ROUND(AR6+AR6*($AQ$1*AG7/360)+AI7*AG7/360,6)) -> 0.681509
A8: =IF(A7="","",IF(YEAR('Simulation retraite'!$B$24)-1=YEAR(A7),'Simulation retraite'!$B$24,IF(YEAR('Simulation retraite'!$B$24)-1<YEAR(A7),"",(EDATE(A7,12))))) -> 2024-03-01 | B8: =IF(A8="","",YEAR(A8)-YEAR('Simulation retraite'!$B$6)) -> 64 | C8: 60 | D8: =IF(A8="","",IF(YEAR(A8)=2019,CEILING(Para_simu!$Q$2*H7*C8/360,0.05),IF(YEAR(A8)=2020,CEILING(H7*Para_simu!$Q$3*C8/360,0.05),IF(YEAR(A8)=2021,CEILING(H7*Para_simu!$Q$4*C8/360,0.05),IF(YEAR(A8)=2022,CEILING(H7*Para_simu!$Q$5*C8/360,0.05),CEILING(H7*'Simulation retraite'!$B$41*C8/360,0.05)))))) -> 798.05 | E8: =IF(A8="","",IF(OR('Simulation retraite'!$B$9="non",YEAR(A8)<=2021),IF(YEAR(A8)<2024,IF('Simulation retraite'!$B$8="Base",VLOOKUP(B8,Para_simu!$A$1:$I$55,2,FALSE),VLOOKUP(B8,Para_simu!$A$1:$I$55,3,FALSE)),IF('Simulation retraite'!$B$8="Base",VLOOKUP(B8,Para_simu!$A$1:$I$55,4,FALSE),VLOOKUP(B8,Para_simu!$A$1:$I$55,5,FALSE))),IF(YEAR(A8)<2024,IF('Simulation retraite'!$B$8="Base",VLOOKUP(B8,Para_simu!$A$1:$I$55,6,FALSE),VLOOKUP(B8,Para_simu!$A$1:$I$55,7,FALSE)),IF('Simulation retraite'!$B$8="Base",VLOOKUP(B8,Para_simu!$A$1:$I$55,8,FALSE),VLOOKUP(B8,Para_simu!$A$1:$I$55,9,FALSE))))) -> 0.21 | F8: =IF(A8="","",CEILING(E8*'Simulation retraite'!$B$10/12,0.05)*12*(C8/360)) -> 2625 | G8: 452500 | H8: 482232.95 | I8: =IF(I7="","",IF(YEAR('Simulation retraite'!$B$24)-1=YEAR(I7),'Simulation retraite'!$B$24,IF(YEAR('Simulation retraite'!$B$24)-1<YEAR(I7),"",(EDATE(I7,12))))) -> 1903-12-31 | J8: =IF(I8="","",YEAR(I8)-YEAR('Simulation retraite'!$B$6)) -> -57 | K8: 360 | L8: =IF(I8="","",IF(YEAR(I8)=2020,CEILING(M7*Para_simu!$Q$3*K8/360,0.05),IF(YEAR(I8)=2021,CEILING(M7*Para_simu!$Q$4*K8/360,0.05),IF(YEAR(I8)=2022,CEILING(M7*Para_simu!$Q$5*K8/360,0.05),CEILING(M7*'Simulation retraite'!$B$41*K8/360,0.05))))) -> 0 | M8: 0 | N8: 0.7 | P8: =IF(P7="","",IF(YEAR('Simulation retraite'!$B$24)-1=YEAR(P7),'Simulation retraite'!$B$24,IF(YEAR('Simulation retraite'!$B$24)-1<YEAR(P7),"",(EDATE(P7,12))))) -> 2024-03-01 | Q8: =IF(P8="","",YEAR(P8)-YEAR('Simulation retraite'!$B$6)) -> 64 | R8: 60 | S8: =IF(P8="","",IF(YEAR(P8)=2019,CEILING(Para_simu!$Q$2*W7*R8/360,0.05),IF(YEAR(P8)=2020,CEILING(W7*Para_simu!$Q$3*R8/360,0.05),IF(YEAR(P8)=2021,CEILING(W7*Para_simu!$Q$4*R8/360,0.05),IF(YEAR(P8)=2022,CEILING(W7*Para_simu!$Q$5*R8/360,0.05),CEILING(W7*'Simulation retraite'!$C$41*R8/360,0.05)))))) -> 1406.55 | T8: =IF(P8="","",IF(OR('Simulation retraite'!$B$9="non",YEAR(P8)<=2021),IF(YEAR(P8)<2024,IF('Simulation retraite'!$B$8="Base",VLOOKUP(Q8,Para_simu!$A$1:$I$55,2,FALSE),VLOOKUP(Q8,Para_simu!$A$1:$I$55,3,FALSE)),IF('Simulation retraite'!$B$8="Base",VLOOKUP(Q8,Para_simu!$A$1:$I$55,4,FALSE),VLOOKUP(Q8,Para_simu!$A$1:$I$55,5,FALSE))),IF(YEAR(P8)<2024,IF('Simulation retraite'!$B$8="Base",VLOOKUP(Q8,Para_simu!$A$1:$I$55,6,FALSE),VLOOKUP(Q8,Para_simu!$A$1:$I$55,7,FALSE)),IF('Simulation retraite'!$B$8="Base",VLOOKUP(Q8,Para_simu!$A$1:$I$55,8,FALSE),VLOOKUP(Q8,Para_simu!$A$1:$I$55,9,FALSE))))) -> 0.21 | U8: =IF(P8="","",CEILING(T8*'Simulation retraite'!$B$10/12,0.05)*12*(R8/360)) -> 2625 | V8: 452500 | W8: 486271.65 | X8: =IF(X7="","",IF(YEAR('Simulation retraite'!$B$24)-1=YEAR(X7),'Simulation retraite'!$B$24,IF(YEAR('Simulation retraite'!$B$24)-1<YEAR(X7),"",(EDATE(X7,12))))) -> 1903-12-31 | Y8: =IF(X8="","",YEAR(X8)-YEAR('Simulation retraite'!$B$6)) -> -57 | Z8: 360 | AA8: =IF(X8="","",IF(YEAR(X8)=2020,CEILING(AB7*Para_simu!$Q$3*Z8/360,0.05),IF(YEAR(X8)=2021,CEILING(AB7*Para_simu!$Q$4*Z8/360,0.05),IF(YEAR(X8)=2022,CEILING(AB7*Para_simu!$Q$5*Z8/360,0.05),CEILING(AB7*'Simulation retraite'!$C$41*Z8/360,0.05))))) -> 0 | AB8: 0 | AC8: 0.713502 | AE8: =IF(AE7="","",IF(YEAR('Simulation retraite'!$B$24)-1=YEAR(AE7),'Simulation retraite'!$B$24,IF(YEAR('Simulation retraite'!$B$24)-1<YEAR(AE7),"",(EDATE(AE7,12))))) -> 2024-03-01 | AF8: =IF(AE8="","",YEAR(AE8)-YEAR('Simulation retraite'!$B$6)) -> 64 | AG8: 60 | AH8: =IF(AE8="","",IF(YEAR(AE8)=2019,CEILING(Para_simu!$Q$2*AL7*AG8/360,0.05),IF(YEAR(AE8)=2020,CEILING(AL7*Para_simu!$Q$3*AG8/360,0.05),IF(YEAR(AE8)=2021,CEILING(AL7*Para_simu!$Q$4*AG8/360,0.05),IF(YEAR(AE8)=2022,CEILING(AL7*Para_simu!$Q$5*AG8/360,0.05),CEILING(AL7*'Simulation retraite'!$D$41*AG8/360,0.05)))))) -> 2023.65 | AI8: =IF(AE8="","",IF(OR('Simulation retraite'!$B$9="non",YEAR(AE8)<=2021),IF(YEAR(AE8)<2024,IF('Simulation retraite'!$B$8="Base",VLOOKUP(AF8,Para_simu!$A$1:$I$55,2,FALSE),VLOOKUP(AF8,Para_simu!$A$1:$I$55,3,FALSE)),IF('Simulation retraite'!$B$8="Base",VLOOKUP(AF8,Para_simu!$A$1:$I$55,4,FALSE),VLOOKUP(AF8,Para_simu!$A$1:$I$55,5,FALSE))),IF(YEAR(AE8)<2024,IF('Simulation retraite'!$B$8="Base",VLOOKUP(AF8,Para_simu!$A$1:$I$55,6,FALSE),VLOOKUP(AF8,Para_simu!$A$1:$I$55,7,FALSE)),IF('Simulation retraite'!$B$8="Base",VLOOKUP(AF8,Para_simu!$A$1:$I$55,8,FALSE),VLOOKUP(AF8,Para_simu!$A$1:$I$55,9,FALSE))))) -> 0.21 | AJ8: =IF(AE8="","",CEILING(AI8*'Simulation retraite'!$B$10/12,0.05)*12*(AG8/360)) -> 2625 | AK8: 452500 | AL8: 490318.95 | AM8: =IF(AM7="","",IF(YEAR('Simulation retraite'!$B$24)-1=YEAR(AM7),'Simulation retraite'!$B$24,IF(YEAR('Simulation retraite'!$B$24)-1<YEAR(AM7),"",(EDATE(AM7,12))))) -> 1903-12-31 | AN8: =IF(AM8="","",YEAR(AM8)-YEAR('Simulation retraite'!$B$6)) -> -57 | AO8: 360 | AP8: =IF(AM8="","",IF(YEAR(AM8)=2020,CEILING(AQ7*Para_simu!$Q$3*AO8/360,0.05),IF(YEAR(AM8)=2021,CEILING(AQ7*Para_simu!$Q$4*AO8/360,0.05),IF(YEAR(AM8)=2022,CEILING(AQ7*Para_simu!$Q$5*AO8/360,0.05),CEILING(AQ7*'Simulation retraite'!$D$41*AO8/360,0.05))))) -> 0 | AQ8: 0 | AR8: 0.719349
A9: =IF(A8="","",IF(YEAR('Simulation retraite'!$B$24)-1=YEAR(A8),'Simulation retraite'!$B$24,IF(YEAR('Simulation retraite'!$B$24)-1<YEAR(A8),"",(EDATE(A8,12))))) ->  | B9: =IF(A9="","",YEAR(A9)-YEAR('Simulation retraite'!$B$6)) ->  | D9: =IF(A9="","",IF(YEAR(A9)=2019,CEILING(Para_simu!$Q$2*H8*C9/360,0.05),IF(YEAR(A9)=2020,CEILING(H8*Para_simu!$Q$3*C9/360,0.05),IF(YEAR(A9)=2021,CEILING(H8*Para_simu!$Q$4*C9/360,0.05),IF(YEAR(A9)=2022,CEILING(H8*Para_simu!$Q$5*C9/360,0.05),CEILING(H8*'Simulation retraite'!$B$41*C9/360,0.05)))))) ->  | E9: =IF(A9="","",IF(OR('Simulation retraite'!$B$9="non",YEAR(A9)<=2021),IF(YEAR(A9)<2024,IF('Simulation retraite'!$B$8="Base",VLOOKUP(B9,Para_simu!$A$1:$I$55,2,FALSE),VLOOKUP(B9,Para_simu!$A$1:$I$55,3,FALSE)),IF('Simulation retraite'!$B$8="Base",VLOOKUP(B9,Para_simu!$A$1:$I$55,4,FALSE),VLOOKUP(B9,Para_simu!$A$1:$I$55,5,FALSE))),IF(YEAR(A9)<2024,IF('Simulation retraite'!$B$8="Base",VLOOKUP(B9,Para_simu!$A$1:$I$55,6,FALSE),VLOOKUP(B9,Para_simu!$A$1:$I$55,7,FALSE)),IF('Simulation retraite'!$B$8="Base",VLOOKUP(B9,Para_simu!$A$1:$I$55,8,FALSE),VLOOKUP(B9,Para_simu!$A$1:$I$55,9,FALSE))))) ->  | F9: =IF(A9="","",CEILING(E9*'Simulation retraite'!$B$10/12,0.05)*12*(C9/360)) ->  | I9: =IF(I8="","",IF(YEAR('Simulation retraite'!$B$24)-1=YEAR(I8),'Simulation retraite'!$B$24,IF(YEAR('Simulation retraite'!$B$24)-1<YEAR(I8),"",(EDATE(I8,12))))) -> 1904-12-31 | J9: =IF(I9="","",YEAR(I9)-YEAR('Simulation retraite'!$B$6)) -> -56 | K9: 360 | L9: =IF(I9="","",IF(YEAR(I9)=2020,CEILING(M8*Para_simu!$Q$3*K9/360,0.05),IF(YEAR(I9)=2021,CEILING(M8*Para_simu!$Q$4*K9/360,0.05),IF(YEAR(I9)=2022,CEILING(M8*Para_simu!$Q$5*K9/360,0.05),CEILING(M8*'Simulation retraite'!$B$41*K9/360,0.05))))) -> 0 | M9: 0 | P9: =IF(P8="","",IF(YEAR('Simulation retraite'!$B$24)-1=YEAR(P8),'Simulation retraite'!$B$24,IF(YEAR('Simulation retraite'!$B$24)-1<YEAR(P8),"",(EDATE(P8,12))))) ->  | Q9: =IF(P9="","",YEAR(P9)-YEAR('Simulation retraite'!$B$6)) ->  | S9: =IF(P9="","",IF(YEAR(P9)=2019,CEILING(Para_simu!$Q$2*W8*R9/360,0.05),IF(YEAR(P9)=2020,CEILING(W8*Para_simu!$Q$3*R9/360,0.05),IF(YEAR(P9)=2021,CEILING(W8*Para_simu!$Q$4*R9/360,0.05),IF(YEAR(P9)=2022,CEILING(W8*Para_simu!$Q$5*R9/360,0.05),CEILING(W8*'Simulation retraite'!$C$41*R9/360,0.05)))))) ->  | T9: =IF(P9="","",IF(OR('Simulation retraite'!$B$9="non",YEAR(P9)<=2021),IF(YEAR(P9)<2024,IF('Simulation retraite'!$B$8="Base",VLOOKUP(Q9,Para_simu!$A$1:$I$55,2,FALSE),VLOOKUP(Q9,Para_simu!$A$1:$I$55,3,FALSE)),IF('Simulation retraite'!$B$8="Base",VLOOKUP(Q9,Para_simu!$A$1:$I$55,4,FALSE),VLOOKUP(Q9,Para_simu!$A$1:$I$55,5,FALSE))),IF(YEAR(P9)<2024,IF('Simulation retraite'!$B$8="Base",VLOOKUP(Q9,Para_simu!$A$1:$I$55,6,FALSE),VLOOKUP(Q9,Para_simu!$A$1:$I$55,7,FALSE)),IF('Simulation retraite'!$B$8="Base",VLOOKUP(Q9,Para_simu!$A$1:$I$55,8,FALSE),VLOOKUP(Q9,Para_simu!$A$1:$I$55,9,FALSE))))) ->  | U9: =IF(P9="","",CEILING(T9*'Simulation retraite'!$B$10/12,0.05)*12*(R9/360)) ->  | X9: =IF(X8="","",IF(YEAR('Simulation retraite'!$B$24)-1=YEAR(X8),'Simulation retraite'!$B$24,IF(YEAR('Simulation retraite'!$B$24)-1<YEAR(X8),"",(EDATE(X8,12))))) -> 1904-12-31 | Y9: =IF(X9="","",YEAR(X9)-YEAR('Simulation retraite'!$B$6)) -> -56 | Z9: 360 | AA9: =IF(X9="","",IF(YEAR(X9)=2020,CEILING(AB8*Para_simu!$Q$3*Z9/360,0.05),IF(YEAR(X9)=2021,CEILING(AB8*Para_simu!$Q$4*Z9/360,0.05),IF(YEAR(X9)=2022,CEILING(AB8*Para_simu!$Q$5*Z9/360,0.05),CEILING(AB8*'Simulation retraite'!$C$41*Z9/360,0.05))))) -> 0 | AB9: 0 | AE9: =IF(AE8="","",IF(YEAR('Simulation retraite'!$B$24)-1=YEAR(AE8),'Simulation retraite'!$B$24,IF(YEAR('Simulation retraite'!$B$24)-1<YEAR(AE8),"",(EDATE(AE8,12))))) ->  | AF9: =IF(AE9="","",YEAR(AE9)-YEAR('Simulation retraite'!$B$6)) ->  | AH9: =IF(AE9="","",IF(YEAR(AE9)=2019,CEILING(Para_simu!$Q$2*AL8*AG9/360,0.05),IF(YEAR(AE9)=2020,CEILING(AL8*Para_simu!$Q$3*AG9/360,0.05),IF(YEAR(AE9)=2021,CEILING(AL8*Para_simu!$Q$4*AG9/360,0.05),IF(YEAR(AE9)=2022,CEILING(AL8*Para_simu!$Q$5*AG9/360,0.05),CEILING(AL8*'Simulation retraite'!$D$41*AG9/360,0.05)))))) ->  | AI9: =IF(AE9="","",IF(OR('Simulation retraite'!$B$9="non",YEAR(AE9)<=2021),IF(YEAR(AE9)<2024,IF('Simulation retraite'!$B$8="Base",VLOOKUP(AF9,Para_simu!$A$1:$I$55,2,FALSE),VLOOKUP(AF9,Para_simu!$A$1:$I$55,3,FALSE)),IF('Simulation retraite'!$B$8="Base",VLOOKUP(AF9,Para_simu!$A$1:$I$55,4,FALSE),VLOOKUP(AF9,Para_simu!$A$1:$I$55,5,FALSE))),IF(YEAR(AE9)<2024,IF('Simulation retraite'!$B$8="Base",VLOOKUP(AF9,Para_simu!$A$1:$I$55,6,FALSE),VLOOKUP(AF9,Para_simu!$A$1:$I$55,7,FALSE)),IF('Simulation retraite'!$B$8="Base",VLOOKUP(AF9,Para_simu!$A$1:$I$55,8,FALSE),VLOOKUP(AF9,Para_simu!$A$1:$I$55,9,FALSE))))) ->  | AJ9: =IF(AE9="","",CEILING(AI9*'Simulation retraite'!$B$10/12,0.05)*12*(AG9/360)) ->  | AM9: =IF(AM8="","",IF(YEAR('Simulation retraite'!$B$24)-1=YEAR(AM8),'Simulation retraite'!$B$24,IF(YEAR('Simulation retraite'!$B$24)-1<YEAR(AM8),"",(EDATE(AM8,12))))) -> 1904-12-31 | AN9: =IF(AM9="","",YEAR(AM9)-YEAR('Simulation retraite'!$B$6)) -> -56 | AO9: 360 | AP9: =IF(AM9="","",IF(YEAR(AM9)=2020,CEILING(AQ8*Para_simu!$Q$3*AO9/360,0.05),IF(YEAR(AM9)=2021,CEILING(AQ8*Para_simu!$Q$4*AO9/360,0.05),IF(YEAR(AM9)=2022,CEILING(AQ8*Para_simu!$Q$5*AO9/360,0.05),CEILING(AQ8*'Simulation retraite'!$D$41*AO9/360,0.05))))) -> 0 | AQ9: 0
A10: =IF(A9="","",IF(YEAR('Simulation retraite'!$B$24)-1=YEAR(A9),'Simulation retraite'!$B$24,IF(YEAR('Simulation retraite'!$B$24)-1<YEAR(A9),"",(EDATE(A9,12))))) ->  | B10: =IF(A10="","",YEAR(A10)-YEAR('Simulation retraite'!$B$6)) ->  | D10: =IF(A10="","",IF(YEAR(A10)=2019,CEILING(Para_simu!$Q$2*H9*C10/360,0.05),IF(YEAR(A10)=2020,CEILING(H9*Para_simu!$Q$3*C10/360,0.05),IF(YEAR(A10)=2021,CEILING(H9*Para_simu!$Q$4*C10/360,0.05),IF(YEAR(A10)=2022,CEILING(H9*Para_simu!$Q$5*C10/360,0.05),CEILING(H9*'Simulation retraite'!$B$41*C10/360,0.05)))))) ->  | E10: =IF(A10="","",IF(OR('Simulation retraite'!$B$9="non",YEAR(A10)<=2021),IF(YEAR(A10)<2024,IF('Simulation retraite'!$B$8="Base",VLOOKUP(B10,Para_simu!$A$1:$I$55,2,FALSE),VLOOKUP(B10,Para_simu!$A$1:$I$55,3,FALSE)),IF('Simulation retraite'!$B$8="Base",VLOOKUP(B10,Para_simu!$A$1:$I$55,4,FALSE),VLOOKUP(B10,Para_simu!$A$1:$I$55,5,FALSE))),IF(YEAR(A10)<2024,IF('Simulation retraite'!$B$8="Base",VLOOKUP(B10,Para_simu!$A$1:$I$55,6,FALSE),VLOOKUP(B10,Para_simu!$A$1:$I$55,7,FALSE)),IF('Simulation retraite'!$B$8="Base",VLOOKUP(B10,Para_simu!$A$1:$I$55,8,FALSE),VLOOKUP(B10,Para_simu!$A$1:$I$55,9,FALSE))))) ->  | F10: =IF(A10="","",CEILING(E10*'Simulation retraite'!$B$10/12,0.05)*12*(C10/360)) ->  | I10: =IF(I9="","",IF(YEAR('Simulation retraite'!$B$24)-1=YEAR(I9),'Simulation retraite'!$B$24,IF(YEAR('Simulation retraite'!$B$24)-1<YEAR(I9),"",(EDATE(I9,12))))) -> 1905-12-31 | J10: =IF(I10="","",YEAR(I10)-YEAR('Simulation retraite'!$B$6)) -> -55 | K10: 360 | L10: =IF(I10="","",IF(YEAR(I10)=2020,CEILING(M9*Para_simu!$Q$3*K10/360,0.05),IF(YEAR(I10)=2021,CEILING(M9*Para_simu!$Q$4*K10/360,0.05),IF(YEAR(I10)=2022,CEILING(M9*Para_simu!$Q$5*K10/360,0.05),CEILING(M9*'Simulation retraite'!$B$41*K10/360,0.05))))) -> 0 | M10: 0 | P10: =IF(P9="","",IF(YEAR('Simulation retraite'!$B$24)-1=YEAR(P9),'Simulation retraite'!$B$24,IF(YEAR('Simulation retraite'!$B$24)-1<YEAR(P9),"",(EDATE(P9,12))))) ->  | Q10: =IF(P10="","",YEAR(P10)-YEAR('Simulation retraite'!$B$6)) ->  | S10: =IF(P10="","",IF(YEAR(P10)=2019,CEILING(Para_simu!$Q$2*W9*R10/360,0.05),IF(YEAR(P10)=2020,CEILING(W9*Para_simu!$Q$3*R10/360,0.05),IF(YEAR(P10)=2021,CEILING(W9*Para_simu!$Q$4*R10/360,0.05),IF(YEAR(P10)=2022,CEILING(W9*Para_simu!$Q$5*R10/360,0.05),CEILING(W9*'Simulation retraite'!$C$41*R10/360,0.05)))))) ->  | T10: =IF(P10="","",IF(OR('Simulation retraite'!$B$9="non",YEAR(P10)<=2021),IF(YEAR(P10)<2024,IF('Simulation retraite'!$B$8="Base",VLOOKUP(Q10,Para_simu!$A$1:$I$55,2,FALSE),VLOOKUP(Q10,Para_simu!$A$1:$I$55,3,FALSE)),IF('Simulation retraite'!$B$8="Base",VLOOKUP(Q10,Para_simu!$A$1:$I$55,4,FALSE),VLOOKUP(Q10,Para_simu!$A$1:$I$55,5,FALSE))),IF(YEAR(P10)<2024,IF('Simulation retraite'!$B$8="Base",VLOOKUP(Q10,Para_simu!$A$1:$I$55,6,FALSE),VLOOKUP(Q10,Para_simu!$A$1:$I$55,7,FALSE)),IF('Simulation retraite'!$B$8="Base",VLOOKUP(Q10,Para_simu!$A$1:$I$55,8,FALSE),VLOOKUP(Q10,Para_simu!$A$1:$I$55,9,FALSE))))) ->  | U10: =IF(P10="","",CEILING(T10*'Simulation retraite'!$B$10/12,0.05)*12*(R10/360)) ->  | X10: =IF(X9="","",IF(YEAR('Simulation retraite'!$B$24)-1=YEAR(X9),'Simulation retraite'!$B$24,IF(YEAR('Simulation retraite'!$B$24)-1<YEAR(X9),"",(EDATE(X9,12))))) -> 1905-12-31 | Y10: =IF(X10="","",YEAR(X10)-YEAR('Simulation retraite'!$B$6)) -> -55 | Z10: 360 | AA10: =IF(X10="","",IF(YEAR(X10)=2020,CEILING(AB9*Para_simu!$Q$3*Z10/360,0.05),IF(YEAR(X10)=2021,CEILING(AB9*Para_simu!$Q$4*Z10/360,0.05),IF(YEAR(X10)=2022,CEILING(AB9*Para_simu!$Q$5*Z10/360,0.05),CEILING(AB9*'Simulation retraite'!$C$41*Z10/360,0.05))))) -> 0 | AB10: 0 | AE10: =IF(AE9="","",IF(YEAR('Simulation retraite'!$B$24)-1=YEAR(AE9),'Simulation retraite'!$B$24,IF(YEAR('Simulation retraite'!$B$24)-1<YEAR(AE9),"",(EDATE(AE9,12))))) ->  | AF10: =IF(AE10="","",YEAR(AE10)-YEAR('Simulation retraite'!$B$6)) ->  | AH10: =IF(AE10="","",IF(YEAR(AE10)=2019,CEILING(Para_simu!$Q$2*AL9*AG10/360,0.05),IF(YEAR(AE10)=2020,CEILING(AL9*Para_simu!$Q$3*AG10/360,0.05),IF(YEAR(AE10)=2021,CEILING(AL9*Para_simu!$Q$4*AG10/360,0.05),IF(YEAR(AE10)=2022,CEILING(AL9*Para_simu!$Q$5*AG10/360,0.05),CEILING(AL9*'Simulation retraite'!$D$41*AG10/360,0.05)))))) ->  | AI10: =IF(AE10="","",IF(OR('Simulation retraite'!$B$9="non",YEAR(AE10)<=2021),IF(YEAR(AE10)<2024,IF('Simulation retraite'!$B$8="Base",VLOOKUP(AF10,Para_simu!$A$1:$I$55,2,FALSE),VLOOKUP(AF10,Para_simu!$A$1:$I$55,3,FALSE)),IF('Simulation retraite'!$B$8="Base",VLOOKUP(AF10,Para_simu!$A$1:$I$55,4,FALSE),VLOOKUP(AF10,Para_simu!$A$1:$I$55,5,FALSE))),IF(YEAR(AE10)<2024,IF('Simulation retraite'!$B$8="Base",VLOOKUP(AF10,Para_simu!$A$1:$I$55,6,FALSE),VLOOKUP(AF10,Para_simu!$A$1:$I$55,7,FALSE)),IF('Simulation retraite'!$B$8="Base",VLOOKUP(AF10,Para_simu!$A$1:$I$55,8,FALSE),VLOOKUP(AF10,Para_simu!$A$1:$I$55,9,FALSE))))) ->  | AJ10: =IF(AE10="","",CEILING(AI10*'Simulation retraite'!$B$10/12,0.05)*12*(AG10/360)) ->  | AM10: =IF(AM9="","",IF(YEAR('Simulation retraite'!$B$24)-1=YEAR(AM9),'Simulation retraite'!$B$24,IF(YEAR('Simulation retraite'!$B$24)-1<YEAR(AM9),"",(EDATE(AM9,12))))) -> 1905-12-31 | AN10: =IF(AM10="","",YEAR(AM10)-YEAR('Simulation retraite'!$B$6)) -> -55 | AO10: 360 | AP10: =IF(AM10="","",IF(YEAR(AM10)=2020,CEILING(AQ9*Para_simu!$Q$3*AO10/360,0.05),IF(YEAR(AM10)=2021,CEILING(AQ9*Para_simu!$Q$4*AO10/360,0.05),IF(YEAR(AM10)=2022,CEILING(AQ9*Para_simu!$Q$5*AO10/360,0.05),CEILING(AQ9*'Simulation retraite'!$D$41*AO10/360,0.05))))) -> 0 | AQ10: 0
A11: =IF(A10="","",IF(YEAR('Simulation retraite'!$B$24)-1=YEAR(A10),'Simulation retraite'!$B$24,IF(YEAR('Simulation retraite'!$B$24)-1<YEAR(A10),"",(EDATE(A10,12))))) ->  | B11: =IF(A11="","",YEAR(A11)-YEAR('Simulation retraite'!$B$6)) ->  | D11: =IF(A11="","",IF(YEAR(A11)=2019,CEILING(Para_simu!$Q$2*H10*C11/360,0.05),IF(YEAR(A11)=2020,CEILING(H10*Para_simu!$Q$3*C11/360,0.05),IF(YEAR(A11)=2021,CEILING(H10*Para_simu!$Q$4*C11/360,0.05),IF(YEAR(A11)=2022,CEILING(H10*Para_simu!$Q$5*C11/360,0.05),CEILING(H10*'Simulation retraite'!$B$41*C11/360,0.05)))))) ->  | E11: =IF(A11="","",IF(OR('Simulation retraite'!$B$9="non",YEAR(A11)<=2021),IF(YEAR(A11)<2024,IF('Simulation retraite'!$B$8="Base",VLOOKUP(B11,Para_simu!$A$1:$I$55,2,FALSE),VLOOKUP(B11,Para_simu!$A$1:$I$55,3,FALSE)),IF('Simulation retraite'!$B$8="Base",VLOOKUP(B11,Para_simu!$A$1:$I$55,4,FALSE),VLOOKUP(B11,Para_simu!$A$1:$I$55,5,FALSE))),IF(YEAR(A11)<2024,IF('Simulation retraite'!$B$8="Base",VLOOKUP(B11,Para_simu!$A$1:$I$55,6,FALSE),VLOOKUP(B11,Para_simu!$A$1:$I$55,7,FALSE)),IF('Simulation retraite'!$B$8="Base",VLOOKUP(B11,Para_simu!$A$1:$I$55,8,FALSE),VLOOKUP(B11,Para_simu!$A$1:$I$55,9,FALSE))))) ->  | F11: =IF(A11="","",CEILING(E11*'Simulation retraite'!$B$10/12,0.05)*12*(C11/360)) ->  | I11: =IF(I10="","",IF(YEAR('Simulation retraite'!$B$24)-1=YEAR(I10),'Simulation retraite'!$B$24,IF(YEAR('Simulation retraite'!$B$24)-1<YEAR(I10),"",(EDATE(I10,12))))) -> 1906-12-31 | J11: =IF(I11="","",YEAR(I11)-YEAR('Simulation retraite'!$B$6)) -> -54 | K11: 360 | L11: =IF(I11="","",IF(YEAR(I11)=2020,CEILING(M10*Para_simu!$Q$3*K11/360,0.05),IF(YEAR(I11)=2021,CEILING(M10*Para_simu!$Q$4*K11/360,0.05),IF(YEAR(I11)=2022,CEILING(M10*Para_simu!$Q$5*K11/360,0.05),CEILING(M10*'Simulation retraite'!$B$41*K11/360,0.05))))) -> 0 | M11: 0 | P11: =IF(P10="","",IF(YEAR('Simulation retraite'!$B$24)-1=YEAR(P10),'Simulation retraite'!$B$24,IF(YEAR('Simulation retraite'!$B$24)-1<YEAR(P10),"",(EDATE(P10,12))))) ->  | Q11: =IF(P11="","",YEAR(P11)-YEAR('Simulation retraite'!$B$6)) ->  | S11: =IF(P11="","",IF(YEAR(P11)=2019,CEILING(Para_simu!$Q$2*W10*R11/360,0.05),IF(YEAR(P11)=2020,CEILING(W10*Para_simu!$Q$3*R11/360,0.05),IF(YEAR(P11)=2021,CEILING(W10*Para_simu!$Q$4*R11/360,0.05),IF(YEAR(P11)=2022,CEILING(W10*Para_simu!$Q$5*R11/360,0.05),CEILING(W10*'Simulation retraite'!$C$41*R11/360,0.05)))))) ->  | T11: =IF(P11="","",IF(OR('Simulation retraite'!$B$9="non",YEAR(P11)<=2021),IF(YEAR(P11)<2024,IF('Simulation retraite'!$B$8="Base",VLOOKUP(Q11,Para_simu!$A$1:$I$55,2,FALSE),VLOOKUP(Q11,Para_simu!$A$1:$I$55,3,FALSE)),IF('Simulation retraite'!$B$8="Base",VLOOKUP(Q11,Para_simu!$A$1:$I$55,4,FALSE),VLOOKUP(Q11,Para_simu!$A$1:$I$55,5,FALSE))),IF(YEAR(P11)<2024,IF('Simulation retraite'!$B$8="Base",VLOOKUP(Q11,Para_simu!$A$1:$I$55,6,FALSE),VLOOKUP(Q11,Para_simu!$A$1:$I$55,7,FALSE)),IF('Simulation retraite'!$B$8="Base",VLOOKUP(Q11,Para_simu!$A$1:$I$55,8,FALSE),VLOOKUP(Q11,Para_simu!$A$1:$I$55,9,FALSE))))) ->  | U11: =IF(P11="","",CEILING(T11*'Simulation retraite'!$B$10/12,0.05)*12*(R11/360)) ->  | X11: =IF(X10="","",IF(YEAR('Simulation retraite'!$B$24)-1=YEAR(X10),'Simulation retraite'!$B$24,IF(YEAR('Simulation retraite'!$B$24)-1<YEAR(X10),"",(EDATE(X10,12))))) -> 1906-12-31 | Y11: =IF(X11="","",YEAR(X11)-YEAR('Simulation retraite'!$B$6)) -> -54 | Z11: 360 | AA11: =IF(X11="","",IF(YEAR(X11)=2020,CEILING(AB10*Para_simu!$Q$3*Z11/360,0.05),IF(YEAR(X11)=2021,CEILING(AB10*Para_simu!$Q$4*Z11/360,0.05),IF(YEAR(X11)=2022,CEILING(AB10*Para_simu!$Q$5*Z11/360,0.05),CEILING(AB10*'Simulation retraite'!$C$41*Z11/360,0.05))))) -> 0 | AB11: 0 | AE11: =IF(AE10="","",IF(YEAR('Simulation retraite'!$B$24)-1=YEAR(AE10),'Simulation retraite'!$B$24,IF(YEAR('Simulation retraite'!$B$24)-1<YEAR(AE10),"",(EDATE(AE10,12))))) ->  | AF11: =IF(AE11="","",YEAR(AE11)-YEAR('Simulation retraite'!$B$6)) ->  | AH11: =IF(AE11="","",IF(YEAR(AE11)=2019,CEILING(Para_simu!$Q$2*AL10*AG11/360,0.05),IF(YEAR(AE11)=2020,CEILING(AL10*Para_simu!$Q$3*AG11/360,0.05),IF(YEAR(AE11)=2021,CEILING(AL10*Para_simu!$Q$4*AG11/360,0.05),IF(YEAR(AE11)=2022,CEILING(AL10*Para_simu!$Q$5*AG11/360,0.05),CEILING(AL10*'Simulation retraite'!$D$41*AG11/360,0.05)))))) ->  | AI11: =IF(AE11="","",IF(OR('Simulation retraite'!$B$9="non",YEAR(AE11)<=2021),IF(YEAR(AE11)<2024,IF('Simulation retraite'!$B$8="Base",VLOOKUP(AF11,Para_simu!$A$1:$I$55,2,FALSE),VLOOKUP(AF11,Para_simu!$A$1:$I$55,3,FALSE)),IF('Simulation retraite'!$B$8="Base",VLOOKUP(AF11,Para_simu!$A$1:$I$55,4,FALSE),VLOOKUP(AF11,Para_simu!$A$1:$I$55,5,FALSE))),IF(YEAR(AE11)<2024,IF('Simulation retraite'!$B$8="Base",VLOOKUP(AF11,Para_simu!$A$1:$I$55,6,FALSE),VLOOKUP(AF11,Para_simu!$A$1:$I$55,7,FALSE)),IF('Simulation retraite'!$B$8="Base",VLOOKUP(AF11,Para_simu!$A$1:$I$55,8,FALSE),VLOOKUP(AF11,Para_simu!$A$1:$I$55,9,FALSE))))) ->  | AJ11: =IF(AE11="","",CEILING(AI11*'Simulation retraite'!$B$10/12,0.05)*12*(AG11/360)) ->  | AM11: =IF(AM10="","",IF(YEAR('Simulation retraite'!$B$24)-1=YEAR(AM10),'Simulation retraite'!$B$24,IF(YEAR('Simulation retraite'!$B$24)-1<YEAR(AM10),"",(EDATE(AM10,12))))) -> 1906-12-31 | AN11: =IF(AM11="","",YEAR(AM11)-YEAR('Simulation retraite'!$B$6)) -> -54 | AO11: 360 | AP11: =IF(AM11="","",IF(YEAR(AM11)=2020,CEILING(AQ10*Para_simu!$Q$3*AO11/360,0.05),IF(YEAR(AM11)=2021,CEILING(AQ10*Para_simu!$Q$4*AO11/360,0.05),IF(YEAR(AM11)=2022,CEILING(AQ10*Para_simu!$Q$5*AO11/360,0.05),CEILING(AQ10*'Simulation retraite'!$D$41*AO11/360,0.05))))) -> 0 | AQ11: 0
A12: =IF(A11="","",IF(YEAR('Simulation retraite'!$B$24)-1=YEAR(A11),'Simulation retraite'!$B$24,IF(YEAR('Simulation retraite'!$B$24)-1<YEAR(A11),"",(EDATE(A11,12))))) ->  | B12: =IF(A12="","",YEAR(A12)-YEAR('Simulation retraite'!$B$6)) ->  | D12: =IF(A12="","",IF(YEAR(A12)=2019,CEILING(Para_simu!$Q$2*H11*C12/360,0.05),IF(YEAR(A12)=2020,CEILING(H11*Para_simu!$Q$3*C12/360,0.05),IF(YEAR(A12)=2021,CEILING(H11*Para_simu!$Q$4*C12/360,0.05),IF(YEAR(A12)=2022,CEILING(H11*Para_simu!$Q$5*C12/360,0.05),CEILING(H11*'Simulation retraite'!$B$41*C12/360,0.05)))))) ->  | E12: =IF(A12="","",IF(OR('Simulation retraite'!$B$9="non",YEAR(A12)<=2021),IF(YEAR(A12)<2024,IF('Simulation retraite'!$B$8="Base",VLOOKUP(B12,Para_simu!$A$1:$I$55,2,FALSE),VLOOKUP(B12,Para_simu!$A$1:$I$55,3,FALSE)),IF('Simulation retraite'!$B$8="Base",VLOOKUP(B12,Para_simu!$A$1:$I$55,4,FALSE),VLOOKUP(B12,Para_simu!$A$1:$I$55,5,FALSE))),IF(YEAR(A12)<2024,IF('Simulation retraite'!$B$8="Base",VLOOKUP(B12,Para_simu!$A$1:$I$55,6,FALSE),VLOOKUP(B12,Para_simu!$A$1:$I$55,7,FALSE)),IF('Simulation retraite'!$B$8="Base",VLOOKUP(B12,Para_simu!$A$1:$I$55,8,FALSE),VLOOKUP(B12,Para_simu!$A$1:$I$55,9,FALSE))))) ->  | F12: =IF(A12="","",CEILING(E12*'Simulation retraite'!$B$10/12,0.05)*12*(C12/360)) ->  | I12: =IF(I11="","",IF(YEAR('Simulation retraite'!$B$24)-1=YEAR(I11),'Simulation retraite'!$B$24,IF(YEAR('Simulation retraite'!$B$24)-1<YEAR(I11),"",(EDATE(I11,12))))) -> 1907-12-31 | J12: =IF(I12="","",YEAR(I12)-YEAR('Simulation retraite'!$B$6)) -> -53 | K12: 360 | L12: =IF(I12="","",IF(YEAR(I12)=2020,CEILING(M11*Para_simu!$Q$3*K12/360,0.05),IF(YEAR(I12)=2021,CEILING(M11*Para_simu!$Q$4*K12/360,0.05),IF(YEAR(I12)=2022,CEILING(M11*Para_simu!$Q$5*K12/360,0.05),CEILING(M11*'Simulation retraite'!$B$41*K12/360,0.05))))) -> 0 | M12: 0 | P12: =IF(P11="","",IF(YEAR('Simulation retraite'!$B$24)-1=YEAR(P11),'Simulation retraite'!$B$24,IF(YEAR('Simulation retraite'!$B$24)-1<YEAR(P11),"",(EDATE(P11,12))))) ->  | Q12: =IF(P12="","",YEAR(P12)-YEAR('Simulation retraite'!$B$6)) ->  | S12: =IF(P12="","",IF(YEAR(P12)=2019,CEILING(Para_simu!$Q$2*W11*R12/360,0.05),IF(YEAR(P12)=2020,CEILING(W11*Para_simu!$Q$3*R12/360,0.05),IF(YEAR(P12)=2021,CEILING(W11*Para_simu!$Q$4*R12/360,0.05),IF(YEAR(P12)=2022,CEILING(W11*Para_simu!$Q$5*R12/360,0.05),CEILING(W11*'Simulation retraite'!$C$41*R12/360,0.05)))))) ->  | T12: =IF(P12="","",IF(OR('Simulation retraite'!$B$9="non",YEAR(P12)<=2021),IF(YEAR(P12)<2024,IF('Simulation retraite'!$B$8="Base",VLOOKUP(Q12,Para_simu!$A$1:$I$55,2,FALSE),VLOOKUP(Q12,Para_simu!$A$1:$I$55,3,FALSE)),IF('Simulation retraite'!$B$8="Base",VLOOKUP(Q12,Para_simu!$A$1:$I$55,4,FALSE),VLOOKUP(Q12,Para_simu!$A$1:$I$55,5,FALSE))),IF(YEAR(P12)<2024,IF('Simulation retraite'!$B$8="Base",VLOOKUP(Q12,Para_simu!$A$1:$I$55,6,FALSE),VLOOKUP(Q12,Para_simu!$A$1:$I$55,7,FALSE)),IF('Simulation retraite'!$B$8="Base",VLOOKUP(Q12,Para_simu!$A$1:$I$55,8,FALSE),VLOOKUP(Q12,Para_simu!$A$1:$I$55,9,FALSE))))) ->  | U12: =IF(P12="","",CEILING(T12*'Simulation retraite'!$B$10/12,0.05)*12*(R12/360)) ->  | X12: =IF(X11="","",IF(YEAR('Simulation retraite'!$B$24)-1=YEAR(X11),'Simulation retraite'!$B$24,IF(YEAR('Simulation retraite'!$B$24)-1<YEAR(X11),"",(EDATE(X11,12))))) -> 1907-12-31 | Y12: =IF(X12="","",YEAR(X12)-YEAR('Simulation retraite'!$B$6)) -> -53 | Z12: 360 | AA12: =IF(X12="","",IF(YEAR(X12)=2020,CEILING(AB11*Para_simu!$Q$3*Z12/360,0.05),IF(YEAR(X12)=2021,CEILING(AB11*Para_simu!$Q$4*Z12/360,0.05),IF(YEAR(X12)=2022,CEILING(AB11*Para_simu!$Q$5*Z12/360,0.05),CEILING(AB11*'Simulation retraite'!$C$41*Z12/360,0.05))))) -> 0 | AB12: 0 | AE12: =IF(AE11="","",IF(YEAR('Simulation retraite'!$B$24)-1=YEAR(AE11),'Simulation retraite'!$B$24,IF(YEAR('Simulation retraite'!$B$24)-1<YEAR(AE11),"",(EDATE(AE11,12))))) ->  | AF12: =IF(AE12="","",YEAR(AE12)-YEAR('Simulation retraite'!$B$6)) ->  | AH12: =IF(AE12="","",IF(YEAR(AE12)=2019,CEILING(Para_simu!$Q$2*AL11*AG12/360,0.05),IF(YEAR(AE12)=2020,CEILING(AL11*Para_simu!$Q$3*AG12/360,0.05),IF(YEAR(AE12)=2021,CEILING(AL11*Para_simu!$Q$4*AG12/360,0.05),IF(YEAR(AE12)=2022,CEILING(AL11*Para_simu!$Q$5*AG12/360,0.05),CEILING(AL11*'Simulation retraite'!$D$41*AG12/360,0.05)))))) ->  | AI12: =IF(AE12="","",IF(OR('Simulation retraite'!$B$9="non",YEAR(AE12)<=2021),IF(YEAR(AE12)<2024,IF('Simulation retraite'!$B$8="Base",VLOOKUP(AF12,Para_simu!$A$1:$I$55,2,FALSE),VLOOKUP(AF12,Para_simu!$A$1:$I$55,3,FALSE)),IF('Simulation retraite'!$B$8="Base",VLOOKUP(AF12,Para_simu!$A$1:$I$55,4,FALSE),VLOOKUP(AF12,Para_simu!$A$1:$I$55,5,FALSE))),IF(YEAR(AE12)<2024,IF('Simulation retraite'!$B$8="Base",VLOOKUP(AF12,Para_simu!$A$1:$I$55,6,FALSE),VLOOKUP(AF12,Para_simu!$A$1:$I$55,7,FALSE)),IF('Simulation retraite'!$B$8="Base",VLOOKUP(AF12,Para_simu!$A$1:$I$55,8,FALSE),VLOOKUP(AF12,Para_simu!$A$1:$I$55,9,FALSE))))) ->  | AJ12: =IF(AE12="","",CEILING(AI12*'Simulation retraite'!$B$10/12,0.05)*12*(AG12/360)) ->  | AM12: =IF(AM11="","",IF(YEAR('Simulation retraite'!$B$24)-1=YEAR(AM11),'Simulation retraite'!$B$24,IF(YEAR('Simulation retraite'!$B$24)-1<YEAR(AM11),"",(EDATE(AM11,12))))) -> 1907-12-31 | AN12: =IF(AM12="","",YEAR(AM12)-YEAR('Simulation retraite'!$B$6)) -> -53 | AO12: 360 | AP12: =IF(AM12="","",IF(YEAR(AM12)=2020,CEILING(AQ11*Para_simu!$Q$3*AO12/360,0.05),IF(YEAR(AM12)=2021,CEILING(AQ11*Para_simu!$Q$4*AO12/360,0.05),IF(YEAR(AM12)=2022,CEILING(AQ11*Para_simu!$Q$5*AO12/360,0.05),CEILING(AQ11*'Simulation retraite'!$D$41*AO12/360,0.05))))) -> 0 | AQ12: 0
A13: =IF(A12="","",IF(YEAR('Simulation retraite'!$B$24)-1=YEAR(A12),'Simulation retraite'!$B$24,IF(YEAR('Simulation retraite'!$B$24)-1<YEAR(A12),"",(EDATE(A12,12))))) ->  | B13: =IF(A13="","",YEAR(A13)-YEAR('Simulation retraite'!$B$6)) ->  | D13: =IF(A13="","",IF(YEAR(A13)=2019,CEILING(Para_simu!$Q$2*H12*C13/360,0.05),IF(YEAR(A13)=2020,CEILING(H12*Para_simu!$Q$3*C13/360,0.05),IF(YEAR(A13)=2021,CEILING(H12*Para_simu!$Q$4*C13/360,0.05),IF(YEAR(A13)=2022,CEILING(H12*Para_simu!$Q$5*C13/360,0.05),CEILING(H12*'Simulation retraite'!$B$41*C13/360,0.05)))))) ->  | E13: =IF(A13="","",IF(OR('Simulation retraite'!$B$9="non",YEAR(A13)<=2021),IF(YEAR(A13)<2024,IF('Simulation retraite'!$B$8="Base",VLOOKUP(B13,Para_simu!$A$1:$I$55,2,FALSE),VLOOKUP(B13,Para_simu!$A$1:$I$55,3,FALSE)),IF('Simulation retraite'!$B$8="Base",VLOOKUP(B13,Para_simu!$A$1:$I$55,4,FALSE),VLOOKUP(B13,Para_simu!$A$1:$I$55,5,FALSE))),IF(YEAR(A13)<2024,IF('Simulation retraite'!$B$8="Base",VLOOKUP(B13,Para_simu!$A$1:$I$55,6,FALSE),VLOOKUP(B13,Para_simu!$A$1:$I$55,7,FALSE)),IF('Simulation retraite'!$B$8="Base",VLOOKUP(B13,Para_simu!$A$1:$I$55,8,FALSE),VLOOKUP(B13,Para_simu!$A$1:$I$55,9,FALSE))))) ->  | F13: =IF(A13="","",CEILING(E13*'Simulation retraite'!$B$10/12,0.05)*12*(C13/360)) ->  | I13: =IF(I12="","",IF(YEAR('Simulation retraite'!$B$24)-1=YEAR(I12),'Simulation retraite'!$B$24,IF(YEAR('Simulation retraite'!$B$24)-1<YEAR(I12),"",(EDATE(I12,12))))) -> 1908-12-31 | J13: =IF(I13="","",YEAR(I13)-YEAR('Simulation retraite'!$B$6)) -> -52 | K13: 360 | L13: =IF(I13="","",IF(YEAR(I13)=2020,CEILING(M12*Para_simu!$Q$3*K13/360,0.05),IF(YEAR(I13)=2021,CEILING(M12*Para_simu!$Q$4*K13/360,0.05),IF(YEAR(I13)=2022,CEILING(M12*Para_simu!$Q$5*K13/360,0.05),CEILING(M12*'Simulation retraite'!$B$41*K13/360,0.05))))) -> 0 | M13: 0 | P13: =IF(P12="","",IF(YEAR('Simulation retraite'!$B$24)-1=YEAR(P12),'Simulation retraite'!$B$24,IF(YEAR('Simulation retraite'!$B$24)-1<YEAR(P12),"",(EDATE(P12,12))))) ->  | Q13: =IF(P13="","",YEAR(P13)-YEAR('Simulation retraite'!$B$6)) ->  | S13: =IF(P13="","",IF(YEAR(P13)=2019,CEILING(Para_simu!$Q$2*W12*R13/360,0.05),IF(YEAR(P13)=2020,CEILING(W12*Para_simu!$Q$3*R13/360,0.05),IF(YEAR(P13)=2021,CEILING(W12*Para_simu!$Q$4*R13/360,0.05),IF(YEAR(P13)=2022,CEILING(W12*Para_simu!$Q$5*R13/360,0.05),CEILING(W12*'Simulation retraite'!$C$41*R13/360,0.05)))))) ->  | T13: =IF(P13="","",IF(OR('Simulation retraite'!$B$9="non",YEAR(P13)<=2021),IF(YEAR(P13)<2024,IF('Simulation retraite'!$B$8="Base",VLOOKUP(Q13,Para_simu!$A$1:$I$55,2,FALSE),VLOOKUP(Q13,Para_simu!$A$1:$I$55,3,FALSE)),IF('Simulation retraite'!$B$8="Base",VLOOKUP(Q13,Para_simu!$A$1:$I$55,4,FALSE),VLOOKUP(Q13,Para_simu!$A$1:$I$55,5,FALSE))),IF(YEAR(P13)<2024,IF('Simulation retraite'!$B$8="Base",VLOOKUP(Q13,Para_simu!$A$1:$I$55,6,FALSE),VLOOKUP(Q13,Para_simu!$A$1:$I$55,7,FALSE)),IF('Simulation retraite'!$B$8="Base",VLOOKUP(Q13,Para_simu!$A$1:$I$55,8,FALSE),VLOOKUP(Q13,Para_simu!$A$1:$I$55,9,FALSE))))) ->  | U13: =IF(P13="","",CEILING(T13*'Simulation retraite'!$B$10/12,0.05)*12*(R13/360)) ->  | X13: =IF(X12="","",IF(YEAR('Simulation retraite'!$B$24)-1=YEAR(X12),'Simulation retraite'!$B$24,IF(YEAR('Simulation retraite'!$B$24)-1<YEAR(X12),"",(EDATE(X12,12))))) -> 1908-12-31 | Y13: =IF(X13="","",YEAR(X13)-YEAR('Simulation retraite'!$B$6)) -> -52 | Z13: 360 | AA13: =IF(X13="","",IF(YEAR(X13)=2020,CEILING(AB12*Para_simu!$Q$3*Z13/360,0.05),IF(YEAR(X13)=2021,CEILING(AB12*Para_simu!$Q$4*Z13/360,0.05),IF(YEAR(X13)=2022,CEILING(AB12*Para_simu!$Q$5*Z13/360,0.05),CEILING(AB12*'Simulation retraite'!$C$41*Z13/360,0.05))))) -> 0 | AB13: 0 | AE13: =IF(AE12="","",IF(YEAR('Simulation retraite'!$B$24)-1=YEAR(AE12),'Simulation retraite'!$B$24,IF(YEAR('Simulation retraite'!$B$24)-1<YEAR(AE12),"",(EDATE(AE12,12))))) ->  | AF13: =IF(AE13="","",YEAR(AE13)-YEAR('Simulation retraite'!$B$6)) ->  | AH13: =IF(AE13="","",IF(YEAR(AE13)=2019,CEILING(Para_simu!$Q$2*AL12*AG13/360,0.05),IF(YEAR(AE13)=2020,CEILING(AL12*Para_simu!$Q$3*AG13/360,0.05),IF(YEAR(AE13)=2021,CEILING(AL12*Para_simu!$Q$4*AG13/360,0.05),IF(YEAR(AE13)=2022,CEILING(AL12*Para_simu!$Q$5*AG13/360,0.05),CEILING(AL12*'Simulation retraite'!$D$41*AG13/360,0.05)))))) ->  | AI13: =IF(AE13="","",IF(OR('Simulation retraite'!$B$9="non",YEAR(AE13)<=2021),IF(YEAR(AE13)<2024,IF('Simulation retraite'!$B$8="Base",VLOOKUP(AF13,Para_simu!$A$1:$I$55,2,FALSE),VLOOKUP(AF13,Para_simu!$A$1:$I$55,3,FALSE)),IF('Simulation retraite'!$B$8="Base",VLOOKUP(AF13,Para_simu!$A$1:$I$55,4,FALSE),VLOOKUP(AF13,Para_simu!$A$1:$I$55,5,FALSE))),IF(YEAR(AE13)<2024,IF('Simulation retraite'!$B$8="Base",VLOOKUP(AF13,Para_simu!$A$1:$I$55,6,FALSE),VLOOKUP(AF13,Para_simu!$A$1:$I$55,7,FALSE)),IF('Simulation retraite'!$B$8="Base",VLOOKUP(AF13,Para_simu!$A$1:$I$55,8,FALSE),VLOOKUP(AF13,Para_simu!$A$1:$I$55,9,FALSE))))) ->  | AJ13: =IF(AE13="","",CEILING(AI13*'Simulation retraite'!$B$10/12,0.05)*12*(AG13/360)) ->  | AM13: =IF(AM12="","",IF(YEAR('Simulation retraite'!$B$24)-1=YEAR(AM12),'Simulation retraite'!$B$24,IF(YEAR('Simulation retraite'!$B$24)-1<YEAR(AM12),"",(EDATE(AM12,12))))) -> 1908-12-31 | AN13: =IF(AM13="","",YEAR(AM13)-YEAR('Simulation retraite'!$B$6)) -> -52 | AO13: 360 | AP13: =IF(AM13="","",IF(YEAR(AM13)=2020,CEILING(AQ12*Para_simu!$Q$3*AO13/360,0.05),IF(YEAR(AM13)=2021,CEILING(AQ12*Para_simu!$Q$4*AO13/360,0.05),IF(YEAR(AM13)=2022,CEILING(AQ12*Para_simu!$Q$5*AO13/360,0.05),CEILING(AQ12*'Simulation retraite'!$D$41*AO13/360,0.05))))) -> 0 | AQ13: 0
A14: =IF(A13="","",IF(YEAR('Simulation retraite'!$B$24)-1=YEAR(A13),'Simulation retraite'!$B$24,IF(YEAR('Simulation retraite'!$B$24)-1<YEAR(A13),"",(EDATE(A13,12))))) ->  | B14: =IF(A14="","",YEAR(A14)-YEAR('Simulation retraite'!$B$6)) ->  | D14: =IF(A14="","",IF(YEAR(A14)=2019,CEILING(Para_simu!$Q$2*H13*C14/360,0.05),IF(YEAR(A14)=2020,CEILING(H13*Para_simu!$Q$3*C14/360,0.05),IF(YEAR(A14)=2021,CEILING(H13*Para_simu!$Q$4*C14/360,0.05),IF(YEAR(A14)=2022,CEILING(H13*Para_simu!$Q$5*C14/360,0.05),CEILING(H13*'Simulation retraite'!$B$41*C14/360,0.05)))))) ->  | E14: =IF(A14="","",IF(OR('Simulation retraite'!$B$9="non",YEAR(A14)<=2021),IF(YEAR(A14)<2024,IF('Simulation retraite'!$B$8="Base",VLOOKUP(B14,Para_simu!$A$1:$I$55,2,FALSE),VLOOKUP(B14,Para_simu!$A$1:$I$55,3,FALSE)),IF('Simulation retraite'!$B$8="Base",VLOOKUP(B14,Para_simu!$A$1:$I$55,4,FALSE),VLOOKUP(B14,Para_simu!$A$1:$I$55,5,FALSE))),IF(YEAR(A14)<2024,IF('Simulation retraite'!$B$8="Base",VLOOKUP(B14,Para_simu!$A$1:$I$55,6,FALSE),VLOOKUP(B14,Para_simu!$A$1:$I$55,7,FALSE)),IF('Simulation retraite'!$B$8="Base",VLOOKUP(B14,Para_simu!$A$1:$I$55,8,FALSE),VLOOKUP(B14,Para_simu!$A$1:$I$55,9,FALSE))))) ->  | F14: =IF(A14="","",CEILING(E14*'Simulation retraite'!$B$10/12,0.05)*12*(C14/360)) ->  | I14: =IF(I13="","",IF(YEAR('Simulation retraite'!$B$24)-1=YEAR(I13),'Simulation retraite'!$B$24,IF(YEAR('Simulation retraite'!$B$24)-1<YEAR(I13),"",(EDATE(I13,12))))) -> 1909-12-31 | J14: =IF(I14="","",YEAR(I14)-YEAR('Simulation retraite'!$B$6)) -> -51 | K14: 360 | L14: =IF(I14="","",IF(YEAR(I14)=2020,CEILING(M13*Para_simu!$Q$3*K14/360,0.05),IF(YEAR(I14)=2021,CEILING(M13*Para_simu!$Q$4*K14/360,0.05),IF(YEAR(I14)=2022,CEILING(M13*Para_simu!$Q$5*K14/360,0.05),CEILING(M13*'Simulation retraite'!$B$41*K14/360,0.05))))) -> 0 | M14: 0 | P14: =IF(P13="","",IF(YEAR('Simulation retraite'!$B$24)-1=YEAR(P13),'Simulation retraite'!$B$24,IF(YEAR('Simulation retraite'!$B$24)-1<YEAR(P13),"",(EDATE(P13,12))))) ->  | Q14: =IF(P14="","",YEAR(P14)-YEAR('Simulation retraite'!$B$6)) ->  | S14: =IF(P14="","",IF(YEAR(P14)=2019,CEILING(Para_simu!$Q$2*W13*R14/360,0.05),IF(YEAR(P14)=2020,CEILING(W13*Para_simu!$Q$3*R14/360,0.05),IF(YEAR(P14)=2021,CEILING(W13*Para_simu!$Q$4*R14/360,0.05),IF(YEAR(P14)=2022,CEILING(W13*Para_simu!$Q$5*R14/360,0.05),CEILING(W13*'Simulation retraite'!$C$41*R14/360,0.05)))))) ->  | T14: =IF(P14="","",IF(OR('Simulation retraite'!$B$9="non",YEAR(P14)<=2021),IF(YEAR(P14)<2024,IF('Simulation retraite'!$B$8="Base",VLOOKUP(Q14,Para_simu!$A$1:$I$55,2,FALSE),VLOOKUP(Q14,Para_simu!$A$1:$I$55,3,FALSE)),IF('Simulation retraite'!$B$8="Base",VLOOKUP(Q14,Para_simu!$A$1:$I$55,4,FALSE),VLOOKUP(Q14,Para_simu!$A$1:$I$55,5,FALSE))),IF(YEAR(P14)<2024,IF('Simulation retraite'!$B$8="Base",VLOOKUP(Q14,Para_simu!$A$1:$I$55,6,FALSE),VLOOKUP(Q14,Para_simu!$A$1:$I$55,7,FALSE)),IF('Simulation retraite'!$B$8="Base",VLOOKUP(Q14,Para_simu!$A$1:$I$55,8,FALSE),VLOOKUP(Q14,Para_simu!$A$1:$I$55,9,FALSE))))) ->  | U14: =IF(P14="","",CEILING(T14*'Simulation retraite'!$B$10/12,0.05)*12*(R14/360)) ->  | X14: =IF(X13="","",IF(YEAR('Simulation retraite'!$B$24)-1=YEAR(X13),'Simulation retraite'!$B$24,IF(YEAR('Simulation retraite'!$B$24)-1<YEAR(X13),"",(EDATE(X13,12))))) -> 1909-12-31 | Y14: =IF(X14="","",YEAR(X14)-YEAR('Simulation retraite'!$B$6)) -> -51 | Z14: 360 | AA14: =IF(X14="","",IF(YEAR(X14)=2020,CEILING(AB13*Para_simu!$Q$3*Z14/360,0.05),IF(YEAR(X14)=2021,CEILING(AB13*Para_simu!$Q$4*Z14/360,0.05),IF(YEAR(X14)=2022,CEILING(AB13*Para_simu!$Q$5*Z14/360,0.05),CEILING(AB13*'Simulation retraite'!$C$41*Z14/360,0.05))))) -> 0 | AB14: 0 | AE14: =IF(AE13="","",IF(YEAR('Simulation retraite'!$B$24)-1=YEAR(AE13),'Simulation retraite'!$B$24,IF(YEAR('Simulation retraite'!$B$24)-1<YEAR(AE13),"",(EDATE(AE13,12))))) ->  | AF14: =IF(AE14="","",YEAR(AE14)-YEAR('Simulation retraite'!$B$6)) ->  | AH14: =IF(AE14="","",IF(YEAR(AE14)=2019,CEILING(Para_simu!$Q$2*AL13*AG14/360,0.05),IF(YEAR(AE14)=2020,CEILING(AL13*Para_simu!$Q$3*AG14/360,0.05),IF(YEAR(AE14)=2021,CEILING(AL13*Para_simu!$Q$4*AG14/360,0.05),IF(YEAR(AE14)=2022,CEILING(AL13*Para_simu!$Q$5*AG14/360,0.05),CEILING(AL13*'Simulation retraite'!$D$41*AG14/360,0.05)))))) ->  | AI14: =IF(AE14="","",IF(OR('Simulation retraite'!$B$9="non",YEAR(AE14)<=2021),IF(YEAR(AE14)<2024,IF('Simulation retraite'!$B$8="Base",VLOOKUP(AF14,Para_simu!$A$1:$I$55,2,FALSE),VLOOKUP(AF14,Para_simu!$A$1:$I$55,3,FALSE)),IF('Simulation retraite'!$B$8="Base",VLOOKUP(AF14,Para_simu!$A$1:$I$55,4,FALSE),VLOOKUP(AF14,Para_simu!$A$1:$I$55,5,FALSE))),IF(YEAR(AE14)<2024,IF('Simulation retraite'!$B$8="Base",VLOOKUP(AF14,Para_simu!$A$1:$I$55,6,FALSE),VLOOKUP(AF14,Para_simu!$A$1:$I$55,7,FALSE)),IF('Simulation retraite'!$B$8="Base",VLOOKUP(AF14,Para_simu!$A$1:$I$55,8,FALSE),VLOOKUP(AF14,Para_simu!$A$1:$I$55,9,FALSE))))) ->  | AJ14: =IF(AE14="","",CEILING(AI14*'Simulation retraite'!$B$10/12,0.05)*12*(AG14/360)) ->  | AM14: =IF(AM13="","",IF(YEAR('Simulation retraite'!$B$24)-1=YEAR(AM13),'Simulation retraite'!$B$24,IF(YEAR('Simulation retraite'!$B$24)-1<YEAR(AM13),"",(EDATE(AM13,12))))) -> 1909-12-31 | AN14: =IF(AM14="","",YEAR(AM14)-YEAR('Simulation retraite'!$B$6)) -> -51 | AO14: 360 | AP14: =IF(AM14="","",IF(YEAR(AM14)=2020,CEILING(AQ13*Para_simu!$Q$3*AO14/360,0.05),IF(YEAR(AM14)=2021,CEILING(AQ13*Para_simu!$Q$4*AO14/360,0.05),IF(YEAR(AM14)=2022,CEILING(AQ13*Para_simu!$Q$5*AO14/360,0.05),CEILING(AQ13*'Simulation retraite'!$D$41*AO14/360,0.05))))) -> 0 | AQ14: 0
A15: =IF(A14="","",IF(YEAR('Simulation retraite'!$B$24)-1=YEAR(A14),'Simulation retraite'!$B$24,IF(YEAR('Simulation retraite'!$B$24)-1<YEAR(A14),"",(EDATE(A14,12))))) ->  | B15: =IF(A15="","",YEAR(A15)-YEAR('Simulation retraite'!$B$6)) ->  | D15: =IF(A15="","",IF(YEAR(A15)=2019,CEILING(Para_simu!$Q$2*H14*C15/360,0.05),IF(YEAR(A15)=2020,CEILING(H14*Para_simu!$Q$3*C15/360,0.05),IF(YEAR(A15)=2021,CEILING(H14*Para_simu!$Q$4*C15/360,0.05),IF(YEAR(A15)=2022,CEILING(H14*Para_simu!$Q$5*C15/360,0.05),CEILING(H14*'Simulation retraite'!$B$41*C15/360,0.05)))))) ->  | E15: =IF(A15="","",IF(OR('Simulation retraite'!$B$9="non",YEAR(A15)<=2021),IF(YEAR(A15)<2024,IF('Simulation retraite'!$B$8="Base",VLOOKUP(B15,Para_simu!$A$1:$I$55,2,FALSE),VLOOKUP(B15,Para_simu!$A$1:$I$55,3,FALSE)),IF('Simulation retraite'!$B$8="Base",VLOOKUP(B15,Para_simu!$A$1:$I$55,4,FALSE),VLOOKUP(B15,Para_simu!$A$1:$I$55,5,FALSE))),IF(YEAR(A15)<2024,IF('Simulation retraite'!$B$8="Base",VLOOKUP(B15,Para_simu!$A$1:$I$55,6,FALSE),VLOOKUP(B15,Para_simu!$A$1:$I$55,7,FALSE)),IF('Simulation retraite'!$B$8="Base",VLOOKUP(B15,Para_simu!$A$1:$I$55,8,FALSE),VLOOKUP(B15,Para_simu!$A$1:$I$55,9,FALSE))))) ->  | F15: =IF(A15="","",CEILING(E15*'Simulation retraite'!$B$10/12,0.05)*12*(C15/360)) ->  | I15: =IF(I14="","",IF(YEAR('Simulation retraite'!$B$24)-1=YEAR(I14),'Simulation retraite'!$B$24,IF(YEAR('Simulation retraite'!$B$24)-1<YEAR(I14),"",(EDATE(I14,12))))) -> 1910-12-31 | J15: =IF(I15="","",YEAR(I15)-YEAR('Simulation retraite'!$B$6)) -> -50 | K15: 360 | L15: =IF(I15="","",IF(YEAR(I15)=2020,CEILING(M14*Para_simu!$Q$3*K15/360,0.05),IF(YEAR(I15)=2021,CEILING(M14*Para_simu!$Q$4*K15/360,0.05),IF(YEAR(I15)=2022,CEILING(M14*Para_simu!$Q$5*K15/360,0.05),CEILING(M14*'Simulation retraite'!$B$41*K15/360,0.05))))) -> 0 | M15: 0 | P15: =IF(P14="","",IF(YEAR('Simulation retraite'!$B$24)-1=YEAR(P14),'Simulation retraite'!$B$24,IF(YEAR('Simulation retraite'!$B$24)-1<YEAR(P14),"",(EDATE(P14,12))))) ->  | Q15: =IF(P15="","",YEAR(P15)-YEAR('Simulation retraite'!$B$6)) ->  | S15: =IF(P15="","",IF(YEAR(P15)=2019,CEILING(Para_simu!$Q$2*W14*R15/360,0.05),IF(YEAR(P15)=2020,CEILING(W14*Para_simu!$Q$3*R15/360,0.05),IF(YEAR(P15)=2021,CEILING(W14*Para_simu!$Q$4*R15/360,0.05),IF(YEAR(P15)=2022,CEILING(W14*Para_simu!$Q$5*R15/360,0.05),CEILING(W14*'Simulation retraite'!$C$41*R15/360,0.05)))))) ->  | T15: =IF(P15="","",IF(OR('Simulation retraite'!$B$9="non",YEAR(P15)<=2021),IF(YEAR(P15)<2024,IF('Simulation retraite'!$B$8="Base",VLOOKUP(Q15,Para_simu!$A$1:$I$55,2,FALSE),VLOOKUP(Q15,Para_simu!$A$1:$I$55,3,FALSE)),IF('Simulation retraite'!$B$8="Base",VLOOKUP(Q15,Para_simu!$A$1:$I$55,4,FALSE),VLOOKUP(Q15,Para_simu!$A$1:$I$55,5,FALSE))),IF(YEAR(P15)<2024,IF('Simulation retraite'!$B$8="Base",VLOOKUP(Q15,Para_simu!$A$1:$I$55,6,FALSE),VLOOKUP(Q15,Para_simu!$A$1:$I$55,7,FALSE)),IF('Simulation retraite'!$B$8="Base",VLOOKUP(Q15,Para_simu!$A$1:$I$55,8,FALSE),VLOOKUP(Q15,Para_simu!$A$1:$I$55,9,FALSE))))) ->  | U15: =IF(P15="","",CEILING(T15*'Simulation retraite'!$B$10/12,0.05)*12*(R15/360)) ->  | X15: =IF(X14="","",IF(YEAR('Simulation retraite'!$B$24)-1=YEAR(X14),'Simulation retraite'!$B$24,IF(YEAR('Simulation retraite'!$B$24)-1<YEAR(X14),"",(EDATE(X14,12))))) -> 1910-12-31 | Y15: =IF(X15="","",YEAR(X15)-YEAR('Simulation retraite'!$B$6)) -> -50 | Z15: 360 | AA15: =IF(X15="","",IF(YEAR(X15)=2020,CEILING(AB14*Para_simu!$Q$3*Z15/360,0.05),IF(YEAR(X15)=2021,CEILING(AB14*Para_simu!$Q$4*Z15/360,0.05),IF(YEAR(X15)=2022,CEILING(AB14*Para_simu!$Q$5*Z15/360,0.05),CEILING(AB14*'Simulation retraite'!$C$41*Z15/360,0.05))))) -> 0 | AB15: 0 | AE15: =IF(AE14="","",IF(YEAR('Simulation retraite'!$B$24)-1=YEAR(AE14),'Simulation retraite'!$B$24,IF(YEAR('Simulation retraite'!$B$24)-1<YEAR(AE14),"",(EDATE(AE14,12))))) ->  | AF15: =IF(AE15="","",YEAR(AE15)-YEAR('Simulation retraite'!$B$6)) ->  | AH15: =IF(AE15="","",IF(YEAR(AE15)=2019,CEILING(Para_simu!$Q$2*AL14*AG15/360,0.05),IF(YEAR(AE15)=2020,CEILING(AL14*Para_simu!$Q$3*AG15/360,0.05),IF(YEAR(AE15)=2021,CEILING(AL14*Para_simu!$Q$4*AG15/360,0.05),IF(YEAR(AE15)=2022,CEILING(AL14*Para_simu!$Q$5*AG15/360,0.05),CEILING(AL14*'Simulation retraite'!$D$41*AG15/360,0.05)))))) ->  | AI15: =IF(AE15="","",IF(OR('Simulation retraite'!$B$9="non",YEAR(AE15)<=2021),IF(YEAR(AE15)<2024,IF('Simulation retraite'!$B$8="Base",VLOOKUP(AF15,Para_simu!$A$1:$I$55,2,FALSE),VLOOKUP(AF15,Para_simu!$A$1:$I$55,3,FALSE)),IF('Simulation retraite'!$B$8="Base",VLOOKUP(AF15,Para_simu!$A$1:$I$55,4,FALSE),VLOOKUP(AF15,Para_simu!$A$1:$I$55,5,FALSE))),IF(YEAR(AE15)<2024,IF('Simulation retraite'!$B$8="Base",VLOOKUP(AF15,Para_simu!$A$1:$I$55,6,FALSE),VLOOKUP(AF15,Para_simu!$A$1:$I$55,7,FALSE)),IF('Simulation retraite'!$B$8="Base",VLOOKUP(AF15,Para_simu!$A$1:$I$55,8,FALSE),VLOOKUP(AF15,Para_simu!$A$1:$I$55,9,FALSE))))) ->  | AJ15: =IF(AE15="","",CEILING(AI15*'Simulation retraite'!$B$10/12,0.05)*12*(AG15/360)) ->  | AM15: =IF(AM14="","",IF(YEAR('Simulation retraite'!$B$24)-1=YEAR(AM14),'Simulation retraite'!$B$24,IF(YEAR('Simulation retraite'!$B$24)-1<YEAR(AM14),"",(EDATE(AM14,12))))) -> 1910-12-31 | AN15: =IF(AM15="","",YEAR(AM15)-YEAR('Simulation retraite'!$B$6)) -> -50 | AO15: 360 | AP15: =IF(AM15="","",IF(YEAR(AM15)=2020,CEILING(AQ14*Para_simu!$Q$3*AO15/360,0.05),IF(YEAR(AM15)=2021,CEILING(AQ14*Para_simu!$Q$4*AO15/360,0.05),IF(YEAR(AM15)=2022,CEILING(AQ14*Para_simu!$Q$5*AO15/360,0.05),CEILING(AQ14*'Simulation retraite'!$D$41*AO15/360,0.05))))) -> 0 | AQ15: 0
A16: =IF(A15="","",IF(YEAR('Simulation retraite'!$B$24)-1=YEAR(A15),'Simulation retraite'!$B$24,IF(YEAR('Simulation retraite'!$B$24)-1<YEAR(A15),"",(EDATE(A15,12))))) ->  | B16: =IF(A16="","",YEAR(A16)-YEAR('Simulation retraite'!$B$6)) ->  | D16: =IF(A16="","",IF(YEAR(A16)=2019,CEILING(Para_simu!$Q$2*H15*C16/360,0.05),IF(YEAR(A16)=2020,CEILING(H15*Para_simu!$Q$3*C16/360,0.05),IF(YEAR(A16)=2021,CEILING(H15*Para_simu!$Q$4*C16/360,0.05),IF(YEAR(A16)=2022,CEILING(H15*Para_simu!$Q$5*C16/360,0.05),CEILING(H15*'Simulation retraite'!$B$41*C16/360,0.05)))))) ->  | E16: =IF(A16="","",IF(OR('Simulation retraite'!$B$9="non",YEAR(A16)<=2021),IF(YEAR(A16)<2024,IF('Simulation retraite'!$B$8="Base",VLOOKUP(B16,Para_simu!$A$1:$I$55,2,FALSE),VLOOKUP(B16,Para_simu!$A$1:$I$55,3,FALSE)),IF('Simulation retraite'!$B$8="Base",VLOOKUP(B16,Para_simu!$A$1:$I$55,4,FALSE),VLOOKUP(B16,Para_simu!$A$1:$I$55,5,FALSE))),IF(YEAR(A16)<2024,IF('Simulation retraite'!$B$8="Base",VLOOKUP(B16,Para_simu!$A$1:$I$55,6,FALSE),VLOOKUP(B16,Para_simu!$A$1:$I$55,7,FALSE)),IF('Simulation retraite'!$B$8="Base",VLOOKUP(B16,Para_simu!$A$1:$I$55,8,FALSE),VLOOKUP(B16,Para_simu!$A$1:$I$55,9,FALSE))))) ->  | F16: =IF(A16="","",CEILING(E16*'Simulation retraite'!$B$10/12,0.05)*12*(C16/360)) ->  | I16: =IF(I15="","",IF(YEAR('Simulation retraite'!$B$24)-1=YEAR(I15),'Simulation retraite'!$B$24,IF(YEAR('Simulation retraite'!$B$24)-1<YEAR(I15),"",(EDATE(I15,12))))) -> 1911-12-31 | J16: =IF(I16="","",YEAR(I16)-YEAR('Simulation retraite'!$B$6)) -> -49 | K16: 360 | L16: =IF(I16="","",IF(YEAR(I16)=2020,CEILING(M15*Para_simu!$Q$3*K16/360,0.05),IF(YEAR(I16)=2021,CEILING(M15*Para_simu!$Q$4*K16/360,0.05),IF(YEAR(I16)=2022,CEILING(M15*Para_simu!$Q$5*K16/360,0.05),CEILING(M15*'Simulation retraite'!$B$41*K16/360,0.05))))) -> 0 | M16: 0 | P16: =IF(P15="","",IF(YEAR('Simulation retraite'!$B$24)-1=YEAR(P15),'Simulation retraite'!$B$24,IF(YEAR('Simulation retraite'!$B$24)-1<YEAR(P15),"",(EDATE(P15,12))))) ->  | Q16: =IF(P16="","",YEAR(P16)-YEAR('Simulation retraite'!$B$6)) ->  | S16: =IF(P16="","",IF(YEAR(P16)=2019,CEILING(Para_simu!$Q$2*W15*R16/360,0.05),IF(YEAR(P16)=2020,CEILING(W15*Para_simu!$Q$3*R16/360,0.05),IF(YEAR(P16)=2021,CEILING(W15*Para_simu!$Q$4*R16/360,0.05),IF(YEAR(P16)=2022,CEILING(W15*Para_simu!$Q$5*R16/360,0.05),CEILING(W15*'Simulation retraite'!$C$41*R16/360,0.05)))))) ->  | T16: =IF(P16="","",IF(OR('Simulation retraite'!$B$9="non",YEAR(P16)<=2021),IF(YEAR(P16)<2024,IF('Simulation retraite'!$B$8="Base",VLOOKUP(Q16,Para_simu!$A$1:$I$55,2,FALSE),VLOOKUP(Q16,Para_simu!$A$1:$I$55,3,FALSE)),IF('Simulation retraite'!$B$8="Base",VLOOKUP(Q16,Para_simu!$A$1:$I$55,4,FALSE),VLOOKUP(Q16,Para_simu!$A$1:$I$55,5,FALSE))),IF(YEAR(P16)<2024,IF('Simulation retraite'!$B$8="Base",VLOOKUP(Q16,Para_simu!$A$1:$I$55,6,FALSE),VLOOKUP(Q16,Para_simu!$A$1:$I$55,7,FALSE)),IF('Simulation retraite'!$B$8="Base",VLOOKUP(Q16,Para_simu!$A$1:$I$55,8,FALSE),VLOOKUP(Q16,Para_simu!$A$1:$I$55,9,FALSE))))) ->  | U16: =IF(P16="","",CEILING(T16*'Simulation retraite'!$B$10/12,0.05)*12*(R16/360)) ->  | X16: =IF(X15="","",IF(YEAR('Simulation retraite'!$B$24)-1=YEAR(X15),'Simulation retraite'!$B$24,IF(YEAR('Simulation retraite'!$B$24)-1<YEAR(X15),"",(EDATE(X15,12))))) -> 1911-12-31 | Y16: =IF(X16="","",YEAR(X16)-YEAR('Simulation retraite'!$B$6)) -> -49 | Z16: 360 | AA16: =IF(X16="","",IF(YEAR(X16)=2020,CEILING(AB15*Para_simu!$Q$3*Z16/360,0.05),IF(YEAR(X16)=2021,CEILING(AB15*Para_simu!$Q$4*Z16/360,0.05),IF(YEAR(X16)=2022,CEILING(AB15*Para_simu!$Q$5*Z16/360,0.05),CEILING(AB15*'Simulation retraite'!$C$41*Z16/360,0.05))))) -> 0 | AB16: 0 | AE16: =IF(AE15="","",IF(YEAR('Simulation retraite'!$B$24)-1=YEAR(AE15),'Simulation retraite'!$B$24,IF(YEAR('Simulation retraite'!$B$24)-1<YEAR(AE15),"",(EDATE(AE15,12))))) ->  | AF16: =IF(AE16="","",YEAR(AE16)-YEAR('Simulation retraite'!$B$6)) ->  | AH16: =IF(AE16="","",IF(YEAR(AE16)=2019,CEILING(Para_simu!$Q$2*AL15*AG16/360,0.05),IF(YEAR(AE16)=2020,CEILING(AL15*Para_simu!$Q$3*AG16/360,0.05),IF(YEAR(AE16)=2021,CEILING(AL15*Para_simu!$Q$4*AG16/360,0.05),IF(YEAR(AE16)=2022,CEILING(AL15*Para_simu!$Q$5*AG16/360,0.05),CEILING(AL15*'Simulation retraite'!$D$41*AG16/360,0.05)))))) ->  | AI16: =IF(AE16="","",IF(OR('Simulation retraite'!$B$9="non",YEAR(AE16)<=2021),IF(YEAR(AE16)<2024,IF('Simulation retraite'!$B$8="Base",VLOOKUP(AF16,Para_simu!$A$1:$I$55,2,FALSE),VLOOKUP(AF16,Para_simu!$A$1:$I$55,3,FALSE)),IF('Simulation retraite'!$B$8="Base",VLOOKUP(AF16,Para_simu!$A$1:$I$55,4,FALSE),VLOOKUP(AF16,Para_simu!$A$1:$I$55,5,FALSE))),IF(YEAR(AE16)<2024,IF('Simulation retraite'!$B$8="Base",VLOOKUP(AF16,Para_simu!$A$1:$I$55,6,FALSE),VLOOKUP(AF16,Para_simu!$A$1:$I$55,7,FALSE)),IF('Simulation retraite'!$B$8="Base",VLOOKUP(AF16,Para_simu!$A$1:$I$55,8,FALSE),VLOOKUP(AF16,Para_simu!$A$1:$I$55,9,FALSE))))) ->  | AJ16: =IF(AE16="","",CEILING(AI16*'Simulation retraite'!$B$10/12,0.05)*12*(AG16/360)) ->  | AM16: =IF(AM15="","",IF(YEAR('Simulation retraite'!$B$24)-1=YEAR(AM15),'Simulation retraite'!$B$24,IF(YEAR('Simulation retraite'!$B$24)-1<YEAR(AM15),"",(EDATE(AM15,12))))) -> 1911-12-31 | AN16: =IF(AM16="","",YEAR(AM16)-YEAR('Simulation retraite'!$B$6)) -> -49 | AO16: 360 | AP16: =IF(AM16="","",IF(YEAR(AM16)=2020,CEILING(AQ15*Para_simu!$Q$3*AO16/360,0.05),IF(YEAR(AM16)=2021,CEILING(AQ15*Para_simu!$Q$4*AO16/360,0.05),IF(YEAR(AM16)=2022,CEILING(AQ15*Para_simu!$Q$5*AO16/360,0.05),CEILING(AQ15*'Simulation retraite'!$D$41*AO16/360,0.05))))) -> 0 | AQ16: 0
A17: =IF(A16="","",IF(YEAR('Simulation retraite'!$B$24)-1=YEAR(A16),'Simulation retraite'!$B$24,IF(YEAR('Simulation retraite'!$B$24)-1<YEAR(A16),"",(EDATE(A16,12))))) ->  | B17: =IF(A17="","",YEAR(A17)-YEAR('Simulation retraite'!$B$6)) ->  | D17: =IF(A17="","",IF(YEAR(A17)=2019,CEILING(Para_simu!$Q$2*H16*C17/360,0.05),IF(YEAR(A17)=2020,CEILING(H16*Para_simu!$Q$3*C17/360,0.05),IF(YEAR(A17)=2021,CEILING(H16*Para_simu!$Q$4*C17/360,0.05),IF(YEAR(A17)=2022,CEILING(H16*Para_simu!$Q$5*C17/360,0.05),CEILING(H16*'Simulation retraite'!$B$41*C17/360,0.05)))))) ->  | E17: =IF(A17="","",IF(OR('Simulation retraite'!$B$9="non",YEAR(A17)<=2021),IF(YEAR(A17)<2024,IF('Simulation retraite'!$B$8="Base",VLOOKUP(B17,Para_simu!$A$1:$I$55,2,FALSE),VLOOKUP(B17,Para_simu!$A$1:$I$55,3,FALSE)),IF('Simulation retraite'!$B$8="Base",VLOOKUP(B17,Para_simu!$A$1:$I$55,4,FALSE),VLOOKUP(B17,Para_simu!$A$1:$I$55,5,FALSE))),IF(YEAR(A17)<2024,IF('Simulation retraite'!$B$8="Base",VLOOKUP(B17,Para_simu!$A$1:$I$55,6,FALSE),VLOOKUP(B17,Para_simu!$A$1:$I$55,7,FALSE)),IF('Simulation retraite'!$B$8="Base",VLOOKUP(B17,Para_simu!$A$1:$I$55,8,FALSE),VLOOKUP(B17,Para_simu!$A$1:$I$55,9,FALSE))))) ->  | F17: =IF(A17="","",CEILING(E17*'Simulation retraite'!$B$10/12,0.05)*12*(C17/360)) ->  | I17: =IF(I16="","",IF(YEAR('Simulation retraite'!$B$24)-1=YEAR(I16),'Simulation retraite'!$B$24,IF(YEAR('Simulation retraite'!$B$24)-1<YEAR(I16),"",(EDATE(I16,12))))) -> 1912-12-31 | J17: =IF(I17="","",YEAR(I17)-YEAR('Simulation retraite'!$B$6)) -> -48 | K17: 360 | L17: =IF(I17="","",IF(YEAR(I17)=2020,CEILING(M16*Para_simu!$Q$3*K17/360,0.05),IF(YEAR(I17)=2021,CEILING(M16*Para_simu!$Q$4*K17/360,0.05),IF(YEAR(I17)=2022,CEILING(M16*Para_simu!$Q$5*K17/360,0.05),CEILING(M16*'Simulation retraite'!$B$41*K17/360,0.05))))) -> 0 | M17: 0 | P17: =IF(P16="","",IF(YEAR('Simulation retraite'!$B$24)-1=YEAR(P16),'Simulation retraite'!$B$24,IF(YEAR('Simulation retraite'!$B$24)-1<YEAR(P16),"",(EDATE(P16,12))))) ->  | Q17: =IF(P17="","",YEAR(P17)-YEAR('Simulation retraite'!$B$6)) ->  | S17: =IF(P17="","",IF(YEAR(P17)=2019,CEILING(Para_simu!$Q$2*W16*R17/360,0.05),IF(YEAR(P17)=2020,CEILING(W16*Para_simu!$Q$3*R17/360,0.05),IF(YEAR(P17)=2021,CEILING(W16*Para_simu!$Q$4*R17/360,0.05),IF(YEAR(P17)=2022,CEILING(W16*Para_simu!$Q$5*R17/360,0.05),CEILING(W16*'Simulation retraite'!$C$41*R17/360,0.05)))))) ->  | T17: =IF(P17="","",IF(OR('Simulation retraite'!$B$9="non",YEAR(P17)<=2021),IF(YEAR(P17)<2024,IF('Simulation retraite'!$B$8="Base",VLOOKUP(Q17,Para_simu!$A$1:$I$55,2,FALSE),VLOOKUP(Q17,Para_simu!$A$1:$I$55,3,FALSE)),IF('Simulation retraite'!$B$8="Base",VLOOKUP(Q17,Para_simu!$A$1:$I$55,4,FALSE),VLOOKUP(Q17,Para_simu!$A$1:$I$55,5,FALSE))),IF(YEAR(P17)<2024,IF('Simulation retraite'!$B$8="Base",VLOOKUP(Q17,Para_simu!$A$1:$I$55,6,FALSE),VLOOKUP(Q17,Para_simu!$A$1:$I$55,7,FALSE)),IF('Simulation retraite'!$B$8="Base",VLOOKUP(Q17,Para_simu!$A$1:$I$55,8,FALSE),VLOOKUP(Q17,Para_simu!$A$1:$I$55,9,FALSE))))) ->  | U17: =IF(P17="","",CEILING(T17*'Simulation retraite'!$B$10/12,0.05)*12*(R17/360)) ->  | X17: =IF(X16="","",IF(YEAR('Simulation retraite'!$B$24)-1=YEAR(X16),'Simulation retraite'!$B$24,IF(YEAR('Simulation retraite'!$B$24)-1<YEAR(X16),"",(EDATE(X16,12))))) -> 1912-12-31 | Y17: =IF(X17="","",YEAR(X17)-YEAR('Simulation retraite'!$B$6)) -> -48 | Z17: 360 | AA17: =IF(X17="","",IF(YEAR(X17)=2020,CEILING(AB16*Para_simu!$Q$3*Z17/360,0.05),IF(YEAR(X17)=2021,CEILING(AB16*Para_simu!$Q$4*Z17/360,0.05),IF(YEAR(X17)=2022,CEILING(AB16*Para_simu!$Q$5*Z17/360,0.05),CEILING(AB16*'Simulation retraite'!$C$41*Z17/360,0.05))))) -> 0 | AB17: 0 | AE17: =IF(AE16="","",IF(YEAR('Simulation retraite'!$B$24)-1=YEAR(AE16),'Simulation retraite'!$B$24,IF(YEAR('Simulation retraite'!$B$24)-1<YEAR(AE16),"",(EDATE(AE16,12))))) ->  | AF17: =IF(AE17="","",YEAR(AE17)-YEAR('Simulation retraite'!$B$6)) ->  | AH17: =IF(AE17="","",IF(YEAR(AE17)=2019,CEILING(Para_simu!$Q$2*AL16*AG17/360,0.05),IF(YEAR(AE17)=2020,CEILING(AL16*Para_simu!$Q$3*AG17/360,0.05),IF(YEAR(AE17)=2021,CEILING(AL16*Para_simu!$Q$4*AG17/360,0.05),IF(YEAR(AE17)=2022,CEILING(AL16*Para_simu!$Q$5*AG17/360,0.05),CEILING(AL16*'Simulation retraite'!$D$41*AG17/360,0.05)))))) ->  | AI17: =IF(AE17="","",IF(OR('Simulation retraite'!$B$9="non",YEAR(AE17)<=2021),IF(YEAR(AE17)<2024,IF('Simulation retraite'!$B$8="Base",VLOOKUP(AF17,Para_simu!$A$1:$I$55,2,FALSE),VLOOKUP(AF17,Para_simu!$A$1:$I$55,3,FALSE)),IF('Simulation retraite'!$B$8="Base",VLOOKUP(AF17,Para_simu!$A$1:$I$55,4,FALSE),VLOOKUP(AF17,Para_simu!$A$1:$I$55,5,FALSE))),IF(YEAR(AE17)<2024,IF('Simulation retraite'!$B$8="Base",VLOOKUP(AF17,Para_simu!$A$1:$I$55,6,FALSE),VLOOKUP(AF17,Para_simu!$A$1:$I$55,7,FALSE)),IF('Simulation retraite'!$B$8="Base",VLOOKUP(AF17,Para_simu!$A$1:$I$55,8,FALSE),VLOOKUP(AF17,Para_simu!$A$1:$I$55,9,FALSE))))) ->  | AJ17: =IF(AE17="","",CEILING(AI17*'Simulation retraite'!$B$10/12,0.05)*12*(AG17/360)) ->  | AM17: =IF(AM16="","",IF(YEAR('Simulation retraite'!$B$24)-1=YEAR(AM16),'Simulation retraite'!$B$24,IF(YEAR('Simulation retraite'!$B$24)-1<YEAR(AM16),"",(EDATE(AM16,12))))) -> 1912-12-31 | AN17: =IF(AM17="","",YEAR(AM17)-YEAR('Simulation retraite'!$B$6)) -> -48 | AO17: 360 | AP17: =IF(AM17="","",IF(YEAR(AM17)=2020,CEILING(AQ16*Para_simu!$Q$3*AO17/360,0.05),IF(YEAR(AM17)=2021,CEILING(AQ16*Para_simu!$Q$4*AO17/360,0.05),IF(YEAR(AM17)=2022,CEILING(AQ16*Para_simu!$Q$5*AO17/360,0.05),CEILING(AQ16*'Simulation retraite'!$D$41*AO17/360,0.05))))) -> 0 | AQ17: 0
A18: =IF(A17="","",IF(YEAR('Simulation retraite'!$B$24)-1=YEAR(A17),'Simulation retraite'!$B$24,IF(YEAR('Simulation retraite'!$B$24)-1<YEAR(A17),"",(EDATE(A17,12))))) ->  | B18: =IF(A18="","",YEAR(A18)-YEAR('Simulation retraite'!$B$6)) ->  | D18: =IF(A18="","",IF(YEAR(A18)=2019,CEILING(Para_simu!$Q$2*H17*C18/360,0.05),IF(YEAR(A18)=2020,CEILING(H17*Para_simu!$Q$3*C18/360,0.05),IF(YEAR(A18)=2021,CEILING(H17*Para_simu!$Q$4*C18/360,0.05),IF(YEAR(A18)=2022,CEILING(H17*Para_simu!$Q$5*C18/360,0.05),CEILING(H17*'Simulation retraite'!$B$41*C18/360,0.05)))))) ->  | E18: =IF(A18="","",IF(OR('Simulation retraite'!$B$9="non",YEAR(A18)<=2021),IF(YEAR(A18)<2024,IF('Simulation retraite'!$B$8="Base",VLOOKUP(B18,Para_simu!$A$1:$I$55,2,FALSE),VLOOKUP(B18,Para_simu!$A$1:$I$55,3,FALSE)),IF('Simulation retraite'!$B$8="Base",VLOOKUP(B18,Para_simu!$A$1:$I$55,4,FALSE),VLOOKUP(B18,Para_simu!$A$1:$I$55,5,FALSE))),IF(YEAR(A18)<2024,IF('Simulation retraite'!$B$8="Base",VLOOKUP(B18,Para_simu!$A$1:$I$55,6,FALSE),VLOOKUP(B18,Para_simu!$A$1:$I$55,7,FALSE)),IF('Simulation retraite'!$B$8="Base",VLOOKUP(B18,Para_simu!$A$1:$I$55,8,FALSE),VLOOKUP(B18,Para_simu!$A$1:$I$55,9,FALSE))))) ->  | F18: =IF(A18="","",CEILING(E18*'Simulation retraite'!$B$10/12,0.05)*12*(C18/360)) ->  | I18: =IF(I17="","",IF(YEAR('Simulation retraite'!$B$24)-1=YEAR(I17),'Simulation retraite'!$B$24,IF(YEAR('Simulation retraite'!$B$24)-1<YEAR(I17),"",(EDATE(I17,12))))) -> 1913-12-31 | J18: =IF(I18="","",YEAR(I18)-YEAR('Simulation retraite'!$B$6)) -> -47 | K18: 360 | L18: =IF(I18="","",IF(YEAR(I18)=2020,CEILING(M17*Para_simu!$Q$3*K18/360,0.05),IF(YEAR(I18)=2021,CEILING(M17*Para_simu!$Q$4*K18/360,0.05),IF(YEAR(I18)=2022,CEILING(M17*Para_simu!$Q$5*K18/360,0.05),CEILING(M17*'Simulation retraite'!$B$41*K18/360,0.05))))) -> 0 | M18: 0 | P18: =IF(P17="","",IF(YEAR('Simulation retraite'!$B$24)-1=YEAR(P17),'Simulation retraite'!$B$24,IF(YEAR('Simulation retraite'!$B$24)-1<YEAR(P17),"",(EDATE(P17,12))))) ->  | Q18: =IF(P18="","",YEAR(P18)-YEAR('Simulation retraite'!$B$6)) ->  | S18: =IF(P18="","",IF(YEAR(P18)=2019,CEILING(Para_simu!$Q$2*W17*R18/360,0.05),IF(YEAR(P18)=2020,CEILING(W17*Para_simu!$Q$3*R18/360,0.05),IF(YEAR(P18)=2021,CEILING(W17*Para_simu!$Q$4*R18/360,0.05),IF(YEAR(P18)=2022,CEILING(W17*Para_simu!$Q$5*R18/360,0.05),CEILING(W17*'Simulation retraite'!$C$41*R18/360,0.05)))))) ->  | T18: =IF(P18="","",IF(OR('Simulation retraite'!$B$9="non",YEAR(P18)<=2021),IF(YEAR(P18)<2024,IF('Simulation retraite'!$B$8="Base",VLOOKUP(Q18,Para_simu!$A$1:$I$55,2,FALSE),VLOOKUP(Q18,Para_simu!$A$1:$I$55,3,FALSE)),IF('Simulation retraite'!$B$8="Base",VLOOKUP(Q18,Para_simu!$A$1:$I$55,4,FALSE),VLOOKUP(Q18,Para_simu!$A$1:$I$55,5,FALSE))),IF(YEAR(P18)<2024,IF('Simulation retraite'!$B$8="Base",VLOOKUP(Q18,Para_simu!$A$1:$I$55,6,FALSE),VLOOKUP(Q18,Para_simu!$A$1:$I$55,7,FALSE)),IF('Simulation retraite'!$B$8="Base",VLOOKUP(Q18,Para_simu!$A$1:$I$55,8,FALSE),VLOOKUP(Q18,Para_simu!$A$1:$I$55,9,FALSE))))) ->  | U18: =IF(P18="","",CEILING(T18*'Simulation retraite'!$B$10/12,0.05)*12*(R18/360)) ->  | X18: =IF(X17="","",IF(YEAR('Simulation retraite'!$B$24)-1=YEAR(X17),'Simulation retraite'!$B$24,IF(YEAR('Simulation retraite'!$B$24)-1<YEAR(X17),"",(EDATE(X17,12))))) -> 1913-12-31 | Y18: =IF(X18="","",YEAR(X18)-YEAR('Simulation retraite'!$B$6)) -> -47 | Z18: 360 | AA18: =IF(X18="","",IF(YEAR(X18)=2020,CEILING(AB17*Para_simu!$Q$3*Z18/360,0.05),IF(YEAR(X18)=2021,CEILING(AB17*Para_simu!$Q$4*Z18/360,0.05),IF(YEAR(X18)=2022,CEILING(AB17*Para_simu!$Q$5*Z18/360,0.05),CEILING(AB17*'Simulation retraite'!$C$41*Z18/360,0.05))))) -> 0 | AB18: 0 | AE18: =IF(AE17="","",IF(YEAR('Simulation retraite'!$B$24)-1=YEAR(AE17),'Simulation retraite'!$B$24,IF(YEAR('Simulation retraite'!$B$24)-1<YEAR(AE17),"",(EDATE(AE17,12))))) ->  | AF18: =IF(AE18="","",YEAR(AE18)-YEAR('Simulation retraite'!$B$6)) ->  | AH18: =IF(AE18="","",IF(YEAR(AE18)=2019,CEILING(Para_simu!$Q$2*AL17*AG18/360,0.05),IF(YEAR(AE18)=2020,CEILING(AL17*Para_simu!$Q$3*AG18/360,0.05),IF(YEAR(AE18)=2021,CEILING(AL17*Para_simu!$Q$4*AG18/360,0.05),IF(YEAR(AE18)=2022,CEILING(AL17*Para_simu!$Q$5*AG18/360,0.05),CEILING(AL17*'Simulation retraite'!$D$41*AG18/360,0.05)))))) ->  | AI18: =IF(AE18="","",IF(OR('Simulation retraite'!$B$9="non",YEAR(AE18)<=2021),IF(YEAR(AE18)<2024,IF('Simulation retraite'!$B$8="Base",VLOOKUP(AF18,Para_simu!$A$1:$I$55,2,FALSE),VLOOKUP(AF18,Para_simu!$A$1:$I$55,3,FALSE)),IF('Simulation retraite'!$B$8="Base",VLOOKUP(AF18,Para_simu!$A$1:$I$55,4,FALSE),VLOOKUP(AF18,Para_simu!$A$1:$I$55,5,FALSE))),IF(YEAR(AE18)<2024,IF('Simulation retraite'!$B$8="Base",VLOOKUP(AF18,Para_simu!$A$1:$I$55,6,FALSE),VLOOKUP(AF18,Para_simu!$A$1:$I$55,7,FALSE)),IF('Simulation retraite'!$B$8="Base",VLOOKUP(AF18,Para_simu!$A$1:$I$55,8,FALSE),VLOOKUP(AF18,Para_simu!$A$1:$I$55,9,FALSE))))) ->  | AJ18: =IF(AE18="","",CEILING(AI18*'Simulation retraite'!$B$10/12,0.05)*12*(AG18/360)) ->  | AM18: =IF(AM17="","",IF(YEAR('Simulation retraite'!$B$24)-1=YEAR(AM17),'Simulation retraite'!$B$24,IF(YEAR('Simulation retraite'!$B$24)-1<YEAR(AM17),"",(EDATE(AM17,12))))) -> 1913-12-31 | AN18: =IF(AM18="","",YEAR(AM18)-YEAR('Simulation retraite'!$B$6)) -> -47 | AO18: 360 | AP18: =IF(AM18="","",IF(YEAR(AM18)=2020,CEILING(AQ17*Para_simu!$Q$3*AO18/360,0.05),IF(YEAR(AM18)=2021,CEILING(AQ17*Para_simu!$Q$4*AO18/360,0.05),IF(YEAR(AM18)=2022,CEILING(AQ17*Para_simu!$Q$5*AO18/360,0.05),CEILING(AQ17*'Simulation retraite'!$D$41*AO18/360,0.05))))) -> 0 | AQ18: 0
A19: =IF(A18="","",IF(YEAR('Simulation retraite'!$B$24)-1=YEAR(A18),'Simulation retraite'!$B$24,IF(YEAR('Simulation retraite'!$B$24)-1<YEAR(A18),"",(EDATE(A18,12))))) ->  | B19: =IF(A19="","",YEAR(A19)-YEAR('Simulation retraite'!$B$6)) ->  | D19: =IF(A19="","",IF(YEAR(A19)=2019,CEILING(Para_simu!$Q$2*H18*C19/360,0.05),IF(YEAR(A19)=2020,CEILING(H18*Para_simu!$Q$3*C19/360,0.05),IF(YEAR(A19)=2021,CEILING(H18*Para_simu!$Q$4*C19/360,0.05),IF(YEAR(A19)=2022,CEILING(H18*Para_simu!$Q$5*C19/360,0.05),CEILING(H18*'Simulation retraite'!$B$41*C19/360,0.05)))))) ->  | E19: =IF(A19="","",IF(OR('Simulation retraite'!$B$9="non",YEAR(A19)<=2021),IF(YEAR(A19)<2024,IF('Simulation retraite'!$B$8="Base",VLOOKUP(B19,Para_simu!$A$1:$I$55,2,FALSE),VLOOKUP(B19,Para_simu!$A$1:$I$55,3,FALSE)),IF('Simulation retraite'!$B$8="Base",VLOOKUP(B19,Para_simu!$A$1:$I$55,4,FALSE),VLOOKUP(B19,Para_simu!$A$1:$I$55,5,FALSE))),IF(YEAR(A19)<2024,IF('Simulation retraite'!$B$8="Base",VLOOKUP(B19,Para_simu!$A$1:$I$55,6,FALSE),VLOOKUP(B19,Para_simu!$A$1:$I$55,7,FALSE)),IF('Simulation retraite'!$B$8="Base",VLOOKUP(B19,Para_simu!$A$1:$I$55,8,FALSE),VLOOKUP(B19,Para_simu!$A$1:$I$55,9,FALSE))))) ->  | F19: =IF(A19="","",CEILING(E19*'Simulation retraite'!$B$10/12,0.05)*12*(C19/360)) ->  | I19: =IF(I18="","",IF(YEAR('Simulation retraite'!$B$24)-1=YEAR(I18),'Simulation retraite'!$B$24,IF(YEAR('Simulation retraite'!$B$24)-1<YEAR(I18),"",(EDATE(I18,12))))) -> 1914-12-31 | J19: =IF(I19="","",YEAR(I19)-YEAR('Simulation retraite'!$B$6)) -> -46 | K19: 360 | L19: =IF(I19="","",IF(YEAR(I19)=2020,CEILING(M18*Para_simu!$Q$3*K19/360,0.05),IF(YEAR(I19)=2021,CEILING(M18*Para_simu!$Q$4*K19/360,0.05),IF(YEAR(I19)=2022,CEILING(M18*Para_simu!$Q$5*K19/360,0.05),CEILING(M18*'Simulation retraite'!$B$41*K19/360,0.05))))) -> 0 | M19: 0 | P19: =IF(P18="","",IF(YEAR('Simulation retraite'!$B$24)-1=YEAR(P18),'Simulation retraite'!$B$24,IF(YEAR('Simulation retraite'!$B$24)-1<YEAR(P18),"",(EDATE(P18,12))))) ->  | Q19: =IF(P19="","",YEAR(P19)-YEAR('Simulation retraite'!$B$6)) ->  | S19: =IF(P19="","",IF(YEAR(P19)=2019,CEILING(Para_simu!$Q$2*W18*R19/360,0.05),IF(YEAR(P19)=2020,CEILING(W18*Para_simu!$Q$3*R19/360,0.05),IF(YEAR(P19)=2021,CEILING(W18*Para_simu!$Q$4*R19/360,0.05),IF(YEAR(P19)=2022,CEILING(W18*Para_simu!$Q$5*R19/360,0.05),CEILING(W18*'Simulation retraite'!$C$41*R19/360,0.05)))))) ->  | T19: =IF(P19="","",IF(OR('Simulation retraite'!$B$9="non",YEAR(P19)<=2021),IF(YEAR(P19)<2024,IF('Simulation retraite'!$B$8="Base",VLOOKUP(Q19,Para_simu!$A$1:$I$55,2,FALSE),VLOOKUP(Q19,Para_simu!$A$1:$I$55,3,FALSE)),IF('Simulation retraite'!$B$8="Base",VLOOKUP(Q19,Para_simu!$A$1:$I$55,4,FALSE),VLOOKUP(Q19,Para_simu!$A$1:$I$55,5,FALSE))),IF(YEAR(P19)<2024,IF('Simulation retraite'!$B$8="Base",VLOOKUP(Q19,Para_simu!$A$1:$I$55,6,FALSE),VLOOKUP(Q19,Para_simu!$A$1:$I$55,7,FALSE)),IF('Simulation retraite'!$B$8="Base",VLOOKUP(Q19,Para_simu!$A$1:$I$55,8,FALSE),VLOOKUP(Q19,Para_simu!$A$1:$I$55,9,FALSE))))) ->  | U19: =IF(P19="","",CEILING(T19*'Simulation retraite'!$B$10/12,0.05)*12*(R19/360)) ->  | X19: =IF(X18="","",IF(YEAR('Simulation retraite'!$B$24)-1=YEAR(X18),'Simulation retraite'!$B$24,IF(YEAR('Simulation retraite'!$B$24)-1<YEAR(X18),"",(EDATE(X18,12))))) -> 1914-12-31 | Y19: =IF(X19="","",YEAR(X19)-YEAR('Simulation retraite'!$B$6)) -> -46 | Z19: 360 | AA19: =IF(X19="","",IF(YEAR(X19)=2020,CEILING(AB18*Para_simu!$Q$3*Z19/360,0.05),IF(YEAR(X19)=2021,CEILING(AB18*Para_simu!$Q$4*Z19/360,0.05),IF(YEAR(X19)=2022,CEILING(AB18*Para_simu!$Q$5*Z19/360,0.05),CEILING(AB18*'Simulation retraite'!$C$41*Z19/360,0.05))))) -> 0 | AB19: 0 | AE19: =IF(AE18="","",IF(YEAR('Simulation retraite'!$B$24)-1=YEAR(AE18),'Simulation retraite'!$B$24,IF(YEAR('Simulation retraite'!$B$24)-1<YEAR(AE18),"",(EDATE(AE18,12))))) ->  | AF19: =IF(AE19="","",YEAR(AE19)-YEAR('Simulation retraite'!$B$6)) ->  | AH19: =IF(AE19="","",IF(YEAR(AE19)=2019,CEILING(Para_simu!$Q$2*AL18*AG19/360,0.05),IF(YEAR(AE19)=2020,CEILING(AL18*Para_simu!$Q$3*AG19/360,0.05),IF(YEAR(AE19)=2021,CEILING(AL18*Para_simu!$Q$4*AG19/360,0.05),IF(YEAR(AE19)=2022,CEILING(AL18*Para_simu!$Q$5*AG19/360,0.05),CEILING(AL18*'Simulation retraite'!$D$41*AG19/360,0.05)))))) ->  | AI19: =IF(AE19="","",IF(OR('Simulation retraite'!$B$9="non",YEAR(AE19)<=2021),IF(YEAR(AE19)<2024,IF('Simulation retraite'!$B$8="Base",VLOOKUP(AF19,Para_simu!$A$1:$I$55,2,FALSE),VLOOKUP(AF19,Para_simu!$A$1:$I$55,3,FALSE)),IF('Simulation retraite'!$B$8="Base",VLOOKUP(AF19,Para_simu!$A$1:$I$55,4,FALSE),VLOOKUP(AF19,Para_simu!$A$1:$I$55,5,FALSE))),IF(YEAR(AE19)<2024,IF('Simulation retraite'!$B$8="Base",VLOOKUP(AF19,Para_simu!$A$1:$I$55,6,FALSE),VLOOKUP(AF19,Para_simu!$A$1:$I$55,7,FALSE)),IF('Simulation retraite'!$B$8="Base",VLOOKUP(AF19,Para_simu!$A$1:$I$55,8,FALSE),VLOOKUP(AF19,Para_simu!$A$1:$I$55,9,FALSE))))) ->  | AJ19: =IF(AE19="","",CEILING(AI19*'Simulation retraite'!$B$10/12,0.05)*12*(AG19/360)) ->  | AM19: =IF(AM18="","",IF(YEAR('Simulation retraite'!$B$24)-1=YEAR(AM18),'Simulation retraite'!$B$24,IF(YEAR('Simulation retraite'!$B$24)-1<YEAR(AM18),"",(EDATE(AM18,12))))) -> 1914-12-31 | AN19: =IF(AM19="","",YEAR(AM19)-YEAR('Simulation retraite'!$B$6)) -> -46 | AO19: 360 | AP19: =IF(AM19="","",IF(YEAR(AM19)=2020,CEILING(AQ18*Para_simu!$Q$3*AO19/360,0.05),IF(YEAR(AM19)=2021,CEILING(AQ18*Para_simu!$Q$4*AO19/360,0.05),IF(YEAR(AM19)=2022,CEILING(AQ18*Para_simu!$Q$5*AO19/360,0.05),CEILING(AQ18*'Simulation retraite'!$D$41*AO19/360,0.05))))) -> 0 | AQ19: 0
A20: =IF(A19="","",IF(YEAR('Simulation retraite'!$B$24)-1=YEAR(A19),'Simulation retraite'!$B$24,IF(YEAR('Simulation retraite'!$B$24)-1<YEAR(A19),"",(EDATE(A19,12))))) ->  | B20: =IF(A20="","",YEAR(A20)-YEAR('Simulation retraite'!$B$6)) ->  | D20: =IF(A20="","",IF(YEAR(A20)=2019,CEILING(Para_simu!$Q$2*H19*C20/360,0.05),IF(YEAR(A20)=2020,CEILING(H19*Para_simu!$Q$3*C20/360,0.05),IF(YEAR(A20)=2021,CEILING(H19*Para_simu!$Q$4*C20/360,0.05),IF(YEAR(A20)=2022,CEILING(H19*Para_simu!$Q$5*C20/360,0.05),CEILING(H19*'Simulation retraite'!$B$41*C20/360,0.05)))))) ->  | E20: =IF(A20="","",IF(OR('Simulation retraite'!$B$9="non",YEAR(A20)<=2021),IF(YEAR(A20)<2024,IF('Simulation retraite'!$B$8="Base",VLOOKUP(B20,Para_simu!$A$1:$I$55,2,FALSE),VLOOKUP(B20,Para_simu!$A$1:$I$55,3,FALSE)),IF('Simulation retraite'!$B$8="Base",VLOOKUP(B20,Para_simu!$A$1:$I$55,4,FALSE),VLOOKUP(B20,Para_simu!$A$1:$I$55,5,FALSE))),IF(YEAR(A20)<2024,IF('Simulation retraite'!$B$8="Base",VLOOKUP(B20,Para_simu!$A$1:$I$55,6,FALSE),VLOOKUP(B20,Para_simu!$A$1:$I$55,7,FALSE)),IF('Simulation retraite'!$B$8="Base",VLOOKUP(B20,Para_simu!$A$1:$I$55,8,FALSE),VLOOKUP(B20,Para_simu!$A$1:$I$55,9,FALSE))))) ->  | F20: =IF(A20="","",CEILING(E20*'Simulation retraite'!$B$10/12,0.05)*12*(C20/360)) ->  | I20: =IF(I19="","",IF(YEAR('Simulation retraite'!$B$24)-1=YEAR(I19),'Simulation retraite'!$B$24,IF(YEAR('Simulation retraite'!$B$24)-1<YEAR(I19),"",(EDATE(I19,12))))) -> 1915-12-31 | J20: =IF(I20="","",YEAR(I20)-YEAR('Simulation retraite'!$B$6)) -> -45 | K20: 360 | L20: =IF(I20="","",IF(YEAR(I20)=2020,CEILING(M19*Para_simu!$Q$3*K20/360,0.05),IF(YEAR(I20)=2021,CEILING(M19*Para_simu!$Q$4*K20/360,0.05),IF(YEAR(I20)=2022,CEILING(M19*Para_simu!$Q$5*K20/360,0.05),CEILING(M19*'Simulation retraite'!$B$41*K20/360,0.05))))) -> 0 | M20: 0 | P20: =IF(P19="","",IF(YEAR('Simulation retraite'!$B$24)-1=YEAR(P19),'Simulation retraite'!$B$24,IF(YEAR('Simulation retraite'!$B$24)-1<YEAR(P19),"",(EDATE(P19,12))))) ->  | Q20: =IF(P20="","",YEAR(P20)-YEAR('Simulation retraite'!$B$6)) ->  | S20: =IF(P20="","",IF(YEAR(P20)=2019,CEILING(Para_simu!$Q$2*W19*R20/360,0.05),IF(YEAR(P20)=2020,CEILING(W19*Para_simu!$Q$3*R20/360,0.05),IF(YEAR(P20)=2021,CEILING(W19*Para_simu!$Q$4*R20/360,0.05),IF(YEAR(P20)=2022,CEILING(W19*Para_simu!$Q$5*R20/360,0.05),CEILING(W19*'Simulation retraite'!$C$41*R20/360,0.05)))))) ->  | T20: =IF(P20="","",IF(OR('Simulation retraite'!$B$9="non",YEAR(P20)<=2021),IF(YEAR(P20)<2024,IF('Simulation retraite'!$B$8="Base",VLOOKUP(Q20,Para_simu!$A$1:$I$55,2,FALSE),VLOOKUP(Q20,Para_simu!$A$1:$I$55,3,FALSE)),IF('Simulation retraite'!$B$8="Base",VLOOKUP(Q20,Para_simu!$A$1:$I$55,4,FALSE),VLOOKUP(Q20,Para_simu!$A$1:$I$55,5,FALSE))),IF(YEAR(P20)<2024,IF('Simulation retraite'!$B$8="Base",VLOOKUP(Q20,Para_simu!$A$1:$I$55,6,FALSE),VLOOKUP(Q20,Para_simu!$A$1:$I$55,7,FALSE)),IF('Simulation retraite'!$B$8="Base",VLOOKUP(Q20,Para_simu!$A$1:$I$55,8,FALSE),VLOOKUP(Q20,Para_simu!$A$1:$I$55,9,FALSE))))) ->  | U20: =IF(P20="","",CEILING(T20*'Simulation retraite'!$B$10/12,0.05)*12*(R20/360)) ->  | X20: =IF(X19="","",IF(YEAR('Simulation retraite'!$B$24)-1=YEAR(X19),'Simulation retraite'!$B$24,IF(YEAR('Simulation retraite'!$B$24)-1<YEAR(X19),"",(EDATE(X19,12))))) -> 1915-12-31 | Y20: =IF(X20="","",YEAR(X20)-YEAR('Simulation retraite'!$B$6)) -> -45 | Z20: 360 | AA20: =IF(X20="","",IF(YEAR(X20)=2020,CEILING(AB19*Para_simu!$Q$3*Z20/360,0.05),IF(YEAR(X20)=2021,CEILING(AB19*Para_simu!$Q$4*Z20/360,0.05),IF(YEAR(X20)=2022,CEILING(AB19*Para_simu!$Q$5*Z20/360,0.05),CEILING(AB19*'Simulation retraite'!$C$41*Z20/360,0.05))))) -> 0 | AB20: 0 | AE20: =IF(AE19="","",IF(YEAR('Simulation retraite'!$B$24)-1=YEAR(AE19),'Simulation retraite'!$B$24,IF(YEAR('Simulation retraite'!$B$24)-1<YEAR(AE19),"",(EDATE(AE19,12))))) ->  | AF20: =IF(AE20="","",YEAR(AE20)-YEAR('Simulation retraite'!$B$6)) ->  | AH20: =IF(AE20="","",IF(YEAR(AE20)=2019,CEILING(Para_simu!$Q$2*AL19*AG20/360,0.05),IF(YEAR(AE20)=2020,CEILING(AL19*Para_simu!$Q$3*AG20/360,0.05),IF(YEAR(AE20)=2021,CEILING(AL19*Para_simu!$Q$4*AG20/360,0.05),IF(YEAR(AE20)=2022,CEILING(AL19*Para_simu!$Q$5*AG20/360,0.05),CEILING(AL19*'Simulation retraite'!$D$41*AG20/360,0.05)))))) ->  | AI20: =IF(AE20="","",IF(OR('Simulation retraite'!$B$9="non",YEAR(AE20)<=2021),IF(YEAR(AE20)<2024,IF('Simulation retraite'!$B$8="Base",VLOOKUP(AF20,Para_simu!$A$1:$I$55,2,FALSE),VLOOKUP(AF20,Para_simu!$A$1:$I$55,3,FALSE)),IF('Simulation retraite'!$B$8="Base",VLOOKUP(AF20,Para_simu!$A$1:$I$55,4,FALSE),VLOOKUP(AF20,Para_simu!$A$1:$I$55,5,FALSE))),IF(YEAR(AE20)<2024,IF('Simulation retraite'!$B$8="Base",VLOOKUP(AF20,Para_simu!$A$1:$I$55,6,FALSE),VLOOKUP(AF20,Para_simu!$A$1:$I$55,7,FALSE)),IF('Simulation retraite'!$B$8="Base",VLOOKUP(AF20,Para_simu!$A$1:$I$55,8,FALSE),VLOOKUP(AF20,Para_simu!$A$1:$I$55,9,FALSE))))) ->  | AJ20: =IF(AE20="","",CEILING(AI20*'Simulation retraite'!$B$10/12,0.05)*12*(AG20/360)) ->  | AM20: =IF(AM19="","",IF(YEAR('Simulation retraite'!$B$24)-1=YEAR(AM19),'Simulation retraite'!$B$24,IF(YEAR('Simulation retraite'!$B$24)-1<YEAR(AM19),"",(EDATE(AM19,12))))) -> 1915-12-31 | AN20: =IF(AM20="","",YEAR(AM20)-YEAR('Simulation retraite'!$B$6)) -> -45 | AO20: 360 | AP20: =IF(AM20="","",IF(YEAR(AM20)=2020,CEILING(AQ19*Para_simu!$Q$3*AO20/360,0.05),IF(YEAR(AM20)=2021,CEILING(AQ19*Para_simu!$Q$4*AO20/360,0.05),IF(YEAR(AM20)=2022,CEILING(AQ19*Para_simu!$Q$5*AO20/360,0.05),CEILING(AQ19*'Simulation retraite'!$D$41*AO20/360,0.05))))) -> 0 | AQ20: 0
A21: =IF(A20="","",IF(YEAR('Simulation retraite'!$B$24)-1=YEAR(A20),'Simulation retraite'!$B$24,IF(YEAR('Simulation retraite'!$B$24)-1<YEAR(A20),"",(EDATE(A20,12))))) ->  | B21: =IF(A21="","",YEAR(A21)-YEAR('Simulation retraite'!$B$6)) ->  | D21: =IF(A21="","",IF(YEAR(A21)=2019,CEILING(Para_simu!$Q$2*H20*C21/360,0.05),IF(YEAR(A21)=2020,CEILING(H20*Para_simu!$Q$3*C21/360,0.05),IF(YEAR(A21)=2021,CEILING(H20*Para_simu!$Q$4*C21/360,0.05),IF(YEAR(A21)=2022,CEILING(H20*Para_simu!$Q$5*C21/360,0.05),CEILING(H20*'Simulation retraite'!$B$41*C21/360,0.05)))))) ->  | E21: =IF(A21="","",IF(OR('Simulation retraite'!$B$9="non",YEAR(A21)<=2021),IF(YEAR(A21)<2024,IF('Simulation retraite'!$B$8="Base",VLOOKUP(B21,Para_simu!$A$1:$I$55,2,FALSE),VLOOKUP(B21,Para_simu!$A$1:$I$55,3,FALSE)),IF('Simulation retraite'!$B$8="Base",VLOOKUP(B21,Para_simu!$A$1:$I$55,4,FALSE),VLOOKUP(B21,Para_simu!$A$1:$I$55,5,FALSE))),IF(YEAR(A21)<2024,IF('Simulation retraite'!$B$8="Base",VLOOKUP(B21,Para_simu!$A$1:$I$55,6,FALSE),VLOOKUP(B21,Para_simu!$A$1:$I$55,7,FALSE)),IF('Simulation retraite'!$B$8="Base",VLOOKUP(B21,Para_simu!$A$1:$I$55,8,FALSE),VLOOKUP(B21,Para_simu!$A$1:$I$55,9,FALSE))))) ->  | F21: =IF(A21="","",CEILING(E21*'Simulation retraite'!$B$10/12,0.05)*12*(C21/360)) ->  | I21: =IF(I20="","",IF(YEAR('Simulation retraite'!$B$24)-1=YEAR(I20),'Simulation retraite'!$B$24,IF(YEAR('Simulation retraite'!$B$24)-1<YEAR(I20),"",(EDATE(I20,12))))) -> 1916-12-31 | J21: =IF(I21="","",YEAR(I21)-YEAR('Simulation retraite'!$B$6)) -> -44 | K21: 360 | L21: =IF(I21="","",IF(YEAR(I21)=2020,CEILING(M20*Para_simu!$Q$3*K21/360,0.05),IF(YEAR(I21)=2021,CEILING(M20*Para_simu!$Q$4*K21/360,0.05),IF(YEAR(I21)=2022,CEILING(M20*Para_simu!$Q$5*K21/360,0.05),CEILING(M20*'Simulation retraite'!$B$41*K21/360,0.05))))) -> 0 | M21: 0 | P21: =IF(P20="","",IF(YEAR('Simulation retraite'!$B$24)-1=YEAR(P20),'Simulation retraite'!$B$24,IF(YEAR('Simulation retraite'!$B$24)-1<YEAR(P20),"",(EDATE(P20,12))))) ->  | Q21: =IF(P21="","",YEAR(P21)-YEAR('Simulation retraite'!$B$6)) ->  | S21: =IF(P21="","",IF(YEAR(P21)=2019,CEILING(Para_simu!$Q$2*W20*R21/360,0.05),IF(YEAR(P21)=2020,CEILING(W20*Para_simu!$Q$3*R21/360,0.05),IF(YEAR(P21)=2021,CEILING(W20*Para_simu!$Q$4*R21/360,0.05),IF(YEAR(P21)=2022,CEILING(W20*Para_simu!$Q$5*R21/360,0.05),CEILING(W20*'Simulation retraite'!$C$41*R21/360,0.05)))))) ->  | T21: =IF(P21="","",IF(OR('Simulation retraite'!$B$9="non",YEAR(P21)<=2021),IF(YEAR(P21)<2024,IF('Simulation retraite'!$B$8="Base",VLOOKUP(Q21,Para_simu!$A$1:$I$55,2,FALSE),VLOOKUP(Q21,Para_simu!$A$1:$I$55,3,FALSE)),IF('Simulation retraite'!$B$8="Base",VLOOKUP(Q21,Para_simu!$A$1:$I$55,4,FALSE),VLOOKUP(Q21,Para_simu!$A$1:$I$55,5,FALSE))),IF(YEAR(P21)<2024,IF('Simulation retraite'!$B$8="Base",VLOOKUP(Q21,Para_simu!$A$1:$I$55,6,FALSE),VLOOKUP(Q21,Para_simu!$A$1:$I$55,7,FALSE)),IF('Simulation retraite'!$B$8="Base",VLOOKUP(Q21,Para_simu!$A$1:$I$55,8,FALSE),VLOOKUP(Q21,Para_simu!$A$1:$I$55,9,FALSE))))) ->  | U21: =IF(P21="","",CEILING(T21*'Simulation retraite'!$B$10/12,0.05)*12*(R21/360)) ->  | X21: =IF(X20="","",IF(YEAR('Simulation retraite'!$B$24)-1=YEAR(X20),'Simulation retraite'!$B$24,IF(YEAR('Simulation retraite'!$B$24)-1<YEAR(X20),"",(EDATE(X20,12))))) -> 1916-12-31 | Y21: =IF(X21="","",YEAR(X21)-YEAR('Simulation retraite'!$B$6)) -> -44 | Z21: 360 | AA21: =IF(X21="","",IF(YEAR(X21)=2020,CEILING(AB20*Para_simu!$Q$3*Z21/360,0.05),IF(YEAR(X21)=2021,CEILING(AB20*Para_simu!$Q$4*Z21/360,0.05),IF(YEAR(X21)=2022,CEILING(AB20*Para_simu!$Q$5*Z21/360,0.05),CEILING(AB20*'Simulation retraite'!$C$41*Z21/360,0.05))))) -> 0 | AB21: 0 | AE21: =IF(AE20="","",IF(YEAR('Simulation retraite'!$B$24)-1=YEAR(AE20),'Simulation retraite'!$B$24,IF(YEAR('Simulation retraite'!$B$24)-1<YEAR(AE20),"",(EDATE(AE20,12))))) ->  | AF21: =IF(AE21="","",YEAR(AE21)-YEAR('Simulation retraite'!$B$6)) ->  | AH21: =IF(AE21="","",IF(YEAR(AE21)=2019,CEILING(Para_simu!$Q$2*AL20*AG21/360,0.05),IF(YEAR(AE21)=2020,CEILING(AL20*Para_simu!$Q$3*AG21/360,0.05),IF(YEAR(AE21)=2021,CEILING(AL20*Para_simu!$Q$4*AG21/360,0.05),IF(YEAR(AE21)=2022,CEILING(AL20*Para_simu!$Q$5*AG21/360,0.05),CEILING(AL20*'Simulation retraite'!$D$41*AG21/360,0.05)))))) ->  | AI21: =IF(AE21="","",IF(OR('Simulation retraite'!$B$9="non",YEAR(AE21)<=2021),IF(YEAR(AE21)<2024,IF('Simulation retraite'!$B$8="Base",VLOOKUP(AF21,Para_simu!$A$1:$I$55,2,FALSE),VLOOKUP(AF21,Para_simu!$A$1:$I$55,3,FALSE)),IF('Simulation retraite'!$B$8="Base",VLOOKUP(AF21,Para_simu!$A$1:$I$55,4,FALSE),VLOOKUP(AF21,Para_simu!$A$1:$I$55,5,FALSE))),IF(YEAR(AE21)<2024,IF('Simulation retraite'!$B$8="Base",VLOOKUP(AF21,Para_simu!$A$1:$I$55,6,FALSE),VLOOKUP(AF21,Para_simu!$A$1:$I$55,7,FALSE)),IF('Simulation retraite'!$B$8="Base",VLOOKUP(AF21,Para_simu!$A$1:$I$55,8,FALSE),VLOOKUP(AF21,Para_simu!$A$1:$I$55,9,FALSE))))) ->  | AJ21: =IF(AE21="","",CEILING(AI21*'Simulation retraite'!$B$10/12,0.05)*12*(AG21/360)) ->  | AM21: =IF(AM20="","",IF(YEAR('Simulation retraite'!$B$24)-1=YEAR(AM20),'Simulation retraite'!$B$24,IF(YEAR('Simulation retraite'!$B$24)-1<YEAR(AM20),"",(EDATE(AM20,12))))) -> 1916-12-31 | AN21: =IF(AM21="","",YEAR(AM21)-YEAR('Simulation retraite'!$B$6)) -> -44 | AO21: 360 | AP21: =IF(AM21="","",IF(YEAR(AM21)=2020,CEILING(AQ20*Para_simu!$Q$3*AO21/360,0.05),IF(YEAR(AM21)=2021,CEILING(AQ20*Para_simu!$Q$4*AO21/360,0.05),IF(YEAR(AM21)=2022,CEILING(AQ20*Para_simu!$Q$5*AO21/360,0.05),CEILING(AQ20*'Simulation retraite'!$D$41*AO21/360,0.05))))) -> 0 | AQ21: 0
A22: =IF(A21="","",IF(YEAR('Simulation retraite'!$B$24)-1=YEAR(A21),'Simulation retraite'!$B$24,IF(YEAR('Simulation retraite'!$B$24)-1<YEAR(A21),"",(EDATE(A21,12))))) ->  | B22: =IF(A22="","",YEAR(A22)-YEAR('Simulation retraite'!$B$6)) ->  | D22: =IF(A22="","",IF(YEAR(A22)=2019,CEILING(Para_simu!$Q$2*H21*C22/360,0.05),IF(YEAR(A22)=2020,CEILING(H21*Para_simu!$Q$3*C22/360,0.05),IF(YEAR(A22)=2021,CEILING(H21*Para_simu!$Q$4*C22/360,0.05),IF(YEAR(A22)=2022,CEILING(H21*Para_simu!$Q$5*C22/360,0.05),CEILING(H21*'Simulation retraite'!$B$41*C22/360,0.05)))))) ->  | E22: =IF(A22="","",IF(OR('Simulation retraite'!$B$9="non",YEAR(A22)<=2021),IF(YEAR(A22)<2024,IF('Simulation retraite'!$B$8="Base",VLOOKUP(B22,Para_simu!$A$1:$I$55,2,FALSE),VLOOKUP(B22,Para_simu!$A$1:$I$55,3,FALSE)),IF('Simulation retraite'!$B$8="Base",VLOOKUP(B22,Para_simu!$A$1:$I$55,4,FALSE),VLOOKUP(B22,Para_simu!$A$1:$I$55,5,FALSE))),IF(YEAR(A22)<2024,IF('Simulation retraite'!$B$8="Base",VLOOKUP(B22,Para_simu!$A$1:$I$55,6,FALSE),VLOOKUP(B22,Para_simu!$A$1:$I$55,7,FALSE)),IF('Simulation retraite'!$B$8="Base",VLOOKUP(B22,Para_simu!$A$1:$I$55,8,FALSE),VLOOKUP(B22,Para_simu!$A$1:$I$55,9,FALSE))))) ->  | F22: =IF(A22="","",CEILING(E22*'Simulation retraite'!$B$10/12,0.05)*12*(C22/360)) ->  | I22: =IF(I21="","",IF(YEAR('Simulation retraite'!$B$24)-1=YEAR(I21),'Simulation retraite'!$B$24,IF(YEAR('Simulation retraite'!$B$24)-1<YEAR(I21),"",(EDATE(I21,12))))) -> 1917-12-31 | J22: =IF(I22="","",YEAR(I22)-YEAR('Simulation retraite'!$B$6)) -> -43 | K22: 360 | L22: =IF(I22="","",IF(YEAR(I22)=2020,CEILING(M21*Para_simu!$Q$3*K22/360,0.05),IF(YEAR(I22)=2021,CEILING(M21*Para_simu!$Q$4*K22/360,0.05),IF(YEAR(I22)=2022,CEILING(M21*Para_simu!$Q$5*K22/360,0.05),CEILING(M21*'Simulation retraite'!$B$41*K22/360,0.05))))) -> 0 | M22: 0 | P22: =IF(P21="","",IF(YEAR('Simulation retraite'!$B$24)-1=YEAR(P21),'Simulation retraite'!$B$24,IF(YEAR('Simulation retraite'!$B$24)-1<YEAR(P21),"",(EDATE(P21,12))))) ->  | Q22: =IF(P22="","",YEAR(P22)-YEAR('Simulation retraite'!$B$6)) ->  | S22: =IF(P22="","",IF(YEAR(P22)=2019,CEILING(Para_simu!$Q$2*W21*R22/360,0.05),IF(YEAR(P22)=2020,CEILING(W21*Para_simu!$Q$3*R22/360,0.05),IF(YEAR(P22)=2021,CEILING(W21*Para_simu!$Q$4*R22/360,0.05),IF(YEAR(P22)=2022,CEILING(W21*Para_simu!$Q$5*R22/360,0.05),CEILING(W21*'Simulation retraite'!$C$41*R22/360,0.05)))))) ->  | T22: =IF(P22="","",IF(OR('Simulation retraite'!$B$9="non",YEAR(P22)<=2021),IF(YEAR(P22)<2024,IF('Simulation retraite'!$B$8="Base",VLOOKUP(Q22,Para_simu!$A$1:$I$55,2,FALSE),VLOOKUP(Q22,Para_simu!$A$1:$I$55,3,FALSE)),IF('Simulation retraite'!$B$8="Base",VLOOKUP(Q22,Para_simu!$A$1:$I$55,4,FALSE),VLOOKUP(Q22,Para_simu!$A$1:$I$55,5,FALSE))),IF(YEAR(P22)<2024,IF('Simulation retraite'!$B$8="Base",VLOOKUP(Q22,Para_simu!$A$1:$I$55,6,FALSE),VLOOKUP(Q22,Para_simu!$A$1:$I$55,7,FALSE)),IF('Simulation retraite'!$B$8="Base",VLOOKUP(Q22,Para_simu!$A$1:$I$55,8,FALSE),VLOOKUP(Q22,Para_simu!$A$1:$I$55,9,FALSE))))) ->  | U22: =IF(P22="","",CEILING(T22*'Simulation retraite'!$B$10/12,0.05)*12*(R22/360)) ->  | X22: =IF(X21="","",IF(YEAR('Simulation retraite'!$B$24)-1=YEAR(X21),'Simulation retraite'!$B$24,IF(YEAR('Simulation retraite'!$B$24)-1<YEAR(X21),"",(EDATE(X21,12))))) -> 1917-12-31 | Y22: =IF(X22="","",YEAR(X22)-YEAR('Simulation retraite'!$B$6)) -> -43 | Z22: 360 | AA22: =IF(X22="","",IF(YEAR(X22)=2020,CEILING(AB21*Para_simu!$Q$3*Z22/360,0.05),IF(YEAR(X22)=2021,CEILING(AB21*Para_simu!$Q$4*Z22/360,0.05),IF(YEAR(X22)=2022,CEILING(AB21*Para_simu!$Q$5*Z22/360,0.05),CEILING(AB21*'Simulation retraite'!$C$41*Z22/360,0.05))))) -> 0 | AB22: 0 | AE22: =IF(AE21="","",IF(YEAR('Simulation retraite'!$B$24)-1=YEAR(AE21),'Simulation retraite'!$B$24,IF(YEAR('Simulation retraite'!$B$24)-1<YEAR(AE21),"",(EDATE(AE21,12))))) ->  | AF22: =IF(AE22="","",YEAR(AE22)-YEAR('Simulation retraite'!$B$6)) ->  | AH22: =IF(AE22="","",IF(YEAR(AE22)=2019,CEILING(Para_simu!$Q$2*AL21*AG22/360,0.05),IF(YEAR(AE22)=2020,CEILING(AL21*Para_simu!$Q$3*AG22/360,0.05),IF(YEAR(AE22)=2021,CEILING(AL21*Para_simu!$Q$4*AG22/360,0.05),IF(YEAR(AE22)=2022,CEILING(AL21*Para_simu!$Q$5*AG22/360,0.05),CEILING(AL21*'Simulation retraite'!$D$41*AG22/360,0.05)))))) ->  | AI22: =IF(AE22="","",IF(OR('Simulation retraite'!$B$9="non",YEAR(AE22)<=2021),IF(YEAR(AE22)<2024,IF('Simulation retraite'!$B$8="Base",VLOOKUP(AF22,Para_simu!$A$1:$I$55,2,FALSE),VLOOKUP(AF22,Para_simu!$A$1:$I$55,3,FALSE)),IF('Simulation retraite'!$B$8="Base",VLOOKUP(AF22,Para_simu!$A$1:$I$55,4,FALSE),VLOOKUP(AF22,Para_simu!$A$1:$I$55,5,FALSE))),IF(YEAR(AE22)<2024,IF('Simulation retraite'!$B$8="Base",VLOOKUP(AF22,Para_simu!$A$1:$I$55,6,FALSE),VLOOKUP(AF22,Para_simu!$A$1:$I$55,7,FALSE)),IF('Simulation retraite'!$B$8="Base",VLOOKUP(AF22,Para_simu!$A$1:$I$55,8,FALSE),VLOOKUP(AF22,Para_simu!$A$1:$I$55,9,FALSE))))) ->  | AJ22: =IF(AE22="","",CEILING(AI22*'Simulation retraite'!$B$10/12,0.05)*12*(AG22/360)) ->  | AM22: =IF(AM21="","",IF(YEAR('Simulation retraite'!$B$24)-1=YEAR(AM21),'Simulation retraite'!$B$24,IF(YEAR('Simulation retraite'!$B$24)-1<YEAR(AM21),"",(EDATE(AM21,12))))) -> 1917-12-31 | AN22: =IF(AM22="","",YEAR(AM22)-YEAR('Simulation retraite'!$B$6)) -> -43 | AO22: 360 | AP22: =IF(AM22="","",IF(YEAR(AM22)=2020,CEILING(AQ21*Para_simu!$Q$3*AO22/360,0.05),IF(YEAR(AM22)=2021,CEILING(AQ21*Para_simu!$Q$4*AO22/360,0.05),IF(YEAR(AM22)=2022,CEILING(AQ21*Para_simu!$Q$5*AO22/360,0.05),CEILING(AQ21*'Simulation retraite'!$D$41*AO22/360,0.05))))) -> 0 | AQ22: 0
A23: =IF(A22="","",IF(YEAR('Simulation retraite'!$B$24)-1=YEAR(A22),'Simulation retraite'!$B$24,IF(YEAR('Simulation retraite'!$B$24)-1<YEAR(A22),"",(EDATE(A22,12))))) ->  | B23: =IF(A23="","",YEAR(A23)-YEAR('Simulation retraite'!$B$6)) ->  | D23: =IF(A23="","",IF(YEAR(A23)=2019,CEILING(Para_simu!$Q$2*H22*C23/360,0.05),IF(YEAR(A23)=2020,CEILING(H22*Para_simu!$Q$3*C23/360,0.05),IF(YEAR(A23)=2021,CEILING(H22*Para_simu!$Q$4*C23/360,0.05),IF(YEAR(A23)=2022,CEILING(H22*Para_simu!$Q$5*C23/360,0.05),CEILING(H22*'Simulation retraite'!$B$41*C23/360,0.05)))))) ->  | E23: =IF(A23="","",IF(OR('Simulation retraite'!$B$9="non",YEAR(A23)<=2021),IF(YEAR(A23)<2024,IF('Simulation retraite'!$B$8="Base",VLOOKUP(B23,Para_simu!$A$1:$I$55,2,FALSE),VLOOKUP(B23,Para_simu!$A$1:$I$55,3,FALSE)),IF('Simulation retraite'!$B$8="Base",VLOOKUP(B23,Para_simu!$A$1:$I$55,4,FALSE),VLOOKUP(B23,Para_simu!$A$1:$I$55,5,FALSE))),IF(YEAR(A23)<2024,IF('Simulation retraite'!$B$8="Base",VLOOKUP(B23,Para_simu!$A$1:$I$55,6,FALSE),VLOOKUP(B23,Para_simu!$A$1:$I$55,7,FALSE)),IF('Simulation retraite'!$B$8="Base",VLOOKUP(B23,Para_simu!$A$1:$I$55,8,FALSE),VLOOKUP(B23,Para_simu!$A$1:$I$55,9,FALSE))))) ->  | F23: =IF(A23="","",CEILING(E23*'Simulation retraite'!$B$10/12,0.05)*12*(C23/360)) ->  | I23: =IF(I22="","",IF(YEAR('Simulation retraite'!$B$24)-1=YEAR(I22),'Simulation retraite'!$B$24,IF(YEAR('Simulation retraite'!$B$24)-1<YEAR(I22),"",(EDATE(I22,12))))) -> 1918-12-31 | J23: =IF(I23="","",YEAR(I23)-YEAR('Simulation retraite'!$B$6)) -> -42 | K23: 360 | L23: =IF(I23="","",IF(YEAR(I23)=2020,CEILING(M22*Para_simu!$Q$3*K23/360,0.05),IF(YEAR(I23)=2021,CEILING(M22*Para_simu!$Q$4*K23/360,0.05),IF(YEAR(I23)=2022,CEILING(M22*Para_simu!$Q$5*K23/360,0.05),CEILING(M22*'Simulation retraite'!$B$41*K23/360,0.05))))) -> 0 | M23: 0 | P23: =IF(P22="","",IF(YEAR('Simulation retraite'!$B$24)-1=YEAR(P22),'Simulation retraite'!$B$24,IF(YEAR('Simulation retraite'!$B$24)-1<YEAR(P22),"",(EDATE(P22,12))))) ->  | Q23: =IF(P23="","",YEAR(P23)-YEAR('Simulation retraite'!$B$6)) ->  | S23: =IF(P23="","",IF(YEAR(P23)=2019,CEILING(Para_simu!$Q$2*W22*R23/360,0.05),IF(YEAR(P23)=2020,CEILING(W22*Para_simu!$Q$3*R23/360,0.05),IF(YEAR(P23)=2021,CEILING(W22*Para_simu!$Q$4*R23/360,0.05),IF(YEAR(P23)=2022,CEILING(W22*Para_simu!$Q$5*R23/360,0.05),CEILING(W22*'Simulation retraite'!$C$41*R23/360,0.05)))))) ->  | T23: =IF(P23="","",IF(OR('Simulation retraite'!$B$9="non",YEAR(P23)<=2021),IF(YEAR(P23)<2024,IF('Simulation retraite'!$B$8="Base",VLOOKUP(Q23,Para_simu!$A$1:$I$55,2,FALSE),VLOOKUP(Q23,Para_simu!$A$1:$I$55,3,FALSE)),IF('Simulation retraite'!$B$8="Base",VLOOKUP(Q23,Para_simu!$A$1:$I$55,4,FALSE),VLOOKUP(Q23,Para_simu!$A$1:$I$55,5,FALSE))),IF(YEAR(P23)<2024,IF('Simulation retraite'!$B$8="Base",VLOOKUP(Q23,Para_simu!$A$1:$I$55,6,FALSE),VLOOKUP(Q23,Para_simu!$A$1:$I$55,7,FALSE)),IF('Simulation retraite'!$B$8="Base",VLOOKUP(Q23,Para_simu!$A$1:$I$55,8,FALSE),VLOOKUP(Q23,Para_simu!$A$1:$I$55,9,FALSE))))) ->  | U23: =IF(P23="","",CEILING(T23*'Simulation retraite'!$B$10/12,0.05)*12*(R23/360)) ->  | X23: =IF(X22="","",IF(YEAR('Simulation retraite'!$B$24)-1=YEAR(X22),'Simulation retraite'!$B$24,IF(YEAR('Simulation retraite'!$B$24)-1<YEAR(X22),"",(EDATE(X22,12))))) -> 1918-12-31 | Y23: =IF(X23="","",YEAR(X23)-YEAR('Simulation retraite'!$B$6)) -> -42 | Z23: 360 | AA23: =IF(X23="","",IF(YEAR(X23)=2020,CEILING(AB22*Para_simu!$Q$3*Z23/360,0.05),IF(YEAR(X23)=2021,CEILING(AB22*Para_simu!$Q$4*Z23/360,0.05),IF(YEAR(X23)=2022,CEILING(AB22*Para_simu!$Q$5*Z23/360,0.05),CEILING(AB22*'Simulation retraite'!$C$41*Z23/360,0.05))))) -> 0 | AB23: 0 | AE23: =IF(AE22="","",IF(YEAR('Simulation retraite'!$B$24)-1=YEAR(AE22),'Simulation retraite'!$B$24,IF(YEAR('Simulation retraite'!$B$24)-1<YEAR(AE22),"",(EDATE(AE22,12))))) ->  | AF23: =IF(AE23="","",YEAR(AE23)-YEAR('Simulation retraite'!$B$6)) ->  | AH23: =IF(AE23="","",IF(YEAR(AE23)=2019,CEILING(Para_simu!$Q$2*AL22*AG23/360,0.05),IF(YEAR(AE23)=2020,CEILING(AL22*Para_simu!$Q$3*AG23/360,0.05),IF(YEAR(AE23)=2021,CEILING(AL22*Para_simu!$Q$4*AG23/360,0.05),IF(YEAR(AE23)=2022,CEILING(AL22*Para_simu!$Q$5*AG23/360,0.05),CEILING(AL22*'Simulation retraite'!$D$41*AG23/360,0.05)))))) ->  | AI23: =IF(AE23="","",IF(OR('Simulation retraite'!$B$9="non",YEAR(AE23)<=2021),IF(YEAR(AE23)<2024,IF('Simulation retraite'!$B$8="Base",VLOOKUP(AF23,Para_simu!$A$1:$I$55,2,FALSE),VLOOKUP(AF23,Para_simu!$A$1:$I$55,3,FALSE)),IF('Simulation retraite'!$B$8="Base",VLOOKUP(AF23,Para_simu!$A$1:$I$55,4,FALSE),VLOOKUP(AF23,Para_simu!$A$1:$I$55,5,FALSE))),IF(YEAR(AE23)<2024,IF('Simulation retraite'!$B$8="Base",VLOOKUP(AF23,Para_simu!$A$1:$I$55,6,FALSE),VLOOKUP(AF23,Para_simu!$A$1:$I$55,7,FALSE)),IF('Simulation retraite'!$B$8="Base",VLOOKUP(AF23,Para_simu!$A$1:$I$55,8,FALSE),VLOOKUP(AF23,Para_simu!$A$1:$I$55,9,FALSE))))) ->  | AJ23: =IF(AE23="","",CEILING(AI23*'Simulation retraite'!$B$10/12,0.05)*12*(AG23/360)) ->  | AM23: =IF(AM22="","",IF(YEAR('Simulation retraite'!$B$24)-1=YEAR(AM22),'Simulation retraite'!$B$24,IF(YEAR('Simulation retraite'!$B$24)-1<YEAR(AM22),"",(EDATE(AM22,12))))) -> 1918-12-31 | AN23: =IF(AM23="","",YEAR(AM23)-YEAR('Simulation retraite'!$B$6)) -> -42 | AO23: 360 | AP23: =IF(AM23="","",IF(YEAR(AM23)=2020,CEILING(AQ22*Para_simu!$Q$3*AO23/360,0.05),IF(YEAR(AM23)=2021,CEILING(AQ22*Para_simu!$Q$4*AO23/360,0.05),IF(YEAR(AM23)=2022,CEILING(AQ22*Para_simu!$Q$5*AO23/360,0.05),CEILING(AQ22*'Simulation retraite'!$D$41*AO23/360,0.05))))) -> 0 | AQ23: 0
A24: =IF(A23="","",IF(YEAR('Simulation retraite'!$B$24)-1=YEAR(A23),'Simulation retraite'!$B$24,IF(YEAR('Simulation retraite'!$B$24)-1<YEAR(A23),"",(EDATE(A23,12))))) ->  | B24: =IF(A24="","",YEAR(A24)-YEAR('Simulation retraite'!$B$6)) ->  | D24: =IF(A24="","",IF(YEAR(A24)=2019,CEILING(Para_simu!$Q$2*H23*C24/360,0.05),IF(YEAR(A24)=2020,CEILING(H23*Para_simu!$Q$3*C24/360,0.05),IF(YEAR(A24)=2021,CEILING(H23*Para_simu!$Q$4*C24/360,0.05),IF(YEAR(A24)=2022,CEILING(H23*Para_simu!$Q$5*C24/360,0.05),CEILING(H23*'Simulation retraite'!$B$41*C24/360,0.05)))))) ->  | E24: =IF(A24="","",IF(OR('Simulation retraite'!$B$9="non",YEAR(A24)<=2021),IF(YEAR(A24)<2024,IF('Simulation retraite'!$B$8="Base",VLOOKUP(B24,Para_simu!$A$1:$I$55,2,FALSE),VLOOKUP(B24,Para_simu!$A$1:$I$55,3,FALSE)),IF('Simulation retraite'!$B$8="Base",VLOOKUP(B24,Para_simu!$A$1:$I$55,4,FALSE),VLOOKUP(B24,Para_simu!$A$1:$I$55,5,FALSE))),IF(YEAR(A24)<2024,IF('Simulation retraite'!$B$8="Base",VLOOKUP(B24,Para_simu!$A$1:$I$55,6,FALSE),VLOOKUP(B24,Para_simu!$A$1:$I$55,7,FALSE)),IF('Simulation retraite'!$B$8="Base",VLOOKUP(B24,Para_simu!$A$1:$I$55,8,FALSE),VLOOKUP(B24,Para_simu!$A$1:$I$55,9,FALSE))))) ->  | F24: =IF(A24="","",CEILING(E24*'Simulation retraite'!$B$10/12,0.05)*12*(C24/360)) ->  | I24: =IF(I23="","",IF(YEAR('Simulation retraite'!$B$24)-1=YEAR(I23),'Simulation retraite'!$B$24,IF(YEAR('Simulation retraite'!$B$24)-1<YEAR(I23),"",(EDATE(I23,12))))) -> 1919-12-31 | J24: =IF(I24="","",YEAR(I24)-YEAR('Simulation retraite'!$B$6)) -> -41 | K24: 360 | L24: =IF(I24="","",IF(YEAR(I24)=2020,CEILING(M23*Para_simu!$Q$3*K24/360,0.05),IF(YEAR(I24)=2021,CEILING(M23*Para_simu!$Q$4*K24/360,0.05),IF(YEAR(I24)=2022,CEILING(M23*Para_simu!$Q$5*K24/360,0.05),CEILING(M23*'Simulation retraite'!$B$41*K24/360,0.05))))) -> 0 | M24: 0 | P24: =IF(P23="","",IF(YEAR('Simulation retraite'!$B$24)-1=YEAR(P23),'Simulation retraite'!$B$24,IF(YEAR('Simulation retraite'!$B$24)-1<YEAR(P23),"",(EDATE(P23,12))))) ->  | Q24: =IF(P24="","",YEAR(P24)-YEAR('Simulation retraite'!$B$6)) ->  | S24: =IF(P24="","",IF(YEAR(P24)=2019,CEILING(Para_simu!$Q$2*W23*R24/360,0.05),IF(YEAR(P24)=2020,CEILING(W23*Para_simu!$Q$3*R24/360,0.05),IF(YEAR(P24)=2021,CEILING(W23*Para_simu!$Q$4*R24/360,0.05),IF(YEAR(P24)=2022,CEILING(W23*Para_simu!$Q$5*R24/360,0.05),CEILING(W23*'Simulation retraite'!$C$41*R24/360,0.05)))))) ->  | T24: =IF(P24="","",IF(OR('Simulation retraite'!$B$9="non",YEAR(P24)<=2021),IF(YEAR(P24)<2024,IF('Simulation retraite'!$B$8="Base",VLOOKUP(Q24,Para_simu!$A$1:$I$55,2,FALSE),VLOOKUP(Q24,Para_simu!$A$1:$I$55,3,FALSE)),IF('Simulation retraite'!$B$8="Base",VLOOKUP(Q24,Para_simu!$A$1:$I$55,4,FALSE),VLOOKUP(Q24,Para_simu!$A$1:$I$55,5,FALSE))),IF(YEAR(P24)<2024,IF('Simulation retraite'!$B$8="Base",VLOOKUP(Q24,Para_simu!$A$1:$I$55,6,FALSE),VLOOKUP(Q24,Para_simu!$A$1:$I$55,7,FALSE)),IF('Simulation retraite'!$B$8="Base",VLOOKUP(Q24,Para_simu!$A$1:$I$55,8,FALSE),VLOOKUP(Q24,Para_simu!$A$1:$I$55,9,FALSE))))) ->  | U24: =IF(P24="","",CEILING(T24*'Simulation retraite'!$B$10/12,0.05)*12*(R24/360)) ->  | X24: =IF(X23="","",IF(YEAR('Simulation retraite'!$B$24)-1=YEAR(X23),'Simulation retraite'!$B$24,IF(YEAR('Simulation retraite'!$B$24)-1<YEAR(X23),"",(EDATE(X23,12))))) -> 1919-12-31 | Y24: =IF(X24="","",YEAR(X24)-YEAR('Simulation retraite'!$B$6)) -> -41 | Z24: 360 | AA24: =IF(X24="","",IF(YEAR(X24)=2020,CEILING(AB23*Para_simu!$Q$3*Z24/360,0.05),IF(YEAR(X24)=2021,CEILING(AB23*Para_simu!$Q$4*Z24/360,0.05),IF(YEAR(X24)=2022,CEILING(AB23*Para_simu!$Q$5*Z24/360,0.05),CEILING(AB23*'Simulation retraite'!$C$41*Z24/360,0.05))))) -> 0 | AB24: 0 | AE24: =IF(AE23="","",IF(YEAR('Simulation retraite'!$B$24)-1=YEAR(AE23),'Simulation retraite'!$B$24,IF(YEAR('Simulation retraite'!$B$24)-1<YEAR(AE23),"",(EDATE(AE23,12))))) ->  | AF24: =IF(AE24="","",YEAR(AE24)-YEAR('Simulation retraite'!$B$6)) ->  | AH24: =IF(AE24="","",IF(YEAR(AE24)=2019,CEILING(Para_simu!$Q$2*AL23*AG24/360,0.05),IF(YEAR(AE24)=2020,CEILING(AL23*Para_simu!$Q$3*AG24/360,0.05),IF(YEAR(AE24)=2021,CEILING(AL23*Para_simu!$Q$4*AG24/360,0.05),IF(YEAR(AE24)=2022,CEILING(AL23*Para_simu!$Q$5*AG24/360,0.05),CEILING(AL23*'Simulation retraite'!$D$41*AG24/360,0.05)))))) ->  | AI24: =IF(AE24="","",IF(OR('Simulation retraite'!$B$9="non",YEAR(AE24)<=2021),IF(YEAR(AE24)<2024,IF('Simulation retraite'!$B$8="Base",VLOOKUP(AF24,Para_simu!$A$1:$I$55,2,FALSE),VLOOKUP(AF24,Para_simu!$A$1:$I$55,3,FALSE)),IF('Simulation retraite'!$B$8="Base",VLOOKUP(AF24,Para_simu!$A$1:$I$55,4,FALSE),VLOOKUP(AF24,Para_simu!$A$1:$I$55,5,FALSE))),IF(YEAR(AE24)<2024,IF('Simulation retraite'!$B$8="Base",VLOOKUP(AF24,Para_simu!$A$1:$I$55,6,FALSE),VLOOKUP(AF24,Para_simu!$A$1:$I$55,7,FALSE)),IF('Simulation retraite'!$B$8="Base",VLOOKUP(AF24,Para_simu!$A$1:$I$55,8,FALSE),VLOOKUP(AF24,Para_simu!$A$1:$I$55,9,FALSE))))) ->  | AJ24: =IF(AE24="","",CEILING(AI24*'Simulation retraite'!$B$10/12,0.05)*12*(AG24/360)) ->  | AM24: =IF(AM23="","",IF(YEAR('Simulation retraite'!$B$24)-1=YEAR(AM23),'Simulation retraite'!$B$24,IF(YEAR('Simulation retraite'!$B$24)-1<YEAR(AM23),"",(EDATE(AM23,12))))) -> 1919-12-31 | AN24: =IF(AM24="","",YEAR(AM24)-YEAR('Simulation retraite'!$B$6)) -> -41 | AO24: 360 | AP24: =IF(AM24="","",IF(YEAR(AM24)=2020,CEILING(AQ23*Para_simu!$Q$3*AO24/360,0.05),IF(YEAR(AM24)=2021,CEILING(AQ23*Para_simu!$Q$4*AO24/360,0.05),IF(YEAR(AM24)=2022,CEILING(AQ23*Para_simu!$Q$5*AO24/360,0.05),CEILING(AQ23*'Simulation retraite'!$D$41*AO24/360,0.05))))) -> 0 | AQ24: 0
A25: =IF(A24="","",IF(YEAR('Simulation retraite'!$B$24)-1=YEAR(A24),'Simulation retraite'!$B$24,IF(YEAR('Simulation retraite'!$B$24)-1<YEAR(A24),"",(EDATE(A24,12))))) ->  | B25: =IF(A25="","",YEAR(A25)-YEAR('Simulation retraite'!$B$6)) ->  | D25: =IF(A25="","",IF(YEAR(A25)=2019,CEILING(Para_simu!$Q$2*H24*C25/360,0.05),IF(YEAR(A25)=2020,CEILING(H24*Para_simu!$Q$3*C25/360,0.05),IF(YEAR(A25)=2021,CEILING(H24*Para_simu!$Q$4*C25/360,0.05),IF(YEAR(A25)=2022,CEILING(H24*Para_simu!$Q$5*C25/360,0.05),CEILING(H24*'Simulation retraite'!$B$41*C25/360,0.05)))))) ->  | E25: =IF(A25="","",IF(OR('Simulation retraite'!$B$9="non",YEAR(A25)<=2021),IF(YEAR(A25)<2024,IF('Simulation retraite'!$B$8="Base",VLOOKUP(B25,Para_simu!$A$1:$I$55,2,FALSE),VLOOKUP(B25,Para_simu!$A$1:$I$55,3,FALSE)),IF('Simulation retraite'!$B$8="Base",VLOOKUP(B25,Para_simu!$A$1:$I$55,4,FALSE),VLOOKUP(B25,Para_simu!$A$1:$I$55,5,FALSE))),IF(YEAR(A25)<2024,IF('Simulation retraite'!$B$8="Base",VLOOKUP(B25,Para_simu!$A$1:$I$55,6,FALSE),VLOOKUP(B25,Para_simu!$A$1:$I$55,7,FALSE)),IF('Simulation retraite'!$B$8="Base",VLOOKUP(B25,Para_simu!$A$1:$I$55,8,FALSE),VLOOKUP(B25,Para_simu!$A$1:$I$55,9,FALSE))))) ->  | F25: =IF(A25="","",CEILING(E25*'Simulation retraite'!$B$10/12,0.05)*12*(C25/360)) ->  | I25: =IF(I24="","",IF(YEAR('Simulation retraite'!$B$24)-1=YEAR(I24),'Simulation retraite'!$B$24,IF(YEAR('Simulation retraite'!$B$24)-1<YEAR(I24),"",(EDATE(I24,12))))) -> 1920-12-31 | J25: =IF(I25="","",YEAR(I25)-YEAR('Simulation retraite'!$B$6)) -> -40 | K25: 360 | L25: =IF(I25="","",IF(YEAR(I25)=2020,CEILING(M24*Para_simu!$Q$3*K25/360,0.05),IF(YEAR(I25)=2021,CEILING(M24*Para_simu!$Q$4*K25/360,0.05),IF(YEAR(I25)=2022,CEILING(M24*Para_simu!$Q$5*K25/360,0.05),CEILING(M24*'Simulation retraite'!$B$41*K25/360,0.05))))) -> 0 | M25: 0 | P25: =IF(P24="","",IF(YEAR('Simulation retraite'!$B$24)-1=YEAR(P24),'Simulation retraite'!$B$24,IF(YEAR('Simulation retraite'!$B$24)-1<YEAR(P24),"",(EDATE(P24,12))))) ->  | Q25: =IF(P25="","",YEAR(P25)-YEAR('Simulation retraite'!$B$6)) ->  | S25: =IF(P25="","",IF(YEAR(P25)=2019,CEILING(Para_simu!$Q$2*W24*R25/360,0.05),IF(YEAR(P25)=2020,CEILING(W24*Para_simu!$Q$3*R25/360,0.05),IF(YEAR(P25)=2021,CEILING(W24*Para_simu!$Q$4*R25/360,0.05),IF(YEAR(P25)=2022,CEILING(W24*Para_simu!$Q$5*R25/360,0.05),CEILING(W24*'Simulation retraite'!$C$41*R25/360,0.05)))))) ->  | T25: =IF(P25="","",IF(OR('Simulation retraite'!$B$9="non",YEAR(P25)<=2021),IF(YEAR(P25)<2024,IF('Simulation retraite'!$B$8="Base",VLOOKUP(Q25,Para_simu!$A$1:$I$55,2,FALSE),VLOOKUP(Q25,Para_simu!$A$1:$I$55,3,FALSE)),IF('Simulation retraite'!$B$8="Base",VLOOKUP(Q25,Para_simu!$A$1:$I$55,4,FALSE),VLOOKUP(Q25,Para_simu!$A$1:$I$55,5,FALSE))),IF(YEAR(P25)<2024,IF('Simulation retraite'!$B$8="Base",VLOOKUP(Q25,Para_simu!$A$1:$I$55,6,FALSE),VLOOKUP(Q25,Para_simu!$A$1:$I$55,7,FALSE)),IF('Simulation retraite'!$B$8="Base",VLOOKUP(Q25,Para_simu!$A$1:$I$55,8,FALSE),VLOOKUP(Q25,Para_simu!$A$1:$I$55,9,FALSE))))) ->  | U25: =IF(P25="","",CEILING(T25*'Simulation retraite'!$B$10/12,0.05)*12*(R25/360)) ->  | X25: =IF(X24="","",IF(YEAR('Simulation retraite'!$B$24)-1=YEAR(X24),'Simulation retraite'!$B$24,IF(YEAR('Simulation retraite'!$B$24)-1<YEAR(X24),"",(EDATE(X24,12))))) -> 1920-12-31 | Y25: =IF(X25="","",YEAR(X25)-YEAR('Simulation retraite'!$B$6)) -> -40 | Z25: 360 | AA25: =IF(X25="","",IF(YEAR(X25)=2020,CEILING(AB24*Para_simu!$Q$3*Z25/360,0.05),IF(YEAR(X25)=2021,CEILING(AB24*Para_simu!$Q$4*Z25/360,0.05),IF(YEAR(X25)=2022,CEILING(AB24*Para_simu!$Q$5*Z25/360,0.05),CEILING(AB24*'Simulation retraite'!$C$41*Z25/360,0.05))))) -> 0 | AB25: 0 | AE25: =IF(AE24="","",IF(YEAR('Simulation retraite'!$B$24)-1=YEAR(AE24),'Simulation retraite'!$B$24,IF(YEAR('Simulation retraite'!$B$24)-1<YEAR(AE24),"",(EDATE(AE24,12))))) ->  | AF25: =IF(AE25="","",YEAR(AE25)-YEAR('Simulation retraite'!$B$6)) ->  | AH25: =IF(AE25="","",IF(YEAR(AE25)=2019,CEILING(Para_simu!$Q$2*AL24*AG25/360,0.05),IF(YEAR(AE25)=2020,CEILING(AL24*Para_simu!$Q$3*AG25/360,0.05),IF(YEAR(AE25)=2021,CEILING(AL24*Para_simu!$Q$4*AG25/360,0.05),IF(YEAR(AE25)=2022,CEILING(AL24*Para_simu!$Q$5*AG25/360,0.05),CEILING(AL24*'Simulation retraite'!$D$41*AG25/360,0.05)))))) ->  | AI25: =IF(AE25="","",IF(OR('Simulation retraite'!$B$9="non",YEAR(AE25)<=2021),IF(YEAR(AE25)<2024,IF('Simulation retraite'!$B$8="Base",VLOOKUP(AF25,Para_simu!$A$1:$I$55,2,FALSE),VLOOKUP(AF25,Para_simu!$A$1:$I$55,3,FALSE)),IF('Simulation retraite'!$B$8="Base",VLOOKUP(AF25,Para_simu!$A$1:$I$55,4,FALSE),VLOOKUP(AF25,Para_simu!$A$1:$I$55,5,FALSE))),IF(YEAR(AE25)<2024,IF('Simulation retraite'!$B$8="Base",VLOOKUP(AF25,Para_simu!$A$1:$I$55,6,FALSE),VLOOKUP(AF25,Para_simu!$A$1:$I$55,7,FALSE)),IF('Simulation retraite'!$B$8="Base",VLOOKUP(AF25,Para_simu!$A$1:$I$55,8,FALSE),VLOOKUP(AF25,Para_simu!$A$1:$I$55,9,FALSE))))) ->  | AJ25: =IF(AE25="","",CEILING(AI25*'Simulation retraite'!$B$10/12,0.05)*12*(AG25/360)) ->  | AM25: =IF(AM24="","",IF(YEAR('Simulation retraite'!$B$24)-1=YEAR(AM24),'Simulation retraite'!$B$24,IF(YEAR('Simulation retraite'!$B$24)-1<YEAR(AM24),"",(EDATE(AM24,12))))) -> 1920-12-31 | AN25: =IF(AM25="","",YEAR(AM25)-YEAR('Simulation retraite'!$B$6)) -> -40 | AO25: 360 | AP25: =IF(AM25="","",IF(YEAR(AM25)=2020,CEILING(AQ24*Para_simu!$Q$3*AO25/360,0.05),IF(YEAR(AM25)=2021,CEILING(AQ24*Para_simu!$Q$4*AO25/360,0.05),IF(YEAR(AM25)=2022,CEILING(AQ24*Para_simu!$Q$5*AO25/360,0.05),CEILING(AQ24*'Simulation retraite'!$D$41*AO25/360,0.05))))) -> 0 | AQ25: 0
A26: =IF(A25="","",IF(YEAR('Simulation retraite'!$B$24)-1=YEAR(A25),'Simulation retraite'!$B$24,IF(YEAR('Simulation retraite'!$B$24)-1<YEAR(A25),"",(EDATE(A25,12))))) ->  | B26: =IF(A26="","",YEAR(A26)-YEAR('Simulation retraite'!$B$6)) ->  | D26: =IF(A26="","",IF(YEAR(A26)=2019,CEILING(Para_simu!$Q$2*H25*C26/360,0.05),IF(YEAR(A26)=2020,CEILING(H25*Para_simu!$Q$3*C26/360,0.05),IF(YEAR(A26)=2021,CEILING(H25*Para_simu!$Q$4*C26/360,0.05),IF(YEAR(A26)=2022,CEILING(H25*Para_simu!$Q$5*C26/360,0.05),CEILING(H25*'Simulation retraite'!$B$41*C26/360,0.05)))))) ->  | E26: =IF(A26="","",IF(OR('Simulation retraite'!$B$9="non",YEAR(A26)<=2021),IF(YEAR(A26)<2024,IF('Simulation retraite'!$B$8="Base",VLOOKUP(B26,Para_simu!$A$1:$I$55,2,FALSE),VLOOKUP(B26,Para_simu!$A$1:$I$55,3,FALSE)),IF('Simulation retraite'!$B$8="Base",VLOOKUP(B26,Para_simu!$A$1:$I$55,4,FALSE),VLOOKUP(B26,Para_simu!$A$1:$I$55,5,FALSE))),IF(YEAR(A26)<2024,IF('Simulation retraite'!$B$8="Base",VLOOKUP(B26,Para_simu!$A$1:$I$55,6,FALSE),VLOOKUP(B26,Para_simu!$A$1:$I$55,7,FALSE)),IF('Simulation retraite'!$B$8="Base",VLOOKUP(B26,Para_simu!$A$1:$I$55,8,FALSE),VLOOKUP(B26,Para_simu!$A$1:$I$55,9,FALSE))))) ->  | F26: =IF(A26="","",CEILING(E26*'Simulation retraite'!$B$10/12,0.05)*12*(C26/360)) ->  | I26: =IF(I25="","",IF(YEAR('Simulation retraite'!$B$24)-1=YEAR(I25),'Simulation retraite'!$B$24,IF(YEAR('Simulation retraite'!$B$24)-1<YEAR(I25),"",(EDATE(I25,12))))) -> 1921-12-31 | J26: =IF(I26="","",YEAR(I26)-YEAR('Simulation retraite'!$B$6)) -> -39 | K26: 360 | L26: =IF(I26="","",IF(YEAR(I26)=2020,CEILING(M25*Para_simu!$Q$3*K26/360,0.05),IF(YEAR(I26)=2021,CEILING(M25*Para_simu!$Q$4*K26/360,0.05),IF(YEAR(I26)=2022,CEILING(M25*Para_simu!$Q$5*K26/360,0.05),CEILING(M25*'Simulation retraite'!$B$41*K26/360,0.05))))) -> 0 | M26: 0 | P26: =IF(P25="","",IF(YEAR('Simulation retraite'!$B$24)-1=YEAR(P25),'Simulation retraite'!$B$24,IF(YEAR('Simulation retraite'!$B$24)-1<YEAR(P25),"",(EDATE(P25,12))))) ->  | Q26: =IF(P26="","",YEAR(P26)-YEAR('Simulation retraite'!$B$6)) ->  | S26: =IF(P26="","",IF(YEAR(P26)=2019,CEILING(Para_simu!$Q$2*W25*R26/360,0.05),IF(YEAR(P26)=2020,CEILING(W25*Para_simu!$Q$3*R26/360,0.05),IF(YEAR(P26)=2021,CEILING(W25*Para_simu!$Q$4*R26/360,0.05),IF(YEAR(P26)=2022,CEILING(W25*Para_simu!$Q$5*R26/360,0.05),CEILING(W25*'Simulation retraite'!$C$41*R26/360,0.05)))))) ->  | T26: =IF(P26="","",IF(OR('Simulation retraite'!$B$9="non",YEAR(P26)<=2021),IF(YEAR(P26)<2024,IF('Simulation retraite'!$B$8="Base",VLOOKUP(Q26,Para_simu!$A$1:$I$55,2,FALSE),VLOOKUP(Q26,Para_simu!$A$1:$I$55,3,FALSE)),IF('Simulation retraite'!$B$8="Base",VLOOKUP(Q26,Para_simu!$A$1:$I$55,4,FALSE),VLOOKUP(Q26,Para_simu!$A$1:$I$55,5,FALSE))),IF(YEAR(P26)<2024,IF('Simulation retraite'!$B$8="Base",VLOOKUP(Q26,Para_simu!$A$1:$I$55,6,FALSE),VLOOKUP(Q26,Para_simu!$A$1:$I$55,7,FALSE)),IF('Simulation retraite'!$B$8="Base",VLOOKUP(Q26,Para_simu!$A$1:$I$55,8,FALSE),VLOOKUP(Q26,Para_simu!$A$1:$I$55,9,FALSE))))) ->  | U26: =IF(P26="","",CEILING(T26*'Simulation retraite'!$B$10/12,0.05)*12*(R26/360)) ->  | X26: =IF(X25="","",IF(YEAR('Simulation retraite'!$B$24)-1=YEAR(X25),'Simulation retraite'!$B$24,IF(YEAR('Simulation retraite'!$B$24)-1<YEAR(X25),"",(EDATE(X25,12))))) -> 1921-12-31 | Y26: =IF(X26="","",YEAR(X26)-YEAR('Simulation retraite'!$B$6)) -> -39 | Z26: 360 | AA26: =IF(X26="","",IF(YEAR(X26)=2020,CEILING(AB25*Para_simu!$Q$3*Z26/360,0.05),IF(YEAR(X26)=2021,CEILING(AB25*Para_simu!$Q$4*Z26/360,0.05),IF(YEAR(X26)=2022,CEILING(AB25*Para_simu!$Q$5*Z26/360,0.05),CEILING(AB25*'Simulation retraite'!$C$41*Z26/360,0.05))))) -> 0 | AB26: 0 | AE26: =IF(AE25="","",IF(YEAR('Simulation retraite'!$B$24)-1=YEAR(AE25),'Simulation retraite'!$B$24,IF(YEAR('Simulation retraite'!$B$24)-1<YEAR(AE25),"",(EDATE(AE25,12))))) ->  | AF26: =IF(AE26="","",YEAR(AE26)-YEAR('Simulation retraite'!$B$6)) ->  | AH26: =IF(AE26="","",IF(YEAR(AE26)=2019,CEILING(Para_simu!$Q$2*AL25*AG26/360,0.05),IF(YEAR(AE26)=2020,CEILING(AL25*Para_simu!$Q$3*AG26/360,0.05),IF(YEAR(AE26)=2021,CEILING(AL25*Para_simu!$Q$4*AG26/360,0.05),IF(YEAR(AE26)=2022,CEILING(AL25*Para_simu!$Q$5*AG26/360,0.05),CEILING(AL25*'Simulation retraite'!$D$41*AG26/360,0.05)))))) ->  | AI26: =IF(AE26="","",IF(OR('Simulation retraite'!$B$9="non",YEAR(AE26)<=2021),IF(YEAR(AE26)<2024,IF('Simulation retraite'!$B$8="Base",VLOOKUP(AF26,Para_simu!$A$1:$I$55,2,FALSE),VLOOKUP(AF26,Para_simu!$A$1:$I$55,3,FALSE)),IF('Simulation retraite'!$B$8="Base",VLOOKUP(AF26,Para_simu!$A$1:$I$55,4,FALSE),VLOOKUP(AF26,Para_simu!$A$1:$I$55,5,FALSE))),IF(YEAR(AE26)<2024,IF('Simulation retraite'!$B$8="Base",VLOOKUP(AF26,Para_simu!$A$1:$I$55,6,FALSE),VLOOKUP(AF26,Para_simu!$A$1:$I$55,7,FALSE)),IF('Simulation retraite'!$B$8="Base",VLOOKUP(AF26,Para_simu!$A$1:$I$55,8,FALSE),VLOOKUP(AF26,Para_simu!$A$1:$I$55,9,FALSE))))) ->  | AJ26: =IF(AE26="","",CEILING(AI26*'Simulation retraite'!$B$10/12,0.05)*12*(AG26/360)) ->  | AM26: =IF(AM25="","",IF(YEAR('Simulation retraite'!$B$24)-1=YEAR(AM25),'Simulation retraite'!$B$24,IF(YEAR('Simulation retraite'!$B$24)-1<YEAR(AM25),"",(EDATE(AM25,12))))) -> 1921-12-31 | AN26: =IF(AM26="","",YEAR(AM26)-YEAR('Simulation retraite'!$B$6)) -> -39 | AO26: 360 | AP26: =IF(AM26="","",IF(YEAR(AM26)=2020,CEILING(AQ25*Para_simu!$Q$3*AO26/360,0.05),IF(YEAR(AM26)=2021,CEILING(AQ25*Para_simu!$Q$4*AO26/360,0.05),IF(YEAR(AM26)=2022,CEILING(AQ25*Para_simu!$Q$5*AO26/360,0.05),CEILING(AQ25*'Simulation retraite'!$D$41*AO26/360,0.05))))) -> 0 | AQ26: 0
A27: =IF(A26="","",IF(YEAR('Simulation retraite'!$B$24)-1=YEAR(A26),'Simulation retraite'!$B$24,IF(YEAR('Simulation retraite'!$B$24)-1<YEAR(A26),"",(EDATE(A26,12))))) ->  | B27: =IF(A27="","",YEAR(A27)-YEAR('Simulation retraite'!$B$6)) ->  | D27: =IF(A27="","",IF(YEAR(A27)=2019,CEILING(Para_simu!$Q$2*H26*C27/360,0.05),IF(YEAR(A27)=2020,CEILING(H26*Para_simu!$Q$3*C27/360,0.05),IF(YEAR(A27)=2021,CEILING(H26*Para_simu!$Q$4*C27/360,0.05),IF(YEAR(A27)=2022,CEILING(H26*Para_simu!$Q$5*C27/360,0.05),CEILING(H26*'Simulation retraite'!$B$41*C27/360,0.05)))))) ->  | E27: =IF(A27="","",IF(OR('Simulation retraite'!$B$9="non",YEAR(A27)<=2021),IF(YEAR(A27)<2024,IF('Simulation retraite'!$B$8="Base",VLOOKUP(B27,Para_simu!$A$1:$I$55,2,FALSE),VLOOKUP(B27,Para_simu!$A$1:$I$55,3,FALSE)),IF('Simulation retraite'!$B$8="Base",VLOOKUP(B27,Para_simu!$A$1:$I$55,4,FALSE),VLOOKUP(B27,Para_simu!$A$1:$I$55,5,FALSE))),IF(YEAR(A27)<2024,IF('Simulation retraite'!$B$8="Base",VLOOKUP(B27,Para_simu!$A$1:$I$55,6,FALSE),VLOOKUP(B27,Para_simu!$A$1:$I$55,7,FALSE)),IF('Simulation retraite'!$B$8="Base",VLOOKUP(B27,Para_simu!$A$1:$I$55,8,FALSE),VLOOKUP(B27,Para_simu!$A$1:$I$55,9,FALSE))))) ->  | F27: =IF(A27="","",CEILING(E27*'Simulation retraite'!$B$10/12,0.05)*12*(C27/360)) ->  | I27: =IF(I26="","",IF(YEAR('Simulation retraite'!$B$24)-1=YEAR(I26),'Simulation retraite'!$B$24,IF(YEAR('Simulation retraite'!$B$24)-1<YEAR(I26),"",(EDATE(I26,12))))) -> 1922-12-31 | J27: =IF(I27="","",YEAR(I27)-YEAR('Simulation retraite'!$B$6)) -> -38 | K27: 360 | L27: =IF(I27="","",IF(YEAR(I27)=2020,CEILING(M26*Para_simu!$Q$3*K27/360,0.05),IF(YEAR(I27)=2021,CEILING(M26*Para_simu!$Q$4*K27/360,0.05),IF(YEAR(I27)=2022,CEILING(M26*Para_simu!$Q$5*K27/360,0.05),CEILING(M26*'Simulation retraite'!$B$41*K27/360,0.05))))) -> 0 | M27: 0 | P27: =IF(P26="","",IF(YEAR('Simulation retraite'!$B$24)-1=YEAR(P26),'Simulation retraite'!$B$24,IF(YEAR('Simulation retraite'!$B$24)-1<YEAR(P26),"",(EDATE(P26,12))))) ->  | Q27: =IF(P27="","",YEAR(P27)-YEAR('Simulation retraite'!$B$6)) ->  | S27: =IF(P27="","",IF(YEAR(P27)=2019,CEILING(Para_simu!$Q$2*W26*R27/360,0.05),IF(YEAR(P27)=2020,CEILING(W26*Para_simu!$Q$3*R27/360,0.05),IF(YEAR(P27)=2021,CEILING(W26*Para_simu!$Q$4*R27/360,0.05),IF(YEAR(P27)=2022,CEILING(W26*Para_simu!$Q$5*R27/360,0.05),CEILING(W26*'Simulation retraite'!$C$41*R27/360,0.05)))))) ->  | T27: =IF(P27="","",IF(OR('Simulation retraite'!$B$9="non",YEAR(P27)<=2021),IF(YEAR(P27)<2024,IF('Simulation retraite'!$B$8="Base",VLOOKUP(Q27,Para_simu!$A$1:$I$55,2,FALSE),VLOOKUP(Q27,Para_simu!$A$1:$I$55,3,FALSE)),IF('Simulation retraite'!$B$8="Base",VLOOKUP(Q27,Para_simu!$A$1:$I$55,4,FALSE),VLOOKUP(Q27,Para_simu!$A$1:$I$55,5,FALSE))),IF(YEAR(P27)<2024,IF('Simulation retraite'!$B$8="Base",VLOOKUP(Q27,Para_simu!$A$1:$I$55,6,FALSE),VLOOKUP(Q27,Para_simu!$A$1:$I$55,7,FALSE)),IF('Simulation retraite'!$B$8="Base",VLOOKUP(Q27,Para_simu!$A$1:$I$55,8,FALSE),VLOOKUP(Q27,Para_simu!$A$1:$I$55,9,FALSE))))) ->  | U27: =IF(P27="","",CEILING(T27*'Simulation retraite'!$B$10/12,0.05)*12*(R27/360)) ->  | X27: =IF(X26="","",IF(YEAR('Simulation retraite'!$B$24)-1=YEAR(X26),'Simulation retraite'!$B$24,IF(YEAR('Simulation retraite'!$B$24)-1<YEAR(X26),"",(EDATE(X26,12))))) -> 1922-12-31 | Y27: =IF(X27="","",YEAR(X27)-YEAR('Simulation retraite'!$B$6)) -> -38 | Z27: 360 | AA27: =IF(X27="","",IF(YEAR(X27)=2020,CEILING(AB26*Para_simu!$Q$3*Z27/360,0.05),IF(YEAR(X27)=2021,CEILING(AB26*Para_simu!$Q$4*Z27/360,0.05),IF(YEAR(X27)=2022,CEILING(AB26*Para_simu!$Q$5*Z27/360,0.05),CEILING(AB26*'Simulation retraite'!$C$41*Z27/360,0.05))))) -> 0 | AB27: 0 | AE27: =IF(AE26="","",IF(YEAR('Simulation retraite'!$B$24)-1=YEAR(AE26),'Simulation retraite'!$B$24,IF(YEAR('Simulation retraite'!$B$24)-1<YEAR(AE26),"",(EDATE(AE26,12))))) ->  | AF27: =IF(AE27="","",YEAR(AE27)-YEAR('Simulation retraite'!$B$6)) ->  | AH27: =IF(AE27="","",IF(YEAR(AE27)=2019,CEILING(Para_simu!$Q$2*AL26*AG27/360,0.05),IF(YEAR(AE27)=2020,CEILING(AL26*Para_simu!$Q$3*AG27/360,0.05),IF(YEAR(AE27)=2021,CEILING(AL26*Para_simu!$Q$4*AG27/360,0.05),IF(YEAR(AE27)=2022,CEILING(AL26*Para_simu!$Q$5*AG27/360,0.05),CEILING(AL26*'Simulation retraite'!$D$41*AG27/360,0.05)))))) ->  | AI27: =IF(AE27="","",IF(OR('Simulation retraite'!$B$9="non",YEAR(AE27)<=2021),IF(YEAR(AE27)<2024,IF('Simulation retraite'!$B$8="Base",VLOOKUP(AF27,Para_simu!$A$1:$I$55,2,FALSE),VLOOKUP(AF27,Para_simu!$A$1:$I$55,3,FALSE)),IF('Simulation retraite'!$B$8="Base",VLOOKUP(AF27,Para_simu!$A$1:$I$55,4,FALSE),VLOOKUP(AF27,Para_simu!$A$1:$I$55,5,FALSE))),IF(YEAR(AE27)<2024,IF('Simulation retraite'!$B$8="Base",VLOOKUP(AF27,Para_simu!$A$1:$I$55,6,FALSE),VLOOKUP(AF27,Para_simu!$A$1:$I$55,7,FALSE)),IF('Simulation retraite'!$B$8="Base",VLOOKUP(AF27,Para_simu!$A$1:$I$55,8,FALSE),VLOOKUP(AF27,Para_simu!$A$1:$I$55,9,FALSE))))) ->  | AJ27: =IF(AE27="","",CEILING(AI27*'Simulation retraite'!$B$10/12,0.05)*12*(AG27/360)) ->  | AM27: =IF(AM26="","",IF(YEAR('Simulation retraite'!$B$24)-1=YEAR(AM26),'Simulation retraite'!$B$24,IF(YEAR('Simulation retraite'!$B$24)-1<YEAR(AM26),"",(EDATE(AM26,12))))) -> 1922-12-31 | AN27: =IF(AM27="","",YEAR(AM27)-YEAR('Simulation retraite'!$B$6)) -> -38 | AO27: 360 | AP27: =IF(AM27="","",IF(YEAR(AM27)=2020,CEILING(AQ26*Para_simu!$Q$3*AO27/360,0.05),IF(YEAR(AM27)=2021,CEILING(AQ26*Para_simu!$Q$4*AO27/360,0.05),IF(YEAR(AM27)=2022,CEILING(AQ26*Para_simu!$Q$5*AO27/360,0.05),CEILING(AQ26*'Simulation retraite'!$D$41*AO27/360,0.05))))) -> 0 | AQ27: 0
A28: =IF(A27="","",IF(YEAR('Simulation retraite'!$B$24)-1=YEAR(A27),'Simulation retraite'!$B$24,IF(YEAR('Simulation retraite'!$B$24)-1<YEAR(A27),"",(EDATE(A27,12))))) ->  | B28: =IF(A28="","",YEAR(A28)-YEAR('Simulation retraite'!$B$6)) ->  | D28: =IF(A28="","",IF(YEAR(A28)=2019,CEILING(Para_simu!$Q$2*H27*C28/360,0.05),IF(YEAR(A28)=2020,CEILING(H27*Para_simu!$Q$3*C28/360,0.05),IF(YEAR(A28)=2021,CEILING(H27*Para_simu!$Q$4*C28/360,0.05),IF(YEAR(A28)=2022,CEILING(H27*Para_simu!$Q$5*C28/360,0.05),CEILING(H27*'Simulation retraite'!$B$41*C28/360,0.05)))))) ->  | E28: =IF(A28="","",IF(OR('Simulation retraite'!$B$9="non",YEAR(A28)<=2021),IF(YEAR(A28)<2024,IF('Simulation retraite'!$B$8="Base",VLOOKUP(B28,Para_simu!$A$1:$I$55,2,FALSE),VLOOKUP(B28,Para_simu!$A$1:$I$55,3,FALSE)),IF('Simulation retraite'!$B$8="Base",VLOOKUP(B28,Para_simu!$A$1:$I$55,4,FALSE),VLOOKUP(B28,Para_simu!$A$1:$I$55,5,FALSE))),IF(YEAR(A28)<2024,IF('Simulation retraite'!$B$8="Base",VLOOKUP(B28,Para_simu!$A$1:$I$55,6,FALSE),VLOOKUP(B28,Para_simu!$A$1:$I$55,7,FALSE)),IF('Simulation retraite'!$B$8="Base",VLOOKUP(B28,Para_simu!$A$1:$I$55,8,FALSE),VLOOKUP(B28,Para_simu!$A$1:$I$55,9,FALSE))))) ->  | F28: =IF(A28="","",CEILING(E28*'Simulation retraite'!$B$10/12,0.05)*12*(C28/360)) ->  | I28: =IF(I27="","",IF(YEAR('Simulation retraite'!$B$24)-1=YEAR(I27),'Simulation retraite'!$B$24,IF(YEAR('Simulation retraite'!$B$24)-1<YEAR(I27),"",(EDATE(I27,12))))) -> 1923-12-31 | J28: =IF(I28="","",YEAR(I28)-YEAR('Simulation retraite'!$B$6)) -> -37 | K28: 360 | L28: =IF(I28="","",IF(YEAR(I28)=2020,CEILING(M27*Para_simu!$Q$3*K28/360,0.05),IF(YEAR(I28)=2021,CEILING(M27*Para_simu!$Q$4*K28/360,0.05),IF(YEAR(I28)=2022,CEILING(M27*Para_simu!$Q$5*K28/360,0.05),CEILING(M27*'Simulation retraite'!$B$41*K28/360,0.05))))) -> 0 | M28: 0 | P28: =IF(P27="","",IF(YEAR('Simulation retraite'!$B$24)-1=YEAR(P27),'Simulation retraite'!$B$24,IF(YEAR('Simulation retraite'!$B$24)-1<YEAR(P27),"",(EDATE(P27,12))))) ->  | Q28: =IF(P28="","",YEAR(P28)-YEAR('Simulation retraite'!$B$6)) ->  | S28: =IF(P28="","",IF(YEAR(P28)=2019,CEILING(Para_simu!$Q$2*W27*R28/360,0.05),IF(YEAR(P28)=2020,CEILING(W27*Para_simu!$Q$3*R28/360,0.05),IF(YEAR(P28)=2021,CEILING(W27*Para_simu!$Q$4*R28/360,0.05),IF(YEAR(P28)=2022,CEILING(W27*Para_simu!$Q$5*R28/360,0.05),CEILING(W27*'Simulation retraite'!$C$41*R28/360,0.05)))))) ->  | T28: =IF(P28="","",IF(OR('Simulation retraite'!$B$9="non",YEAR(P28)<=2021),IF(YEAR(P28)<2024,IF('Simulation retraite'!$B$8="Base",VLOOKUP(Q28,Para_simu!$A$1:$I$55,2,FALSE),VLOOKUP(Q28,Para_simu!$A$1:$I$55,3,FALSE)),IF('Simulation retraite'!$B$8="Base",VLOOKUP(Q28,Para_simu!$A$1:$I$55,4,FALSE),VLOOKUP(Q28,Para_simu!$A$1:$I$55,5,FALSE))),IF(YEAR(P28)<2024,IF('Simulation retraite'!$B$8="Base",VLOOKUP(Q28,Para_simu!$A$1:$I$55,6,FALSE),VLOOKUP(Q28,Para_simu!$A$1:$I$55,7,FALSE)),IF('Simulation retraite'!$B$8="Base",VLOOKUP(Q28,Para_simu!$A$1:$I$55,8,FALSE),VLOOKUP(Q28,Para_simu!$A$1:$I$55,9,FALSE))))) ->  | U28: =IF(P28="","",CEILING(T28*'Simulation retraite'!$B$10/12,0.05)*12*(R28/360)) ->  | X28: =IF(X27="","",IF(YEAR('Simulation retraite'!$B$24)-1=YEAR(X27),'Simulation retraite'!$B$24,IF(YEAR('Simulation retraite'!$B$24)-1<YEAR(X27),"",(EDATE(X27,12))))) -> 1923-12-31 | Y28: =IF(X28="","",YEAR(X28)-YEAR('Simulation retraite'!$B$6)) -> -37 | Z28: 360 | AA28: =IF(X28="","",IF(YEAR(X28)=2020,CEILING(AB27*Para_simu!$Q$3*Z28/360,0.05),IF(YEAR(X28)=2021,CEILING(AB27*Para_simu!$Q$4*Z28/360,0.05),IF(YEAR(X28)=2022,CEILING(AB27*Para_simu!$Q$5*Z28/360,0.05),CEILING(AB27*'Simulation retraite'!$C$41*Z28/360,0.05))))) -> 0 | AB28: 0 | AE28: =IF(AE27="","",IF(YEAR('Simulation retraite'!$B$24)-1=YEAR(AE27),'Simulation retraite'!$B$24,IF(YEAR('Simulation retraite'!$B$24)-1<YEAR(AE27),"",(EDATE(AE27,12))))) ->  | AF28: =IF(AE28="","",YEAR(AE28)-YEAR('Simulation retraite'!$B$6)) ->  | AH28: =IF(AE28="","",IF(YEAR(AE28)=2019,CEILING(Para_simu!$Q$2*AL27*AG28/360,0.05),IF(YEAR(AE28)=2020,CEILING(AL27*Para_simu!$Q$3*AG28/360,0.05),IF(YEAR(AE28)=2021,CEILING(AL27*Para_simu!$Q$4*AG28/360,0.05),IF(YEAR(AE28)=2022,CEILING(AL27*Para_simu!$Q$5*AG28/360,0.05),CEILING(AL27*'Simulation retraite'!$D$41*AG28/360,0.05)))))) ->  | AI28: =IF(AE28="","",IF(OR('Simulation retraite'!$B$9="non",YEAR(AE28)<=2021),IF(YEAR(AE28)<2024,IF('Simulation retraite'!$B$8="Base",VLOOKUP(AF28,Para_simu!$A$1:$I$55,2,FALSE),VLOOKUP(AF28,Para_simu!$A$1:$I$55,3,FALSE)),IF('Simulation retraite'!$B$8="Base",VLOOKUP(AF28,Para_simu!$A$1:$I$55,4,FALSE),VLOOKUP(AF28,Para_simu!$A$1:$I$55,5,FALSE))),IF(YEAR(AE28)<2024,IF('Simulation retraite'!$B$8="Base",VLOOKUP(AF28,Para_simu!$A$1:$I$55,6,FALSE),VLOOKUP(AF28,Para_simu!$A$1:$I$55,7,FALSE)),IF('Simulation retraite'!$B$8="Base",VLOOKUP(AF28,Para_simu!$A$1:$I$55,8,FALSE),VLOOKUP(AF28,Para_simu!$A$1:$I$55,9,FALSE))))) ->  | AJ28: =IF(AE28="","",CEILING(AI28*'Simulation retraite'!$B$10/12,0.05)*12*(AG28/360)) ->  | AM28: =IF(AM27="","",IF(YEAR('Simulation retraite'!$B$24)-1=YEAR(AM27),'Simulation retraite'!$B$24,IF(YEAR('Simulation retraite'!$B$24)-1<YEAR(AM27),"",(EDATE(AM27,12))))) -> 1923-12-31 | AN28: =IF(AM28="","",YEAR(AM28)-YEAR('Simulation retraite'!$B$6)) -> -37 | AO28: 360 | AP28: =IF(AM28="","",IF(YEAR(AM28)=2020,CEILING(AQ27*Para_simu!$Q$3*AO28/360,0.05),IF(YEAR(AM28)=2021,CEILING(AQ27*Para_simu!$Q$4*AO28/360,0.05),IF(YEAR(AM28)=2022,CEILING(AQ27*Para_simu!$Q$5*AO28/360,0.05),CEILING(AQ27*'Simulation retraite'!$D$41*AO28/360,0.05))))) -> 0 | AQ28: 0
A29: =IF(A28="","",IF(YEAR('Simulation retraite'!$B$24)-1=YEAR(A28),'Simulation retraite'!$B$24,IF(YEAR('Simulation retraite'!$B$24)-1<YEAR(A28),"",(EDATE(A28,12))))) ->  | B29: =IF(A29="","",YEAR(A29)-YEAR('Simulation retraite'!$B$6)) ->  | D29: =IF(A29="","",IF(YEAR(A29)=2019,CEILING(Para_simu!$Q$2*H28*C29/360,0.05),IF(YEAR(A29)=2020,CEILING(H28*Para_simu!$Q$3*C29/360,0.05),IF(YEAR(A29)=2021,CEILING(H28*Para_simu!$Q$4*C29/360,0.05),IF(YEAR(A29)=2022,CEILING(H28*Para_simu!$Q$5*C29/360,0.05),CEILING(H28*'Simulation retraite'!$B$41*C29/360,0.05)))))) ->  | E29: =IF(A29="","",IF(OR('Simulation retraite'!$B$9="non",YEAR(A29)<=2021),IF(YEAR(A29)<2024,IF('Simulation retraite'!$B$8="Base",VLOOKUP(B29,Para_simu!$A$1:$I$55,2,FALSE),VLOOKUP(B29,Para_simu!$A$1:$I$55,3,FALSE)),IF('Simulation retraite'!$B$8="Base",VLOOKUP(B29,Para_simu!$A$1:$I$55,4,FALSE),VLOOKUP(B29,Para_simu!$A$1:$I$55,5,FALSE))),IF(YEAR(A29)<2024,IF('Simulation retraite'!$B$8="Base",VLOOKUP(B29,Para_simu!$A$1:$I$55,6,FALSE),VLOOKUP(B29,Para_simu!$A$1:$I$55,7,FALSE)),IF('Simulation retraite'!$B$8="Base",VLOOKUP(B29,Para_simu!$A$1:$I$55,8,FALSE),VLOOKUP(B29,Para_simu!$A$1:$I$55,9,FALSE))))) ->  | F29: =IF(A29="","",CEILING(E29*'Simulation retraite'!$B$10/12,0.05)*12*(C29/360)) ->  | I29: =IF(I28="","",IF(YEAR('Simulation retraite'!$B$24)-1=YEAR(I28),'Simulation retraite'!$B$24,IF(YEAR('Simulation retraite'!$B$24)-1<YEAR(I28),"",(EDATE(I28,12))))) -> 1924-12-31 | J29: =IF(I29="","",YEAR(I29)-YEAR('Simulation retraite'!$B$6)) -> -36 | K29: 360 | L29: =IF(I29="","",IF(YEAR(I29)=2020,CEILING(M28*Para_simu!$Q$3*K29/360,0.05),IF(YEAR(I29)=2021,CEILING(M28*Para_simu!$Q$4*K29/360,0.05),IF(YEAR(I29)=2022,CEILING(M28*Para_simu!$Q$5*K29/360,0.05),CEILING(M28*'Simulation retraite'!$B$41*K29/360,0.05))))) -> 0 | M29: 0 | P29: =IF(P28="","",IF(YEAR('Simulation retraite'!$B$24)-1=YEAR(P28),'Simulation retraite'!$B$24,IF(YEAR('Simulation retraite'!$B$24)-1<YEAR(P28),"",(EDATE(P28,12))))) ->  | Q29: =IF(P29="","",YEAR(P29)-YEAR('Simulation retraite'!$B$6)) ->  | S29: =IF(P29="","",IF(YEAR(P29)=2019,CEILING(Para_simu!$Q$2*W28*R29/360,0.05),IF(YEAR(P29)=2020,CEILING(W28*Para_simu!$Q$3*R29/360,0.05),IF(YEAR(P29)=2021,CEILING(W28*Para_simu!$Q$4*R29/360,0.05),IF(YEAR(P29)=2022,CEILING(W28*Para_simu!$Q$5*R29/360,0.05),CEILING(W28*'Simulation retraite'!$C$41*R29/360,0.05)))))) ->  | T29: =IF(P29="","",IF(OR('Simulation retraite'!$B$9="non",YEAR(P29)<=2021),IF(YEAR(P29)<2024,IF('Simulation retraite'!$B$8="Base",VLOOKUP(Q29,Para_simu!$A$1:$I$55,2,FALSE),VLOOKUP(Q29,Para_simu!$A$1:$I$55,3,FALSE)),IF('Simulation retraite'!$B$8="Base",VLOOKUP(Q29,Para_simu!$A$1:$I$55,4,FALSE),VLOOKUP(Q29,Para_simu!$A$1:$I$55,5,FALSE))),IF(YEAR(P29)<2024,IF('Simulation retraite'!$B$8="Base",VLOOKUP(Q29,Para_simu!$A$1:$I$55,6,FALSE),VLOOKUP(Q29,Para_simu!$A$1:$I$55,7,FALSE)),IF('Simulation retraite'!$B$8="Base",VLOOKUP(Q29,Para_simu!$A$1:$I$55,8,FALSE),VLOOKUP(Q29,Para_simu!$A$1:$I$55,9,FALSE))))) ->  | U29: =IF(P29="","",CEILING(T29*'Simulation retraite'!$B$10/12,0.05)*12*(R29/360)) ->  | X29: =IF(X28="","",IF(YEAR('Simulation retraite'!$B$24)-1=YEAR(X28),'Simulation retraite'!$B$24,IF(YEAR('Simulation retraite'!$B$24)-1<YEAR(X28),"",(EDATE(X28,12))))) -> 1924-12-31 | Y29: =IF(X29="","",YEAR(X29)-YEAR('Simulation retraite'!$B$6)) -> -36 | Z29: 360 | AA29: =IF(X29="","",IF(YEAR(X29)=2020,CEILING(AB28*Para_simu!$Q$3*Z29/360,0.05),IF(YEAR(X29)=2021,CEILING(AB28*Para_simu!$Q$4*Z29/360,0.05),IF(YEAR(X29)=2022,CEILING(AB28*Para_simu!$Q$5*Z29/360,0.05),CEILING(AB28*'Simulation retraite'!$C$41*Z29/360,0.05))))) -> 0 | AB29: 0 | AE29: =IF(AE28="","",IF(YEAR('Simulation retraite'!$B$24)-1=YEAR(AE28),'Simulation retraite'!$B$24,IF(YEAR('Simulation retraite'!$B$24)-1<YEAR(AE28),"",(EDATE(AE28,12))))) ->  | AF29: =IF(AE29="","",YEAR(AE29)-YEAR('Simulation retraite'!$B$6)) ->  | AH29: =IF(AE29="","",IF(YEAR(AE29)=2019,CEILING(Para_simu!$Q$2*AL28*AG29/360,0.05),IF(YEAR(AE29)=2020,CEILING(AL28*Para_simu!$Q$3*AG29/360,0.05),IF(YEAR(AE29)=2021,CEILING(AL28*Para_simu!$Q$4*AG29/360,0.05),IF(YEAR(AE29)=2022,CEILING(AL28*Para_simu!$Q$5*AG29/360,0.05),CEILING(AL28*'Simulation retraite'!$D$41*AG29/360,0.05)))))) ->  | AI29: =IF(AE29="","",IF(OR('Simulation retraite'!$B$9="non",YEAR(AE29)<=2021),IF(YEAR(AE29)<2024,IF('Simulation retraite'!$B$8="Base",VLOOKUP(AF29,Para_simu!$A$1:$I$55,2,FALSE),VLOOKUP(AF29,Para_simu!$A$1:$I$55,3,FALSE)),IF('Simulation retraite'!$B$8="Base",VLOOKUP(AF29,Para_simu!$A$1:$I$55,4,FALSE),VLOOKUP(AF29,Para_simu!$A$1:$I$55,5,FALSE))),IF(YEAR(AE29)<2024,IF('Simulation retraite'!$B$8="Base",VLOOKUP(AF29,Para_simu!$A$1:$I$55,6,FALSE),VLOOKUP(AF29,Para_simu!$A$1:$I$55,7,FALSE)),IF('Simulation retraite'!$B$8="Base",VLOOKUP(AF29,Para_simu!$A$1:$I$55,8,FALSE),VLOOKUP(AF29,Para_simu!$A$1:$I$55,9,FALSE))))) ->  | AJ29: =IF(AE29="","",CEILING(AI29*'Simulation retraite'!$B$10/12,0.05)*12*(AG29/360)) ->  | AM29: =IF(AM28="","",IF(YEAR('Simulation retraite'!$B$24)-1=YEAR(AM28),'Simulation retraite'!$B$24,IF(YEAR('Simulation retraite'!$B$24)-1<YEAR(AM28),"",(EDATE(AM28,12))))) -> 1924-12-31 | AN29: =IF(AM29="","",YEAR(AM29)-YEAR('Simulation retraite'!$B$6)) -> -36 | AO29: 360 | AP29: =IF(AM29="","",IF(YEAR(AM29)=2020,CEILING(AQ28*Para_simu!$Q$3*AO29/360,0.05),IF(YEAR(AM29)=2021,CEILING(AQ28*Para_simu!$Q$4*AO29/360,0.05),IF(YEAR(AM29)=2022,CEILING(AQ28*Para_simu!$Q$5*AO29/360,0.05),CEILING(AQ28*'Simulation retraite'!$D$41*AO29/360,0.05))))) -> 0 | AQ29: 0
A30: =IF(A29="","",IF(YEAR('Simulation retraite'!$B$24)-1=YEAR(A29),'Simulation retraite'!$B$24,IF(YEAR('Simulation retraite'!$B$24)-1<YEAR(A29),"",(EDATE(A29,12))))) ->  | B30: =IF(A30="","",YEAR(A30)-YEAR('Simulation retraite'!$B$6)) ->  | D30: =IF(A30="","",IF(YEAR(A30)=2019,CEILING(Para_simu!$Q$2*H29*C30/360,0.05),IF(YEAR(A30)=2020,CEILING(H29*Para_simu!$Q$3*C30/360,0.05),IF(YEAR(A30)=2021,CEILING(H29*Para_simu!$Q$4*C30/360,0.05),IF(YEAR(A30)=2022,CEILING(H29*Para_simu!$Q$5*C30/360,0.05),CEILING(H29*'Simulation retraite'!$B$41*C30/360,0.05)))))) ->  | E30: =IF(A30="","",IF(OR('Simulation retraite'!$B$9="non",YEAR(A30)<=2021),IF(YEAR(A30)<2024,IF('Simulation retraite'!$B$8="Base",VLOOKUP(B30,Para_simu!$A$1:$I$55,2,FALSE),VLOOKUP(B30,Para_simu!$A$1:$I$55,3,FALSE)),IF('Simulation retraite'!$B$8="Base",VLOOKUP(B30,Para_simu!$A$1:$I$55,4,FALSE),VLOOKUP(B30,Para_simu!$A$1:$I$55,5,FALSE))),IF(YEAR(A30)<2024,IF('Simulation retraite'!$B$8="Base",VLOOKUP(B30,Para_simu!$A$1:$I$55,6,FALSE),VLOOKUP(B30,Para_simu!$A$1:$I$55,7,FALSE)),IF('Simulation retraite'!$B$8="Base",VLOOKUP(B30,Para_simu!$A$1:$I$55,8,FALSE),VLOOKUP(B30,Para_simu!$A$1:$I$55,9,FALSE))))) ->  | F30: =IF(A30="","",CEILING(E30*'Simulation retraite'!$B$10/12,0.05)*12*(C30/360)) ->  | I30: =IF(I29="","",IF(YEAR('Simulation retraite'!$B$24)-1=YEAR(I29),'Simulation retraite'!$B$24,IF(YEAR('Simulation retraite'!$B$24)-1<YEAR(I29),"",(EDATE(I29,12))))) -> 1925-12-31 | J30: =IF(I30="","",YEAR(I30)-YEAR('Simulation retraite'!$B$6)) -> -35 | K30: 360 | L30: =IF(I30="","",IF(YEAR(I30)=2020,CEILING(M29*Para_simu!$Q$3*K30/360,0.05),IF(YEAR(I30)=2021,CEILING(M29*Para_simu!$Q$4*K30/360,0.05),IF(YEAR(I30)=2022,CEILING(M29*Para_simu!$Q$5*K30/360,0.05),CEILING(M29*'Simulation retraite'!$B$41*K30/360,0.05))))) -> 0 | M30: 0 | P30: =IF(P29="","",IF(YEAR('Simulation retraite'!$B$24)-1=YEAR(P29),'Simulation retraite'!$B$24,IF(YEAR('Simulation retraite'!$B$24)-1<YEAR(P29),"",(EDATE(P29,12))))) ->  | Q30: =IF(P30="","",YEAR(P30)-YEAR('Simulation retraite'!$B$6)) ->  | S30: =IF(P30="","",IF(YEAR(P30)=2019,CEILING(Para_simu!$Q$2*W29*R30/360,0.05),IF(YEAR(P30)=2020,CEILING(W29*Para_simu!$Q$3*R30/360,0.05),IF(YEAR(P30)=2021,CEILING(W29*Para_simu!$Q$4*R30/360,0.05),IF(YEAR(P30)=2022,CEILING(W29*Para_simu!$Q$5*R30/360,0.05),CEILING(W29*'Simulation retraite'!$C$41*R30/360,0.05)))))) ->  | T30: =IF(P30="","",IF(OR('Simulation retraite'!$B$9="non",YEAR(P30)<=2021),IF(YEAR(P30)<2024,IF('Simulation retraite'!$B$8="Base",VLOOKUP(Q30,Para_simu!$A$1:$I$55,2,FALSE),VLOOKUP(Q30,Para_simu!$A$1:$I$55,3,FALSE)),IF('Simulation retraite'!$B$8="Base",VLOOKUP(Q30,Para_simu!$A$1:$I$55,4,FALSE),VLOOKUP(Q30,Para_simu!$A$1:$I$55,5,FALSE))),IF(YEAR(P30)<2024,IF('Simulation retraite'!$B$8="Base",VLOOKUP(Q30,Para_simu!$A$1:$I$55,6,FALSE),VLOOKUP(Q30,Para_simu!$A$1:$I$55,7,FALSE)),IF('Simulation retraite'!$B$8="Base",VLOOKUP(Q30,Para_simu!$A$1:$I$55,8,FALSE),VLOOKUP(Q30,Para_simu!$A$1:$I$55,9,FALSE))))) ->  | U30: =IF(P30="","",CEILING(T30*'Simulation retraite'!$B$10/12,0.05)*12*(R30/360)) ->  | X30: =IF(X29="","",IF(YEAR('Simulation retraite'!$B$24)-1=YEAR(X29),'Simulation retraite'!$B$24,IF(YEAR('Simulation retraite'!$B$24)-1<YEAR(X29),"",(EDATE(X29,12))))) -> 1925-12-31 | Y30: =IF(X30="","",YEAR(X30)-YEAR('Simulation retraite'!$B$6)) -> -35 | Z30: 360 | AA30: =IF(X30="","",IF(YEAR(X30)=2020,CEILING(AB29*Para_simu!$Q$3*Z30/360,0.05),IF(YEAR(X30)=2021,CEILING(AB29*Para_simu!$Q$4*Z30/360,0.05),IF(YEAR(X30)=2022,CEILING(AB29*Para_simu!$Q$5*Z30/360,0.05),CEILING(AB29*'Simulation retraite'!$C$41*Z30/360,0.05))))) -> 0 | AB30: 0 | AE30: =IF(AE29="","",IF(YEAR('Simulation retraite'!$B$24)-1=YEAR(AE29),'Simulation retraite'!$B$24,IF(YEAR('Simulation retraite'!$B$24)-1<YEAR(AE29),"",(EDATE(AE29,12))))) ->  | AF30: =IF(AE30="","",YEAR(AE30)-YEAR('Simulation retraite'!$B$6)) ->  | AH30: =IF(AE30="","",IF(YEAR(AE30)=2019,CEILING(Para_simu!$Q$2*AL29*AG30/360,0.05),IF(YEAR(AE30)=2020,CEILING(AL29*Para_simu!$Q$3*AG30/360,0.05),IF(YEAR(AE30)=2021,CEILING(AL29*Para_simu!$Q$4*AG30/360,0.05),IF(YEAR(AE30)=2022,CEILING(AL29*Para_simu!$Q$5*AG30/360,0.05),CEILING(AL29*'Simulation retraite'!$D$41*AG30/360,0.05)))))) ->  | AI30: =IF(AE30="","",IF(OR('Simulation retraite'!$B$9="non",YEAR(AE30)<=2021),IF(YEAR(AE30)<2024,IF('Simulation retraite'!$B$8="Base",VLOOKUP(AF30,Para_simu!$A$1:$I$55,2,FALSE),VLOOKUP(AF30,Para_simu!$A$1:$I$55,3,FALSE)),IF('Simulation retraite'!$B$8="Base",VLOOKUP(AF30,Para_simu!$A$1:$I$55,4,FALSE),VLOOKUP(AF30,Para_simu!$A$1:$I$55,5,FALSE))),IF(YEAR(AE30)<2024,IF('Simulation retraite'!$B$8="Base",VLOOKUP(AF30,Para_simu!$A$1:$I$55,6,FALSE),VLOOKUP(AF30,Para_simu!$A$1:$I$55,7,FALSE)),IF('Simulation retraite'!$B$8="Base",VLOOKUP(AF30,Para_simu!$A$1:$I$55,8,FALSE),VLOOKUP(AF30,Para_simu!$A$1:$I$55,9,FALSE))))) ->  | AJ30: =IF(AE30="","",CEILING(AI30*'Simulation retraite'!$B$10/12,0.05)*12*(AG30/360)) ->  | AM30: =IF(AM29="","",IF(YEAR('Simulation retraite'!$B$24)-1=YEAR(AM29),'Simulation retraite'!$B$24,IF(YEAR('Simulation retraite'!$B$24)-1<YEAR(AM29),"",(EDATE(AM29,12))))) -> 1925-12-31 | AN30: =IF(AM30="","",YEAR(AM30)-YEAR('Simulation retraite'!$B$6)) -> -35 | AO30: 360 | AP30: =IF(AM30="","",IF(YEAR(AM30)=2020,CEILING(AQ29*Para_simu!$Q$3*AO30/360,0.05),IF(YEAR(AM30)=2021,CEILING(AQ29*Para_simu!$Q$4*AO30/360,0.05),IF(YEAR(AM30)=2022,CEILING(AQ29*Para_simu!$Q$5*AO30/360,0.05),CEILING(AQ29*'Simulation retraite'!$D$41*AO30/360,0.05))))) -> 0 | AQ30: 0
A31: =IF(A30="","",IF(YEAR('Simulation retraite'!$B$24)-1=YEAR(A30),'Simulation retraite'!$B$24,IF(YEAR('Simulation retraite'!$B$24)-1<YEAR(A30),"",(EDATE(A30,12))))) ->  | B31: =IF(A31="","",YEAR(A31)-YEAR('Simulation retraite'!$B$6)) ->  | D31: =IF(A31="","",IF(YEAR(A31)=2019,CEILING(Para_simu!$Q$2*H30*C31/360,0.05),IF(YEAR(A31)=2020,CEILING(H30*Para_simu!$Q$3*C31/360,0.05),IF(YEAR(A31)=2021,CEILING(H30*Para_simu!$Q$4*C31/360,0.05),IF(YEAR(A31)=2022,CEILING(H30*Para_simu!$Q$5*C31/360,0.05),CEILING(H30*'Simulation retraite'!$B$41*C31/360,0.05)))))) ->  | E31: =IF(A31="","",IF(OR('Simulation retraite'!$B$9="non",YEAR(A31)<=2021),IF(YEAR(A31)<2024,IF('Simulation retraite'!$B$8="Base",VLOOKUP(B31,Para_simu!$A$1:$I$55,2,FALSE),VLOOKUP(B31,Para_simu!$A$1:$I$55,3,FALSE)),IF('Simulation retraite'!$B$8="Base",VLOOKUP(B31,Para_simu!$A$1:$I$55,4,FALSE),VLOOKUP(B31,Para_simu!$A$1:$I$55,5,FALSE))),IF(YEAR(A31)<2024,IF('Simulation retraite'!$B$8="Base",VLOOKUP(B31,Para_simu!$A$1:$I$55,6,FALSE),VLOOKUP(B31,Para_simu!$A$1:$I$55,7,FALSE)),IF('Simulation retraite'!$B$8="Base",VLOOKUP(B31,Para_simu!$A$1:$I$55,8,FALSE),VLOOKUP(B31,Para_simu!$A$1:$I$55,9,FALSE))))) ->  | F31: =IF(A31="","",CEILING(E31*'Simulation retraite'!$B$10/12,0.05)*12*(C31/360)) ->  | I31: =IF(I30="","",IF(YEAR('Simulation retraite'!$B$24)-1=YEAR(I30),'Simulation retraite'!$B$24,IF(YEAR('Simulation retraite'!$B$24)-1<YEAR(I30),"",(EDATE(I30,12))))) -> 1926-12-31 | J31: =IF(I31="","",YEAR(I31)-YEAR('Simulation retraite'!$B$6)) -> -34 | K31: 360 | L31: =IF(I31="","",IF(YEAR(I31)=2020,CEILING(M30*Para_simu!$Q$3*K31/360,0.05),IF(YEAR(I31)=2021,CEILING(M30*Para_simu!$Q$4*K31/360,0.05),IF(YEAR(I31)=2022,CEILING(M30*Para_simu!$Q$5*K31/360,0.05),CEILING(M30*'Simulation retraite'!$B$41*K31/360,0.05))))) -> 0 | M31: 0 | P31: =IF(P30="","",IF(YEAR('Simulation retraite'!$B$24)-1=YEAR(P30),'Simulation retraite'!$B$24,IF(YEAR('Simulation retraite'!$B$24)-1<YEAR(P30),"",(EDATE(P30,12))))) ->  | Q31: =IF(P31="","",YEAR(P31)-YEAR('Simulation retraite'!$B$6)) ->  | S31: =IF(P31="","",IF(YEAR(P31)=2019,CEILING(Para_simu!$Q$2*W30*R31/360,0.05),IF(YEAR(P31)=2020,CEILING(W30*Para_simu!$Q$3*R31/360,0.05),IF(YEAR(P31)=2021,CEILING(W30*Para_simu!$Q$4*R31/360,0.05),IF(YEAR(P31)=2022,CEILING(W30*Para_simu!$Q$5*R31/360,0.05),CEILING(W30*'Simulation retraite'!$C$41*R31/360,0.05)))))) ->  | T31: =IF(P31="","",IF(OR('Simulation retraite'!$B$9="non",YEAR(P31)<=2021),IF(YEAR(P31)<2024,IF('Simulation retraite'!$B$8="Base",VLOOKUP(Q31,Para_simu!$A$1:$I$55,2,FALSE),VLOOKUP(Q31,Para_simu!$A$1:$I$55,3,FALSE)),IF('Simulation retraite'!$B$8="Base",VLOOKUP(Q31,Para_simu!$A$1:$I$55,4,FALSE),VLOOKUP(Q31,Para_simu!$A$1:$I$55,5,FALSE))),IF(YEAR(P31)<2024,IF('Simulation retraite'!$B$8="Base",VLOOKUP(Q31,Para_simu!$A$1:$I$55,6,FALSE),VLOOKUP(Q31,Para_simu!$A$1:$I$55,7,FALSE)),IF('Simulation retraite'!$B$8="Base",VLOOKUP(Q31,Para_simu!$A$1:$I$55,8,FALSE),VLOOKUP(Q31,Para_simu!$A$1:$I$55,9,FALSE))))) ->  | U31: =IF(P31="","",CEILING(T31*'Simulation retraite'!$B$10/12,0.05)*12*(R31/360)) ->  | X31: =IF(X30="","",IF(YEAR('Simulation retraite'!$B$24)-1=YEAR(X30),'Simulation retraite'!$B$24,IF(YEAR('Simulation retraite'!$B$24)-1<YEAR(X30),"",(EDATE(X30,12))))) -> 1926-12-31 | Y31: =IF(X31="","",YEAR(X31)-YEAR('Simulation retraite'!$B$6)) -> -34 | Z31: 360 | AA31: =IF(X31="","",IF(YEAR(X31)=2020,CEILING(AB30*Para_simu!$Q$3*Z31/360,0.05),IF(YEAR(X31)=2021,CEILING(AB30*Para_simu!$Q$4*Z31/360,0.05),IF(YEAR(X31)=2022,CEILING(AB30*Para_simu!$Q$5*Z31/360,0.05),CEILING(AB30*'Simulation retraite'!$C$41*Z31/360,0.05))))) -> 0 | AB31: 0 | AE31: =IF(AE30="","",IF(YEAR('Simulation retraite'!$B$24)-1=YEAR(AE30),'Simulation retraite'!$B$24,IF(YEAR('Simulation retraite'!$B$24)-1<YEAR(AE30),"",(EDATE(AE30,12))))) ->  | AF31: =IF(AE31="","",YEAR(AE31)-YEAR('Simulation retraite'!$B$6)) ->  | AH31: =IF(AE31="","",IF(YEAR(AE31)=2019,CEILING(Para_simu!$Q$2*AL30*AG31/360,0.05),IF(YEAR(AE31)=2020,CEILING(AL30*Para_simu!$Q$3*AG31/360,0.05),IF(YEAR(AE31)=2021,CEILING(AL30*Para_simu!$Q$4*AG31/360,0.05),IF(YEAR(AE31)=2022,CEILING(AL30*Para_simu!$Q$5*AG31/360,0.05),CEILING(AL30*'Simulation retraite'!$D$41*AG31/360,0.05)))))) ->  | AI31: =IF(AE31="","",IF(OR('Simulation retraite'!$B$9="non",YEAR(AE31)<=2021),IF(YEAR(AE31)<2024,IF('Simulation retraite'!$B$8="Base",VLOOKUP(AF31,Para_simu!$A$1:$I$55,2,FALSE),VLOOKUP(AF31,Para_simu!$A$1:$I$55,3,FALSE)),IF('Simulation retraite'!$B$8="Base",VLOOKUP(AF31,Para_simu!$A$1:$I$55,4,FALSE),VLOOKUP(AF31,Para_simu!$A$1:$I$55,5,FALSE))),IF(YEAR(AE31)<2024,IF('Simulation retraite'!$B$8="Base",VLOOKUP(AF31,Para_simu!$A$1:$I$55,6,FALSE),VLOOKUP(AF31,Para_simu!$A$1:$I$55,7,FALSE)),IF('Simulation retraite'!$B$8="Base",VLOOKUP(AF31,Para_simu!$A$1:$I$55,8,FALSE),VLOOKUP(AF31,Para_simu!$A$1:$I$55,9,FALSE))))) ->  | AJ31: =IF(AE31="","",CEILING(AI31*'Simulation retraite'!$B$10/12,0.05)*12*(AG31/360)) ->  | AM31: =IF(AM30="","",IF(YEAR('Simulation retraite'!$B$24)-1=YEAR(AM30),'Simulation retraite'!$B$24,IF(YEAR('Simulation retraite'!$B$24)-1<YEAR(AM30),"",(EDATE(AM30,12))))) -> 1926-12-31 | AN31: =IF(AM31="","",YEAR(AM31)-YEAR('Simulation retraite'!$B$6)) -> -34 | AO31: 360 | AP31: =IF(AM31="","",IF(YEAR(AM31)=2020,CEILING(AQ30*Para_simu!$Q$3*AO31/360,0.05),IF(YEAR(AM31)=2021,CEILING(AQ30*Para_simu!$Q$4*AO31/360,0.05),IF(YEAR(AM31)=2022,CEILING(AQ30*Para_simu!$Q$5*AO31/360,0.05),CEILING(AQ30*'Simulation retraite'!$D$41*AO31/360,0.05))))) -> 0 | AQ31: 0
A32: =IF(A31="","",IF(YEAR('Simulation retraite'!$B$24)-1=YEAR(A31),'Simulation retraite'!$B$24,IF(YEAR('Simulation retraite'!$B$24)-1<YEAR(A31),"",(EDATE(A31,12))))) ->  | B32: =IF(A32="","",YEAR(A32)-YEAR('Simulation retraite'!$B$6)) ->  | D32: =IF(A32="","",IF(YEAR(A32)=2019,CEILING(Para_simu!$Q$2*H31*C32/360,0.05),IF(YEAR(A32)=2020,CEILING(H31*Para_simu!$Q$3*C32/360,0.05),IF(YEAR(A32)=2021,CEILING(H31*Para_simu!$Q$4*C32/360,0.05),IF(YEAR(A32)=2022,CEILING(H31*Para_simu!$Q$5*C32/360,0.05),CEILING(H31*'Simulation retraite'!$B$41*C32/360,0.05)))))) ->  | E32: =IF(A32="","",IF(OR('Simulation retraite'!$B$9="non",YEAR(A32)<=2021),IF(YEAR(A32)<2024,IF('Simulation retraite'!$B$8="Base",VLOOKUP(B32,Para_simu!$A$1:$I$55,2,FALSE),VLOOKUP(B32,Para_simu!$A$1:$I$55,3,FALSE)),IF('Simulation retraite'!$B$8="Base",VLOOKUP(B32,Para_simu!$A$1:$I$55,4,FALSE),VLOOKUP(B32,Para_simu!$A$1:$I$55,5,FALSE))),IF(YEAR(A32)<2024,IF('Simulation retraite'!$B$8="Base",VLOOKUP(B32,Para_simu!$A$1:$I$55,6,FALSE),VLOOKUP(B32,Para_simu!$A$1:$I$55,7,FALSE)),IF('Simulation retraite'!$B$8="Base",VLOOKUP(B32,Para_simu!$A$1:$I$55,8,FALSE),VLOOKUP(B32,Para_simu!$A$1:$I$55,9,FALSE))))) ->  | F32: =IF(A32="","",CEILING(E32*'Simulation retraite'!$B$10/12,0.05)*12*(C32/360)) ->  | I32: =IF(I31="","",IF(YEAR('Simulation retraite'!$B$24)-1=YEAR(I31),'Simulation retraite'!$B$24,IF(YEAR('Simulation retraite'!$B$24)-1<YEAR(I31),"",(EDATE(I31,12))))) -> 1927-12-31 | J32: =IF(I32="","",YEAR(I32)-YEAR('Simulation retraite'!$B$6)) -> -33 | K32: 360 | L32: =IF(I32="","",IF(YEAR(I32)=2020,CEILING(M31*Para_simu!$Q$3*K32/360,0.05),IF(YEAR(I32)=2021,CEILING(M31*Para_simu!$Q$4*K32/360,0.05),IF(YEAR(I32)=2022,CEILING(M31*Para_simu!$Q$5*K32/360,0.05),CEILING(M31*'Simulation retraite'!$B$41*K32/360,0.05))))) -> 0 | M32: 0 | P32: =IF(P31="","",IF(YEAR('Simulation retraite'!$B$24)-1=YEAR(P31),'Simulation retraite'!$B$24,IF(YEAR('Simulation retraite'!$B$24)-1<YEAR(P31),"",(EDATE(P31,12))))) ->  | Q32: =IF(P32="","",YEAR(P32)-YEAR('Simulation retraite'!$B$6)) ->  | S32: =IF(P32="","",IF(YEAR(P32)=2019,CEILING(Para_simu!$Q$2*W31*R32/360,0.05),IF(YEAR(P32)=2020,CEILING(W31*Para_simu!$Q$3*R32/360,0.05),IF(YEAR(P32)=2021,CEILING(W31*Para_simu!$Q$4*R32/360,0.05),IF(YEAR(P32)=2022,CEILING(W31*Para_simu!$Q$5*R32/360,0.05),CEILING(W31*'Simulation retraite'!$C$41*R32/360,0.05)))))) ->  | T32: =IF(P32="","",IF(OR('Simulation retraite'!$B$9="non",YEAR(P32)<=2021),IF(YEAR(P32)<2024,IF('Simulation retraite'!$B$8="Base",VLOOKUP(Q32,Para_simu!$A$1:$I$55,2,FALSE),VLOOKUP(Q32,Para_simu!$A$1:$I$55,3,FALSE)),IF('Simulation retraite'!$B$8="Base",VLOOKUP(Q32,Para_simu!$A$1:$I$55,4,FALSE),VLOOKUP(Q32,Para_simu!$A$1:$I$55,5,FALSE))),IF(YEAR(P32)<2024,IF('Simulation retraite'!$B$8="Base",VLOOKUP(Q32,Para_simu!$A$1:$I$55,6,FALSE),VLOOKUP(Q32,Para_simu!$A$1:$I$55,7,FALSE)),IF('Simulation retraite'!$B$8="Base",VLOOKUP(Q32,Para_simu!$A$1:$I$55,8,FALSE),VLOOKUP(Q32,Para_simu!$A$1:$I$55,9,FALSE))))) ->  | U32: =IF(P32="","",CEILING(T32*'Simulation retraite'!$B$10/12,0.05)*12*(R32/360)) ->  | X32: =IF(X31="","",IF(YEAR('Simulation retraite'!$B$24)-1=YEAR(X31),'Simulation retraite'!$B$24,IF(YEAR('Simulation retraite'!$B$24)-1<YEAR(X31),"",(EDATE(X31,12))))) -> 1927-12-31 | Y32: =IF(X32="","",YEAR(X32)-YEAR('Simulation retraite'!$B$6)) -> -33 | Z32: 360 | AA32: =IF(X32="","",IF(YEAR(X32)=2020,CEILING(AB31*Para_simu!$Q$3*Z32/360,0.05),IF(YEAR(X32)=2021,CEILING(AB31*Para_simu!$Q$4*Z32/360,0.05),IF(YEAR(X32)=2022,CEILING(AB31*Para_simu!$Q$5*Z32/360,0.05),CEILING(AB31*'Simulation retraite'!$C$41*Z32/360,0.05))))) -> 0 | AB32: 0 | AE32: =IF(AE31="","",IF(YEAR('Simulation retraite'!$B$24)-1=YEAR(AE31),'Simulation retraite'!$B$24,IF(YEAR('Simulation retraite'!$B$24)-1<YEAR(AE31),"",(EDATE(AE31,12))))) ->  | AF32: =IF(AE32="","",YEAR(AE32)-YEAR('Simulation retraite'!$B$6)) ->  | AH32: =IF(AE32="","",IF(YEAR(AE32)=2019,CEILING(Para_simu!$Q$2*AL31*AG32/360,0.05),IF(YEAR(AE32)=2020,CEILING(AL31*Para_simu!$Q$3*AG32/360,0.05),IF(YEAR(AE32)=2021,CEILING(AL31*Para_simu!$Q$4*AG32/360,0.05),IF(YEAR(AE32)=2022,CEILING(AL31*Para_simu!$Q$5*AG32/360,0.05),CEILING(AL31*'Simulation retraite'!$D$41*AG32/360,0.05)))))) ->  | AI32: =IF(AE32="","",IF(OR('Simulation retraite'!$B$9="non",YEAR(AE32)<=2021),IF(YEAR(AE32)<2024,IF('Simulation retraite'!$B$8="Base",VLOOKUP(AF32,Para_simu!$A$1:$I$55,2,FALSE),VLOOKUP(AF32,Para_simu!$A$1:$I$55,3,FALSE)),IF('Simulation retraite'!$B$8="Base",VLOOKUP(AF32,Para_simu!$A$1:$I$55,4,FALSE),VLOOKUP(AF32,Para_simu!$A$1:$I$55,5,FALSE))),IF(YEAR(AE32)<2024,IF('Simulation retraite'!$B$8="Base",VLOOKUP(AF32,Para_simu!$A$1:$I$55,6,FALSE),VLOOKUP(AF32,Para_simu!$A$1:$I$55,7,FALSE)),IF('Simulation retraite'!$B$8="Base",VLOOKUP(AF32,Para_simu!$A$1:$I$55,8,FALSE),VLOOKUP(AF32,Para_simu!$A$1:$I$55,9,FALSE))))) ->  | AJ32: =IF(AE32="","",CEILING(AI32*'Simulation retraite'!$B$10/12,0.05)*12*(AG32/360)) ->  | AM32: =IF(AM31="","",IF(YEAR('Simulation retraite'!$B$24)-1=YEAR(AM31),'Simulation retraite'!$B$24,IF(YEAR('Simulation retraite'!$B$24)-1<YEAR(AM31),"",(EDATE(AM31,12))))) -> 1927-12-31 | AN32: =IF(AM32="","",YEAR(AM32)-YEAR('Simulation retraite'!$B$6)) -> -33 | AO32: 360 | AP32: =IF(AM32="","",IF(YEAR(AM32)=2020,CEILING(AQ31*Para_simu!$Q$3*AO32/360,0.05),IF(YEAR(AM32)=2021,CEILING(AQ31*Para_simu!$Q$4*AO32/360,0.05),IF(YEAR(AM32)=2022,CEILING(AQ31*Para_simu!$Q$5*AO32/360,0.05),CEILING(AQ31*'Simulation retraite'!$D$41*AO32/360,0.05))))) -> 0 | AQ32: 0
A33: =IF(A32="","",IF(YEAR('Simulation retraite'!$B$24)-1=YEAR(A32),'Simulation retraite'!$B$24,IF(YEAR('Simulation retraite'!$B$24)-1<YEAR(A32),"",(EDATE(A32,12))))) ->  | B33: =IF(A33="","",YEAR(A33)-YEAR('Simulation retraite'!$B$6)) ->  | D33: =IF(A33="","",IF(YEAR(A33)=2019,CEILING(Para_simu!$Q$2*H32*C33/360,0.05),IF(YEAR(A33)=2020,CEILING(H32*Para_simu!$Q$3*C33/360,0.05),IF(YEAR(A33)=2021,CEILING(H32*Para_simu!$Q$4*C33/360,0.05),IF(YEAR(A33)=2022,CEILING(H32*Para_simu!$Q$5*C33/360,0.05),CEILING(H32*'Simulation retraite'!$B$41*C33/360,0.05)))))) ->  | E33: =IF(A33="","",IF(OR('Simulation retraite'!$B$9="non",YEAR(A33)<=2021),IF(YEAR(A33)<2024,IF('Simulation retraite'!$B$8="Base",VLOOKUP(B33,Para_simu!$A$1:$I$55,2,FALSE),VLOOKUP(B33,Para_simu!$A$1:$I$55,3,FALSE)),IF('Simulation retraite'!$B$8="Base",VLOOKUP(B33,Para_simu!$A$1:$I$55,4,FALSE),VLOOKUP(B33,Para_simu!$A$1:$I$55,5,FALSE))),IF(YEAR(A33)<2024,IF('Simulation retraite'!$B$8="Base",VLOOKUP(B33,Para_simu!$A$1:$I$55,6,FALSE),VLOOKUP(B33,Para_simu!$A$1:$I$55,7,FALSE)),IF('Simulation retraite'!$B$8="Base",VLOOKUP(B33,Para_simu!$A$1:$I$55,8,FALSE),VLOOKUP(B33,Para_simu!$A$1:$I$55,9,FALSE))))) ->  | F33: =IF(A33="","",CEILING(E33*'Simulation retraite'!$B$10/12,0.05)*12*(C33/360)) ->  | I33: =IF(I32="","",IF(YEAR('Simulation retraite'!$B$24)-1=YEAR(I32),'Simulation retraite'!$B$24,IF(YEAR('Simulation retraite'!$B$24)-1<YEAR(I32),"",(EDATE(I32,12))))) -> 1928-12-31 | J33: =IF(I33="","",YEAR(I33)-YEAR('Simulation retraite'!$B$6)) -> -32 | K33: 360 | L33: =IF(I33="","",IF(YEAR(I33)=2020,CEILING(M32*Para_simu!$Q$3*K33/360,0.05),IF(YEAR(I33)=2021,CEILING(M32*Para_simu!$Q$4*K33/360,0.05),IF(YEAR(I33)=2022,CEILING(M32*Para_simu!$Q$5*K33/360,0.05),CEILING(M32*'Simulation retraite'!$B$41*K33/360,0.05))))) -> 0 | M33: 0 | P33: =IF(P32="","",IF(YEAR('Simulation retraite'!$B$24)-1=YEAR(P32),'Simulation retraite'!$B$24,IF(YEAR('Simulation retraite'!$B$24)-1<YEAR(P32),"",(EDATE(P32,12))))) ->  | Q33: =IF(P33="","",YEAR(P33)-YEAR('Simulation retraite'!$B$6)) ->  | S33: =IF(P33="","",IF(YEAR(P33)=2019,CEILING(Para_simu!$Q$2*W32*R33/360,0.05),IF(YEAR(P33)=2020,CEILING(W32*Para_simu!$Q$3*R33/360,0.05),IF(YEAR(P33)=2021,CEILING(W32*Para_simu!$Q$4*R33/360,0.05),IF(YEAR(P33)=2022,CEILING(W32*Para_simu!$Q$5*R33/360,0.05),CEILING(W32*'Simulation retraite'!$C$41*R33/360,0.05)))))) ->  | T33: =IF(P33="","",IF(OR('Simulation retraite'!$B$9="non",YEAR(P33)<=2021),IF(YEAR(P33)<2024,IF('Simulation retraite'!$B$8="Base",VLOOKUP(Q33,Para_simu!$A$1:$I$55,2,FALSE),VLOOKUP(Q33,Para_simu!$A$1:$I$55,3,FALSE)),IF('Simulation retraite'!$B$8="Base",VLOOKUP(Q33,Para_simu!$A$1:$I$55,4,FALSE),VLOOKUP(Q33,Para_simu!$A$1:$I$55,5,FALSE))),IF(YEAR(P33)<2024,IF('Simulation retraite'!$B$8="Base",VLOOKUP(Q33,Para_simu!$A$1:$I$55,6,FALSE),VLOOKUP(Q33,Para_simu!$A$1:$I$55,7,FALSE)),IF('Simulation retraite'!$B$8="Base",VLOOKUP(Q33,Para_simu!$A$1:$I$55,8,FALSE),VLOOKUP(Q33,Para_simu!$A$1:$I$55,9,FALSE))))) ->  | U33: =IF(P33="","",CEILING(T33*'Simulation retraite'!$B$10/12,0.05)*12*(R33/360)) ->  | X33: =IF(X32="","",IF(YEAR('Simulation retraite'!$B$24)-1=YEAR(X32),'Simulation retraite'!$B$24,IF(YEAR('Simulation retraite'!$B$24)-1<YEAR(X32),"",(EDATE(X32,12))))) -> 1928-12-31 | Y33: =IF(X33="","",YEAR(X33)-YEAR('Simulation retraite'!$B$6)) -> -32 | Z33: 360 | AA33: =IF(X33="","",IF(YEAR(X33)=2020,CEILING(AB32*Para_simu!$Q$3*Z33/360,0.05),IF(YEAR(X33)=2021,CEILING(AB32*Para_simu!$Q$4*Z33/360,0.05),IF(YEAR(X33)=2022,CEILING(AB32*Para_simu!$Q$5*Z33/360,0.05),CEILING(AB32*'Simulation retraite'!$C$41*Z33/360,0.05))))) -> 0 | AB33: 0 | AE33: =IF(AE32="","",IF(YEAR('Simulation retraite'!$B$24)-1=YEAR(AE32),'Simulation retraite'!$B$24,IF(YEAR('Simulation retraite'!$B$24)-1<YEAR(AE32),"",(EDATE(AE32,12))))) ->  | AF33: =IF(AE33="","",YEAR(AE33)-YEAR('Simulation retraite'!$B$6)) ->  | AH33: =IF(AE33="","",IF(YEAR(AE33)=2019,CEILING(Para_simu!$Q$2*AL32*AG33/360,0.05),IF(YEAR(AE33)=2020,CEILING(AL32*Para_simu!$Q$3*AG33/360,0.05),IF(YEAR(AE33)=2021,CEILING(AL32*Para_simu!$Q$4*AG33/360,0.05),IF(YEAR(AE33)=2022,CEILING(AL32*Para_simu!$Q$5*AG33/360,0.05),CEILING(AL32*'Simulation retraite'!$D$41*AG33/360,0.05)))))) ->  | AI33: =IF(AE33="","",IF(OR('Simulation retraite'!$B$9="non",YEAR(AE33)<=2021),IF(YEAR(AE33)<2024,IF('Simulation retraite'!$B$8="Base",VLOOKUP(AF33,Para_simu!$A$1:$I$55,2,FALSE),VLOOKUP(AF33,Para_simu!$A$1:$I$55,3,FALSE)),IF('Simulation retraite'!$B$8="Base",VLOOKUP(AF33,Para_simu!$A$1:$I$55,4,FALSE),VLOOKUP(AF33,Para_simu!$A$1:$I$55,5,FALSE))),IF(YEAR(AE33)<2024,IF('Simulation retraite'!$B$8="Base",VLOOKUP(AF33,Para_simu!$A$1:$I$55,6,FALSE),VLOOKUP(AF33,Para_simu!$A$1:$I$55,7,FALSE)),IF('Simulation retraite'!$B$8="Base",VLOOKUP(AF33,Para_simu!$A$1:$I$55,8,FALSE),VLOOKUP(AF33,Para_simu!$A$1:$I$55,9,FALSE))))) ->  | AJ33: =IF(AE33="","",CEILING(AI33*'Simulation retraite'!$B$10/12,0.05)*12*(AG33/360)) ->  | AM33: =IF(AM32="","",IF(YEAR('Simulation retraite'!$B$24)-1=YEAR(AM32),'Simulation retraite'!$B$24,IF(YEAR('Simulation retraite'!$B$24)-1<YEAR(AM32),"",(EDATE(AM32,12))))) -> 1928-12-31 | AN33: =IF(AM33="","",YEAR(AM33)-YEAR('Simulation retraite'!$B$6)) -> -32 | AO33: 360 | AP33: =IF(AM33="","",IF(YEAR(AM33)=2020,CEILING(AQ32*Para_simu!$Q$3*AO33/360,0.05),IF(YEAR(AM33)=2021,CEILING(AQ32*Para_simu!$Q$4*AO33/360,0.05),IF(YEAR(AM33)=2022,CEILING(AQ32*Para_simu!$Q$5*AO33/360,0.05),CEILING(AQ32*'Simulation retraite'!$D$41*AO33/360,0.05))))) -> 0 | AQ33: 0
A34: =IF(A33="","",IF(YEAR('Simulation retraite'!$B$24)-1=YEAR(A33),'Simulation retraite'!$B$24,IF(YEAR('Simulation retraite'!$B$24)-1<YEAR(A33),"",(EDATE(A33,12))))) ->  | B34: =IF(A34="","",YEAR(A34)-YEAR('Simulation retraite'!$B$6)) ->  | C34: =IF(A34="","",IF(DAY(A34)=1,DAYS360(A33,A34)-1,DAYS360(A33,A34))) ->  | D34: =IF(A34="","",IF(YEAR(A34)=2019,CEILING(Para_simu!$Q$2*H33*C34/360,0.05),IF(YEAR(A34)=2020,CEILING(H33*Para_simu!$Q$3*C34/360,0.05),IF(YEAR(A34)=2021,CEILING(H33*Para_simu!$Q$4*C34/360,0.05),IF(YEAR(A34)=2022,CEILING(H33*Para_simu!$Q$5*C34/360,0.05),CEILING(H33*'Simulation retraite'!$B$41*C34/360,0.05)))))) ->  | E34: =IF(A34="","",IF(OR('Simulation retraite'!$B$9="non",YEAR(A34)<=2021),IF(YEAR(A34)<2024,IF('Simulation retraite'!$B$8="Base",VLOOKUP(B34,Para_simu!$A$1:$I$55,2,FALSE),VLOOKUP(B34,Para_simu!$A$1:$I$55,3,FALSE)),IF('Simulation retraite'!$B$8="Base",VLOOKUP(B34,Para_simu!$A$1:$I$55,4,FALSE),VLOOKUP(B34,Para_simu!$A$1:$I$55,5,FALSE))),IF(YEAR(A34)<2024,IF('Simulation retraite'!$B$8="Base",VLOOKUP(B34,Para_simu!$A$1:$I$55,6,FALSE),VLOOKUP(B34,Para_simu!$A$1:$I$55,7,FALSE)),IF('Simulation retraite'!$B$8="Base",VLOOKUP(B34,Para_simu!$A$1:$I$55,8,FALSE),VLOOKUP(B34,Para_simu!$A$1:$I$55,9,FALSE))))) ->  | F34: =IF(A34="","",CEILING(E34*'Simulation retraite'!$B$10/12,0.05)*12*(C34/360)) ->  | G34: =IF(A34="","",CEILING(G33+F34,0.05)) ->  | H34: =IF(A34="","",CEILING(H33+D34+F34,0.05)) ->  | I34: =IF(I33="","",IF(YEAR('Simulation retraite'!$B$24)-1=YEAR(I33),'Simulation retraite'!$B$24,IF(YEAR('Simulation retraite'!$B$24)-1<YEAR(I33),"",(EDATE(I33,12))))) -> 1929-12-31 | J34: =IF(I34="","",YEAR(I34)-YEAR('Simulation retraite'!$B$6)) -> -31 | K34: =IF(I34="","",IF(DAY(I34)=1,DAYS360(I33,I34)-1,DAYS360(I33,I34))) -> 360 | L34: =IF(I34="","",IF(YEAR(I34)=2020,CEILING(M33*Para_simu!$Q$3*K34/360,0.05),IF(YEAR(I34)=2021,CEILING(M33*Para_simu!$Q$4*K34/360,0.05),IF(YEAR(I34)=2022,CEILING(M33*Para_simu!$Q$5*K34/360,0.05),CEILING(M33*'Simulation retraite'!$B$41*K34/360,0.05))))) -> 0 | M34: =IF(I34="","",M33+L34) -> 0 | P34: =IF(P33="","",IF(YEAR('Simulation retraite'!$B$24)-1=YEAR(P33),'Simulation retraite'!$B$24,IF(YEAR('Simulation retraite'!$B$24)-1<YEAR(P33),"",(EDATE(P33,12))))) ->  | Q34: =IF(P34="","",YEAR(P34)-YEAR('Simulation retraite'!$B$6)) ->  | R34: =IF(P34="","",IF(DAY(P34)=1,DAYS360(P33,P34)-1,DAYS360(P33,P34))) ->  | S34: =IF(P34="","",IF(YEAR(P34)=2019,CEILING(Para_simu!$Q$2*W33*R34/360,0.05),IF(YEAR(P34)=2020,CEILING(W33*Para_simu!$Q$3*R34/360,0.05),IF(YEAR(P34)=2021,CEILING(W33*Para_simu!$Q$4*R34/360,0.05),IF(YEAR(P34)=2022,CEILING(W33*Para_simu!$Q$5*R34/360,0.05),CEILING(W33*'Simulation retraite'!$C$41*R34/360,0.05)))))) ->  | T34: =IF(P34="","",IF(OR('Simulation retraite'!$B$9="non",YEAR(P34)<=2021),IF(YEAR(P34)<2024,IF('Simulation retraite'!$B$8="Base",VLOOKUP(Q34,Para_simu!$A$1:$I$55,2,FALSE),VLOOKUP(Q34,Para_simu!$A$1:$I$55,3,FALSE)),IF('Simulation retraite'!$B$8="Base",VLOOKUP(Q34,Para_simu!$A$1:$I$55,4,FALSE),VLOOKUP(Q34,Para_simu!$A$1:$I$55,5,FALSE))),IF(YEAR(P34)<2024,IF('Simulation retraite'!$B$8="Base",VLOOKUP(Q34,Para_simu!$A$1:$I$55,6,FALSE),VLOOKUP(Q34,Para_simu!$A$1:$I$55,7,FALSE)),IF('Simulation retraite'!$B$8="Base",VLOOKUP(Q34,Para_simu!$A$1:$I$55,8,FALSE),VLOOKUP(Q34,Para_simu!$A$1:$I$55,9,FALSE))))) ->  | U34: =IF(P34="","",CEILING(T34*'Simulation retraite'!$B$10/12,0.05)*12*(R34/360)) ->  | V34: =IF(P34="","",CEILING(V33+U34,0.05)) ->  | W34: =IF(P34="","",CEILING(W33+S34+U34,0.05)) ->  | X34: =IF(X33="","",IF(YEAR('Simulation retraite'!$B$24)-1=YEAR(X33),'Simulation retraite'!$B$24,IF(YEAR('Simulation retraite'!$B$24)-1<YEAR(X33),"",(EDATE(X33,12))))) -> 1929-12-31 | Y34: =IF(X34="","",YEAR(X34)-YEAR('Simulation retraite'!$B$6)) -> -31 | Z34: =IF(X34="","",IF(DAY(X34)=1,DAYS360(X33,X34)-1,DAYS360(X33,X34))) -> 360 | AA34: =IF(X34="","",IF(YEAR(X34)=2020,CEILING(AB33*Para_simu!$Q$3*Z34/360,0.05),IF(YEAR(X34)=2021,CEILING(AB33*Para_simu!$Q$4*Z34/360,0.05),IF(YEAR(X34)=2022,CEILING(AB33*Para_simu!$Q$5*Z34/360,0.05),CEILING(AB33*'Simulation retraite'!$C$41*Z34/360,0.05))))) -> 0 | AB34: =IF(X34="","",AB33+AA34) -> 0 | AE34: =IF(AE33="","",IF(YEAR('Simulation retraite'!$B$24)-1=YEAR(AE33),'Simulation retraite'!$B$24,IF(YEAR('Simulation retraite'!$B$24)-1<YEAR(AE33),"",(EDATE(AE33,12))))) ->  | AF34: =IF(AE34="","",YEAR(AE34)-YEAR('Simulation retraite'!$B$6)) ->  | AG34: =IF(AE34="","",IF(DAY(AE34)=1,DAYS360(AE33,AE34)-1,DAYS360(AE33,AE34))) ->  | AH34: =IF(AE34="","",IF(YEAR(AE34)=2019,CEILING(Para_simu!$Q$2*AL33*AG34/360,0.05),IF(YEAR(AE34)=2020,CEILING(AL33*Para_simu!$Q$3*AG34/360,0.05),IF(YEAR(AE34)=2021,CEILING(AL33*Para_simu!$Q$4*AG34/360,0.05),IF(YEAR(AE34)=2022,CEILING(AL33*Para_simu!$Q$5*AG34/360,0.05),CEILING(AL33*'Simulation retraite'!$D$41*AG34/360,0.05)))))) ->  | AI34: =IF(AE34="","",IF(OR('Simulation retraite'!$B$9="non",YEAR(AE34)<=2021),IF(YEAR(AE34)<2024,IF('Simulation retraite'!$B$8="Base",VLOOKUP(AF34,Para_simu!$A$1:$I$55,2,FALSE),VLOOKUP(AF34,Para_simu!$A$1:$I$55,3,FALSE)),IF('Simulation retraite'!$B$8="Base",VLOOKUP(AF34,Para_simu!$A$1:$I$55,4,FALSE),VLOOKUP(AF34,Para_simu!$A$1:$I$55,5,FALSE))),IF(YEAR(AE34)<2024,IF('Simulation retraite'!$B$8="Base",VLOOKUP(AF34,Para_simu!$A$1:$I$55,6,FALSE),VLOOKUP(AF34,Para_simu!$A$1:$I$55,7,FALSE)),IF('Simulation retraite'!$B$8="Base",VLOOKUP(AF34,Para_simu!$A$1:$I$55,8,FALSE),VLOOKUP(AF34,Para_simu!$A$1:$I$55,9,FALSE))))) ->  | AJ34: =IF(AE34="","",CEILING(AI34*'Simulation retraite'!$B$10/12,0.05)*12*(AG34/360)) ->  | AK34: =IF(AE34="","",CEILING(AK33+AJ34,0.05)) ->  | AL34: =IF(AE34="","",CEILING(AL33+AH34+AJ34,0.05)) ->  | AM34: =IF(AM33="","",IF(YEAR('Simulation retraite'!$B$24)-1=YEAR(AM33),'Simulation retraite'!$B$24,IF(YEAR('Simulation retraite'!$B$24)-1<YEAR(AM33),"",(EDATE(AM33,12))))) -> 1929-12-31 | AN34: =IF(AM34="","",YEAR(AM34)-YEAR('Simulation retraite'!$B$6)) -> -31 | AO34: =IF(AM34="","",IF(DAY(AM34)=1,DAYS360(AM33,AM34)-1,DAYS360(AM33,AM34))) -> 360 | AP34: =IF(AM34="","",IF(YEAR(AM34)=2020,CEILING(AQ33*Para_simu!$Q$3*AO34/360,0.05),IF(YEAR(AM34)=2021,CEILING(AQ33*Para_simu!$Q$4*AO34/360,0.05),IF(YEAR(AM34)=2022,CEILING(AQ33*Para_simu!$Q$5*AO34/360,0.05),CEILING(AQ33*'Simulation retraite'!$D$41*AO34/360,0.05))))) -> 0 | AQ34: =IF(AM34="","",AQ33+AP34) -> 0
A35: =IF(A34="","",IF(YEAR('Simulation retraite'!$B$24)-1=YEAR(A34),'Simulation retraite'!$B$24,IF(YEAR('Simulation retraite'!$B$24)-1<YEAR(A34),"",(EDATE(A34,12))))) ->  | B35: =IF(A35="","",YEAR(A35)-YEAR('Simulation retraite'!$B$6)) ->  | D35: =IF(A35="","",IF(YEAR(A35)=2019,CEILING(Para_simu!$Q$2*H34*C35/360,0.05),IF(YEAR(A35)=2020,CEILING(H34*Para_simu!$Q$3*C35/360,0.05),IF(YEAR(A35)=2021,CEILING(H34*Para_simu!$Q$4*C35/360,0.05),IF(YEAR(A35)=2022,CEILING(H34*Para_simu!$Q$5*C35/360,0.05),CEILING(H34*'Simulation retraite'!$B$41*C35/360,0.05)))))) ->  | E35: =IF(A35="","",IF(OR('Simulation retraite'!$B$9="non",YEAR(A35)<=2021),IF(YEAR(A35)<2024,IF('Simulation retraite'!$B$8="Base",VLOOKUP(B35,Para_simu!$A$1:$I$55,2,FALSE),VLOOKUP(B35,Para_simu!$A$1:$I$55,3,FALSE)),IF('Simulation retraite'!$B$8="Base",VLOOKUP(B35,Para_simu!$A$1:$I$55,4,FALSE),VLOOKUP(B35,Para_simu!$A$1:$I$55,5,FALSE))),IF(YEAR(A35)<2024,IF('Simulation retraite'!$B$8="Base",VLOOKUP(B35,Para_simu!$A$1:$I$55,6,FALSE),VLOOKUP(B35,Para_simu!$A$1:$I$55,7,FALSE)),IF('Simulation retraite'!$B$8="Base",VLOOKUP(B35,Para_simu!$A$1:$I$55,8,FALSE),VLOOKUP(B35,Para_simu!$A$1:$I$55,9,FALSE))))) ->  | F35: =IF(A35="","",CEILING(E35*'Simulation retraite'!$B$10/12,0.05)*12*(C35/360)) ->  | I35: =IF(I34="","",IF(YEAR('Simulation retraite'!$B$24)-1=YEAR(I34),'Simulation retraite'!$B$24,IF(YEAR('Simulation retraite'!$B$24)-1<YEAR(I34),"",(EDATE(I34,12))))) -> 1930-12-31 | J35: =IF(I35="","",YEAR(I35)-YEAR('Simulation retraite'!$B$6)) -> -30 | K35: 360 | L35: =IF(I35="","",IF(YEAR(I35)=2020,CEILING(M34*Para_simu!$Q$3*K35/360,0.05),IF(YEAR(I35)=2021,CEILING(M34*Para_simu!$Q$4*K35/360,0.05),IF(YEAR(I35)=2022,CEILING(M34*Para_simu!$Q$5*K35/360,0.05),CEILING(M34*'Simulation retraite'!$B$41*K35/360,0.05))))) -> 0 | M35: 0 | P35: =IF(P34="","",IF(YEAR('Simulation retraite'!$B$24)-1=YEAR(P34),'Simulation retraite'!$B$24,IF(YEAR('Simulation retraite'!$B$24)-1<YEAR(P34),"",(EDATE(P34,12))))) ->  | Q35: =IF(P35="","",YEAR(P35)-YEAR('Simulation retraite'!$B$6)) ->  | S35: =IF(P35="","",IF(YEAR(P35)=2019,CEILING(Para_simu!$Q$2*W34*R35/360,0.05),IF(YEAR(P35)=2020,CEILING(W34*Para_simu!$Q$3*R35/360,0.05),IF(YEAR(P35)=2021,CEILING(W34*Para_simu!$Q$4*R35/360,0.05),IF(YEAR(P35)=2022,CEILING(W34*Para_simu!$Q$5*R35/360,0.05),CEILING(W34*'Simulation retraite'!$C$41*R35/360,0.05)))))) ->  | T35: =IF(P35="","",IF(OR('Simulation retraite'!$B$9="non",YEAR(P35)<=2021),IF(YEAR(P35)<2024,IF('Simulation retraite'!$B$8="Base",VLOOKUP(Q35,Para_simu!$A$1:$I$55,2,FALSE),VLOOKUP(Q35,Para_simu!$A$1:$I$55,3,FALSE)),IF('Simulation retraite'!$B$8="Base",VLOOKUP(Q35,Para_simu!$A$1:$I$55,4,FALSE),VLOOKUP(Q35,Para_simu!$A$1:$I$55,5,FALSE))),IF(YEAR(P35)<2024,IF('Simulation retraite'!$B$8="Base",VLOOKUP(Q35,Para_simu!$A$1:$I$55,6,FALSE),VLOOKUP(Q35,Para_simu!$A$1:$I$55,7,FALSE)),IF('Simulation retraite'!$B$8="Base",VLOOKUP(Q35,Para_simu!$A$1:$I$55,8,FALSE),VLOOKUP(Q35,Para_simu!$A$1:$I$55,9,FALSE))))) ->  | U35: =IF(P35="","",CEILING(T35*'Simulation retraite'!$B$10/12,0.05)*12*(R35/360)) ->  | X35: =IF(X34="","",IF(YEAR('Simulation retraite'!$B$24)-1=YEAR(X34),'Simulation retraite'!$B$24,IF(YEAR('Simulation retraite'!$B$24)-1<YEAR(X34),"",(EDATE(X34,12))))) -> 1930-12-31 | Y35: =IF(X35="","",YEAR(X35)-YEAR('Simulation retraite'!$B$6)) -> -30 | Z35: 360 | AA35: =IF(X35="","",IF(YEAR(X35)=2020,CEILING(AB34*Para_simu!$Q$3*Z35/360,0.05),IF(YEAR(X35)=2021,CEILING(AB34*Para_simu!$Q$4*Z35/360,0.05),IF(YEAR(X35)=2022,CEILING(AB34*Para_simu!$Q$5*Z35/360,0.05),CEILING(AB34*'Simulation retraite'!$C$41*Z35/360,0.05))))) -> 0 | AB35: 0 | AE35: =IF(AE34="","",IF(YEAR('Simulation retraite'!$B$24)-1=YEAR(AE34),'Simulation retraite'!$B$24,IF(YEAR('Simulation retraite'!$B$24)-1<YEAR(AE34),"",(EDATE(AE34,12))))) ->  | AF35: =IF(AE35="","",YEAR(AE35)-YEAR('Simulation retraite'!$B$6)) ->  | AH35: =IF(AE35="","",IF(YEAR(AE35)=2019,CEILING(Para_simu!$Q$2*AL34*AG35/360,0.05),IF(YEAR(AE35)=2020,CEILING(AL34*Para_simu!$Q$3*AG35/360,0.05),IF(YEAR(AE35)=2021,CEILING(AL34*Para_simu!$Q$4*AG35/360,0.05),IF(YEAR(AE35)=2022,CEILING(AL34*Para_simu!$Q$5*AG35/360,0.05),CEILING(AL34*'Simulation retraite'!$D$41*AG35/360,0.05)))))) ->  | AI35: =IF(AE35="","",IF(OR('Simulation retraite'!$B$9="non",YEAR(AE35)<=2021),IF(YEAR(AE35)<2024,IF('Simulation retraite'!$B$8="Base",VLOOKUP(AF35,Para_simu!$A$1:$I$55,2,FALSE),VLOOKUP(AF35,Para_simu!$A$1:$I$55,3,FALSE)),IF('Simulation retraite'!$B$8="Base",VLOOKUP(AF35,Para_simu!$A$1:$I$55,4,FALSE),VLOOKUP(AF35,Para_simu!$A$1:$I$55,5,FALSE))),IF(YEAR(AE35)<2024,IF('Simulation retraite'!$B$8="Base",VLOOKUP(AF35,Para_simu!$A$1:$I$55,6,FALSE),VLOOKUP(AF35,Para_simu!$A$1:$I$55,7,FALSE)),IF('Simulation retraite'!$B$8="Base",VLOOKUP(AF35,Para_simu!$A$1:$I$55,8,FALSE),VLOOKUP(AF35,Para_simu!$A$1:$I$55,9,FALSE))))) ->  | AJ35: =IF(AE35="","",CEILING(AI35*'Simulation retraite'!$B$10/12,0.05)*12*(AG35/360)) ->  | AM35: =IF(AM34="","",IF(YEAR('Simulation retraite'!$B$24)-1=YEAR(AM34),'Simulation retraite'!$B$24,IF(YEAR('Simulation retraite'!$B$24)-1<YEAR(AM34),"",(EDATE(AM34,12))))) -> 1930-12-31 | AN35: =IF(AM35="","",YEAR(AM35)-YEAR('Simulation retraite'!$B$6)) -> -30 | AO35: 360 | AP35: =IF(AM35="","",IF(YEAR(AM35)=2020,CEILING(AQ34*Para_simu!$Q$3*AO35/360,0.05),IF(YEAR(AM35)=2021,CEILING(AQ34*Para_simu!$Q$4*AO35/360,0.05),IF(YEAR(AM35)=2022,CEILING(AQ34*Para_simu!$Q$5*AO35/360,0.05),CEILING(AQ34*'Simulation retraite'!$D$41*AO35/360,0.05))))) -> 0 | AQ35: 0
A36: =IF(A35="","",IF(YEAR('Simulation retraite'!$B$24)-1=YEAR(A35),'Simulation retraite'!$B$24,IF(YEAR('Simulation retraite'!$B$24)-1<YEAR(A35),"",(EDATE(A35,12))))) ->  | B36: =IF(A36="","",YEAR(A36)-YEAR('Simulation retraite'!$B$6)) ->  | D36: =IF(A36="","",IF(YEAR(A36)=2019,CEILING(Para_simu!$Q$2*H35*C36/360,0.05),IF(YEAR(A36)=2020,CEILING(H35*Para_simu!$Q$3*C36/360,0.05),IF(YEAR(A36)=2021,CEILING(H35*Para_simu!$Q$4*C36/360,0.05),IF(YEAR(A36)=2022,CEILING(H35*Para_simu!$Q$5*C36/360,0.05),CEILING(H35*'Simulation retraite'!$B$41*C36/360,0.05)))))) ->  | E36: =IF(A36="","",IF(OR('Simulation retraite'!$B$9="non",YEAR(A36)<=2021),IF(YEAR(A36)<2024,IF('Simulation retraite'!$B$8="Base",VLOOKUP(B36,Para_simu!$A$1:$I$55,2,FALSE),VLOOKUP(B36,Para_simu!$A$1:$I$55,3,FALSE)),IF('Simulation retraite'!$B$8="Base",VLOOKUP(B36,Para_simu!$A$1:$I$55,4,FALSE),VLOOKUP(B36,Para_simu!$A$1:$I$55,5,FALSE))),IF(YEAR(A36)<2024,IF('Simulation retraite'!$B$8="Base",VLOOKUP(B36,Para_simu!$A$1:$I$55,6,FALSE),VLOOKUP(B36,Para_simu!$A$1:$I$55,7,FALSE)),IF('Simulation retraite'!$B$8="Base",VLOOKUP(B36,Para_simu!$A$1:$I$55,8,FALSE),VLOOKUP(B36,Para_simu!$A$1:$I$55,9,FALSE))))) ->  | F36: =IF(A36="","",CEILING(E36*'Simulation retraite'!$B$10/12,0.05)*12*(C36/360)) ->  | I36: =IF(I35="","",IF(YEAR('Simulation retraite'!$B$24)-1=YEAR(I35),'Simulation retraite'!$B$24,IF(YEAR('Simulation retraite'!$B$24)-1<YEAR(I35),"",(EDATE(I35,12))))) -> 1931-12-31 | J36: =IF(I36="","",YEAR(I36)-YEAR('Simulation retraite'!$B$6)) -> -29 | K36: 360 | L36: =IF(I36="","",IF(YEAR(I36)=2020,CEILING(M35*Para_simu!$Q$3*K36/360,0.05),IF(YEAR(I36)=2021,CEILING(M35*Para_simu!$Q$4*K36/360,0.05),IF(YEAR(I36)=2022,CEILING(M35*Para_simu!$Q$5*K36/360,0.05),CEILING(M35*'Simulation retraite'!$B$41*K36/360,0.05))))) -> 0 | M36: 0 | P36: =IF(P35="","",IF(YEAR('Simulation retraite'!$B$24)-1=YEAR(P35),'Simulation retraite'!$B$24,IF(YEAR('Simulation retraite'!$B$24)-1<YEAR(P35),"",(EDATE(P35,12))))) ->  | Q36: =IF(P36="","",YEAR(P36)-YEAR('Simulation retraite'!$B$6)) ->  | S36: =IF(P36="","",IF(YEAR(P36)=2019,CEILING(Para_simu!$Q$2*W35*R36/360,0.05),IF(YEAR(P36)=2020,CEILING(W35*Para_simu!$Q$3*R36/360,0.05),IF(YEAR(P36)=2021,CEILING(W35*Para_simu!$Q$4*R36/360,0.05),IF(YEAR(P36)=2022,CEILING(W35*Para_simu!$Q$5*R36/360,0.05),CEILING(W35*'Simulation retraite'!$C$41*R36/360,0.05)))))) ->  | T36: =IF(P36="","",IF(OR('Simulation retraite'!$B$9="non",YEAR(P36)<=2021),IF(YEAR(P36)<2024,IF('Simulation retraite'!$B$8="Base",VLOOKUP(Q36,Para_simu!$A$1:$I$55,2,FALSE),VLOOKUP(Q36,Para_simu!$A$1:$I$55,3,FALSE)),IF('Simulation retraite'!$B$8="Base",VLOOKUP(Q36,Para_simu!$A$1:$I$55,4,FALSE),VLOOKUP(Q36,Para_simu!$A$1:$I$55,5,FALSE))),IF(YEAR(P36)<2024,IF('Simulation retraite'!$B$8="Base",VLOOKUP(Q36,Para_simu!$A$1:$I$55,6,FALSE),VLOOKUP(Q36,Para_simu!$A$1:$I$55,7,FALSE)),IF('Simulation retraite'!$B$8="Base",VLOOKUP(Q36,Para_simu!$A$1:$I$55,8,FALSE),VLOOKUP(Q36,Para_simu!$A$1:$I$55,9,FALSE))))) ->  | U36: =IF(P36="","",CEILING(T36*'Simulation retraite'!$B$10/12,0.05)*12*(R36/360)) ->  | X36: =IF(X35="","",IF(YEAR('Simulation retraite'!$B$24)-1=YEAR(X35),'Simulation retraite'!$B$24,IF(YEAR('Simulation retraite'!$B$24)-1<YEAR(X35),"",(EDATE(X35,12))))) -> 1931-12-31 | Y36: =IF(X36="","",YEAR(X36)-YEAR('Simulation retraite'!$B$6)) -> -29 | Z36: 360 | AA36: =IF(X36="","",IF(YEAR(X36)=2020,CEILING(AB35*Para_simu!$Q$3*Z36/360,0.05),IF(YEAR(X36)=2021,CEILING(AB35*Para_simu!$Q$4*Z36/360,0.05),IF(YEAR(X36)=2022,CEILING(AB35*Para_simu!$Q$5*Z36/360,0.05),CEILING(AB35*'Simulation retraite'!$C$41*Z36/360,0.05))))) -> 0 | AB36: 0 | AE36: =IF(AE35="","",IF(YEAR('Simulation retraite'!$B$24)-1=YEAR(AE35),'Simulation retraite'!$B$24,IF(YEAR('Simulation retraite'!$B$24)-1<YEAR(AE35),"",(EDATE(AE35,12))))) ->  | AF36: =IF(AE36="","",YEAR(AE36)-YEAR('Simulation retraite'!$B$6)) ->  | AH36: =IF(AE36="","",IF(YEAR(AE36)=2019,CEILING(Para_simu!$Q$2*AL35*AG36/360,0.05),IF(YEAR(AE36)=2020,CEILING(AL35*Para_simu!$Q$3*AG36/360,0.05),IF(YEAR(AE36)=2021,CEILING(AL35*Para_simu!$Q$4*AG36/360,0.05),IF(YEAR(AE36)=2022,CEILING(AL35*Para_simu!$Q$5*AG36/360,0.05),CEILING(AL35*'Simulation retraite'!$D$41*AG36/360,0.05)))))) ->  | AI36: =IF(AE36="","",IF(OR('Simulation retraite'!$B$9="non",YEAR(AE36)<=2021),IF(YEAR(AE36)<2024,IF('Simulation retraite'!$B$8="Base",VLOOKUP(AF36,Para_simu!$A$1:$I$55,2,FALSE),VLOOKUP(AF36,Para_simu!$A$1:$I$55,3,FALSE)),IF('Simulation retraite'!$B$8="Base",VLOOKUP(AF36,Para_simu!$A$1:$I$55,4,FALSE),VLOOKUP(AF36,Para_simu!$A$1:$I$55,5,FALSE))),IF(YEAR(AE36)<2024,IF('Simulation retraite'!$B$8="Base",VLOOKUP(AF36,Para_simu!$A$1:$I$55,6,FALSE),VLOOKUP(AF36,Para_simu!$A$1:$I$55,7,FALSE)),IF('Simulation retraite'!$B$8="Base",VLOOKUP(AF36,Para_simu!$A$1:$I$55,8,FALSE),VLOOKUP(AF36,Para_simu!$A$1:$I$55,9,FALSE))))) ->  | AJ36: =IF(AE36="","",CEILING(AI36*'Simulation retraite'!$B$10/12,0.05)*12*(AG36/360)) ->  | AM36: =IF(AM35="","",IF(YEAR('Simulation retraite'!$B$24)-1=YEAR(AM35),'Simulation retraite'!$B$24,IF(YEAR('Simulation retraite'!$B$24)-1<YEAR(AM35),"",(EDATE(AM35,12))))) -> 1931-12-31 | AN36: =IF(AM36="","",YEAR(AM36)-YEAR('Simulation retraite'!$B$6)) -> -29 | AO36: 360 | AP36: =IF(AM36="","",IF(YEAR(AM36)=2020,CEILING(AQ35*Para_simu!$Q$3*AO36/360,0.05),IF(YEAR(AM36)=2021,CEILING(AQ35*Para_simu!$Q$4*AO36/360,0.05),IF(YEAR(AM36)=2022,CEILING(AQ35*Para_simu!$Q$5*AO36/360,0.05),CEILING(AQ35*'Simulation retraite'!$D$41*AO36/360,0.05))))) -> 0 | AQ36: 0
A37: =IF(A36="","",IF(YEAR('Simulation retraite'!$B$24)-1=YEAR(A36),'Simulation retraite'!$B$24,IF(YEAR('Simulation retraite'!$B$24)-1<YEAR(A36),"",(EDATE(A36,12))))) ->  | B37: =IF(A37="","",YEAR(A37)-YEAR('Simulation retraite'!$B$6)) ->  | D37: =IF(A37="","",IF(YEAR(A37)=2019,CEILING(Para_simu!$Q$2*H36*C37/360,0.05),IF(YEAR(A37)=2020,CEILING(H36*Para_simu!$Q$3*C37/360,0.05),IF(YEAR(A37)=2021,CEILING(H36*Para_simu!$Q$4*C37/360,0.05),IF(YEAR(A37)=2022,CEILING(H36*Para_simu!$Q$5*C37/360,0.05),CEILING(H36*'Simulation retraite'!$B$41*C37/360,0.05)))))) ->  | E37: =IF(A37="","",IF(OR('Simulation retraite'!$B$9="non",YEAR(A37)<=2021),IF(YEAR(A37)<2024,IF('Simulation retraite'!$B$8="Base",VLOOKUP(B37,Para_simu!$A$1:$I$55,2,FALSE),VLOOKUP(B37,Para_simu!$A$1:$I$55,3,FALSE)),IF('Simulation retraite'!$B$8="Base",VLOOKUP(B37,Para_simu!$A$1:$I$55,4,FALSE),VLOOKUP(B37,Para_simu!$A$1:$I$55,5,FALSE))),IF(YEAR(A37)<2024,IF('Simulation retraite'!$B$8="Base",VLOOKUP(B37,Para_simu!$A$1:$I$55,6,FALSE),VLOOKUP(B37,Para_simu!$A$1:$I$55,7,FALSE)),IF('Simulation retraite'!$B$8="Base",VLOOKUP(B37,Para_simu!$A$1:$I$55,8,FALSE),VLOOKUP(B37,Para_simu!$A$1:$I$55,9,FALSE))))) ->  | F37: =IF(A37="","",CEILING(E37*'Simulation retraite'!$B$10/12,0.05)*12*(C37/360)) ->  | I37: =IF(I36="","",IF(YEAR('Simulation retraite'!$B$24)-1=YEAR(I36),'Simulation retraite'!$B$24,IF(YEAR('Simulation retraite'!$B$24)-1<YEAR(I36),"",(EDATE(I36,12))))) -> 1932-12-31 | J37: =IF(I37="","",YEAR(I37)-YEAR('Simulation retraite'!$B$6)) -> -28 | K37: 360 | L37: =IF(I37="","",IF(YEAR(I37)=2020,CEILING(M36*Para_simu!$Q$3*K37/360,0.05),IF(YEAR(I37)=2021,CEILING(M36*Para_simu!$Q$4*K37/360,0.05),IF(YEAR(I37)=2022,CEILING(M36*Para_simu!$Q$5*K37/360,0.05),CEILING(M36*'Simulation retraite'!$B$41*K37/360,0.05))))) -> 0 | M37: 0 | P37: =IF(P36="","",IF(YEAR('Simulation retraite'!$B$24)-1=YEAR(P36),'Simulation retraite'!$B$24,IF(YEAR('Simulation retraite'!$B$24)-1<YEAR(P36),"",(EDATE(P36,12))))) ->  | Q37: =IF(P37="","",YEAR(P37)-YEAR('Simulation retraite'!$B$6)) ->  | S37: =IF(P37="","",IF(YEAR(P37)=2019,CEILING(Para_simu!$Q$2*W36*R37/360,0.05),IF(YEAR(P37)=2020,CEILING(W36*Para_simu!$Q$3*R37/360,0.05),IF(YEAR(P37)=2021,CEILING(W36*Para_simu!$Q$4*R37/360,0.05),IF(YEAR(P37)=2022,CEILING(W36*Para_simu!$Q$5*R37/360,0.05),CEILING(W36*'Simulation retraite'!$C$41*R37/360,0.05)))))) ->  | T37: =IF(P37="","",IF(OR('Simulation retraite'!$B$9="non",YEAR(P37)<=2021),IF(YEAR(P37)<2024,IF('Simulation retraite'!$B$8="Base",VLOOKUP(Q37,Para_simu!$A$1:$I$55,2,FALSE),VLOOKUP(Q37,Para_simu!$A$1:$I$55,3,FALSE)),IF('Simulation retraite'!$B$8="Base",VLOOKUP(Q37,Para_simu!$A$1:$I$55,4,FALSE),VLOOKUP(Q37,Para_simu!$A$1:$I$55,5,FALSE))),IF(YEAR(P37)<2024,IF('Simulation retraite'!$B$8="Base",VLOOKUP(Q37,Para_simu!$A$1:$I$55,6,FALSE),VLOOKUP(Q37,Para_simu!$A$1:$I$55,7,FALSE)),IF('Simulation retraite'!$B$8="Base",VLOOKUP(Q37,Para_simu!$A$1:$I$55,8,FALSE),VLOOKUP(Q37,Para_simu!$A$1:$I$55,9,FALSE))))) ->  | U37: =IF(P37="","",CEILING(T37*'Simulation retraite'!$B$10/12,0.05)*12*(R37/360)) ->  | X37: =IF(X36="","",IF(YEAR('Simulation retraite'!$B$24)-1=YEAR(X36),'Simulation retraite'!$B$24,IF(YEAR('Simulation retraite'!$B$24)-1<YEAR(X36),"",(EDATE(X36,12))))) -> 1932-12-31 | Y37: =IF(X37="","",YEAR(X37)-YEAR('Simulation retraite'!$B$6)) -> -28 | Z37: 360 | AA37: =IF(X37="","",IF(YEAR(X37)=2020,CEILING(AB36*Para_simu!$Q$3*Z37/360,0.05),IF(YEAR(X37)=2021,CEILING(AB36*Para_simu!$Q$4*Z37/360,0.05),IF(YEAR(X37)=2022,CEILING(AB36*Para_simu!$Q$5*Z37/360,0.05),CEILING(AB36*'Simulation retraite'!$C$41*Z37/360,0.05))))) -> 0 | AB37: 0 | AE37: =IF(AE36="","",IF(YEAR('Simulation retraite'!$B$24)-1=YEAR(AE36),'Simulation retraite'!$B$24,IF(YEAR('Simulation retraite'!$B$24)-1<YEAR(AE36),"",(EDATE(AE36,12))))) ->  | AF37: =IF(AE37="","",YEAR(AE37)-YEAR('Simulation retraite'!$B$6)) ->  | AH37: =IF(AE37="","",IF(YEAR(AE37)=2019,CEILING(Para_simu!$Q$2*AL36*AG37/360,0.05),IF(YEAR(AE37)=2020,CEILING(AL36*Para_simu!$Q$3*AG37/360,0.05),IF(YEAR(AE37)=2021,CEILING(AL36*Para_simu!$Q$4*AG37/360,0.05),IF(YEAR(AE37)=2022,CEILING(AL36*Para_simu!$Q$5*AG37/360,0.05),CEILING(AL36*'Simulation retraite'!$D$41*AG37/360,0.05)))))) ->  | AI37: =IF(AE37="","",IF(OR('Simulation retraite'!$B$9="non",YEAR(AE37)<=2021),IF(YEAR(AE37)<2024,IF('Simulation retraite'!$B$8="Base",VLOOKUP(AF37,Para_simu!$A$1:$I$55,2,FALSE),VLOOKUP(AF37,Para_simu!$A$1:$I$55,3,FALSE)),IF('Simulation retraite'!$B$8="Base",VLOOKUP(AF37,Para_simu!$A$1:$I$55,4,FALSE),VLOOKUP(AF37,Para_simu!$A$1:$I$55,5,FALSE))),IF(YEAR(AE37)<2024,IF('Simulation retraite'!$B$8="Base",VLOOKUP(AF37,Para_simu!$A$1:$I$55,6,FALSE),VLOOKUP(AF37,Para_simu!$A$1:$I$55,7,FALSE)),IF('Simulation retraite'!$B$8="Base",VLOOKUP(AF37,Para_simu!$A$1:$I$55,8,FALSE),VLOOKUP(AF37,Para_simu!$A$1:$I$55,9,FALSE))))) ->  | AJ37: =IF(AE37="","",CEILING(AI37*'Simulation retraite'!$B$10/12,0.05)*12*(AG37/360)) ->  | AM37: =IF(AM36="","",IF(YEAR('Simulation retraite'!$B$24)-1=YEAR(AM36),'Simulation retraite'!$B$24,IF(YEAR('Simulation retraite'!$B$24)-1<YEAR(AM36),"",(EDATE(AM36,12))))) -> 1932-12-31 | AN37: =IF(AM37="","",YEAR(AM37)-YEAR('Simulation retraite'!$B$6)) -> -28 | AO37: 360 | AP37: =IF(AM37="","",IF(YEAR(AM37)=2020,CEILING(AQ36*Para_simu!$Q$3*AO37/360,0.05),IF(YEAR(AM37)=2021,CEILING(AQ36*Para_simu!$Q$4*AO37/360,0.05),IF(YEAR(AM37)=2022,CEILING(AQ36*Para_simu!$Q$5*AO37/360,0.05),CEILING(AQ36*'Simulation retraite'!$D$41*AO37/360,0.05))))) -> 0 | AQ37: 0
A38: =IF(A37="","",IF(YEAR('Simulation retraite'!$B$24)-1=YEAR(A37),'Simulation retraite'!$B$24,IF(YEAR('Simulation retraite'!$B$24)-1<YEAR(A37),"",(EDATE(A37,12))))) ->  | B38: =IF(A38="","",YEAR(A38)-YEAR('Simulation retraite'!$B$6)) ->  | D38: =IF(A38="","",IF(YEAR(A38)=2019,CEILING(Para_simu!$Q$2*H37*C38/360,0.05),IF(YEAR(A38)=2020,CEILING(H37*Para_simu!$Q$3*C38/360,0.05),IF(YEAR(A38)=2021,CEILING(H37*Para_simu!$Q$4*C38/360,0.05),IF(YEAR(A38)=2022,CEILING(H37*Para_simu!$Q$5*C38/360,0.05),CEILING(H37*'Simulation retraite'!$B$41*C38/360,0.05)))))) ->  | E38: =IF(A38="","",IF(OR('Simulation retraite'!$B$9="non",YEAR(A38)<=2021),IF(YEAR(A38)<2024,IF('Simulation retraite'!$B$8="Base",VLOOKUP(B38,Para_simu!$A$1:$I$55,2,FALSE),VLOOKUP(B38,Para_simu!$A$1:$I$55,3,FALSE)),IF('Simulation retraite'!$B$8="Base",VLOOKUP(B38,Para_simu!$A$1:$I$55,4,FALSE),VLOOKUP(B38,Para_simu!$A$1:$I$55,5,FALSE))),IF(YEAR(A38)<2024,IF('Simulation retraite'!$B$8="Base",VLOOKUP(B38,Para_simu!$A$1:$I$55,6,FALSE),VLOOKUP(B38,Para_simu!$A$1:$I$55,7,FALSE)),IF('Simulation retraite'!$B$8="Base",VLOOKUP(B38,Para_simu!$A$1:$I$55,8,FALSE),VLOOKUP(B38,Para_simu!$A$1:$I$55,9,FALSE))))) ->  | F38: =IF(A38="","",CEILING(E38*'Simulation retraite'!$B$10/12,0.05)*12*(C38/360)) ->  | I38: =IF(I37="","",IF(YEAR('Simulation retraite'!$B$24)-1=YEAR(I37),'Simulation retraite'!$B$24,IF(YEAR('Simulation retraite'!$B$24)-1<YEAR(I37),"",(EDATE(I37,12))))) -> 1933-12-31 | J38: =IF(I38="","",YEAR(I38)-YEAR('Simulation retraite'!$B$6)) -> -27 | K38: 360 | L38: =IF(I38="","",IF(YEAR(I38)=2020,CEILING(M37*Para_simu!$Q$3*K38/360,0.05),IF(YEAR(I38)=2021,CEILING(M37*Para_simu!$Q$4*K38/360,0.05),IF(YEAR(I38)=2022,CEILING(M37*Para_simu!$Q$5*K38/360,0.05),CEILING(M37*'Simulation retraite'!$B$41*K38/360,0.05))))) -> 0 | M38: 0 | P38: =IF(P37="","",IF(YEAR('Simulation retraite'!$B$24)-1=YEAR(P37),'Simulation retraite'!$B$24,IF(YEAR('Simulation retraite'!$B$24)-1<YEAR(P37),"",(EDATE(P37,12))))) ->  | Q38: =IF(P38="","",YEAR(P38)-YEAR('Simulation retraite'!$B$6)) ->  | S38: =IF(P38="","",IF(YEAR(P38)=2019,CEILING(Para_simu!$Q$2*W37*R38/360,0.05),IF(YEAR(P38)=2020,CEILING(W37*Para_simu!$Q$3*R38/360,0.05),IF(YEAR(P38)=2021,CEILING(W37*Para_simu!$Q$4*R38/360,0.05),IF(YEAR(P38)=2022,CEILING(W37*Para_simu!$Q$5*R38/360,0.05),CEILING(W37*'Simulation retraite'!$C$41*R38/360,0.05)))))) ->  | T38: =IF(P38="","",IF(OR('Simulation retraite'!$B$9="non",YEAR(P38)<=2021),IF(YEAR(P38)<2024,IF('Simulation retraite'!$B$8="Base",VLOOKUP(Q38,Para_simu!$A$1:$I$55,2,FALSE),VLOOKUP(Q38,Para_simu!$A$1:$I$55,3,FALSE)),IF('Simulation retraite'!$B$8="Base",VLOOKUP(Q38,Para_simu!$A$1:$I$55,4,FALSE),VLOOKUP(Q38,Para_simu!$A$1:$I$55,5,FALSE))),IF(YEAR(P38)<2024,IF('Simulation retraite'!$B$8="Base",VLOOKUP(Q38,Para_simu!$A$1:$I$55,6,FALSE),VLOOKUP(Q38,Para_simu!$A$1:$I$55,7,FALSE)),IF('Simulation retraite'!$B$8="Base",VLOOKUP(Q38,Para_simu!$A$1:$I$55,8,FALSE),VLOOKUP(Q38,Para_simu!$A$1:$I$55,9,FALSE))))) ->  | U38: =IF(P38="","",CEILING(T38*'Simulation retraite'!$B$10/12,0.05)*12*(R38/360)) ->  | X38: =IF(X37="","",IF(YEAR('Simulation retraite'!$B$24)-1=YEAR(X37),'Simulation retraite'!$B$24,IF(YEAR('Simulation retraite'!$B$24)-1<YEAR(X37),"",(EDATE(X37,12))))) -> 1933-12-31 | Y38: =IF(X38="","",YEAR(X38)-YEAR('Simulation retraite'!$B$6)) -> -27 | Z38: 360 | AA38: =IF(X38="","",IF(YEAR(X38)=2020,CEILING(AB37*Para_simu!$Q$3*Z38/360,0.05),IF(YEAR(X38)=2021,CEILING(AB37*Para_simu!$Q$4*Z38/360,0.05),IF(YEAR(X38)=2022,CEILING(AB37*Para_simu!$Q$5*Z38/360,0.05),CEILING(AB37*'Simulation retraite'!$C$41*Z38/360,0.05))))) -> 0 | AB38: 0 | AE38: =IF(AE37="","",IF(YEAR('Simulation retraite'!$B$24)-1=YEAR(AE37),'Simulation retraite'!$B$24,IF(YEAR('Simulation retraite'!$B$24)-1<YEAR(AE37),"",(EDATE(AE37,12))))) ->  | AF38: =IF(AE38="","",YEAR(AE38)-YEAR('Simulation retraite'!$B$6)) ->  | AH38: =IF(AE38="","",IF(YEAR(AE38)=2019,CEILING(Para_simu!$Q$2*AL37*AG38/360,0.05),IF(YEAR(AE38)=2020,CEILING(AL37*Para_simu!$Q$3*AG38/360,0.05),IF(YEAR(AE38)=2021,CEILING(AL37*Para_simu!$Q$4*AG38/360,0.05),IF(YEAR(AE38)=2022,CEILING(AL37*Para_simu!$Q$5*AG38/360,0.05),CEILING(AL37*'Simulation retraite'!$D$41*AG38/360,0.05)))))) ->  | AI38: =IF(AE38="","",IF(OR('Simulation retraite'!$B$9="non",YEAR(AE38)<=2021),IF(YEAR(AE38)<2024,IF('Simulation retraite'!$B$8="Base",VLOOKUP(AF38,Para_simu!$A$1:$I$55,2,FALSE),VLOOKUP(AF38,Para_simu!$A$1:$I$55,3,FALSE)),IF('Simulation retraite'!$B$8="Base",VLOOKUP(AF38,Para_simu!$A$1:$I$55,4,FALSE),VLOOKUP(AF38,Para_simu!$A$1:$I$55,5,FALSE))),IF(YEAR(AE38)<2024,IF('Simulation retraite'!$B$8="Base",VLOOKUP(AF38,Para_simu!$A$1:$I$55,6,FALSE),VLOOKUP(AF38,Para_simu!$A$1:$I$55,7,FALSE)),IF('Simulation retraite'!$B$8="Base",VLOOKUP(AF38,Para_simu!$A$1:$I$55,8,FALSE),VLOOKUP(AF38,Para_simu!$A$1:$I$55,9,FALSE))))) ->  | AJ38: =IF(AE38="","",CEILING(AI38*'Simulation retraite'!$B$10/12,0.05)*12*(AG38/360)) ->  | AM38: =IF(AM37="","",IF(YEAR('Simulation retraite'!$B$24)-1=YEAR(AM37),'Simulation retraite'!$B$24,IF(YEAR('Simulation retraite'!$B$24)-1<YEAR(AM37),"",(EDATE(AM37,12))))) -> 1933-12-31 | AN38: =IF(AM38="","",YEAR(AM38)-YEAR('Simulation retraite'!$B$6)) -> -27 | AO38: 360 | AP38: =IF(AM38="","",IF(YEAR(AM38)=2020,CEILING(AQ37*Para_simu!$Q$3*AO38/360,0.05),IF(YEAR(AM38)=2021,CEILING(AQ37*Para_simu!$Q$4*AO38/360,0.05),IF(YEAR(AM38)=2022,CEILING(AQ37*Para_simu!$Q$5*AO38/360,0.05),CEILING(AQ37*'Simulation retraite'!$D$41*AO38/360,0.05))))) -> 0 | AQ38: 0
A39: =IF(A38="","",IF(YEAR('Simulation retraite'!$B$24)-1=YEAR(A38),'Simulation retraite'!$B$24,IF(YEAR('Simulation retraite'!$B$24)-1<YEAR(A38),"",(EDATE(A38,12))))) ->  | B39: =IF(A39="","",YEAR(A39)-YEAR('Simulation retraite'!$B$6)) ->  | D39: =IF(A39="","",IF(YEAR(A39)=2019,CEILING(Para_simu!$Q$2*H38*C39/360,0.05),IF(YEAR(A39)=2020,CEILING(H38*Para_simu!$Q$3*C39/360,0.05),IF(YEAR(A39)=2021,CEILING(H38*Para_simu!$Q$4*C39/360,0.05),IF(YEAR(A39)=2022,CEILING(H38*Para_simu!$Q$5*C39/360,0.05),CEILING(H38*'Simulation retraite'!$B$41*C39/360,0.05)))))) ->  | E39: =IF(A39="","",IF(OR('Simulation retraite'!$B$9="non",YEAR(A39)<=2021),IF(YEAR(A39)<2024,IF('Simulation retraite'!$B$8="Base",VLOOKUP(B39,Para_simu!$A$1:$I$55,2,FALSE),VLOOKUP(B39,Para_simu!$A$1:$I$55,3,FALSE)),IF('Simulation retraite'!$B$8="Base",VLOOKUP(B39,Para_simu!$A$1:$I$55,4,FALSE),VLOOKUP(B39,Para_simu!$A$1:$I$55,5,FALSE))),IF(YEAR(A39)<2024,IF('Simulation retraite'!$B$8="Base",VLOOKUP(B39,Para_simu!$A$1:$I$55,6,FALSE),VLOOKUP(B39,Para_simu!$A$1:$I$55,7,FALSE)),IF('Simulation retraite'!$B$8="Base",VLOOKUP(B39,Para_simu!$A$1:$I$55,8,FALSE),VLOOKUP(B39,Para_simu!$A$1:$I$55,9,FALSE))))) ->  | F39: =IF(A39="","",CEILING(E39*'Simulation retraite'!$B$10/12,0.05)*12*(C39/360)) ->  | I39: =IF(I38="","",IF(YEAR('Simulation retraite'!$B$24)-1=YEAR(I38),'Simulation retraite'!$B$24,IF(YEAR('Simulation retraite'!$B$24)-1<YEAR(I38),"",(EDATE(I38,12))))) -> 1934-12-31 | J39: =IF(I39="","",YEAR(I39)-YEAR('Simulation retraite'!$B$6)) -> -26 | K39: 360 | L39: =IF(I39="","",IF(YEAR(I39)=2020,CEILING(M38*Para_simu!$Q$3*K39/360,0.05),IF(YEAR(I39)=2021,CEILING(M38*Para_simu!$Q$4*K39/360,0.05),IF(YEAR(I39)=2022,CEILING(M38*Para_simu!$Q$5*K39/360,0.05),CEILING(M38*'Simulation retraite'!$B$41*K39/360,0.05))))) -> 0 | M39: 0 | P39: =IF(P38="","",IF(YEAR('Simulation retraite'!$B$24)-1=YEAR(P38),'Simulation retraite'!$B$24,IF(YEAR('Simulation retraite'!$B$24)-1<YEAR(P38),"",(EDATE(P38,12))))) ->  | Q39: =IF(P39="","",YEAR(P39)-YEAR('Simulation retraite'!$B$6)) ->  | S39: =IF(P39="","",IF(YEAR(P39)=2019,CEILING(Para_simu!$Q$2*W38*R39/360,0.05),IF(YEAR(P39)=2020,CEILING(W38*Para_simu!$Q$3*R39/360,0.05),IF(YEAR(P39)=2021,CEILING(W38*Para_simu!$Q$4*R39/360,0.05),IF(YEAR(P39)=2022,CEILING(W38*Para_simu!$Q$5*R39/360,0.05),CEILING(W38*'Simulation retraite'!$C$41*R39/360,0.05)))))) ->  | T39: =IF(P39="","",IF(OR('Simulation retraite'!$B$9="non",YEAR(P39)<=2021),IF(YEAR(P39)<2024,IF('Simulation retraite'!$B$8="Base",VLOOKUP(Q39,Para_simu!$A$1:$I$55,2,FALSE),VLOOKUP(Q39,Para_simu!$A$1:$I$55,3,FALSE)),IF('Simulation retraite'!$B$8="Base",VLOOKUP(Q39,Para_simu!$A$1:$I$55,4,FALSE),VLOOKUP(Q39,Para_simu!$A$1:$I$55,5,FALSE))),IF(YEAR(P39)<2024,IF('Simulation retraite'!$B$8="Base",VLOOKUP(Q39,Para_simu!$A$1:$I$55,6,FALSE),VLOOKUP(Q39,Para_simu!$A$1:$I$55,7,FALSE)),IF('Simulation retraite'!$B$8="Base",VLOOKUP(Q39,Para_simu!$A$1:$I$55,8,FALSE),VLOOKUP(Q39,Para_simu!$A$1:$I$55,9,FALSE))))) ->  | U39: =IF(P39="","",CEILING(T39*'Simulation retraite'!$B$10/12,0.05)*12*(R39/360)) ->  | X39: =IF(X38="","",IF(YEAR('Simulation retraite'!$B$24)-1=YEAR(X38),'Simulation retraite'!$B$24,IF(YEAR('Simulation retraite'!$B$24)-1<YEAR(X38),"",(EDATE(X38,12))))) -> 1934-12-31 | Y39: =IF(X39="","",YEAR(X39)-YEAR('Simulation retraite'!$B$6)) -> -26 | Z39: 360 | AA39: =IF(X39="","",IF(YEAR(X39)=2020,CEILING(AB38*Para_simu!$Q$3*Z39/360,0.05),IF(YEAR(X39)=2021,CEILING(AB38*Para_simu!$Q$4*Z39/360,0.05),IF(YEAR(X39)=2022,CEILING(AB38*Para_simu!$Q$5*Z39/360,0.05),CEILING(AB38*'Simulation retraite'!$C$41*Z39/360,0.05))))) -> 0 | AB39: 0 | AE39: =IF(AE38="","",IF(YEAR('Simulation retraite'!$B$24)-1=YEAR(AE38),'Simulation retraite'!$B$24,IF(YEAR('Simulation retraite'!$B$24)-1<YEAR(AE38),"",(EDATE(AE38,12))))) ->  | AF39: =IF(AE39="","",YEAR(AE39)-YEAR('Simulation retraite'!$B$6)) ->  | AH39: =IF(AE39="","",IF(YEAR(AE39)=2019,CEILING(Para_simu!$Q$2*AL38*AG39/360,0.05),IF(YEAR(AE39)=2020,CEILING(AL38*Para_simu!$Q$3*AG39/360,0.05),IF(YEAR(AE39)=2021,CEILING(AL38*Para_simu!$Q$4*AG39/360,0.05),IF(YEAR(AE39)=2022,CEILING(AL38*Para_simu!$Q$5*AG39/360,0.05),CEILING(AL38*'Simulation retraite'!$D$41*AG39/360,0.05)))))) ->  | AI39: =IF(AE39="","",IF(OR('Simulation retraite'!$B$9="non",YEAR(AE39)<=2021),IF(YEAR(AE39)<2024,IF('Simulation retraite'!$B$8="Base",VLOOKUP(AF39,Para_simu!$A$1:$I$55,2,FALSE),VLOOKUP(AF39,Para_simu!$A$1:$I$55,3,FALSE)),IF('Simulation retraite'!$B$8="Base",VLOOKUP(AF39,Para_simu!$A$1:$I$55,4,FALSE),VLOOKUP(AF39,Para_simu!$A$1:$I$55,5,FALSE))),IF(YEAR(AE39)<2024,IF('Simulation retraite'!$B$8="Base",VLOOKUP(AF39,Para_simu!$A$1:$I$55,6,FALSE),VLOOKUP(AF39,Para_simu!$A$1:$I$55,7,FALSE)),IF('Simulation retraite'!$B$8="Base",VLOOKUP(AF39,Para_simu!$A$1:$I$55,8,FALSE),VLOOKUP(AF39,Para_simu!$A$1:$I$55,9,FALSE))))) ->  | AJ39: =IF(AE39="","",CEILING(AI39*'Simulation retraite'!$B$10/12,0.05)*12*(AG39/360)) ->  | AM39: =IF(AM38="","",IF(YEAR('Simulation retraite'!$B$24)-1=YEAR(AM38),'Simulation retraite'!$B$24,IF(YEAR('Simulation retraite'!$B$24)-1<YEAR(AM38),"",(EDATE(AM38,12))))) -> 1934-12-31 | AN39: =IF(AM39="","",YEAR(AM39)-YEAR('Simulation retraite'!$B$6)) -> -26 | AO39: 360 | AP39: =IF(AM39="","",IF(YEAR(AM39)=2020,CEILING(AQ38*Para_simu!$Q$3*AO39/360,0.05),IF(YEAR(AM39)=2021,CEILING(AQ38*Para_simu!$Q$4*AO39/360,0.05),IF(YEAR(AM39)=2022,CEILING(AQ38*Para_simu!$Q$5*AO39/360,0.05),CEILING(AQ38*'Simulation retraite'!$D$41*AO39/360,0.05))))) -> 0 | AQ39: 0
A40: =IF(A39="","",IF(YEAR('Simulation retraite'!$B$24)-1=YEAR(A39),'Simulation retraite'!$B$24,IF(YEAR('Simulation retraite'!$B$24)-1<YEAR(A39),"",(EDATE(A39,12))))) ->  | B40: =IF(A40="","",YEAR(A40)-YEAR('Simulation retraite'!$B$6)) ->  | D40: =IF(A40="","",IF(YEAR(A40)=2019,CEILING(Para_simu!$Q$2*H39*C40/360,0.05),IF(YEAR(A40)=2020,CEILING(H39*Para_simu!$Q$3*C40/360,0.05),IF(YEAR(A40)=2021,CEILING(H39*Para_simu!$Q$4*C40/360,0.05),IF(YEAR(A40)=2022,CEILING(H39*Para_simu!$Q$5*C40/360,0.05),CEILING(H39*'Simulation retraite'!$B$41*C40/360,0.05)))))) ->  | E40: =IF(A40="","",IF(OR('Simulation retraite'!$B$9="non",YEAR(A40)<=2021),IF(YEAR(A40)<2024,IF('Simulation retraite'!$B$8="Base",VLOOKUP(B40,Para_simu!$A$1:$I$55,2,FALSE),VLOOKUP(B40,Para_simu!$A$1:$I$55,3,FALSE)),IF('Simulation retraite'!$B$8="Base",VLOOKUP(B40,Para_simu!$A$1:$I$55,4,FALSE),VLOOKUP(B40,Para_simu!$A$1:$I$55,5,FALSE))),IF(YEAR(A40)<2024,IF('Simulation retraite'!$B$8="Base",VLOOKUP(B40,Para_simu!$A$1:$I$55,6,FALSE),VLOOKUP(B40,Para_simu!$A$1:$I$55,7,FALSE)),IF('Simulation retraite'!$B$8="Base",VLOOKUP(B40,Para_simu!$A$1:$I$55,8,FALSE),VLOOKUP(B40,Para_simu!$A$1:$I$55,9,FALSE))))) ->  | F40: =IF(A40="","",CEILING(E40*'Simulation retraite'!$B$10/12,0.05)*12*(C40/360)) ->  | I40: =IF(I39="","",IF(YEAR('Simulation retraite'!$B$24)-1=YEAR(I39),'Simulation retraite'!$B$24,IF(YEAR('Simulation retraite'!$B$24)-1<YEAR(I39),"",(EDATE(I39,12))))) -> 1935-12-31 | J40: =IF(I40="","",YEAR(I40)-YEAR('Simulation retraite'!$B$6)) -> -25 | K40: 360 | L40: =IF(I40="","",IF(YEAR(I40)=2020,CEILING(M39*Para_simu!$Q$3*K40/360,0.05),IF(YEAR(I40)=2021,CEILING(M39*Para_simu!$Q$4*K40/360,0.05),IF(YEAR(I40)=2022,CEILING(M39*Para_simu!$Q$5*K40/360,0.05),CEILING(M39*'Simulation retraite'!$B$41*K40/360,0.05))))) -> 0 | M40: 0 | P40: =IF(P39="","",IF(YEAR('Simulation retraite'!$B$24)-1=YEAR(P39),'Simulation retraite'!$B$24,IF(YEAR('Simulation retraite'!$B$24)-1<YEAR(P39),"",(EDATE(P39,12))))) ->  | Q40: =IF(P40="","",YEAR(P40)-YEAR('Simulation retraite'!$B$6)) ->  | S40: =IF(P40="","",IF(YEAR(P40)=2019,CEILING(Para_simu!$Q$2*W39*R40/360,0.05),IF(YEAR(P40)=2020,CEILING(W39*Para_simu!$Q$3*R40/360,0.05),IF(YEAR(P40)=2021,CEILING(W39*Para_simu!$Q$4*R40/360,0.05),IF(YEAR(P40)=2022,CEILING(W39*Para_simu!$Q$5*R40/360,0.05),CEILING(W39*'Simulation retraite'!$C$41*R40/360,0.05)))))) ->  | T40: =IF(P40="","",IF(OR('Simulation retraite'!$B$9="non",YEAR(P40)<=2021),IF(YEAR(P40)<2024,IF('Simulation retraite'!$B$8="Base",VLOOKUP(Q40,Para_simu!$A$1:$I$55,2,FALSE),VLOOKUP(Q40,Para_simu!$A$1:$I$55,3,FALSE)),IF('Simulation retraite'!$B$8="Base",VLOOKUP(Q40,Para_simu!$A$1:$I$55,4,FALSE),VLOOKUP(Q40,Para_simu!$A$1:$I$55,5,FALSE))),IF(YEAR(P40)<2024,IF('Simulation retraite'!$B$8="Base",VLOOKUP(Q40,Para_simu!$A$1:$I$55,6,FALSE),VLOOKUP(Q40,Para_simu!$A$1:$I$55,7,FALSE)),IF('Simulation retraite'!$B$8="Base",VLOOKUP(Q40,Para_simu!$A$1:$I$55,8,FALSE),VLOOKUP(Q40,Para_simu!$A$1:$I$55,9,FALSE))))) ->  | U40: =IF(P40="","",CEILING(T40*'Simulation retraite'!$B$10/12,0.05)*12*(R40/360)) ->  | X40: =IF(X39="","",IF(YEAR('Simulation retraite'!$B$24)-1=YEAR(X39),'Simulation retraite'!$B$24,IF(YEAR('Simulation retraite'!$B$24)-1<YEAR(X39),"",(EDATE(X39,12))))) -> 1935-12-31 | Y40: =IF(X40="","",YEAR(X40)-YEAR('Simulation retraite'!$B$6)) -> -25 | Z40: 360 | AA40: =IF(X40="","",IF(YEAR(X40)=2020,CEILING(AB39*Para_simu!$Q$3*Z40/360,0.05),IF(YEAR(X40)=2021,CEILING(AB39*Para_simu!$Q$4*Z40/360,0.05),IF(YEAR(X40)=2022,CEILING(AB39*Para_simu!$Q$5*Z40/360,0.05),CEILING(AB39*'Simulation retraite'!$C$41*Z40/360,0.05))))) -> 0 | AB40: 0 | AE40: =IF(AE39="","",IF(YEAR('Simulation retraite'!$B$24)-1=YEAR(AE39),'Simulation retraite'!$B$24,IF(YEAR('Simulation retraite'!$B$24)-1<YEAR(AE39),"",(EDATE(AE39,12))))) ->  | AF40: =IF(AE40="","",YEAR(AE40)-YEAR('Simulation retraite'!$B$6)) ->  | AH40: =IF(AE40="","",IF(YEAR(AE40)=2019,CEILING(Para_simu!$Q$2*AL39*AG40/360,0.05),IF(YEAR(AE40)=2020,CEILING(AL39*Para_simu!$Q$3*AG40/360,0.05),IF(YEAR(AE40)=2021,CEILING(AL39*Para_simu!$Q$4*AG40/360,0.05),IF(YEAR(AE40)=2022,CEILING(AL39*Para_simu!$Q$5*AG40/360,0.05),CEILING(AL39*'Simulation retraite'!$D$41*AG40/360,0.05)))))) ->  | AI40: =IF(AE40="","",IF(OR('Simulation retraite'!$B$9="non",YEAR(AE40)<=2021),IF(YEAR(AE40)<2024,IF('Simulation retraite'!$B$8="Base",VLOOKUP(AF40,Para_simu!$A$1:$I$55,2,FALSE),VLOOKUP(AF40,Para_simu!$A$1:$I$55,3,FALSE)),IF('Simulation retraite'!$B$8="Base",VLOOKUP(AF40,Para_simu!$A$1:$I$55,4,FALSE),VLOOKUP(AF40,Para_simu!$A$1:$I$55,5,FALSE))),IF(YEAR(AE40)<2024,IF('Simulation retraite'!$B$8="Base",VLOOKUP(AF40,Para_simu!$A$1:$I$55,6,FALSE),VLOOKUP(AF40,Para_simu!$A$1:$I$55,7,FALSE)),IF('Simulation retraite'!$B$8="Base",VLOOKUP(AF40,Para_simu!$A$1:$I$55,8,FALSE),VLOOKUP(AF40,Para_simu!$A$1:$I$55,9,FALSE))))) ->  | AJ40: =IF(AE40="","",CEILING(AI40*'Simulation retraite'!$B$10/12,0.05)*12*(AG40/360)) ->  | AM40: =IF(AM39="","",IF(YEAR('Simulation retraite'!$B$24)-1=YEAR(AM39),'Simulation retraite'!$B$24,IF(YEAR('Simulation retraite'!$B$24)-1<YEAR(AM39),"",(EDATE(AM39,12))))) -> 1935-12-31 | AN40: =IF(AM40="","",YEAR(AM40)-YEAR('Simulation retraite'!$B$6)) -> -25 | AO40: 360 | AP40: =IF(AM40="","",IF(YEAR(AM40)=2020,CEILING(AQ39*Para_simu!$Q$3*AO40/360,0.05),IF(YEAR(AM40)=2021,CEILING(AQ39*Para_simu!$Q$4*AO40/360,0.05),IF(YEAR(AM40)=2022,CEILING(AQ39*Para_simu!$Q$5*AO40/360,0.05),CEILING(AQ39*'Simulation retraite'!$D$41*AO40/360,0.05))))) -> 0 | AQ40: 0
A41: =IF(A40="","",IF(YEAR('Simulation retraite'!$B$24)-1=YEAR(A40),'Simulation retraite'!$B$24,IF(YEAR('Simulation retraite'!$B$24)-1<YEAR(A40),"",(EDATE(A40,12))))) ->  | B41: =IF(A41="","",YEAR(A41)-YEAR('Simulation retraite'!$B$6)) ->  | D41: =IF(A41="","",IF(YEAR(A41)=2019,CEILING(Para_simu!$Q$2*H40*C41/360,0.05),IF(YEAR(A41)=2020,CEILING(H40*Para_simu!$Q$3*C41/360,0.05),IF(YEAR(A41)=2021,CEILING(H40*Para_simu!$Q$4*C41/360,0.05),IF(YEAR(A41)=2022,CEILING(H40*Para_simu!$Q$5*C41/360,0.05),CEILING(H40*'Simulation retraite'!$B$41*C41/360,0.05)))))) ->  | E41: =IF(A41="","",IF(OR('Simulation retraite'!$B$9="non",YEAR(A41)<=2021),IF(YEAR(A41)<2024,IF('Simulation retraite'!$B$8="Base",VLOOKUP(B41,Para_simu!$A$1:$I$55,2,FALSE),VLOOKUP(B41,Para_simu!$A$1:$I$55,3,FALSE)),IF('Simulation retraite'!$B$8="Base",VLOOKUP(B41,Para_simu!$A$1:$I$55,4,FALSE),VLOOKUP(B41,Para_simu!$A$1:$I$55,5,FALSE))),IF(YEAR(A41)<2024,IF('Simulation retraite'!$B$8="Base",VLOOKUP(B41,Para_simu!$A$1:$I$55,6,FALSE),VLOOKUP(B41,Para_simu!$A$1:$I$55,7,FALSE)),IF('Simulation retraite'!$B$8="Base",VLOOKUP(B41,Para_simu!$A$1:$I$55,8,FALSE),VLOOKUP(B41,Para_simu!$A$1:$I$55,9,FALSE))))) ->  | F41: =IF(A41="","",CEILING(E41*'Simulation retraite'!$B$10/12,0.05)*12*(C41/360)) ->  | I41: =IF(I40="","",IF(YEAR('Simulation retraite'!$B$24)-1=YEAR(I40),'Simulation retraite'!$B$24,IF(YEAR('Simulation retraite'!$B$24)-1<YEAR(I40),"",(EDATE(I40,12))))) -> 1936-12-31 | J41: =IF(I41="","",YEAR(I41)-YEAR('Simulation retraite'!$B$6)) -> -24 | K41: 360 | L41: =IF(I41="","",IF(YEAR(I41)=2020,CEILING(M40*Para_simu!$Q$3*K41/360,0.05),IF(YEAR(I41)=2021,CEILING(M40*Para_simu!$Q$4*K41/360,0.05),IF(YEAR(I41)=2022,CEILING(M40*Para_simu!$Q$5*K41/360,0.05),CEILING(M40*'Simulation retraite'!$B$41*K41/360,0.05))))) -> 0 | M41: 0 | P41: =IF(P40="","",IF(YEAR('Simulation retraite'!$B$24)-1=YEAR(P40),'Simulation retraite'!$B$24,IF(YEAR('Simulation retraite'!$B$24)-1<YEAR(P40),"",(EDATE(P40,12))))) ->  | Q41: =IF(P41="","",YEAR(P41)-YEAR('Simulation retraite'!$B$6)) ->  | S41: =IF(P41="","",IF(YEAR(P41)=2019,CEILING(Para_simu!$Q$2*W40*R41/360,0.05),IF(YEAR(P41)=2020,CEILING(W40*Para_simu!$Q$3*R41/360,0.05),IF(YEAR(P41)=2021,CEILING(W40*Para_simu!$Q$4*R41/360,0.05),IF(YEAR(P41)=2022,CEILING(W40*Para_simu!$Q$5*R41/360,0.05),CEILING(W40*'Simulation retraite'!$C$41*R41/360,0.05)))))) ->  | T41: =IF(P41="","",IF(OR('Simulation retraite'!$B$9="non",YEAR(P41)<=2021),IF(YEAR(P41)<2024,IF('Simulation retraite'!$B$8="Base",VLOOKUP(Q41,Para_simu!$A$1:$I$55,2,FALSE),VLOOKUP(Q41,Para_simu!$A$1:$I$55,3,FALSE)),IF('Simulation retraite'!$B$8="Base",VLOOKUP(Q41,Para_simu!$A$1:$I$55,4,FALSE),VLOOKUP(Q41,Para_simu!$A$1:$I$55,5,FALSE))),IF(YEAR(P41)<2024,IF('Simulation retraite'!$B$8="Base",VLOOKUP(Q41,Para_simu!$A$1:$I$55,6,FALSE),VLOOKUP(Q41,Para_simu!$A$1:$I$55,7,FALSE)),IF('Simulation retraite'!$B$8="Base",VLOOKUP(Q41,Para_simu!$A$1:$I$55,8,FALSE),VLOOKUP(Q41,Para_simu!$A$1:$I$55,9,FALSE))))) ->  | U41: =IF(P41="","",CEILING(T41*'Simulation retraite'!$B$10/12,0.05)*12*(R41/360)) ->  | X41: =IF(X40="","",IF(YEAR('Simulation retraite'!$B$24)-1=YEAR(X40),'Simulation retraite'!$B$24,IF(YEAR('Simulation retraite'!$B$24)-1<YEAR(X40),"",(EDATE(X40,12))))) -> 1936-12-31 | Y41: =IF(X41="","",YEAR(X41)-YEAR('Simulation retraite'!$B$6)) -> -24 | Z41: 360 | AA41: =IF(X41="","",IF(YEAR(X41)=2020,CEILING(AB40*Para_simu!$Q$3*Z41/360,0.05),IF(YEAR(X41)=2021,CEILING(AB40*Para_simu!$Q$4*Z41/360,0.05),IF(YEAR(X41)=2022,CEILING(AB40*Para_simu!$Q$5*Z41/360,0.05),CEILING(AB40*'Simulation retraite'!$C$41*Z41/360,0.05))))) -> 0 | AB41: 0 | AE41: =IF(AE40="","",IF(YEAR('Simulation retraite'!$B$24)-1=YEAR(AE40),'Simulation retraite'!$B$24,IF(YEAR('Simulation retraite'!$B$24)-1<YEAR(AE40),"",(EDATE(AE40,12))))) ->  | AF41: =IF(AE41="","",YEAR(AE41)-YEAR('Simulation retraite'!$B$6)) ->  | AH41: =IF(AE41="","",IF(YEAR(AE41)=2019,CEILING(Para_simu!$Q$2*AL40*AG41/360,0.05),IF(YEAR(AE41)=2020,CEILING(AL40*Para_simu!$Q$3*AG41/360,0.05),IF(YEAR(AE41)=2021,CEILING(AL40*Para_simu!$Q$4*AG41/360,0.05),IF(YEAR(AE41)=2022,CEILING(AL40*Para_simu!$Q$5*AG41/360,0.05),CEILING(AL40*'Simulation retraite'!$D$41*AG41/360,0.05)))))) ->  | AI41: =IF(AE41="","",IF(OR('Simulation retraite'!$B$9="non",YEAR(AE41)<=2021),IF(YEAR(AE41)<2024,IF('Simulation retraite'!$B$8="Base",VLOOKUP(AF41,Para_simu!$A$1:$I$55,2,FALSE),VLOOKUP(AF41,Para_simu!$A$1:$I$55,3,FALSE)),IF('Simulation retraite'!$B$8="Base",VLOOKUP(AF41,Para_simu!$A$1:$I$55,4,FALSE),VLOOKUP(AF41,Para_simu!$A$1:$I$55,5,FALSE))),IF(YEAR(AE41)<2024,IF('Simulation retraite'!$B$8="Base",VLOOKUP(AF41,Para_simu!$A$1:$I$55,6,FALSE),VLOOKUP(AF41,Para_simu!$A$1:$I$55,7,FALSE)),IF('Simulation retraite'!$B$8="Base",VLOOKUP(AF41,Para_simu!$A$1:$I$55,8,FALSE),VLOOKUP(AF41,Para_simu!$A$1:$I$55,9,FALSE))))) ->  | AJ41: =IF(AE41="","",CEILING(AI41*'Simulation retraite'!$B$10/12,0.05)*12*(AG41/360)) ->  | AM41: =IF(AM40="","",IF(YEAR('Simulation retraite'!$B$24)-1=YEAR(AM40),'Simulation retraite'!$B$24,IF(YEAR('Simulation retraite'!$B$24)-1<YEAR(AM40),"",(EDATE(AM40,12))))) -> 1936-12-31 | AN41: =IF(AM41="","",YEAR(AM41)-YEAR('Simulation retraite'!$B$6)) -> -24 | AO41: 360 | AP41: =IF(AM41="","",IF(YEAR(AM41)=2020,CEILING(AQ40*Para_simu!$Q$3*AO41/360,0.05),IF(YEAR(AM41)=2021,CEILING(AQ40*Para_simu!$Q$4*AO41/360,0.05),IF(YEAR(AM41)=2022,CEILING(AQ40*Para_simu!$Q$5*AO41/360,0.05),CEILING(AQ40*'Simulation retraite'!$D$41*AO41/360,0.05))))) -> 0 | AQ41: 0
A42: =IF(A41="","",IF(YEAR('Simulation retraite'!$B$24)-1=YEAR(A41),'Simulation retraite'!$B$24,IF(YEAR('Simulation retraite'!$B$24)-1<YEAR(A41),"",(EDATE(A41,12))))) ->  | B42: =IF(A42="","",YEAR(A42)-YEAR('Simulation retraite'!$B$6)) ->  | D42: =IF(A42="","",IF(YEAR(A42)=2019,CEILING(Para_simu!$Q$2*H41*C42/360,0.05),IF(YEAR(A42)=2020,CEILING(H41*Para_simu!$Q$3*C42/360,0.05),IF(YEAR(A42)=2021,CEILING(H41*Para_simu!$Q$4*C42/360,0.05),IF(YEAR(A42)=2022,CEILING(H41*Para_simu!$Q$5*C42/360,0.05),CEILING(H41*'Simulation retraite'!$B$41*C42/360,0.05)))))) ->  | E42: =IF(A42="","",IF(OR('Simulation retraite'!$B$9="non",YEAR(A42)<=2021),IF(YEAR(A42)<2024,IF('Simulation retraite'!$B$8="Base",VLOOKUP(B42,Para_simu!$A$1:$I$55,2,FALSE),VLOOKUP(B42,Para_simu!$A$1:$I$55,3,FALSE)),IF('Simulation retraite'!$B$8="Base",VLOOKUP(B42,Para_simu!$A$1:$I$55,4,FALSE),VLOOKUP(B42,Para_simu!$A$1:$I$55,5,FALSE))),IF(YEAR(A42)<2024,IF('Simulation retraite'!$B$8="Base",VLOOKUP(B42,Para_simu!$A$1:$I$55,6,FALSE),VLOOKUP(B42,Para_simu!$A$1:$I$55,7,FALSE)),IF('Simulation retraite'!$B$8="Base",VLOOKUP(B42,Para_simu!$A$1:$I$55,8,FALSE),VLOOKUP(B42,Para_simu!$A$1:$I$55,9,FALSE))))) ->  | F42: =IF(A42="","",CEILING(E42*'Simulation retraite'!$B$10/12,0.05)*12*(C42/360)) ->  | I42: =IF(I41="","",IF(YEAR('Simulation retraite'!$B$24)-1=YEAR(I41),'Simulation retraite'!$B$24,IF(YEAR('Simulation retraite'!$B$24)-1<YEAR(I41),"",(EDATE(I41,12))))) -> 1937-12-31 | J42: =IF(I42="","",YEAR(I42)-YEAR('Simulation retraite'!$B$6)) -> -23 | K42: 360 | L42: =IF(I42="","",IF(YEAR(I42)=2020,CEILING(M41*Para_simu!$Q$3*K42/360,0.05),IF(YEAR(I42)=2021,CEILING(M41*Para_simu!$Q$4*K42/360,0.05),IF(YEAR(I42)=2022,CEILING(M41*Para_simu!$Q$5*K42/360,0.05),CEILING(M41*'Simulation retraite'!$B$41*K42/360,0.05))))) -> 0 | M42: 0 | P42: =IF(P41="","",IF(YEAR('Simulation retraite'!$B$24)-1=YEAR(P41),'Simulation retraite'!$B$24,IF(YEAR('Simulation retraite'!$B$24)-1<YEAR(P41),"",(EDATE(P41,12))))) ->  | Q42: =IF(P42="","",YEAR(P42)-YEAR('Simulation retraite'!$B$6)) ->  | S42: =IF(P42="","",IF(YEAR(P42)=2019,CEILING(Para_simu!$Q$2*W41*R42/360,0.05),IF(YEAR(P42)=2020,CEILING(W41*Para_simu!$Q$3*R42/360,0.05),IF(YEAR(P42)=2021,CEILING(W41*Para_simu!$Q$4*R42/360,0.05),IF(YEAR(P42)=2022,CEILING(W41*Para_simu!$Q$5*R42/360,0.05),CEILING(W41*'Simulation retraite'!$C$41*R42/360,0.05)))))) ->  | T42: =IF(P42="","",IF(OR('Simulation retraite'!$B$9="non",YEAR(P42)<=2021),IF(YEAR(P42)<2024,IF('Simulation retraite'!$B$8="Base",VLOOKUP(Q42,Para_simu!$A$1:$I$55,2,FALSE),VLOOKUP(Q42,Para_simu!$A$1:$I$55,3,FALSE)),IF('Simulation retraite'!$B$8="Base",VLOOKUP(Q42,Para_simu!$A$1:$I$55,4,FALSE),VLOOKUP(Q42,Para_simu!$A$1:$I$55,5,FALSE))),IF(YEAR(P42)<2024,IF('Simulation retraite'!$B$8="Base",VLOOKUP(Q42,Para_simu!$A$1:$I$55,6,FALSE),VLOOKUP(Q42,Para_simu!$A$1:$I$55,7,FALSE)),IF('Simulation retraite'!$B$8="Base",VLOOKUP(Q42,Para_simu!$A$1:$I$55,8,FALSE),VLOOKUP(Q42,Para_simu!$A$1:$I$55,9,FALSE))))) ->  | U42: =IF(P42="","",CEILING(T42*'Simulation retraite'!$B$10/12,0.05)*12*(R42/360)) ->  | X42: =IF(X41="","",IF(YEAR('Simulation retraite'!$B$24)-1=YEAR(X41),'Simulation retraite'!$B$24,IF(YEAR('Simulation retraite'!$B$24)-1<YEAR(X41),"",(EDATE(X41,12))))) -> 1937-12-31 | Y42: =IF(X42="","",YEAR(X42)-YEAR('Simulation retraite'!$B$6)) -> -23 | Z42: 360 | AA42: =IF(X42="","",IF(YEAR(X42)=2020,CEILING(AB41*Para_simu!$Q$3*Z42/360,0.05),IF(YEAR(X42)=2021,CEILING(AB41*Para_simu!$Q$4*Z42/360,0.05),IF(YEAR(X42)=2022,CEILING(AB41*Para_simu!$Q$5*Z42/360,0.05),CEILING(AB41*'Simulation retraite'!$C$41*Z42/360,0.05))))) -> 0 | AB42: 0 | AE42: =IF(AE41="","",IF(YEAR('Simulation retraite'!$B$24)-1=YEAR(AE41),'Simulation retraite'!$B$24,IF(YEAR('Simulation retraite'!$B$24)-1<YEAR(AE41),"",(EDATE(AE41,12))))) ->  | AF42: =IF(AE42="","",YEAR(AE42)-YEAR('Simulation retraite'!$B$6)) ->  | AH42: =IF(AE42="","",IF(YEAR(AE42)=2019,CEILING(Para_simu!$Q$2*AL41*AG42/360,0.05),IF(YEAR(AE42)=2020,CEILING(AL41*Para_simu!$Q$3*AG42/360,0.05),IF(YEAR(AE42)=2021,CEILING(AL41*Para_simu!$Q$4*AG42/360,0.05),IF(YEAR(AE42)=2022,CEILING(AL41*Para_simu!$Q$5*AG42/360,0.05),CEILING(AL41*'Simulation retraite'!$D$41*AG42/360,0.05)))))) ->  | AI42: =IF(AE42="","",IF(OR('Simulation retraite'!$B$9="non",YEAR(AE42)<=2021),IF(YEAR(AE42)<2024,IF('Simulation retraite'!$B$8="Base",VLOOKUP(AF42,Para_simu!$A$1:$I$55,2,FALSE),VLOOKUP(AF42,Para_simu!$A$1:$I$55,3,FALSE)),IF('Simulation retraite'!$B$8="Base",VLOOKUP(AF42,Para_simu!$A$1:$I$55,4,FALSE),VLOOKUP(AF42,Para_simu!$A$1:$I$55,5,FALSE))),IF(YEAR(AE42)<2024,IF('Simulation retraite'!$B$8="Base",VLOOKUP(AF42,Para_simu!$A$1:$I$55,6,FALSE),VLOOKUP(AF42,Para_simu!$A$1:$I$55,7,FALSE)),IF('Simulation retraite'!$B$8="Base",VLOOKUP(AF42,Para_simu!$A$1:$I$55,8,FALSE),VLOOKUP(AF42,Para_simu!$A$1:$I$55,9,FALSE))))) ->  | AJ42: =IF(AE42="","",CEILING(AI42*'Simulation retraite'!$B$10/12,0.05)*12*(AG42/360)) ->  | AM42: =IF(AM41="","",IF(YEAR('Simulation retraite'!$B$24)-1=YEAR(AM41),'Simulation retraite'!$B$24,IF(YEAR('Simulation retraite'!$B$24)-1<YEAR(AM41),"",(EDATE(AM41,12))))) -> 1937-12-31 | AN42: =IF(AM42="","",YEAR(AM42)-YEAR('Simulation retraite'!$B$6)) -> -23 | AO42: 360 | AP42: =IF(AM42="","",IF(YEAR(AM42)=2020,CEILING(AQ41*Para_simu!$Q$3*AO42/360,0.05),IF(YEAR(AM42)=2021,CEILING(AQ41*Para_simu!$Q$4*AO42/360,0.05),IF(YEAR(AM42)=2022,CEILING(AQ41*Para_simu!$Q$5*AO42/360,0.05),CEILING(AQ41*'Simulation retraite'!$D$41*AO42/360,0.05))))) -> 0 | AQ42: 0
A43: =IF(A42="","",IF(YEAR('Simulation retraite'!$B$24)-1=YEAR(A42),'Simulation retraite'!$B$24,IF(YEAR('Simulation retraite'!$B$24)-1<YEAR(A42),"",(EDATE(A42,12))))) ->  | B43: =IF(A43="","",YEAR(A43)-YEAR('Simulation retraite'!$B$6)) ->  | D43: =IF(A43="","",IF(YEAR(A43)=2019,CEILING(Para_simu!$Q$2*H42*C43/360,0.05),IF(YEAR(A43)=2020,CEILING(H42*Para_simu!$Q$3*C43/360,0.05),IF(YEAR(A43)=2021,CEILING(H42*Para_simu!$Q$4*C43/360,0.05),IF(YEAR(A43)=2022,CEILING(H42*Para_simu!$Q$5*C43/360,0.05),CEILING(H42*'Simulation retraite'!$B$41*C43/360,0.05)))))) ->  | E43: =IF(A43="","",IF(OR('Simulation retraite'!$B$9="non",YEAR(A43)<=2021),IF(YEAR(A43)<2024,IF('Simulation retraite'!$B$8="Base",VLOOKUP(B43,Para_simu!$A$1:$I$55,2,FALSE),VLOOKUP(B43,Para_simu!$A$1:$I$55,3,FALSE)),IF('Simulation retraite'!$B$8="Base",VLOOKUP(B43,Para_simu!$A$1:$I$55,4,FALSE),VLOOKUP(B43,Para_simu!$A$1:$I$55,5,FALSE))),IF(YEAR(A43)<2024,IF('Simulation retraite'!$B$8="Base",VLOOKUP(B43,Para_simu!$A$1:$I$55,6,FALSE),VLOOKUP(B43,Para_simu!$A$1:$I$55,7,FALSE)),IF('Simulation retraite'!$B$8="Base",VLOOKUP(B43,Para_simu!$A$1:$I$55,8,FALSE),VLOOKUP(B43,Para_simu!$A$1:$I$55,9,FALSE))))) ->  | F43: =IF(A43="","",CEILING(E43*'Simulation retraite'!$B$10/12,0.05)*12*(C43/360)) ->  | I43: =IF(I42="","",IF(YEAR('Simulation retraite'!$B$24)-1=YEAR(I42),'Simulation retraite'!$B$24,IF(YEAR('Simulation retraite'!$B$24)-1<YEAR(I42),"",(EDATE(I42,12))))) -> 1938-12-31 | J43: =IF(I43="","",YEAR(I43)-YEAR('Simulation retraite'!$B$6)) -> -22 | K43: 360 | L43: =IF(I43="","",IF(YEAR(I43)=2020,CEILING(M42*Para_simu!$Q$3*K43/360,0.05),IF(YEAR(I43)=2021,CEILING(M42*Para_simu!$Q$4*K43/360,0.05),IF(YEAR(I43)=2022,CEILING(M42*Para_simu!$Q$5*K43/360,0.05),CEILING(M42*'Simulation retraite'!$B$41*K43/360,0.05))))) -> 0 | M43: 0 | P43: =IF(P42="","",IF(YEAR('Simulation retraite'!$B$24)-1=YEAR(P42),'Simulation retraite'!$B$24,IF(YEAR('Simulation retraite'!$B$24)-1<YEAR(P42),"",(EDATE(P42,12))))) ->  | Q43: =IF(P43="","",YEAR(P43)-YEAR('Simulation retraite'!$B$6)) ->  | S43: =IF(P43="","",IF(YEAR(P43)=2019,CEILING(Para_simu!$Q$2*W42*R43/360,0.05),IF(YEAR(P43)=2020,CEILING(W42*Para_simu!$Q$3*R43/360,0.05),IF(YEAR(P43)=2021,CEILING(W42*Para_simu!$Q$4*R43/360,0.05),IF(YEAR(P43)=2022,CEILING(W42*Para_simu!$Q$5*R43/360,0.05),CEILING(W42*'Simulation retraite'!$C$41*R43/360,0.05)))))) ->  | T43: =IF(P43="","",IF(OR('Simulation retraite'!$B$9="non",YEAR(P43)<=2021),IF(YEAR(P43)<2024,IF('Simulation retraite'!$B$8="Base",VLOOKUP(Q43,Para_simu!$A$1:$I$55,2,FALSE),VLOOKUP(Q43,Para_simu!$A$1:$I$55,3,FALSE)),IF('Simulation retraite'!$B$8="Base",VLOOKUP(Q43,Para_simu!$A$1:$I$55,4,FALSE),VLOOKUP(Q43,Para_simu!$A$1:$I$55,5,FALSE))),IF(YEAR(P43)<2024,IF('Simulation retraite'!$B$8="Base",VLOOKUP(Q43,Para_simu!$A$1:$I$55,6,FALSE),VLOOKUP(Q43,Para_simu!$A$1:$I$55,7,FALSE)),IF('Simulation retraite'!$B$8="Base",VLOOKUP(Q43,Para_simu!$A$1:$I$55,8,FALSE),VLOOKUP(Q43,Para_simu!$A$1:$I$55,9,FALSE))))) ->  | U43: =IF(P43="","",CEILING(T43*'Simulation retraite'!$B$10/12,0.05)*12*(R43/360)) ->  | X43: =IF(X42="","",IF(YEAR('Simulation retraite'!$B$24)-1=YEAR(X42),'Simulation retraite'!$B$24,IF(YEAR('Simulation retraite'!$B$24)-1<YEAR(X42),"",(EDATE(X42,12))))) -> 1938-12-31 | Y43: =IF(X43="","",YEAR(X43)-YEAR('Simulation retraite'!$B$6)) -> -22 | Z43: 360 | AA43: =IF(X43="","",IF(YEAR(X43)=2020,CEILING(AB42*Para_simu!$Q$3*Z43/360,0.05),IF(YEAR(X43)=2021,CEILING(AB42*Para_simu!$Q$4*Z43/360,0.05),IF(YEAR(X43)=2022,CEILING(AB42*Para_simu!$Q$5*Z43/360,0.05),CEILING(AB42*'Simulation retraite'!$C$41*Z43/360,0.05))))) -> 0 | AB43: 0 | AE43: =IF(AE42="","",IF(YEAR('Simulation retraite'!$B$24)-1=YEAR(AE42),'Simulation retraite'!$B$24,IF(YEAR('Simulation retraite'!$B$24)-1<YEAR(AE42),"",(EDATE(AE42,12))))) ->  | AF43: =IF(AE43="","",YEAR(AE43)-YEAR('Simulation retraite'!$B$6)) ->  | AH43: =IF(AE43="","",IF(YEAR(AE43)=2019,CEILING(Para_simu!$Q$2*AL42*AG43/360,0.05),IF(YEAR(AE43)=2020,CEILING(AL42*Para_simu!$Q$3*AG43/360,0.05),IF(YEAR(AE43)=2021,CEILING(AL42*Para_simu!$Q$4*AG43/360,0.05),IF(YEAR(AE43)=2022,CEILING(AL42*Para_simu!$Q$5*AG43/360,0.05),CEILING(AL42*'Simulation retraite'!$D$41*AG43/360,0.05)))))) ->  | AI43: =IF(AE43="","",IF(OR('Simulation retraite'!$B$9="non",YEAR(AE43)<=2021),IF(YEAR(AE43)<2024,IF('Simulation retraite'!$B$8="Base",VLOOKUP(AF43,Para_simu!$A$1:$I$55,2,FALSE),VLOOKUP(AF43,Para_simu!$A$1:$I$55,3,FALSE)),IF('Simulation retraite'!$B$8="Base",VLOOKUP(AF43,Para_simu!$A$1:$I$55,4,FALSE),VLOOKUP(AF43,Para_simu!$A$1:$I$55,5,FALSE))),IF(YEAR(AE43)<2024,IF('Simulation retraite'!$B$8="Base",VLOOKUP(AF43,Para_simu!$A$1:$I$55,6,FALSE),VLOOKUP(AF43,Para_simu!$A$1:$I$55,7,FALSE)),IF('Simulation retraite'!$B$8="Base",VLOOKUP(AF43,Para_simu!$A$1:$I$55,8,FALSE),VLOOKUP(AF43,Para_simu!$A$1:$I$55,9,FALSE))))) ->  | AJ43: =IF(AE43="","",CEILING(AI43*'Simulation retraite'!$B$10/12,0.05)*12*(AG43/360)) ->  | AM43: =IF(AM42="","",IF(YEAR('Simulation retraite'!$B$24)-1=YEAR(AM42),'Simulation retraite'!$B$24,IF(YEAR('Simulation retraite'!$B$24)-1<YEAR(AM42),"",(EDATE(AM42,12))))) -> 1938-12-31 | AN43: =IF(AM43="","",YEAR(AM43)-YEAR('Simulation retraite'!$B$6)) -> -22 | AO43: 360 | AP43: =IF(AM43="","",IF(YEAR(AM43)=2020,CEILING(AQ42*Para_simu!$Q$3*AO43/360,0.05),IF(YEAR(AM43)=2021,CEILING(AQ42*Para_simu!$Q$4*AO43/360,0.05),IF(YEAR(AM43)=2022,CEILING(AQ42*Para_simu!$Q$5*AO43/360,0.05),CEILING(AQ42*'Simulation retraite'!$D$41*AO43/360,0.05))))) -> 0 | AQ43: 0
A44: =IF(A43="","",IF(YEAR('Simulation retraite'!$B$24)-1=YEAR(A43),'Simulation retraite'!$B$24,IF(YEAR('Simulation retraite'!$B$24)-1<YEAR(A43),"",(EDATE(A43,12))))) ->  | B44: =IF(A44="","",YEAR(A44)-YEAR('Simulation retraite'!$B$6)) ->  | D44: =IF(A44="","",IF(YEAR(A44)=2019,CEILING(Para_simu!$Q$2*H43*C44/360,0.05),IF(YEAR(A44)=2020,CEILING(H43*Para_simu!$Q$3*C44/360,0.05),IF(YEAR(A44)=2021,CEILING(H43*Para_simu!$Q$4*C44/360,0.05),IF(YEAR(A44)=2022,CEILING(H43*Para_simu!$Q$5*C44/360,0.05),CEILING(H43*'Simulation retraite'!$B$41*C44/360,0.05)))))) ->  | E44: =IF(A44="","",IF(OR('Simulation retraite'!$B$9="non",YEAR(A44)<=2021),IF(YEAR(A44)<2024,IF('Simulation retraite'!$B$8="Base",VLOOKUP(B44,Para_simu!$A$1:$I$55,2,FALSE),VLOOKUP(B44,Para_simu!$A$1:$I$55,3,FALSE)),IF('Simulation retraite'!$B$8="Base",VLOOKUP(B44,Para_simu!$A$1:$I$55,4,FALSE),VLOOKUP(B44,Para_simu!$A$1:$I$55,5,FALSE))),IF(YEAR(A44)<2024,IF('Simulation retraite'!$B$8="Base",VLOOKUP(B44,Para_simu!$A$1:$I$55,6,FALSE),VLOOKUP(B44,Para_simu!$A$1:$I$55,7,FALSE)),IF('Simulation retraite'!$B$8="Base",VLOOKUP(B44,Para_simu!$A$1:$I$55,8,FALSE),VLOOKUP(B44,Para_simu!$A$1:$I$55,9,FALSE))))) ->  | F44: =IF(A44="","",CEILING(E44*'Simulation retraite'!$B$10/12,0.05)*12*(C44/360)) ->  | I44: =IF(I43="","",IF(YEAR('Simulation retraite'!$B$24)-1=YEAR(I43),'Simulation retraite'!$B$24,IF(YEAR('Simulation retraite'!$B$24)-1<YEAR(I43),"",(EDATE(I43,12))))) -> 1939-12-31 | J44: =IF(I44="","",YEAR(I44)-YEAR('Simulation retraite'!$B$6)) -> -21 | K44: 360 | L44: =IF(I44="","",IF(YEAR(I44)=2020,CEILING(M43*Para_simu!$Q$3*K44/360,0.05),IF(YEAR(I44)=2021,CEILING(M43*Para_simu!$Q$4*K44/360,0.05),IF(YEAR(I44)=2022,CEILING(M43*Para_simu!$Q$5*K44/360,0.05),CEILING(M43*'Simulation retraite'!$B$41*K44/360,0.05))))) -> 0 | M44: 0 | P44: =IF(P43="","",IF(YEAR('Simulation retraite'!$B$24)-1=YEAR(P43),'Simulation retraite'!$B$24,IF(YEAR('Simulation retraite'!$B$24)-1<YEAR(P43),"",(EDATE(P43,12))))) ->  | Q44: =IF(P44="","",YEAR(P44)-YEAR('Simulation retraite'!$B$6)) ->  | S44: =IF(P44="","",IF(YEAR(P44)=2019,CEILING(Para_simu!$Q$2*W43*R44/360,0.05),IF(YEAR(P44)=2020,CEILING(W43*Para_simu!$Q$3*R44/360,0.05),IF(YEAR(P44)=2021,CEILING(W43*Para_simu!$Q$4*R44/360,0.05),IF(YEAR(P44)=2022,CEILING(W43*Para_simu!$Q$5*R44/360,0.05),CEILING(W43*'Simulation retraite'!$C$41*R44/360,0.05)))))) ->  | T44: =IF(P44="","",IF(OR('Simulation retraite'!$B$9="non",YEAR(P44)<=2021),IF(YEAR(P44)<2024,IF('Simulation retraite'!$B$8="Base",VLOOKUP(Q44,Para_simu!$A$1:$I$55,2,FALSE),VLOOKUP(Q44,Para_simu!$A$1:$I$55,3,FALSE)),IF('Simulation retraite'!$B$8="Base",VLOOKUP(Q44,Para_simu!$A$1:$I$55,4,FALSE),VLOOKUP(Q44,Para_simu!$A$1:$I$55,5,FALSE))),IF(YEAR(P44)<2024,IF('Simulation retraite'!$B$8="Base",VLOOKUP(Q44,Para_simu!$A$1:$I$55,6,FALSE),VLOOKUP(Q44,Para_simu!$A$1:$I$55,7,FALSE)),IF('Simulation retraite'!$B$8="Base",VLOOKUP(Q44,Para_simu!$A$1:$I$55,8,FALSE),VLOOKUP(Q44,Para_simu!$A$1:$I$55,9,FALSE))))) ->  | U44: =IF(P44="","",CEILING(T44*'Simulation retraite'!$B$10/12,0.05)*12*(R44/360)) ->  | X44: =IF(X43="","",IF(YEAR('Simulation retraite'!$B$24)-1=YEAR(X43),'Simulation retraite'!$B$24,IF(YEAR('Simulation retraite'!$B$24)-1<YEAR(X43),"",(EDATE(X43,12))))) -> 1939-12-31 | Y44: =IF(X44="","",YEAR(X44)-YEAR('Simulation retraite'!$B$6)) -> -21 | Z44: 360 | AA44: =IF(X44="","",IF(YEAR(X44)=2020,CEILING(AB43*Para_simu!$Q$3*Z44/360,0.05),IF(YEAR(X44)=2021,CEILING(AB43*Para_simu!$Q$4*Z44/360,0.05),IF(YEAR(X44)=2022,CEILING(AB43*Para_simu!$Q$5*Z44/360,0.05),CEILING(AB43*'Simulation retraite'!$C$41*Z44/360,0.05))))) -> 0 | AB44: 0 | AE44: =IF(AE43="","",IF(YEAR('Simulation retraite'!$B$24)-1=YEAR(AE43),'Simulation retraite'!$B$24,IF(YEAR('Simulation retraite'!$B$24)-1<YEAR(AE43),"",(EDATE(AE43,12))))) ->  | AF44: =IF(AE44="","",YEAR(AE44)-YEAR('Simulation retraite'!$B$6)) ->  | AH44: =IF(AE44="","",IF(YEAR(AE44)=2019,CEILING(Para_simu!$Q$2*AL43*AG44/360,0.05),IF(YEAR(AE44)=2020,CEILING(AL43*Para_simu!$Q$3*AG44/360,0.05),IF(YEAR(AE44)=2021,CEILING(AL43*Para_simu!$Q$4*AG44/360,0.05),IF(YEAR(AE44)=2022,CEILING(AL43*Para_simu!$Q$5*AG44/360,0.05),CEILING(AL43*'Simulation retraite'!$D$41*AG44/360,0.05)))))) ->  | AI44: =IF(AE44="","",IF(OR('Simulation retraite'!$B$9="non",YEAR(AE44)<=2021),IF(YEAR(AE44)<2024,IF('Simulation retraite'!$B$8="Base",VLOOKUP(AF44,Para_simu!$A$1:$I$55,2,FALSE),VLOOKUP(AF44,Para_simu!$A$1:$I$55,3,FALSE)),IF('Simulation retraite'!$B$8="Base",VLOOKUP(AF44,Para_simu!$A$1:$I$55,4,FALSE),VLOOKUP(AF44,Para_simu!$A$1:$I$55,5,FALSE))),IF(YEAR(AE44)<2024,IF('Simulation retraite'!$B$8="Base",VLOOKUP(AF44,Para_simu!$A$1:$I$55,6,FALSE),VLOOKUP(AF44,Para_simu!$A$1:$I$55,7,FALSE)),IF('Simulation retraite'!$B$8="Base",VLOOKUP(AF44,Para_simu!$A$1:$I$55,8,FALSE),VLOOKUP(AF44,Para_simu!$A$1:$I$55,9,FALSE))))) ->  | AJ44: =IF(AE44="","",CEILING(AI44*'Simulation retraite'!$B$10/12,0.05)*12*(AG44/360)) ->  | AM44: =IF(AM43="","",IF(YEAR('Simulation retraite'!$B$24)-1=YEAR(AM43),'Simulation retraite'!$B$24,IF(YEAR('Simulation retraite'!$B$24)-1<YEAR(AM43),"",(EDATE(AM43,12))))) -> 1939-12-31 | AN44: =IF(AM44="","",YEAR(AM44)-YEAR('Simulation retraite'!$B$6)) -> -21 | AO44: 360 | AP44: =IF(AM44="","",IF(YEAR(AM44)=2020,CEILING(AQ43*Para_simu!$Q$3*AO44/360,0.05),IF(YEAR(AM44)=2021,CEILING(AQ43*Para_simu!$Q$4*AO44/360,0.05),IF(YEAR(AM44)=2022,CEILING(AQ43*Para_simu!$Q$5*AO44/360,0.05),CEILING(AQ43*'Simulation retraite'!$D$41*AO44/360,0.05))))) -> 0 | AQ44: 0
A45: =IF(A44="","",IF(YEAR('Simulation retraite'!$B$24)-1=YEAR(A44),'Simulation retraite'!$B$24,IF(YEAR('Simulation retraite'!$B$24)-1<YEAR(A44),"",(EDATE(A44,12))))) ->  | B45: =IF(A45="","",YEAR(A45)-YEAR('Simulation retraite'!$B$6)) ->  | D45: =IF(A45="","",IF(YEAR(A45)=2019,CEILING(Para_simu!$Q$2*H44*C45/360,0.05),IF(YEAR(A45)=2020,CEILING(H44*Para_simu!$Q$3*C45/360,0.05),IF(YEAR(A45)=2021,CEILING(H44*Para_simu!$Q$4*C45/360,0.05),IF(YEAR(A45)=2022,CEILING(H44*Para_simu!$Q$5*C45/360,0.05),CEILING(H44*'Simulation retraite'!$B$41*C45/360,0.05)))))) ->  | E45: =IF(A45="","",IF(OR('Simulation retraite'!$B$9="non",YEAR(A45)<=2021),IF(YEAR(A45)<2024,IF('Simulation retraite'!$B$8="Base",VLOOKUP(B45,Para_simu!$A$1:$I$55,2,FALSE),VLOOKUP(B45,Para_simu!$A$1:$I$55,3,FALSE)),IF('Simulation retraite'!$B$8="Base",VLOOKUP(B45,Para_simu!$A$1:$I$55,4,FALSE),VLOOKUP(B45,Para_simu!$A$1:$I$55,5,FALSE))),IF(YEAR(A45)<2024,IF('Simulation retraite'!$B$8="Base",VLOOKUP(B45,Para_simu!$A$1:$I$55,6,FALSE),VLOOKUP(B45,Para_simu!$A$1:$I$55,7,FALSE)),IF('Simulation retraite'!$B$8="Base",VLOOKUP(B45,Para_simu!$A$1:$I$55,8,FALSE),VLOOKUP(B45,Para_simu!$A$1:$I$55,9,FALSE))))) ->  | F45: =IF(A45="","",CEILING(E45*'Simulation retraite'!$B$10/12,0.05)*12*(C45/360)) ->  | I45: =IF(I44="","",IF(YEAR('Simulation retraite'!$B$24)-1=YEAR(I44),'Simulation retraite'!$B$24,IF(YEAR('Simulation retraite'!$B$24)-1<YEAR(I44),"",(EDATE(I44,12))))) -> 1940-12-31 | J45: =IF(I45="","",YEAR(I45)-YEAR('Simulation retraite'!$B$6)) -> -20 | K45: 360 | L45: =IF(I45="","",IF(YEAR(I45)=2020,CEILING(M44*Para_simu!$Q$3*K45/360,0.05),IF(YEAR(I45)=2021,CEILING(M44*Para_simu!$Q$4*K45/360,0.05),IF(YEAR(I45)=2022,CEILING(M44*Para_simu!$Q$5*K45/360,0.05),CEILING(M44*'Simulation retraite'!$B$41*K45/360,0.05))))) -> 0 | M45: 0 | P45: =IF(P44="","",IF(YEAR('Simulation retraite'!$B$24)-1=YEAR(P44),'Simulation retraite'!$B$24,IF(YEAR('Simulation retraite'!$B$24)-1<YEAR(P44),"",(EDATE(P44,12))))) ->  | Q45: =IF(P45="","",YEAR(P45)-YEAR('Simulation retraite'!$B$6)) ->  | S45: =IF(P45="","",IF(YEAR(P45)=2019,CEILING(Para_simu!$Q$2*W44*R45/360,0.05),IF(YEAR(P45)=2020,CEILING(W44*Para_simu!$Q$3*R45/360,0.05),IF(YEAR(P45)=2021,CEILING(W44*Para_simu!$Q$4*R45/360,0.05),IF(YEAR(P45)=2022,CEILING(W44*Para_simu!$Q$5*R45/360,0.05),CEILING(W44*'Simulation retraite'!$C$41*R45/360,0.05)))))) ->  | T45: =IF(P45="","",IF(OR('Simulation retraite'!$B$9="non",YEAR(P45)<=2021),IF(YEAR(P45)<2024,IF('Simulation retraite'!$B$8="Base",VLOOKUP(Q45,Para_simu!$A$1:$I$55,2,FALSE),VLOOKUP(Q45,Para_simu!$A$1:$I$55,3,FALSE)),IF('Simulation retraite'!$B$8="Base",VLOOKUP(Q45,Para_simu!$A$1:$I$55,4,FALSE),VLOOKUP(Q45,Para_simu!$A$1:$I$55,5,FALSE))),IF(YEAR(P45)<2024,IF('Simulation retraite'!$B$8="Base",VLOOKUP(Q45,Para_simu!$A$1:$I$55,6,FALSE),VLOOKUP(Q45,Para_simu!$A$1:$I$55,7,FALSE)),IF('Simulation retraite'!$B$8="Base",VLOOKUP(Q45,Para_simu!$A$1:$I$55,8,FALSE),VLOOKUP(Q45,Para_simu!$A$1:$I$55,9,FALSE))))) ->  | U45: =IF(P45="","",CEILING(T45*'Simulation retraite'!$B$10/12,0.05)*12*(R45/360)) ->  | X45: =IF(X44="","",IF(YEAR('Simulation retraite'!$B$24)-1=YEAR(X44),'Simulation retraite'!$B$24,IF(YEAR('Simulation retraite'!$B$24)-1<YEAR(X44),"",(EDATE(X44,12))))) -> 1940-12-31 | Y45: =IF(X45="","",YEAR(X45)-YEAR('Simulation retraite'!$B$6)) -> -20 | Z45: 360 | AA45: =IF(X45="","",IF(YEAR(X45)=2020,CEILING(AB44*Para_simu!$Q$3*Z45/360,0.05),IF(YEAR(X45)=2021,CEILING(AB44*Para_simu!$Q$4*Z45/360,0.05),IF(YEAR(X45)=2022,CEILING(AB44*Para_simu!$Q$5*Z45/360,0.05),CEILING(AB44*'Simulation retraite'!$C$41*Z45/360,0.05))))) -> 0 | AB45: 0 | AE45: =IF(AE44="","",IF(YEAR('Simulation retraite'!$B$24)-1=YEAR(AE44),'Simulation retraite'!$B$24,IF(YEAR('Simulation retraite'!$B$24)-1<YEAR(AE44),"",(EDATE(AE44,12))))) ->  | AF45: =IF(AE45="","",YEAR(AE45)-YEAR('Simulation retraite'!$B$6)) ->  | AH45: =IF(AE45="","",IF(YEAR(AE45)=2019,CEILING(Para_simu!$Q$2*AL44*AG45/360,0.05),IF(YEAR(AE45)=2020,CEILING(AL44*Para_simu!$Q$3*AG45/360,0.05),IF(YEAR(AE45)=2021,CEILING(AL44*Para_simu!$Q$4*AG45/360,0.05),IF(YEAR(AE45)=2022,CEILING(AL44*Para_simu!$Q$5*AG45/360,0.05),CEILING(AL44*'Simulation retraite'!$D$41*AG45/360,0.05)))))) ->  | AI45: =IF(AE45="","",IF(OR('Simulation retraite'!$B$9="non",YEAR(AE45)<=2021),IF(YEAR(AE45)<2024,IF('Simulation retraite'!$B$8="Base",VLOOKUP(AF45,Para_simu!$A$1:$I$55,2,FALSE),VLOOKUP(AF45,Para_simu!$A$1:$I$55,3,FALSE)),IF('Simulation retraite'!$B$8="Base",VLOOKUP(AF45,Para_simu!$A$1:$I$55,4,FALSE),VLOOKUP(AF45,Para_simu!$A$1:$I$55,5,FALSE))),IF(YEAR(AE45)<2024,IF('Simulation retraite'!$B$8="Base",VLOOKUP(AF45,Para_simu!$A$1:$I$55,6,FALSE),VLOOKUP(AF45,Para_simu!$A$1:$I$55,7,FALSE)),IF('Simulation retraite'!$B$8="Base",VLOOKUP(AF45,Para_simu!$A$1:$I$55,8,FALSE),VLOOKUP(AF45,Para_simu!$A$1:$I$55,9,FALSE))))) ->  | AJ45: =IF(AE45="","",CEILING(AI45*'Simulation retraite'!$B$10/12,0.05)*12*(AG45/360)) ->  | AM45: =IF(AM44="","",IF(YEAR('Simulation retraite'!$B$24)-1=YEAR(AM44),'Simulation retraite'!$B$24,IF(YEAR('Simulation retraite'!$B$24)-1<YEAR(AM44),"",(EDATE(AM44,12))))) -> 1940-12-31 | AN45: =IF(AM45="","",YEAR(AM45)-YEAR('Simulation retraite'!$B$6)) -> -20 | AO45: 360 | AP45: =IF(AM45="","",IF(YEAR(AM45)=2020,CEILING(AQ44*Para_simu!$Q$3*AO45/360,0.05),IF(YEAR(AM45)=2021,CEILING(AQ44*Para_simu!$Q$4*AO45/360,0.05),IF(YEAR(AM45)=2022,CEILING(AQ44*Para_simu!$Q$5*AO45/360,0.05),CEILING(AQ44*'Simulation retraite'!$D$41*AO45/360,0.05))))) -> 0 | AQ45: 0
A46: =IF(A45="","",IF(YEAR('Simulation retraite'!$B$24)-1=YEAR(A45),'Simulation retraite'!$B$24,IF(YEAR('Simulation retraite'!$B$24)-1<YEAR(A45),"",(EDATE(A45,12))))) ->  | B46: =IF(A46="","",YEAR(A46)-YEAR('Simulation retraite'!$B$6)) ->  | C46: =IF(A46="","",IF(DAY(A46)=1,DAYS360(A45,A46)-1,DAYS360(A45,A46))) ->  | D46: =IF(A46="","",IF(YEAR(A46)=2019,CEILING(Para_simu!$Q$2*H45*C46/360,0.05),IF(YEAR(A46)=2020,CEILING(H45*Para_simu!$Q$3*C46/360,0.05),IF(YEAR(A46)=2021,CEILING(H45*Para_simu!$Q$4*C46/360,0.05),IF(YEAR(A46)=2022,CEILING(H45*Para_simu!$Q$5*C46/360,0.05),CEILING(H45*'Simulation retraite'!$B$41*C46/360,0.05)))))) ->  | E46: =IF(A46="","",IF(OR('Simulation retraite'!$B$9="non",YEAR(A46)<=2021),IF(YEAR(A46)<2024,IF('Simulation retraite'!$B$8="Base",VLOOKUP(B46,Para_simu!$A$1:$I$55,2,FALSE),VLOOKUP(B46,Para_simu!$A$1:$I$55,3,FALSE)),IF('Simulation retraite'!$B$8="Base",VLOOKUP(B46,Para_simu!$A$1:$I$55,4,FALSE),VLOOKUP(B46,Para_simu!$A$1:$I$55,5,FALSE))),IF(YEAR(A46)<2024,IF('Simulation retraite'!$B$8="Base",VLOOKUP(B46,Para_simu!$A$1:$I$55,6,FALSE),VLOOKUP(B46,Para_simu!$A$1:$I$55,7,FALSE)),IF('Simulation retraite'!$B$8="Base",VLOOKUP(B46,Para_simu!$A$1:$I$55,8,FALSE),VLOOKUP(B46,Para_simu!$A$1:$I$55,9,FALSE))))) ->  | F46: =IF(A46="","",CEILING(E46*'Simulation retraite'!$B$10/12,0.05)*12*(C46/360)) ->  | G46: =IF(A46="","",CEILING(G45+F46,0.05)) ->  | H46: =IF(A46="","",CEILING(H45+D46+F46,0.05)) ->  | I46: =IF(I45="","",IF(YEAR('Simulation retraite'!$B$24)-1=YEAR(I45),'Simulation retraite'!$B$24,IF(YEAR('Simulation retraite'!$B$24)-1<YEAR(I45),"",(EDATE(I45,12))))) -> 1941-12-31 | J46: =IF(I46="","",YEAR(I46)-YEAR('Simulation retraite'!$B$6)) -> -19 | K46: =IF(I46="","",IF(DAY(I46)=1,DAYS360(I45,I46)-1,DAYS360(I45,I46))) -> 360 | L46: =IF(I46="","",IF(YEAR(I46)=2020,CEILING(M45*Para_simu!$Q$3*K46/360,0.05),IF(YEAR(I46)=2021,CEILING(M45*Para_simu!$Q$4*K46/360,0.05),IF(YEAR(I46)=2022,CEILING(M45*Para_simu!$Q$5*K46/360,0.05),CEILING(M45*'Simulation retraite'!$B$41*K46/360,0.05))))) -> 0 | M46: =IF(I46="","",M45+L46) -> 0 | P46: =IF(P45="","",IF(YEAR('Simulation retraite'!$B$24)-1=YEAR(P45),'Simulation retraite'!$B$24,IF(YEAR('Simulation retraite'!$B$24)-1<YEAR(P45),"",(EDATE(P45,12))))) ->  | Q46: =IF(P46="","",YEAR(P46)-YEAR('Simulation retraite'!$B$6)) ->  | R46: =IF(P46="","",IF(DAY(P46)=1,DAYS360(P45,P46)-1,DAYS360(P45,P46))) ->  | S46: =IF(P46="","",IF(YEAR(P46)=2019,CEILING(Para_simu!$Q$2*W45*R46/360,0.05),IF(YEAR(P46)=2020,CEILING(W45*Para_simu!$Q$3*R46/360,0.05),IF(YEAR(P46)=2021,CEILING(W45*Para_simu!$Q$4*R46/360,0.05),IF(YEAR(P46)=2022,CEILING(W45*Para_simu!$Q$5*R46/360,0.05),CEILING(W45*'Simulation retraite'!$C$41*R46/360,0.05)))))) ->  | T46: =IF(P46="","",IF(OR('Simulation retraite'!$B$9="non",YEAR(P46)<=2021),IF(YEAR(P46)<2024,IF('Simulation retraite'!$B$8="Base",VLOOKUP(Q46,Para_simu!$A$1:$I$55,2,FALSE),VLOOKUP(Q46,Para_simu!$A$1:$I$55,3,FALSE)),IF('Simulation retraite'!$B$8="Base",VLOOKUP(Q46,Para_simu!$A$1:$I$55,4,FALSE),VLOOKUP(Q46,Para_simu!$A$1:$I$55,5,FALSE))),IF(YEAR(P46)<2024,IF('Simulation retraite'!$B$8="Base",VLOOKUP(Q46,Para_simu!$A$1:$I$55,6,FALSE),VLOOKUP(Q46,Para_simu!$A$1:$I$55,7,FALSE)),IF('Simulation retraite'!$B$8="Base",VLOOKUP(Q46,Para_simu!$A$1:$I$55,8,FALSE),VLOOKUP(Q46,Para_simu!$A$1:$I$55,9,FALSE))))) ->  | U46: =IF(P46="","",CEILING(T46*'Simulation retraite'!$B$10/12,0.05)*12*(R46/360)) ->  | V46: =IF(P46="","",CEILING(V45+U46,0.05)) ->  | W46: =IF(P46="","",CEILING(W45+S46+U46,0.05)) ->  | X46: =IF(X45="","",IF(YEAR('Simulation retraite'!$B$24)-1=YEAR(X45),'Simulation retraite'!$B$24,IF(YEAR('Simulation retraite'!$B$24)-1<YEAR(X45),"",(EDATE(X45,12))))) -> 1941-12-31 | Y46: =IF(X46="","",YEAR(X46)-YEAR('Simulation retraite'!$B$6)) -> -19 | Z46: =IF(X46="","",IF(DAY(X46)=1,DAYS360(X45,X46)-1,DAYS360(X45,X46))) -> 360 | AA46: =IF(X46="","",IF(YEAR(X46)=2020,CEILING(AB45*Para_simu!$Q$3*Z46/360,0.05),IF(YEAR(X46)=2021,CEILING(AB45*Para_simu!$Q$4*Z46/360,0.05),IF(YEAR(X46)=2022,CEILING(AB45*Para_simu!$Q$5*Z46/360,0.05),CEILING(AB45*'Simulation retraite'!$C$41*Z46/360,0.05))))) -> 0 | AB46: =IF(X46="","",AB45+AA46) -> 0 | AE46: =IF(AE45="","",IF(YEAR('Simulation retraite'!$B$24)-1=YEAR(AE45),'Simulation retraite'!$B$24,IF(YEAR('Simulation retraite'!$B$24)-1<YEAR(AE45),"",(EDATE(AE45,12))))) ->  | AF46: =IF(AE46="","",YEAR(AE46)-YEAR('Simulation retraite'!$B$6)) ->  | AG46: =IF(AE46="","",IF(DAY(AE46)=1,DAYS360(AE45,AE46)-1,DAYS360(AE45,AE46))) ->  | AH46: =IF(AE46="","",IF(YEAR(AE46)=2019,CEILING(Para_simu!$Q$2*AL45*AG46/360,0.05),IF(YEAR(AE46)=2020,CEILING(AL45*Para_simu!$Q$3*AG46/360,0.05),IF(YEAR(AE46)=2021,CEILING(AL45*Para_simu!$Q$4*AG46/360,0.05),IF(YEAR(AE46)=2022,CEILING(AL45*Para_simu!$Q$5*AG46/360,0.05),CEILING(AL45*'Simulation retraite'!$D$41*AG46/360,0.05)))))) ->  | AI46: =IF(AE46="","",IF(OR('Simulation retraite'!$B$9="non",YEAR(AE46)<=2021),IF(YEAR(AE46)<2024,IF('Simulation retraite'!$B$8="Base",VLOOKUP(AF46,Para_simu!$A$1:$I$55,2,FALSE),VLOOKUP(AF46,Para_simu!$A$1:$I$55,3,FALSE)),IF('Simulation retraite'!$B$8="Base",VLOOKUP(AF46,Para_simu!$A$1:$I$55,4,FALSE),VLOOKUP(AF46,Para_simu!$A$1:$I$55,5,FALSE))),IF(YEAR(AE46)<2024,IF('Simulation retraite'!$B$8="Base",VLOOKUP(AF46,Para_simu!$A$1:$I$55,6,FALSE),VLOOKUP(AF46,Para_simu!$A$1:$I$55,7,FALSE)),IF('Simulation retraite'!$B$8="Base",VLOOKUP(AF46,Para_simu!$A$1:$I$55,8,FALSE),VLOOKUP(AF46,Para_simu!$A$1:$I$55,9,FALSE))))) ->  | AJ46: =IF(AE46="","",CEILING(AI46*'Simulation retraite'!$B$10/12,0.05)*12*(AG46/360)) ->  | AK46: =IF(AE46="","",CEILING(AK45+AJ46,0.05)) ->  | AL46: =IF(AE46="","",CEILING(AL45+AH46+AJ46,0.05)) ->  | AM46: =IF(AM45="","",IF(YEAR('Simulation retraite'!$B$24)-1=YEAR(AM45),'Simulation retraite'!$B$24,IF(YEAR('Simulation retraite'!$B$24)-1<YEAR(AM45),"",(EDATE(AM45,12))))) -> 1941-12-31 | AN46: =IF(AM46="","",YEAR(AM46)-YEAR('Simulation retraite'!$B$6)) -> -19 | AO46: =IF(AM46="","",IF(DAY(AM46)=1,DAYS360(AM45,AM46)-1,DAYS360(AM45,AM46))) -> 360 | AP46: =IF(AM46="","",IF(YEAR(AM46)=2020,CEILING(AQ45*Para_simu!$Q$3*AO46/360,0.05),IF(YEAR(AM46)=2021,CEILING(AQ45*Para_simu!$Q$4*AO46/360,0.05),IF(YEAR(AM46)=2022,CEILING(AQ45*Para_simu!$Q$5*AO46/360,0.05),CEILING(AQ45*'Simulation retraite'!$D$41*AO46/360,0.05))))) -> 0 | AQ46: =IF(AM46="","",AQ45+AP46) -> 0
A47: =IF(A46="","",IF(YEAR('Simulation retraite'!$B$24)-1=YEAR(A46),'Simulation retraite'!$B$24,IF(YEAR('Simulation retraite'!$B$24)-1<YEAR(A46),"",(EDATE(A46,12))))) ->  | B47: =IF(A47="","",YEAR(A47)-YEAR('Simulation retraite'!$B$6)) ->  | D47: =IF(A47="","",IF(YEAR(A47)=2019,CEILING(Para_simu!$Q$2*H46*C47/360,0.05),IF(YEAR(A47)=2020,CEILING(H46*Para_simu!$Q$3*C47/360,0.05),IF(YEAR(A47)=2021,CEILING(H46*Para_simu!$Q$4*C47/360,0.05),IF(YEAR(A47)=2022,CEILING(H46*Para_simu!$Q$5*C47/360,0.05),CEILING(H46*'Simulation retraite'!$B$41*C47/360,0.05)))))) ->  | E47: =IF(A47="","",IF(OR('Simulation retraite'!$B$9="non",YEAR(A47)<=2021),IF(YEAR(A47)<2024,IF('Simulation retraite'!$B$8="Base",VLOOKUP(B47,Para_simu!$A$1:$I$55,2,FALSE),VLOOKUP(B47,Para_simu!$A$1:$I$55,3,FALSE)),IF('Simulation retraite'!$B$8="Base",VLOOKUP(B47,Para_simu!$A$1:$I$55,4,FALSE),VLOOKUP(B47,Para_simu!$A$1:$I$55,5,FALSE))),IF(YEAR(A47)<2024,IF('Simulation retraite'!$B$8="Base",VLOOKUP(B47,Para_simu!$A$1:$I$55,6,FALSE),VLOOKUP(B47,Para_simu!$A$1:$I$55,7,FALSE)),IF('Simulation retraite'!$B$8="Base",VLOOKUP(B47,Para_simu!$A$1:$I$55,8,FALSE),VLOOKUP(B47,Para_simu!$A$1:$I$55,9,FALSE))))) ->  | F47: =IF(A47="","",CEILING(E47*'Simulation retraite'!$B$10/12,0.05)*12*(C47/360)) ->  | I47: =IF(I46="","",IF(YEAR('Simulation retraite'!$B$24)-1=YEAR(I46),'Simulation retraite'!$B$24,IF(YEAR('Simulation retraite'!$B$24)-1<YEAR(I46),"",(EDATE(I46,12))))) -> 1942-12-31 | J47: =IF(I47="","",YEAR(I47)-YEAR('Simulation retraite'!$B$6)) -> -18 | K47: 360 | L47: =IF(I47="","",IF(YEAR(I47)=2020,CEILING(M46*Para_simu!$Q$3*K47/360,0.05),IF(YEAR(I47)=2021,CEILING(M46*Para_simu!$Q$4*K47/360,0.05),IF(YEAR(I47)=2022,CEILING(M46*Para_simu!$Q$5*K47/360,0.05),CEILING(M46*'Simulation retraite'!$B$41*K47/360,0.05))))) -> 0 | M47: 0 | P47: =IF(P46="","",IF(YEAR('Simulation retraite'!$B$24)-1=YEAR(P46),'Simulation retraite'!$B$24,IF(YEAR('Simulation retraite'!$B$24)-1<YEAR(P46),"",(EDATE(P46,12))))) ->  | Q47: =IF(P47="","",YEAR(P47)-YEAR('Simulation retraite'!$B$6)) ->  | S47: =IF(P47="","",IF(YEAR(P47)=2019,CEILING(Para_simu!$Q$2*W46*R47/360,0.05),IF(YEAR(P47)=2020,CEILING(W46*Para_simu!$Q$3*R47/360,0.05),IF(YEAR(P47)=2021,CEILING(W46*Para_simu!$Q$4*R47/360,0.05),IF(YEAR(P47)=2022,CEILING(W46*Para_simu!$Q$5*R47/360,0.05),CEILING(W46*'Simulation retraite'!$C$41*R47/360,0.05)))))) ->  | T47: =IF(P47="","",IF(OR('Simulation retraite'!$B$9="non",YEAR(P47)<=2021),IF(YEAR(P47)<2024,IF('Simulation retraite'!$B$8="Base",VLOOKUP(Q47,Para_simu!$A$1:$I$55,2,FALSE),VLOOKUP(Q47,Para_simu!$A$1:$I$55,3,FALSE)),IF('Simulation retraite'!$B$8="Base",VLOOKUP(Q47,Para_simu!$A$1:$I$55,4,FALSE),VLOOKUP(Q47,Para_simu!$A$1:$I$55,5,FALSE))),IF(YEAR(P47)<2024,IF('Simulation retraite'!$B$8="Base",VLOOKUP(Q47,Para_simu!$A$1:$I$55,6,FALSE),VLOOKUP(Q47,Para_simu!$A$1:$I$55,7,FALSE)),IF('Simulation retraite'!$B$8="Base",VLOOKUP(Q47,Para_simu!$A$1:$I$55,8,FALSE),VLOOKUP(Q47,Para_simu!$A$1:$I$55,9,FALSE))))) ->  | U47: =IF(P47="","",CEILING(T47*'Simulation retraite'!$B$10/12,0.05)*12*(R47/360)) ->  | X47: =IF(X46="","",IF(YEAR('Simulation retraite'!$B$24)-1=YEAR(X46),'Simulation retraite'!$B$24,IF(YEAR('Simulation retraite'!$B$24)-1<YEAR(X46),"",(EDATE(X46,12))))) -> 1942-12-31 | Y47: =IF(X47="","",YEAR(X47)-YEAR('Simulation retraite'!$B$6)) -> -18 | Z47: 360 | AA47: =IF(X47="","",IF(YEAR(X47)=2020,CEILING(AB46*Para_simu!$Q$3*Z47/360,0.05),IF(YEAR(X47)=2021,CEILING(AB46*Para_simu!$Q$4*Z47/360,0.05),IF(YEAR(X47)=2022,CEILING(AB46*Para_simu!$Q$5*Z47/360,0.05),CEILING(AB46*'Simulation retraite'!$C$41*Z47/360,0.05))))) -> 0 | AB47: 0 | AE47: =IF(AE46="","",IF(YEAR('Simulation retraite'!$B$24)-1=YEAR(AE46),'Simulation retraite'!$B$24,IF(YEAR('Simulation retraite'!$B$24)-1<YEAR(AE46),"",(EDATE(AE46,12))))) ->  | AF47: =IF(AE47="","",YEAR(AE47)-YEAR('Simulation retraite'!$B$6)) ->  | AH47: =IF(AE47="","",IF(YEAR(AE47)=2019,CEILING(Para_simu!$Q$2*AL46*AG47/360,0.05),IF(YEAR(AE47)=2020,CEILING(AL46*Para_simu!$Q$3*AG47/360,0.05),IF(YEAR(AE47)=2021,CEILING(AL46*Para_simu!$Q$4*AG47/360,0.05),IF(YEAR(AE47)=2022,CEILING(AL46*Para_simu!$Q$5*AG47/360,0.05),CEILING(AL46*'Simulation retraite'!$D$41*AG47/360,0.05)))))) ->  | AI47: =IF(AE47="","",IF(OR('Simulation retraite'!$B$9="non",YEAR(AE47)<=2021),IF(YEAR(AE47)<2024,IF('Simulation retraite'!$B$8="Base",VLOOKUP(AF47,Para_simu!$A$1:$I$55,2,FALSE),VLOOKUP(AF47,Para_simu!$A$1:$I$55,3,FALSE)),IF('Simulation retraite'!$B$8="Base",VLOOKUP(AF47,Para_simu!$A$1:$I$55,4,FALSE),VLOOKUP(AF47,Para_simu!$A$1:$I$55,5,FALSE))),IF(YEAR(AE47)<2024,IF('Simulation retraite'!$B$8="Base",VLOOKUP(AF47,Para_simu!$A$1:$I$55,6,FALSE),VLOOKUP(AF47,Para_simu!$A$1:$I$55,7,FALSE)),IF('Simulation retraite'!$B$8="Base",VLOOKUP(AF47,Para_simu!$A$1:$I$55,8,FALSE),VLOOKUP(AF47,Para_simu!$A$1:$I$55,9,FALSE))))) ->  | AJ47: =IF(AE47="","",CEILING(AI47*'Simulation retraite'!$B$10/12,0.05)*12*(AG47/360)) ->  | AM47: =IF(AM46="","",IF(YEAR('Simulation retraite'!$B$24)-1=YEAR(AM46),'Simulation retraite'!$B$24,IF(YEAR('Simulation retraite'!$B$24)-1<YEAR(AM46),"",(EDATE(AM46,12))))) -> 1942-12-31 | AN47: =IF(AM47="","",YEAR(AM47)-YEAR('Simulation retraite'!$B$6)) -> -18 | AO47: 360 | AP47: =IF(AM47="","",IF(YEAR(AM47)=2020,CEILING(AQ46*Para_simu!$Q$3*AO47/360,0.05),IF(YEAR(AM47)=2021,CEILING(AQ46*Para_simu!$Q$4*AO47/360,0.05),IF(YEAR(AM47)=2022,CEILING(AQ46*Para_simu!$Q$5*AO47/360,0.05),CEILING(AQ46*'Simulation retraite'!$D$41*AO47/360,0.05))))) -> 0 | AQ47: 0
A48: =IF(A47="","",IF(YEAR('Simulation retraite'!$B$24)-1=YEAR(A47),'Simulation retraite'!$B$24,IF(YEAR('Simulation retraite'!$B$24)-1<YEAR(A47),"",(EDATE(A47,12))))) ->  | B48: =IF(A48="","",YEAR(A48)-YEAR('Simulation retraite'!$B$6)) ->  | D48: =IF(A48="","",IF(YEAR(A48)=2019,CEILING(Para_simu!$Q$2*H47*C48/360,0.05),IF(YEAR(A48)=2020,CEILING(H47*Para_simu!$Q$3*C48/360,0.05),IF(YEAR(A48)=2021,CEILING(H47*Para_simu!$Q$4*C48/360,0.05),IF(YEAR(A48)=2022,CEILING(H47*Para_simu!$Q$5*C48/360,0.05),CEILING(H47*'Simulation retraite'!$B$41*C48/360,0.05)))))) ->  | E48: =IF(A48="","",IF(OR('Simulation retraite'!$B$9="non",YEAR(A48)<=2021),IF(YEAR(A48)<2024,IF('Simulation retraite'!$B$8="Base",VLOOKUP(B48,Para_simu!$A$1:$I$55,2,FALSE),VLOOKUP(B48,Para_simu!$A$1:$I$55,3,FALSE)),IF('Simulation retraite'!$B$8="Base",VLOOKUP(B48,Para_simu!$A$1:$I$55,4,FALSE),VLOOKUP(B48,Para_simu!$A$1:$I$55,5,FALSE))),IF(YEAR(A48)<2024,IF('Simulation retraite'!$B$8="Base",VLOOKUP(B48,Para_simu!$A$1:$I$55,6,FALSE),VLOOKUP(B48,Para_simu!$A$1:$I$55,7,FALSE)),IF('Simulation retraite'!$B$8="Base",VLOOKUP(B48,Para_simu!$A$1:$I$55,8,FALSE),VLOOKUP(B48,Para_simu!$A$1:$I$55,9,FALSE))))) ->  | F48: =IF(A48="","",CEILING(E48*'Simulation retraite'!$B$10/12,0.05)*12*(C48/360)) ->  | I48: =IF(I47="","",IF(YEAR('Simulation retraite'!$B$24)-1=YEAR(I47),'Simulation retraite'!$B$24,IF(YEAR('Simulation retraite'!$B$24)-1<YEAR(I47),"",(EDATE(I47,12))))) -> 1943-12-31 | J48: =IF(I48="","",YEAR(I48)-YEAR('Simulation retraite'!$B$6)) -> -17 | K48: 360 | L48: =IF(I48="","",IF(YEAR(I48)=2020,CEILING(M47*Para_simu!$Q$3*K48/360,0.05),IF(YEAR(I48)=2021,CEILING(M47*Para_simu!$Q$4*K48/360,0.05),IF(YEAR(I48)=2022,CEILING(M47*Para_simu!$Q$5*K48/360,0.05),CEILING(M47*'Simulation retraite'!$B$41*K48/360,0.05))))) -> 0 | M48: 0 | P48: =IF(P47="","",IF(YEAR('Simulation retraite'!$B$24)-1=YEAR(P47),'Simulation retraite'!$B$24,IF(YEAR('Simulation retraite'!$B$24)-1<YEAR(P47),"",(EDATE(P47,12))))) ->  | Q48: =IF(P48="","",YEAR(P48)-YEAR('Simulation retraite'!$B$6)) ->  | S48: =IF(P48="","",IF(YEAR(P48)=2019,CEILING(Para_simu!$Q$2*W47*R48/360,0.05),IF(YEAR(P48)=2020,CEILING(W47*Para_simu!$Q$3*R48/360,0.05),IF(YEAR(P48)=2021,CEILING(W47*Para_simu!$Q$4*R48/360,0.05),IF(YEAR(P48)=2022,CEILING(W47*Para_simu!$Q$5*R48/360,0.05),CEILING(W47*'Simulation retraite'!$C$41*R48/360,0.05)))))) ->  | T48: =IF(P48="","",IF(OR('Simulation retraite'!$B$9="non",YEAR(P48)<=2021),IF(YEAR(P48)<2024,IF('Simulation retraite'!$B$8="Base",VLOOKUP(Q48,Para_simu!$A$1:$I$55,2,FALSE),VLOOKUP(Q48,Para_simu!$A$1:$I$55,3,FALSE)),IF('Simulation retraite'!$B$8="Base",VLOOKUP(Q48,Para_simu!$A$1:$I$55,4,FALSE),VLOOKUP(Q48,Para_simu!$A$1:$I$55,5,FALSE))),IF(YEAR(P48)<2024,IF('Simulation retraite'!$B$8="Base",VLOOKUP(Q48,Para_simu!$A$1:$I$55,6,FALSE),VLOOKUP(Q48,Para_simu!$A$1:$I$55,7,FALSE)),IF('Simulation retraite'!$B$8="Base",VLOOKUP(Q48,Para_simu!$A$1:$I$55,8,FALSE),VLOOKUP(Q48,Para_simu!$A$1:$I$55,9,FALSE))))) ->  | U48: =IF(P48="","",CEILING(T48*'Simulation retraite'!$B$10/12,0.05)*12*(R48/360)) ->  | X48: =IF(X47="","",IF(YEAR('Simulation retraite'!$B$24)-1=YEAR(X47),'Simulation retraite'!$B$24,IF(YEAR('Simulation retraite'!$B$24)-1<YEAR(X47),"",(EDATE(X47,12))))) -> 1943-12-31 | Y48: =IF(X48="","",YEAR(X48)-YEAR('Simulation retraite'!$B$6)) -> -17 | Z48: 360 | AA48: =IF(X48="","",IF(YEAR(X48)=2020,CEILING(AB47*Para_simu!$Q$3*Z48/360,0.05),IF(YEAR(X48)=2021,CEILING(AB47*Para_simu!$Q$4*Z48/360,0.05),IF(YEAR(X48)=2022,CEILING(AB47*Para_simu!$Q$5*Z48/360,0.05),CEILING(AB47*'Simulation retraite'!$C$41*Z48/360,0.05))))) -> 0 | AB48: 0 | AE48: =IF(AE47="","",IF(YEAR('Simulation retraite'!$B$24)-1=YEAR(AE47),'Simulation retraite'!$B$24,IF(YEAR('Simulation retraite'!$B$24)-1<YEAR(AE47),"",(EDATE(AE47,12))))) ->  | AF48: =IF(AE48="","",YEAR(AE48)-YEAR('Simulation retraite'!$B$6)) ->  | AH48: =IF(AE48="","",IF(YEAR(AE48)=2019,CEILING(Para_simu!$Q$2*AL47*AG48/360,0.05),IF(YEAR(AE48)=2020,CEILING(AL47*Para_simu!$Q$3*AG48/360,0.05),IF(YEAR(AE48)=2021,CEILING(AL47*Para_simu!$Q$4*AG48/360,0.05),IF(YEAR(AE48)=2022,CEILING(AL47*Para_simu!$Q$5*AG48/360,0.05),CEILING(AL47*'Simulation retraite'!$D$41*AG48/360,0.05)))))) ->  | AI48: =IF(AE48="","",IF(OR('Simulation retraite'!$B$9="non",YEAR(AE48)<=2021),IF(YEAR(AE48)<2024,IF('Simulation retraite'!$B$8="Base",VLOOKUP(AF48,Para_simu!$A$1:$I$55,2,FALSE),VLOOKUP(AF48,Para_simu!$A$1:$I$55,3,FALSE)),IF('Simulation retraite'!$B$8="Base",VLOOKUP(AF48,Para_simu!$A$1:$I$55,4,FALSE),VLOOKUP(AF48,Para_simu!$A$1:$I$55,5,FALSE))),IF(YEAR(AE48)<2024,IF('Simulation retraite'!$B$8="Base",VLOOKUP(AF48,Para_simu!$A$1:$I$55,6,FALSE),VLOOKUP(AF48,Para_simu!$A$1:$I$55,7,FALSE)),IF('Simulation retraite'!$B$8="Base",VLOOKUP(AF48,Para_simu!$A$1:$I$55,8,FALSE),VLOOKUP(AF48,Para_simu!$A$1:$I$55,9,FALSE))))) ->  | AJ48: =IF(AE48="","",CEILING(AI48*'Simulation retraite'!$B$10/12,0.05)*12*(AG48/360)) ->  | AM48: =IF(AM47="","",IF(YEAR('Simulation retraite'!$B$24)-1=YEAR(AM47),'Simulation retraite'!$B$24,IF(YEAR('Simulation retraite'!$B$24)-1<YEAR(AM47),"",(EDATE(AM47,12))))) -> 1943-12-31 | AN48: =IF(AM48="","",YEAR(AM48)-YEAR('Simulation retraite'!$B$6)) -> -17 | AO48: 360 | AP48: =IF(AM48="","",IF(YEAR(AM48)=2020,CEILING(AQ47*Para_simu!$Q$3*AO48/360,0.05),IF(YEAR(AM48)=2021,CEILING(AQ47*Para_simu!$Q$4*AO48/360,0.05),IF(YEAR(AM48)=2022,CEILING(AQ47*Para_simu!$Q$5*AO48/360,0.05),CEILING(AQ47*'Simulation retraite'!$D$41*AO48/360,0.05))))) -> 0 | AQ48: 0
A49: =IF(A48="","",IF(YEAR('Simulation retraite'!$B$24)-1=YEAR(A48),'Simulation retraite'!$B$24,IF(YEAR('Simulation retraite'!$B$24)-1<YEAR(A48),"",(EDATE(A48,12))))) ->  | B49: =IF(A49="","",YEAR(A49)-YEAR('Simulation retraite'!$B$6)) ->  | D49: =IF(A49="","",IF(YEAR(A49)=2019,CEILING(Para_simu!$Q$2*H48*C49/360,0.05),IF(YEAR(A49)=2020,CEILING(H48*Para_simu!$Q$3*C49/360,0.05),IF(YEAR(A49)=2021,CEILING(H48*Para_simu!$Q$4*C49/360,0.05),IF(YEAR(A49)=2022,CEILING(H48*Para_simu!$Q$5*C49/360,0.05),CEILING(H48*'Simulation retraite'!$B$41*C49/360,0.05)))))) ->  | E49: =IF(A49="","",IF(OR('Simulation retraite'!$B$9="non",YEAR(A49)<=2021),IF(YEAR(A49)<2024,IF('Simulation retraite'!$B$8="Base",VLOOKUP(B49,Para_simu!$A$1:$I$55,2,FALSE),VLOOKUP(B49,Para_simu!$A$1:$I$55,3,FALSE)),IF('Simulation retraite'!$B$8="Base",VLOOKUP(B49,Para_simu!$A$1:$I$55,4,FALSE),VLOOKUP(B49,Para_simu!$A$1:$I$55,5,FALSE))),IF(YEAR(A49)<2024,IF('Simulation retraite'!$B$8="Base",VLOOKUP(B49,Para_simu!$A$1:$I$55,6,FALSE),VLOOKUP(B49,Para_simu!$A$1:$I$55,7,FALSE)),IF('Simulation retraite'!$B$8="Base",VLOOKUP(B49,Para_simu!$A$1:$I$55,8,FALSE),VLOOKUP(B49,Para_simu!$A$1:$I$55,9,FALSE))))) ->  | F49: =IF(A49="","",CEILING(E49*'Simulation retraite'!$B$10/12,0.05)*12*(C49/360)) ->  | I49: =IF(I48="","",IF(YEAR('Simulation retraite'!$B$24)-1=YEAR(I48),'Simulation retraite'!$B$24,IF(YEAR('Simulation retraite'!$B$24)-1<YEAR(I48),"",(EDATE(I48,12))))) -> 1944-12-31 | J49: =IF(I49="","",YEAR(I49)-YEAR('Simulation retraite'!$B$6)) -> -16 | K49: 360 | L49: =IF(I49="","",IF(YEAR(I49)=2020,CEILING(M48*Para_simu!$Q$3*K49/360,0.05),IF(YEAR(I49)=2021,CEILING(M48*Para_simu!$Q$4*K49/360,0.05),IF(YEAR(I49)=2022,CEILING(M48*Para_simu!$Q$5*K49/360,0.05),CEILING(M48*'Simulation retraite'!$B$41*K49/360,0.05))))) -> 0 | M49: 0 | P49: =IF(P48="","",IF(YEAR('Simulation retraite'!$B$24)-1=YEAR(P48),'Simulation retraite'!$B$24,IF(YEAR('Simulation retraite'!$B$24)-1<YEAR(P48),"",(EDATE(P48,12))))) ->  | Q49: =IF(P49="","",YEAR(P49)-YEAR('Simulation retraite'!$B$6)) ->  | S49: =IF(P49="","",IF(YEAR(P49)=2019,CEILING(Para_simu!$Q$2*W48*R49/360,0.05),IF(YEAR(P49)=2020,CEILING(W48*Para_simu!$Q$3*R49/360,0.05),IF(YEAR(P49)=2021,CEILING(W48*Para_simu!$Q$4*R49/360,0.05),IF(YEAR(P49)=2022,CEILING(W48*Para_simu!$Q$5*R49/360,0.05),CEILING(W48*'Simulation retraite'!$C$41*R49/360,0.05)))))) ->  | T49: =IF(P49="","",IF(OR('Simulation retraite'!$B$9="non",YEAR(P49)<=2021),IF(YEAR(P49)<2024,IF('Simulation retraite'!$B$8="Base",VLOOKUP(Q49,Para_simu!$A$1:$I$55,2,FALSE),VLOOKUP(Q49,Para_simu!$A$1:$I$55,3,FALSE)),IF('Simulation retraite'!$B$8="Base",VLOOKUP(Q49,Para_simu!$A$1:$I$55,4,FALSE),VLOOKUP(Q49,Para_simu!$A$1:$I$55,5,FALSE))),IF(YEAR(P49)<2024,IF('Simulation retraite'!$B$8="Base",VLOOKUP(Q49,Para_simu!$A$1:$I$55,6,FALSE),VLOOKUP(Q49,Para_simu!$A$1:$I$55,7,FALSE)),IF('Simulation retraite'!$B$8="Base",VLOOKUP(Q49,Para_simu!$A$1:$I$55,8,FALSE),VLOOKUP(Q49,Para_simu!$A$1:$I$55,9,FALSE))))) ->  | U49: =IF(P49="","",CEILING(T49*'Simulation retraite'!$B$10/12,0.05)*12*(R49/360)) ->  | X49: =IF(X48="","",IF(YEAR('Simulation retraite'!$B$24)-1=YEAR(X48),'Simulation retraite'!$B$24,IF(YEAR('Simulation retraite'!$B$24)-1<YEAR(X48),"",(EDATE(X48,12))))) -> 1944-12-31 | Y49: =IF(X49="","",YEAR(X49)-YEAR('Simulation retraite'!$B$6)) -> -16 | Z49: 360 | AA49: =IF(X49="","",IF(YEAR(X49)=2020,CEILING(AB48*Para_simu!$Q$3*Z49/360,0.05),IF(YEAR(X49)=2021,CEILING(AB48*Para_simu!$Q$4*Z49/360,0.05),IF(YEAR(X49)=2022,CEILING(AB48*Para_simu!$Q$5*Z49/360,0.05),CEILING(AB48*'Simulation retraite'!$C$41*Z49/360,0.05))))) -> 0 | AB49: 0 | AE49: =IF(AE48="","",IF(YEAR('Simulation retraite'!$B$24)-1=YEAR(AE48),'Simulation retraite'!$B$24,IF(YEAR('Simulation retraite'!$B$24)-1<YEAR(AE48),"",(EDATE(AE48,12))))) ->  | AF49: =IF(AE49="","",YEAR(AE49)-YEAR('Simulation retraite'!$B$6)) ->  | AH49: =IF(AE49="","",IF(YEAR(AE49)=2019,CEILING(Para_simu!$Q$2*AL48*AG49/360,0.05),IF(YEAR(AE49)=2020,CEILING(AL48*Para_simu!$Q$3*AG49/360,0.05),IF(YEAR(AE49)=2021,CEILING(AL48*Para_simu!$Q$4*AG49/360,0.05),IF(YEAR(AE49)=2022,CEILING(AL48*Para_simu!$Q$5*AG49/360,0.05),CEILING(AL48*'Simulation retraite'!$D$41*AG49/360,0.05)))))) ->  | AI49: =IF(AE49="","",IF(OR('Simulation retraite'!$B$9="non",YEAR(AE49)<=2021),IF(YEAR(AE49)<2024,IF('Simulation retraite'!$B$8="Base",VLOOKUP(AF49,Para_simu!$A$1:$I$55,2,FALSE),VLOOKUP(AF49,Para_simu!$A$1:$I$55,3,FALSE)),IF('Simulation retraite'!$B$8="Base",VLOOKUP(AF49,Para_simu!$A$1:$I$55,4,FALSE),VLOOKUP(AF49,Para_simu!$A$1:$I$55,5,FALSE))),IF(YEAR(AE49)<2024,IF('Simulation retraite'!$B$8="Base",VLOOKUP(AF49,Para_simu!$A$1:$I$55,6,FALSE),VLOOKUP(AF49,Para_simu!$A$1:$I$55,7,FALSE)),IF('Simulation retraite'!$B$8="Base",VLOOKUP(AF49,Para_simu!$A$1:$I$55,8,FALSE),VLOOKUP(AF49,Para_simu!$A$1:$I$55,9,FALSE))))) ->  | AJ49: =IF(AE49="","",CEILING(AI49*'Simulation retraite'!$B$10/12,0.05)*12*(AG49/360)) ->  | AM49: =IF(AM48="","",IF(YEAR('Simulation retraite'!$B$24)-1=YEAR(AM48),'Simulation retraite'!$B$24,IF(YEAR('Simulation retraite'!$B$24)-1<YEAR(AM48),"",(EDATE(AM48,12))))) -> 1944-12-31 | AN49: =IF(AM49="","",YEAR(AM49)-YEAR('Simulation retraite'!$B$6)) -> -16 | AO49: 360 | AP49: =IF(AM49="","",IF(YEAR(AM49)=2020,CEILING(AQ48*Para_simu!$Q$3*AO49/360,0.05),IF(YEAR(AM49)=2021,CEILING(AQ48*Para_simu!$Q$4*AO49/360,0.05),IF(YEAR(AM49)=2022,CEILING(AQ48*Para_simu!$Q$5*AO49/360,0.05),CEILING(AQ48*'Simulation retraite'!$D$41*AO49/360,0.05))))) -> 0 | AQ49: 0
A50: =IF(A49="","",IF(YEAR('Simulation retraite'!$B$24)-1=YEAR(A49),'Simulation retraite'!$B$24,IF(YEAR('Simulation retraite'!$B$24)-1<YEAR(A49),"",(EDATE(A49,12))))) ->  | B50: =IF(A50="","",YEAR(A50)-YEAR('Simulation retraite'!$B$6)) ->  | D50: =IF(A50="","",IF(YEAR(A50)=2019,CEILING(Para_simu!$Q$2*H49*C50/360,0.05),IF(YEAR(A50)=2020,CEILING(H49*Para_simu!$Q$3*C50/360,0.05),IF(YEAR(A50)=2021,CEILING(H49*Para_simu!$Q$4*C50/360,0.05),IF(YEAR(A50)=2022,CEILING(H49*Para_simu!$Q$5*C50/360,0.05),CEILING(H49*'Simulation retraite'!$B$41*C50/360,0.05)))))) ->  | E50: =IF(A50="","",IF(OR('Simulation retraite'!$B$9="non",YEAR(A50)<=2021),IF(YEAR(A50)<2024,IF('Simulation retraite'!$B$8="Base",VLOOKUP(B50,Para_simu!$A$1:$I$55,2,FALSE),VLOOKUP(B50,Para_simu!$A$1:$I$55,3,FALSE)),IF('Simulation retraite'!$B$8="Base",VLOOKUP(B50,Para_simu!$A$1:$I$55,4,FALSE),VLOOKUP(B50,Para_simu!$A$1:$I$55,5,FALSE))),IF(YEAR(A50)<2024,IF('Simulation retraite'!$B$8="Base",VLOOKUP(B50,Para_simu!$A$1:$I$55,6,FALSE),VLOOKUP(B50,Para_simu!$A$1:$I$55,7,FALSE)),IF('Simulation retraite'!$B$8="Base",VLOOKUP(B50,Para_simu!$A$1:$I$55,8,FALSE),VLOOKUP(B50,Para_simu!$A$1:$I$55,9,FALSE))))) ->  | F50: =IF(A50="","",CEILING(E50*'Simulation retraite'!$B$10/12,0.05)*12*(C50/360)) ->  | I50: =IF(I49="","",IF(YEAR('Simulation retraite'!$B$24)-1=YEAR(I49),'Simulation retraite'!$B$24,IF(YEAR('Simulation retraite'!$B$24)-1<YEAR(I49),"",(EDATE(I49,12))))) -> 1945-12-31 | J50: =IF(I50="","",YEAR(I50)-YEAR('Simulation retraite'!$B$6)) -> -15 | K50: 360 | L50: =IF(I50="","",IF(YEAR(I50)=2020,CEILING(M49*Para_simu!$Q$3*K50/360,0.05),IF(YEAR(I50)=2021,CEILING(M49*Para_simu!$Q$4*K50/360,0.05),IF(YEAR(I50)=2022,CEILING(M49*Para_simu!$Q$5*K50/360,0.05),CEILING(M49*'Simulation retraite'!$B$41*K50/360,0.05))))) -> 0 | M50: 0 | P50: =IF(P49="","",IF(YEAR('Simulation retraite'!$B$24)-1=YEAR(P49),'Simulation retraite'!$B$24,IF(YEAR('Simulation retraite'!$B$24)-1<YEAR(P49),"",(EDATE(P49,12))))) ->  | Q50: =IF(P50="","",YEAR(P50)-YEAR('Simulation retraite'!$B$6)) ->  | S50: =IF(P50="","",IF(YEAR(P50)=2019,CEILING(Para_simu!$Q$2*W49*R50/360,0.05),IF(YEAR(P50)=2020,CEILING(W49*Para_simu!$Q$3*R50/360,0.05),IF(YEAR(P50)=2021,CEILING(W49*Para_simu!$Q$4*R50/360,0.05),IF(YEAR(P50)=2022,CEILING(W49*Para_simu!$Q$5*R50/360,0.05),CEILING(W49*'Simulation retraite'!$C$41*R50/360,0.05)))))) ->  | T50: =IF(P50="","",IF(OR('Simulation retraite'!$B$9="non",YEAR(P50)<=2021),IF(YEAR(P50)<2024,IF('Simulation retraite'!$B$8="Base",VLOOKUP(Q50,Para_simu!$A$1:$I$55,2,FALSE),VLOOKUP(Q50,Para_simu!$A$1:$I$55,3,FALSE)),IF('Simulation retraite'!$B$8="Base",VLOOKUP(Q50,Para_simu!$A$1:$I$55,4,FALSE),VLOOKUP(Q50,Para_simu!$A$1:$I$55,5,FALSE))),IF(YEAR(P50)<2024,IF('Simulation retraite'!$B$8="Base",VLOOKUP(Q50,Para_simu!$A$1:$I$55,6,FALSE),VLOOKUP(Q50,Para_simu!$A$1:$I$55,7,FALSE)),IF('Simulation retraite'!$B$8="Base",VLOOKUP(Q50,Para_simu!$A$1:$I$55,8,FALSE),VLOOKUP(Q50,Para_simu!$A$1:$I$55,9,FALSE))))) ->  | U50: =IF(P50="","",CEILING(T50*'Simulation retraite'!$B$10/12,0.05)*12*(R50/360)) ->  | X50: =IF(X49="","",IF(YEAR('Simulation retraite'!$B$24)-1=YEAR(X49),'Simulation retraite'!$B$24,IF(YEAR('Simulation retraite'!$B$24)-1<YEAR(X49),"",(EDATE(X49,12))))) -> 1945-12-31 | Y50: =IF(X50="","",YEAR(X50)-YEAR('Simulation retraite'!$B$6)) -> -15 | Z50: 360 | AA50: =IF(X50="","",IF(YEAR(X50)=2020,CEILING(AB49*Para_simu!$Q$3*Z50/360,0.05),IF(YEAR(X50)=2021,CEILING(AB49*Para_simu!$Q$4*Z50/360,0.05),IF(YEAR(X50)=2022,CEILING(AB49*Para_simu!$Q$5*Z50/360,0.05),CEILING(AB49*'Simulation retraite'!$C$41*Z50/360,0.05))))) -> 0 | AB50: 0 | AE50: =IF(AE49="","",IF(YEAR('Simulation retraite'!$B$24)-1=YEAR(AE49),'Simulation retraite'!$B$24,IF(YEAR('Simulation retraite'!$B$24)-1<YEAR(AE49),"",(EDATE(AE49,12))))) ->  | AF50: =IF(AE50="","",YEAR(AE50)-YEAR('Simulation retraite'!$B$6)) ->  | AH50: =IF(AE50="","",IF(YEAR(AE50)=2019,CEILING(Para_simu!$Q$2*AL49*AG50/360,0.05),IF(YEAR(AE50)=2020,CEILING(AL49*Para_simu!$Q$3*AG50/360,0.05),IF(YEAR(AE50)=2021,CEILING(AL49*Para_simu!$Q$4*AG50/360,0.05),IF(YEAR(AE50)=2022,CEILING(AL49*Para_simu!$Q$5*AG50/360,0.05),CEILING(AL49*'Simulation retraite'!$D$41*AG50/360,0.05)))))) ->  | AI50: =IF(AE50="","",IF(OR('Simulation retraite'!$B$9="non",YEAR(AE50)<=2021),IF(YEAR(AE50)<2024,IF('Simulation retraite'!$B$8="Base",VLOOKUP(AF50,Para_simu!$A$1:$I$55,2,FALSE),VLOOKUP(AF50,Para_simu!$A$1:$I$55,3,FALSE)),IF('Simulation retraite'!$B$8="Base",VLOOKUP(AF50,Para_simu!$A$1:$I$55,4,FALSE),VLOOKUP(AF50,Para_simu!$A$1:$I$55,5,FALSE))),IF(YEAR(AE50)<2024,IF('Simulation retraite'!$B$8="Base",VLOOKUP(AF50,Para_simu!$A$1:$I$55,6,FALSE),VLOOKUP(AF50,Para_simu!$A$1:$I$55,7,FALSE)),IF('Simulation retraite'!$B$8="Base",VLOOKUP(AF50,Para_simu!$A$1:$I$55,8,FALSE),VLOOKUP(AF50,Para_simu!$A$1:$I$55,9,FALSE))))) ->  | AJ50: =IF(AE50="","",CEILING(AI50*'Simulation retraite'!$B$10/12,0.05)*12*(AG50/360)) ->  | AM50: =IF(AM49="","",IF(YEAR('Simulation retraite'!$B$24)-1=YEAR(AM49),'Simulation retraite'!$B$24,IF(YEAR('Simulation retraite'!$B$24)-1<YEAR(AM49),"",(EDATE(AM49,12))))) -> 1945-12-31 | AN50: =IF(AM50="","",YEAR(AM50)-YEAR('Simulation retraite'!$B$6)) -> -15 | AO50: 360 | AP50: =IF(AM50="","",IF(YEAR(AM50)=2020,CEILING(AQ49*Para_simu!$Q$3*AO50/360,0.05),IF(YEAR(AM50)=2021,CEILING(AQ49*Para_simu!$Q$4*AO50/360,0.05),IF(YEAR(AM50)=2022,CEILING(AQ49*Para_simu!$Q$5*AO50/360,0.05),CEILING(AQ49*'Simulation retraite'!$D$41*AO50/360,0.05))))) -> 0 | AQ50: 0
A51: =IF(A50="","",IF(YEAR('Simulation retraite'!$B$24)-1=YEAR(A50),'Simulation retraite'!$B$24,IF(YEAR('Simulation retraite'!$B$24)-1<YEAR(A50),"",(EDATE(A50,12))))) ->  | B51: =IF(A51="","",YEAR(A51)-YEAR('Simulation retraite'!$B$6)) ->  | D51: =IF(A51="","",IF(YEAR(A51)=2019,CEILING(Para_simu!$Q$2*H50*C51/360,0.05),IF(YEAR(A51)=2020,CEILING(H50*Para_simu!$Q$3*C51/360,0.05),IF(YEAR(A51)=2021,CEILING(H50*Para_simu!$Q$4*C51/360,0.05),IF(YEAR(A51)=2022,CEILING(H50*Para_simu!$Q$5*C51/360,0.05),CEILING(H50*'Simulation retraite'!$B$41*C51/360,0.05)))))) ->  | E51: =IF(A51="","",IF(OR('Simulation retraite'!$B$9="non",YEAR(A51)<=2021),IF(YEAR(A51)<2024,IF('Simulation retraite'!$B$8="Base",VLOOKUP(B51,Para_simu!$A$1:$I$55,2,FALSE),VLOOKUP(B51,Para_simu!$A$1:$I$55,3,FALSE)),IF('Simulation retraite'!$B$8="Base",VLOOKUP(B51,Para_simu!$A$1:$I$55,4,FALSE),VLOOKUP(B51,Para_simu!$A$1:$I$55,5,FALSE))),IF(YEAR(A51)<2024,IF('Simulation retraite'!$B$8="Base",VLOOKUP(B51,Para_simu!$A$1:$I$55,6,FALSE),VLOOKUP(B51,Para_simu!$A$1:$I$55,7,FALSE)),IF('Simulation retraite'!$B$8="Base",VLOOKUP(B51,Para_simu!$A$1:$I$55,8,FALSE),VLOOKUP(B51,Para_simu!$A$1:$I$55,9,FALSE))))) ->  | F51: =IF(A51="","",CEILING(E51*'Simulation retraite'!$B$10/12,0.05)*12*(C51/360)) ->  | I51: =IF(I50="","",IF(YEAR('Simulation retraite'!$B$24)-1=YEAR(I50),'Simulation retraite'!$B$24,IF(YEAR('Simulation retraite'!$B$24)-1<YEAR(I50),"",(EDATE(I50,12))))) -> 1946-12-31 | J51: =IF(I51="","",YEAR(I51)-YEAR('Simulation retraite'!$B$6)) -> -14 | K51: 360 | L51: =IF(I51="","",IF(YEAR(I51)=2020,CEILING(M50*Para_simu!$Q$3*K51/360,0.05),IF(YEAR(I51)=2021,CEILING(M50*Para_simu!$Q$4*K51/360,0.05),IF(YEAR(I51)=2022,CEILING(M50*Para_simu!$Q$5*K51/360,0.05),CEILING(M50*'Simulation retraite'!$B$41*K51/360,0.05))))) -> 0 | M51: 0 | P51: =IF(P50="","",IF(YEAR('Simulation retraite'!$B$24)-1=YEAR(P50),'Simulation retraite'!$B$24,IF(YEAR('Simulation retraite'!$B$24)-1<YEAR(P50),"",(EDATE(P50,12))))) ->  | Q51: =IF(P51="","",YEAR(P51)-YEAR('Simulation retraite'!$B$6)) ->  | S51: =IF(P51="","",IF(YEAR(P51)=2019,CEILING(Para_simu!$Q$2*W50*R51/360,0.05),IF(YEAR(P51)=2020,CEILING(W50*Para_simu!$Q$3*R51/360,0.05),IF(YEAR(P51)=2021,CEILING(W50*Para_simu!$Q$4*R51/360,0.05),IF(YEAR(P51)=2022,CEILING(W50*Para_simu!$Q$5*R51/360,0.05),CEILING(W50*'Simulation retraite'!$C$41*R51/360,0.05)))))) ->  | T51: =IF(P51="","",IF(OR('Simulation retraite'!$B$9="non",YEAR(P51)<=2021),IF(YEAR(P51)<2024,IF('Simulation retraite'!$B$8="Base",VLOOKUP(Q51,Para_simu!$A$1:$I$55,2,FALSE),VLOOKUP(Q51,Para_simu!$A$1:$I$55,3,FALSE)),IF('Simulation retraite'!$B$8="Base",VLOOKUP(Q51,Para_simu!$A$1:$I$55,4,FALSE),VLOOKUP(Q51,Para_simu!$A$1:$I$55,5,FALSE))),IF(YEAR(P51)<2024,IF('Simulation retraite'!$B$8="Base",VLOOKUP(Q51,Para_simu!$A$1:$I$55,6,FALSE),VLOOKUP(Q51,Para_simu!$A$1:$I$55,7,FALSE)),IF('Simulation retraite'!$B$8="Base",VLOOKUP(Q51,Para_simu!$A$1:$I$55,8,FALSE),VLOOKUP(Q51,Para_simu!$A$1:$I$55,9,FALSE))))) ->  | U51: =IF(P51="","",CEILING(T51*'Simulation retraite'!$B$10/12,0.05)*12*(R51/360)) ->  | X51: =IF(X50="","",IF(YEAR('Simulation retraite'!$B$24)-1=YEAR(X50),'Simulation retraite'!$B$24,IF(YEAR('Simulation retraite'!$B$24)-1<YEAR(X50),"",(EDATE(X50,12))))) -> 1946-12-31 | Y51: =IF(X51="","",YEAR(X51)-YEAR('Simulation retraite'!$B$6)) -> -14 | Z51: 360 | AA51: =IF(X51="","",IF(YEAR(X51)=2020,CEILING(AB50*Para_simu!$Q$3*Z51/360,0.05),IF(YEAR(X51)=2021,CEILING(AB50*Para_simu!$Q$4*Z51/360,0.05),IF(YEAR(X51)=2022,CEILING(AB50*Para_simu!$Q$5*Z51/360,0.05),CEILING(AB50*'Simulation retraite'!$C$41*Z51/360,0.05))))) -> 0 | AB51: 0 | AE51: =IF(AE50="","",IF(YEAR('Simulation retraite'!$B$24)-1=YEAR(AE50),'Simulation retraite'!$B$24,IF(YEAR('Simulation retraite'!$B$24)-1<YEAR(AE50),"",(EDATE(AE50,12))))) ->  | AF51: =IF(AE51="","",YEAR(AE51)-YEAR('Simulation retraite'!$B$6)) ->  | AH51: =IF(AE51="","",IF(YEAR(AE51)=2019,CEILING(Para_simu!$Q$2*AL50*AG51/360,0.05),IF(YEAR(AE51)=2020,CEILING(AL50*Para_simu!$Q$3*AG51/360,0.05),IF(YEAR(AE51)=2021,CEILING(AL50*Para_simu!$Q$4*AG51/360,0.05),IF(YEAR(AE51)=2022,CEILING(AL50*Para_simu!$Q$5*AG51/360,0.05),CEILING(AL50*'Simulation retraite'!$D$41*AG51/360,0.05)))))) ->  | AI51: =IF(AE51="","",IF(OR('Simulation retraite'!$B$9="non",YEAR(AE51)<=2021),IF(YEAR(AE51)<2024,IF('Simulation retraite'!$B$8="Base",VLOOKUP(AF51,Para_simu!$A$1:$I$55,2,FALSE),VLOOKUP(AF51,Para_simu!$A$1:$I$55,3,FALSE)),IF('Simulation retraite'!$B$8="Base",VLOOKUP(AF51,Para_simu!$A$1:$I$55,4,FALSE),VLOOKUP(AF51,Para_simu!$A$1:$I$55,5,FALSE))),IF(YEAR(AE51)<2024,IF('Simulation retraite'!$B$8="Base",VLOOKUP(AF51,Para_simu!$A$1:$I$55,6,FALSE),VLOOKUP(AF51,Para_simu!$A$1:$I$55,7,FALSE)),IF('Simulation retraite'!$B$8="Base",VLOOKUP(AF51,Para_simu!$A$1:$I$55,8,FALSE),VLOOKUP(AF51,Para_simu!$A$1:$I$55,9,FALSE))))) ->  | AJ51: =IF(AE51="","",CEILING(AI51*'Simulation retraite'!$B$10/12,0.05)*12*(AG51/360)) ->  | AM51: =IF(AM50="","",IF(YEAR('Simulation retraite'!$B$24)-1=YEAR(AM50),'Simulation retraite'!$B$24,IF(YEAR('Simulation retraite'!$B$24)-1<YEAR(AM50),"",(EDATE(AM50,12))))) -> 1946-12-31 | AN51: =IF(AM51="","",YEAR(AM51)-YEAR('Simulation retraite'!$B$6)) -> -14 | AO51: 360 | AP51: =IF(AM51="","",IF(YEAR(AM51)=2020,CEILING(AQ50*Para_simu!$Q$3*AO51/360,0.05),IF(YEAR(AM51)=2021,CEILING(AQ50*Para_simu!$Q$4*AO51/360,0.05),IF(YEAR(AM51)=2022,CEILING(AQ50*Para_simu!$Q$5*AO51/360,0.05),CEILING(AQ50*'Simulation retraite'!$D$41*AO51/360,0.05))))) -> 0 | AQ51: 0
A52: =IF(A51="","",IF(YEAR('Simulation retraite'!$B$24)-1=YEAR(A51),'Simulation retraite'!$B$24,IF(YEAR('Simulation retraite'!$B$24)-1<YEAR(A51),"",(EDATE(A51,12))))) ->  | B52: =IF(A52="","",YEAR(A52)-YEAR('Simulation retraite'!$B$6)) ->  | D52: =IF(A52="","",IF(YEAR(A52)=2019,CEILING(Para_simu!$Q$2*H51*C52/360,0.05),IF(YEAR(A52)=2020,CEILING(H51*Para_simu!$Q$3*C52/360,0.05),IF(YEAR(A52)=2021,CEILING(H51*Para_simu!$Q$4*C52/360,0.05),IF(YEAR(A52)=2022,CEILING(H51*Para_simu!$Q$5*C52/360,0.05),CEILING(H51*'Simulation retraite'!$B$41*C52/360,0.05)))))) ->  | E52: =IF(A52="","",IF(OR('Simulation retraite'!$B$9="non",YEAR(A52)<=2021),IF(YEAR(A52)<2024,IF('Simulation retraite'!$B$8="Base",VLOOKUP(B52,Para_simu!$A$1:$I$55,2,FALSE),VLOOKUP(B52,Para_simu!$A$1:$I$55,3,FALSE)),IF('Simulation retraite'!$B$8="Base",VLOOKUP(B52,Para_simu!$A$1:$I$55,4,FALSE),VLOOKUP(B52,Para_simu!$A$1:$I$55,5,FALSE))),IF(YEAR(A52)<2024,IF('Simulation retraite'!$B$8="Base",VLOOKUP(B52,Para_simu!$A$1:$I$55,6,FALSE),VLOOKUP(B52,Para_simu!$A$1:$I$55,7,FALSE)),IF('Simulation retraite'!$B$8="Base",VLOOKUP(B52,Para_simu!$A$1:$I$55,8,FALSE),VLOOKUP(B52,Para_simu!$A$1:$I$55,9,FALSE))))) ->  | F52: =IF(A52="","",CEILING(E52*'Simulation retraite'!$B$10/12,0.05)*12*(C52/360)) ->  | I52: =IF(I51="","",IF(YEAR('Simulation retraite'!$B$24)-1=YEAR(I51),'Simulation retraite'!$B$24,IF(YEAR('Simulation retraite'!$B$24)-1<YEAR(I51),"",(EDATE(I51,12))))) -> 1947-12-31 | J52: =IF(I52="","",YEAR(I52)-YEAR('Simulation retraite'!$B$6)) -> -13 | K52: 360 | L52: =IF(I52="","",IF(YEAR(I52)=2020,CEILING(M51*Para_simu!$Q$3*K52/360,0.05),IF(YEAR(I52)=2021,CEILING(M51*Para_simu!$Q$4*K52/360,0.05),IF(YEAR(I52)=2022,CEILING(M51*Para_simu!$Q$5*K52/360,0.05),CEILING(M51*'Simulation retraite'!$B$41*K52/360,0.05))))) -> 0 | M52: 0 | P52: =IF(P51="","",IF(YEAR('Simulation retraite'!$B$24)-1=YEAR(P51),'Simulation retraite'!$B$24,IF(YEAR('Simulation retraite'!$B$24)-1<YEAR(P51),"",(EDATE(P51,12))))) ->  | Q52: =IF(P52="","",YEAR(P52)-YEAR('Simulation retraite'!$B$6)) ->  | S52: =IF(P52="","",IF(YEAR(P52)=2019,CEILING(Para_simu!$Q$2*W51*R52/360,0.05),IF(YEAR(P52)=2020,CEILING(W51*Para_simu!$Q$3*R52/360,0.05),IF(YEAR(P52)=2021,CEILING(W51*Para_simu!$Q$4*R52/360,0.05),IF(YEAR(P52)=2022,CEILING(W51*Para_simu!$Q$5*R52/360,0.05),CEILING(W51*'Simulation retraite'!$C$41*R52/360,0.05)))))) ->  | T52: =IF(P52="","",IF(OR('Simulation retraite'!$B$9="non",YEAR(P52)<=2021),IF(YEAR(P52)<2024,IF('Simulation retraite'!$B$8="Base",VLOOKUP(Q52,Para_simu!$A$1:$I$55,2,FALSE),VLOOKUP(Q52,Para_simu!$A$1:$I$55,3,FALSE)),IF('Simulation retraite'!$B$8="Base",VLOOKUP(Q52,Para_simu!$A$1:$I$55,4,FALSE),VLOOKUP(Q52,Para_simu!$A$1:$I$55,5,FALSE))),IF(YEAR(P52)<2024,IF('Simulation retraite'!$B$8="Base",VLOOKUP(Q52,Para_simu!$A$1:$I$55,6,FALSE),VLOOKUP(Q52,Para_simu!$A$1:$I$55,7,FALSE)),IF('Simulation retraite'!$B$8="Base",VLOOKUP(Q52,Para_simu!$A$1:$I$55,8,FALSE),VLOOKUP(Q52,Para_simu!$A$1:$I$55,9,FALSE))))) ->  | U52: =IF(P52="","",CEILING(T52*'Simulation retraite'!$B$10/12,0.05)*12*(R52/360)) ->  | X52: =IF(X51="","",IF(YEAR('Simulation retraite'!$B$24)-1=YEAR(X51),'Simulation retraite'!$B$24,IF(YEAR('Simulation retraite'!$B$24)-1<YEAR(X51),"",(EDATE(X51,12))))) -> 1947-12-31 | Y52: =IF(X52="","",YEAR(X52)-YEAR('Simulation retraite'!$B$6)) -> -13 | Z52: 360 | AA52: =IF(X52="","",IF(YEAR(X52)=2020,CEILING(AB51*Para_simu!$Q$3*Z52/360,0.05),IF(YEAR(X52)=2021,CEILING(AB51*Para_simu!$Q$4*Z52/360,0.05),IF(YEAR(X52)=2022,CEILING(AB51*Para_simu!$Q$5*Z52/360,0.05),CEILING(AB51*'Simulation retraite'!$C$41*Z52/360,0.05))))) -> 0 | AB52: 0 | AE52: =IF(AE51="","",IF(YEAR('Simulation retraite'!$B$24)-1=YEAR(AE51),'Simulation retraite'!$B$24,IF(YEAR('Simulation retraite'!$B$24)-1<YEAR(AE51),"",(EDATE(AE51,12))))) ->  | AF52: =IF(AE52="","",YEAR(AE52)-YEAR('Simulation retraite'!$B$6)) ->  | AG52: =IF(AE52="","",IF(DAY(AE52)=1,DAYS360(AE51,AE52)-1,DAYS360(AE51,AE52))) ->  | AH52: =IF(AE52="","",IF(YEAR(AE52)=2019,CEILING(Para_simu!$Q$2*AL51*AG52/360,0.05),IF(YEAR(AE52)=2020,CEILING(AL51*Para_simu!$Q$3*AG52/360,0.05),IF(YEAR(AE52)=2021,CEILING(AL51*Para_simu!$Q$4*AG52/360,0.05),IF(YEAR(AE52)=2022,CEILING(AL51*Para_simu!$Q$5*AG52/360,0.05),CEILING(AL51*'Simulation retraite'!$D$41*AG52/360,0.05)))))) ->  | AI52: =IF(AE52="","",IF(OR('Simulation retraite'!$B$9="non",YEAR(AE52)<=2021),IF(YEAR(AE52)<2024,IF('Simulation retraite'!$B$8="Base",VLOOKUP(AF52,Para_simu!$A$1:$I$55,2,FALSE),VLOOKUP(AF52,Para_simu!$A$1:$I$55,3,FALSE)),IF('Simulation retraite'!$B$8="Base",VLOOKUP(AF52,Para_simu!$A$1:$I$55,4,FALSE),VLOOKUP(AF52,Para_simu!$A$1:$I$55,5,FALSE))),IF(YEAR(AE52)<2024,IF('Simulation retraite'!$B$8="Base",VLOOKUP(AF52,Para_simu!$A$1:$I$55,6,FALSE),VLOOKUP(AF52,Para_simu!$A$1:$I$55,7,FALSE)),IF('Simulation retraite'!$B$8="Base",VLOOKUP(AF52,Para_simu!$A$1:$I$55,8,FALSE),VLOOKUP(AF52,Para_simu!$A$1:$I$55,9,FALSE))))) ->  | AJ52: =IF(AE52="","",CEILING(AI52*'Simulation retraite'!$B$10/12,0.05)*12*(AG52/360)) ->  | AM52: =IF(AM51="","",IF(YEAR('Simulation retraite'!$B$24)-1=YEAR(AM51),'Simulation retraite'!$B$24,IF(YEAR('Simulation retraite'!$B$24)-1<YEAR(AM51),"",(EDATE(AM51,12))))) -> 1947-12-31 | AN52: =IF(AM52="","",YEAR(AM52)-YEAR('Simulation retraite'!$B$6)) -> -13 | AO52: 360 | AP52: =IF(AM52="","",IF(YEAR(AM52)=2020,CEILING(AQ51*Para_simu!$Q$3*AO52/360,0.05),IF(YEAR(AM52)=2021,CEILING(AQ51*Para_simu!$Q$4*AO52/360,0.05),IF(YEAR(AM52)=2022,CEILING(AQ51*Para_simu!$Q$5*AO52/360,0.05),CEILING(AQ51*'Simulation retraite'!$D$41*AO52/360,0.05))))) -> 0 | AQ52: 0
A53: =IF(A52="","",IF(YEAR('Simulation retraite'!$B$24)-1=YEAR(A52),'Simulation retraite'!$B$24,IF(YEAR('Simulation retraite'!$B$24)-1<YEAR(A52),"",(EDATE(A52,12))))) ->  | B53: =IF(A53="","",YEAR(A53)-YEAR('Simulation retraite'!$B$6)) ->  | D53: =IF(A53="","",IF(YEAR(A53)=2019,CEILING(Para_simu!$Q$2*H52*C53/360,0.05),IF(YEAR(A53)=2020,CEILING(H52*Para_simu!$Q$3*C53/360,0.05),IF(YEAR(A53)=2021,CEILING(H52*Para_simu!$Q$4*C53/360,0.05),IF(YEAR(A53)=2022,CEILING(H52*Para_simu!$Q$5*C53/360,0.05),CEILING(H52*'Simulation retraite'!$B$41*C53/360,0.05)))))) ->  | E53: =IF(A53="","",IF(OR('Simulation retraite'!$B$9="non",YEAR(A53)<=2021),IF(YEAR(A53)<2024,IF('Simulation retraite'!$B$8="Base",VLOOKUP(B53,Para_simu!$A$1:$I$55,2,FALSE),VLOOKUP(B53,Para_simu!$A$1:$I$55,3,FALSE)),IF('Simulation retraite'!$B$8="Base",VLOOKUP(B53,Para_simu!$A$1:$I$55,4,FALSE),VLOOKUP(B53,Para_simu!$A$1:$I$55,5,FALSE))),IF(YEAR(A53)<2024,IF('Simulation retraite'!$B$8="Base",VLOOKUP(B53,Para_simu!$A$1:$I$55,6,FALSE),VLOOKUP(B53,Para_simu!$A$1:$I$55,7,FALSE)),IF('Simulation retraite'!$B$8="Base",VLOOKUP(B53,Para_simu!$A$1:$I$55,8,FALSE),VLOOKUP(B53,Para_simu!$A$1:$I$55,9,FALSE))))) ->  | F53: =IF(A53="","",CEILING(E53*'Simulation retraite'!$B$10/12,0.05)*12*(C53/360)) ->  | I53: =IF(I52="","",IF(YEAR('Simulation retraite'!$B$24)-1=YEAR(I52),'Simulation retraite'!$B$24,IF(YEAR('Simulation retraite'!$B$24)-1<YEAR(I52),"",(EDATE(I52,12))))) -> 1948-12-31 | J53: =IF(I53="","",YEAR(I53)-YEAR('Simulation retraite'!$B$6)) -> -12 | K53: 360 | L53: =IF(I53="","",IF(YEAR(I53)=2020,CEILING(M52*Para_simu!$Q$3*K53/360,0.05),IF(YEAR(I53)=2021,CEILING(M52*Para_simu!$Q$4*K53/360,0.05),IF(YEAR(I53)=2022,CEILING(M52*Para_simu!$Q$5*K53/360,0.05),CEILING(M52*'Simulation retraite'!$B$41*K53/360,0.05))))) -> 0 | M53: 0 | P53: =IF(P52="","",IF(YEAR('Simulation retraite'!$B$24)-1=YEAR(P52),'Simulation retraite'!$B$24,IF(YEAR('Simulation retraite'!$B$24)-1<YEAR(P52),"",(EDATE(P52,12))))) ->  | Q53: =IF(P53="","",YEAR(P53)-YEAR('Simulation retraite'!$B$6)) ->  | S53: =IF(P53="","",IF(YEAR(P53)=2019,CEILING(Para_simu!$Q$2*W52*R53/360,0.05),IF(YEAR(P53)=2020,CEILING(W52*Para_simu!$Q$3*R53/360,0.05),IF(YEAR(P53)=2021,CEILING(W52*Para_simu!$Q$4*R53/360,0.05),IF(YEAR(P53)=2022,CEILING(W52*Para_simu!$Q$5*R53/360,0.05),CEILING(W52*'Simulation retraite'!$C$41*R53/360,0.05)))))) ->  | T53: =IF(P53="","",IF(OR('Simulation retraite'!$B$9="non",YEAR(P53)<=2021),IF(YEAR(P53)<2024,IF('Simulation retraite'!$B$8="Base",VLOOKUP(Q53,Para_simu!$A$1:$I$55,2,FALSE),VLOOKUP(Q53,Para_simu!$A$1:$I$55,3,FALSE)),IF('Simulation retraite'!$B$8="Base",VLOOKUP(Q53,Para_simu!$A$1:$I$55,4,FALSE),VLOOKUP(Q53,Para_simu!$A$1:$I$55,5,FALSE))),IF(YEAR(P53)<2024,IF('Simulation retraite'!$B$8="Base",VLOOKUP(Q53,Para_simu!$A$1:$I$55,6,FALSE),VLOOKUP(Q53,Para_simu!$A$1:$I$55,7,FALSE)),IF('Simulation retraite'!$B$8="Base",VLOOKUP(Q53,Para_simu!$A$1:$I$55,8,FALSE),VLOOKUP(Q53,Para_simu!$A$1:$I$55,9,FALSE))))) ->  | U53: =IF(P53="","",CEILING(T53*'Simulation retraite'!$B$10/12,0.05)*12*(R53/360)) ->  | X53: =IF(X52="","",IF(YEAR('Simulation retraite'!$B$24)-1=YEAR(X52),'Simulation retraite'!$B$24,IF(YEAR('Simulation retraite'!$B$24)-1<YEAR(X52),"",(EDATE(X52,12))))) -> 1948-12-31 | Y53: =IF(X53="","",YEAR(X53)-YEAR('Simulation retraite'!$B$6)) -> -12 | Z53: 360 | AA53: =IF(X53="","",IF(YEAR(X53)=2020,CEILING(AB52*Para_simu!$Q$3*Z53/360,0.05),IF(YEAR(X53)=2021,CEILING(AB52*Para_simu!$Q$4*Z53/360,0.05),IF(YEAR(X53)=2022,CEILING(AB52*Para_simu!$Q$5*Z53/360,0.05),CEILING(AB52*'Simulation retraite'!$C$41*Z53/360,0.05))))) -> 0 | AB53: 0 | AE53: =IF(AE52="","",IF(YEAR('Simulation retraite'!$B$24)-1=YEAR(AE52),'Simulation retraite'!$B$24,IF(YEAR('Simulation retraite'!$B$24)-1<YEAR(AE52),"",(EDATE(AE52,12))))) ->  | AF53: =IF(AE53="","",YEAR(AE53)-YEAR('Simulation retraite'!$B$6)) ->  | AH53: =IF(AE53="","",IF(YEAR(AE53)=2019,CEILING(Para_simu!$Q$2*AL52*AG53/360,0.05),IF(YEAR(AE53)=2020,CEILING(AL52*Para_simu!$Q$3*AG53/360,0.05),IF(YEAR(AE53)=2021,CEILING(AL52*Para_simu!$Q$4*AG53/360,0.05),IF(YEAR(AE53)=2022,CEILING(AL52*Para_simu!$Q$5*AG53/360,0.05),CEILING(AL52*'Simulation retraite'!$D$41*AG53/360,0.05)))))) ->  | AI53: =IF(AE53="","",IF(OR('Simulation retraite'!$B$9="non",YEAR(AE53)<=2021),IF(YEAR(AE53)<2024,IF('Simulation retraite'!$B$8="Base",VLOOKUP(AF53,Para_simu!$A$1:$I$55,2,FALSE),VLOOKUP(AF53,Para_simu!$A$1:$I$55,3,FALSE)),IF('Simulation retraite'!$B$8="Base",VLOOKUP(AF53,Para_simu!$A$1:$I$55,4,FALSE),VLOOKUP(AF53,Para_simu!$A$1:$I$55,5,FALSE))),IF(YEAR(AE53)<2024,IF('Simulation retraite'!$B$8="Base",VLOOKUP(AF53,Para_simu!$A$1:$I$55,6,FALSE),VLOOKUP(AF53,Para_simu!$A$1:$I$55,7,FALSE)),IF('Simulation retraite'!$B$8="Base",VLOOKUP(AF53,Para_simu!$A$1:$I$55,8,FALSE),VLOOKUP(AF53,Para_simu!$A$1:$I$55,9,FALSE))))) ->  | AJ53: =IF(AE53="","",CEILING(AI53*'Simulation retraite'!$B$10/12,0.05)*12*(AG53/360)) ->  | AM53: =IF(AM52="","",IF(YEAR('Simulation retraite'!$B$24)-1=YEAR(AM52),'Simulation retraite'!$B$24,IF(YEAR('Simulation retraite'!$B$24)-1<YEAR(AM52),"",(EDATE(AM52,12))))) -> 1948-12-31 | AN53: =IF(AM53="","",YEAR(AM53)-YEAR('Simulation retraite'!$B$6)) -> -12 | AO53: 360 | AP53: =IF(AM53="","",IF(YEAR(AM53)=2020,CEILING(AQ52*Para_simu!$Q$3*AO53/360,0.05),IF(YEAR(AM53)=2021,CEILING(AQ52*Para_simu!$Q$4*AO53/360,0.05),IF(YEAR(AM53)=2022,CEILING(AQ52*Para_simu!$Q$5*AO53/360,0.05),CEILING(AQ52*'Simulation retraite'!$D$41*AO53/360,0.05))))) -> 0 | AQ53: 0
A54: =IF(A53="","",IF(YEAR('Simulation retraite'!$B$24)-1=YEAR(A53),'Simulation retraite'!$B$24,IF(YEAR('Simulation retraite'!$B$24)-1<YEAR(A53),"",(EDATE(A53,12))))) ->  | B54: =IF(A54="","",YEAR(A54)-YEAR('Simulation retraite'!$B$6)) ->  | D54: =IF(A54="","",IF(YEAR(A54)=2019,CEILING(Para_simu!$Q$2*H53*C54/360,0.05),IF(YEAR(A54)=2020,CEILING(H53*Para_simu!$Q$3*C54/360,0.05),IF(YEAR(A54)=2021,CEILING(H53*Para_simu!$Q$4*C54/360,0.05),IF(YEAR(A54)=2022,CEILING(H53*Para_simu!$Q$5*C54/360,0.05),CEILING(H53*'Simulation retraite'!$B$41*C54/360,0.05)))))) ->  | E54: =IF(A54="","",IF(OR('Simulation retraite'!$B$9="non",YEAR(A54)<=2021),IF(YEAR(A54)<2024,IF('Simulation retraite'!$B$8="Base",VLOOKUP(B54,Para_simu!$A$1:$I$55,2,FALSE),VLOOKUP(B54,Para_simu!$A$1:$I$55,3,FALSE)),IF('Simulation retraite'!$B$8="Base",VLOOKUP(B54,Para_simu!$A$1:$I$55,4,FALSE),VLOOKUP(B54,Para_simu!$A$1:$I$55,5,FALSE))),IF(YEAR(A54)<2024,IF('Simulation retraite'!$B$8="Base",VLOOKUP(B54,Para_simu!$A$1:$I$55,6,FALSE),VLOOKUP(B54,Para_simu!$A$1:$I$55,7,FALSE)),IF('Simulation retraite'!$B$8="Base",VLOOKUP(B54,Para_simu!$A$1:$I$55,8,FALSE),VLOOKUP(B54,Para_simu!$A$1:$I$55,9,FALSE))))) ->  | F54: =IF(A54="","",CEILING(E54*'Simulation retraite'!$B$10/12,0.05)*12*(C54/360)) ->  | I54: =IF(I53="","",IF(YEAR('Simulation retraite'!$B$24)-1=YEAR(I53),'Simulation retraite'!$B$24,IF(YEAR('Simulation retraite'!$B$24)-1<YEAR(I53),"",(EDATE(I53,12))))) -> 1949-12-31 | J54: =IF(I54="","",YEAR(I54)-YEAR('Simulation retraite'!$B$6)) -> -11 | K54: 360 | L54: =IF(I54="","",IF(YEAR(I54)=2020,CEILING(M53*Para_simu!$Q$3*K54/360,0.05),IF(YEAR(I54)=2021,CEILING(M53*Para_simu!$Q$4*K54/360,0.05),IF(YEAR(I54)=2022,CEILING(M53*Para_simu!$Q$5*K54/360,0.05),CEILING(M53*'Simulation retraite'!$B$41*K54/360,0.05))))) -> 0 | M54: 0 | P54: =IF(P53="","",IF(YEAR('Simulation retraite'!$B$24)-1=YEAR(P53),'Simulation retraite'!$B$24,IF(YEAR('Simulation retraite'!$B$24)-1<YEAR(P53),"",(EDATE(P53,12))))) ->  | Q54: =IF(P54="","",YEAR(P54)-YEAR('Simulation retraite'!$B$6)) ->  | S54: =IF(P54="","",IF(YEAR(P54)=2019,CEILING(Para_simu!$Q$2*W53*R54/360,0.05),IF(YEAR(P54)=2020,CEILING(W53*Para_simu!$Q$3*R54/360,0.05),IF(YEAR(P54)=2021,CEILING(W53*Para_simu!$Q$4*R54/360,0.05),IF(YEAR(P54)=2022,CEILING(W53*Para_simu!$Q$5*R54/360,0.05),CEILING(W53*'Simulation retraite'!$C$41*R54/360,0.05)))))) ->  | T54: =IF(P54="","",IF(OR('Simulation retraite'!$B$9="non",YEAR(P54)<=2021),IF(YEAR(P54)<2024,IF('Simulation retraite'!$B$8="Base",VLOOKUP(Q54,Para_simu!$A$1:$I$55,2,FALSE),VLOOKUP(Q54,Para_simu!$A$1:$I$55,3,FALSE)),IF('Simulation retraite'!$B$8="Base",VLOOKUP(Q54,Para_simu!$A$1:$I$55,4,FALSE),VLOOKUP(Q54,Para_simu!$A$1:$I$55,5,FALSE))),IF(YEAR(P54)<2024,IF('Simulation retraite'!$B$8="Base",VLOOKUP(Q54,Para_simu!$A$1:$I$55,6,FALSE),VLOOKUP(Q54,Para_simu!$A$1:$I$55,7,FALSE)),IF('Simulation retraite'!$B$8="Base",VLOOKUP(Q54,Para_simu!$A$1:$I$55,8,FALSE),VLOOKUP(Q54,Para_simu!$A$1:$I$55,9,FALSE))))) ->  | U54: =IF(P54="","",CEILING(T54*'Simulation retraite'!$B$10/12,0.05)*12*(R54/360)) ->  | X54: =IF(X53="","",IF(YEAR('Simulation retraite'!$B$24)-1=YEAR(X53),'Simulation retraite'!$B$24,IF(YEAR('Simulation retraite'!$B$24)-1<YEAR(X53),"",(EDATE(X53,12))))) -> 1949-12-31 | Y54: =IF(X54="","",YEAR(X54)-YEAR('Simulation retraite'!$B$6)) -> -11 | Z54: 360 | AA54: =IF(X54="","",IF(YEAR(X54)=2020,CEILING(AB53*Para_simu!$Q$3*Z54/360,0.05),IF(YEAR(X54)=2021,CEILING(AB53*Para_simu!$Q$4*Z54/360,0.05),IF(YEAR(X54)=2022,CEILING(AB53*Para_simu!$Q$5*Z54/360,0.05),CEILING(AB53*'Simulation retraite'!$C$41*Z54/360,0.05))))) -> 0 | AB54: 0 | AE54: =IF(AE53="","",IF(YEAR('Simulation retraite'!$B$24)-1=YEAR(AE53),'Simulation retraite'!$B$24,IF(YEAR('Simulation retraite'!$B$24)-1<YEAR(AE53),"",(EDATE(AE53,12))))) ->  | AF54: =IF(AE54="","",YEAR(AE54)-YEAR('Simulation retraite'!$B$6)) ->  | AG54: =IF(AE54="","",IF(DAY(AE54)=1,DAYS360(AE53,AE54)-1,DAYS360(AE53,AE54))) ->  | AH54: =IF(AE54="","",IF(YEAR(AE54)=2019,CEILING(Para_simu!$Q$2*AL53*AG54/360,0.05),IF(YEAR(AE54)=2020,CEILING(AL53*Para_simu!$Q$3*AG54/360,0.05),IF(YEAR(AE54)=2021,CEILING(AL53*Para_simu!$Q$4*AG54/360,0.05),IF(YEAR(AE54)=2022,CEILING(AL53*Para_simu!$Q$5*AG54/360,0.05),CEILING(AL53*'Simulation retraite'!$D$41*AG54/360,0.05)))))) ->  | AI54: =IF(AE54="","",IF(OR('Simulation retraite'!$B$9="non",YEAR(AE54)<=2021),IF(YEAR(AE54)<2024,IF('Simulation retraite'!$B$8="Base",VLOOKUP(AF54,Para_simu!$A$1:$I$55,2,FALSE),VLOOKUP(AF54,Para_simu!$A$1:$I$55,3,FALSE)),IF('Simulation retraite'!$B$8="Base",VLOOKUP(AF54,Para_simu!$A$1:$I$55,4,FALSE),VLOOKUP(AF54,Para_simu!$A$1:$I$55,5,FALSE))),IF(YEAR(AE54)<2024,IF('Simulation retraite'!$B$8="Base",VLOOKUP(AF54,Para_simu!$A$1:$I$55,6,FALSE),VLOOKUP(AF54,Para_simu!$A$1:$I$55,7,FALSE)),IF('Simulation retraite'!$B$8="Base",VLOOKUP(AF54,Para_simu!$A$1:$I$55,8,FALSE),VLOOKUP(AF54,Para_simu!$A$1:$I$55,9,FALSE))))) ->  | AJ54: =IF(AE54="","",CEILING(AI54*'Simulation retraite'!$B$10/12,0.05)*12*(AG54/360)) ->  | AM54: =IF(AM53="","",IF(YEAR('Simulation retraite'!$B$24)-1=YEAR(AM53),'Simulation retraite'!$B$24,IF(YEAR('Simulation retraite'!$B$24)-1<YEAR(AM53),"",(EDATE(AM53,12))))) -> 1949-12-31 | AN54: =IF(AM54="","",YEAR(AM54)-YEAR('Simulation retraite'!$B$6)) -> -11 | AO54: 360 | AP54: =IF(AM54="","",IF(YEAR(AM54)=2020,CEILING(AQ53*Para_simu!$Q$3*AO54/360,0.05),IF(YEAR(AM54)=2021,CEILING(AQ53*Para_simu!$Q$4*AO54/360,0.05),IF(YEAR(AM54)=2022,CEILING(AQ53*Para_simu!$Q$5*AO54/360,0.05),CEILING(AQ53*'Simulation retraite'!$D$41*AO54/360,0.05))))) -> 0 | AQ54: 0

Sheet Préfinancement (hidden)
A1: Préfinancement | D1: ='Simulation retraite'!B41 -> 0.01 | F1: Préfinancement | I1: ='Simulation retraite'!C41 -> 0.0175 | K1: Préfinancement | N1: ='Simulation retraite'!D41 -> 0.025
A2: Date | B2: Nb jours | C2: Intérêts | D2: Préfinancement | F2: Date | G2: Nb jours | H2: Intérêts | I2: Préfinancement | K2: Date | L2: Nb jours | M2: Intérêts | N2: Préfinancement
A4: ='Simulation retraite'!$B$5 -> 2021-01-01 | D4: ='Simulation retraite'!$B$12 -> 0 | F4: ='Simulation retraite'!$B$5 -> 2021-01-01 | I4: ='Simulation retraite'!$B$12 -> 0 | K4: ='Simulation retraite'!$B$5 -> 2021-01-01 | N4: ='Simulation retraite'!$B$12 -> 0
A5: =IF(A4="","",IF(YEAR('Simulation retraite'!$B$24)=YEAR(A4),'Simulation retraite'!$B$24,IF(YEAR('Simulation retraite'!$B$24)-1<YEAR(A4),"",EOMONTH(A4,(12-MONTH(A4)))))) -> 2021-12-31 | B5: =IF(AND(DAY(A5)=1,YEAR(A5)<>YEAR('Simulation retraite'!$B$24)),DAYS360(A4,A5)-1,DAYS360(A4,A5)) -> 360 | C5: =IF(A5="","",IF(YEAR(A5)=2019,CEILING(D4*Para_simu!$Q$2*B5/360,0.05),IF(YEAR(A5)=2020,CEILING(D4*Para_simu!$Q$3*B5/360,0.05),IF(YEAR(A5)=2021,CEILING(D4*Para_simu!$Q$4*B5/360,0.05),IF(YEAR(A5)=2022,CEILING(D4*Para_simu!$Q$5*B5/360,0.05),CEILING(D4*'Simulation retraite'!$B$41*B5/360,0.05)))))) -> 0 | D5: =IF(A5="","",D4+C5) -> 0 | F5: =IF(F4="","",IF(YEAR('Simulation retraite'!$B$24)=YEAR(F4),'Simulation retraite'!$B$24,IF(YEAR('Simulation retraite'!$B$24)-1<YEAR(F4),"",EOMONTH(F4,(12-MONTH(F4)))))) -> 2021-12-31 | G5: =IF(AND(DAY(F5)=1,YEAR(F5)<>YEAR('Simulation retraite'!$B$24)),DAYS360(F4,F5)-1,DAYS360(F4,F5)) -> 360 | H5: =IF(F5="","",IF(YEAR(F5)=2019,CEILING(I4*Para_simu!$Q$2*G5/360,0.05),IF(YEAR(F5)=2020,CEILING(I4*Para_simu!$Q$3*G5/360,0.05),IF(YEAR(F5)=2021,CEILING(I4*Para_simu!$Q$4*G5/360,0.05),IF(YEAR(F5)=2022,CEILING(I4*Para_simu!$Q$5*G5/360,0.05),CEILING(I4*'Simulation retraite'!$C$41*G5/360,0.05)))))) -> 0 | I5: =IF(F5="","",I4+H5) -> 0 | K5: =IF(K4="","",IF(YEAR('Simulation retraite'!$B$24)=YEAR(K4),'Simulation retraite'!$B$24,IF(YEAR('Simulation retraite'!$B$24)-1<YEAR(K4),"",EOMONTH(K4,(12-MONTH(K4)))))) -> 2021-12-31 | L5: =IF(AND(DAY(K5)=1,YEAR(K5)<>YEAR('Simulation retraite'!$B$24)),DAYS360(K4,K5)-1,DAYS360(K4,K5)) -> 360 | M5: =IF(K5="","",IF(YEAR(K5)=2019,CEILING(N4*Para_simu!$Q$2*L5/360,0.05),IF(YEAR(K5)=2020,CEILING(N4*Para_simu!$Q$3*L5/360,0.05),IF(YEAR(K5)=2021,CEILING(N4*Para_simu!$Q$4*L5/360,0.05),IF(YEAR(K5)=2022,CEILING(N4*Para_simu!$Q$5*L5/360,0.05),CEILING(N4*'Simulation retraite'!$D$41*L5/360,0.05)))))) -> 0 | N5: =IF(K5="","",N4+M5) -> 0
A6: =IF(A5="","",IF(YEAR('Simulation retraite'!$B$24)-1=YEAR(A5),'Simulation retraite'!$B$24,IF(YEAR('Simulation retraite'!$B$24)-1<YEAR(A5),"",(EDATE(A5,12))))) -> 2022-12-31 | B6: =IF(A6="","",IF(DAY(A6)=1,DAYS360(A5,A6)-1,DAYS360(A5,A6))) -> 360 | C6: =IF(A6="","",IF(YEAR(A6)=2019,CEILING(D5*Para_simu!$Q$2*B6/360,0.05),IF(YEAR(A6)=2020,CEILING(D5*Para_simu!$Q$3*B6/360,0.05),IF(YEAR(A6)=2021,CEILING(D5*Para_simu!$Q$4*B6/360,0.05),IF(YEAR(A6)=2022,CEILING(D5*Para_simu!$Q$5*B6/360,0.05),CEILING(D5*'Simulation retraite'!$B$41*B6/360,0.05)))))) -> 0 | D6: =IF(A6="","",D5+C6) -> 0 | F6: =IF(F5="","",IF(YEAR('Simulation retraite'!$B$24)-1=YEAR(F5),'Simulation retraite'!$B$24,IF(YEAR('Simulation retraite'!$B$24)-1<YEAR(F5),"",(EDATE(F5,12))))) -> 2022-12-31 | G6: =IF(F6="","",IF(DAY(F6)=1,DAYS360(F5,F6)-1,DAYS360(F5,F6))) -> 360 | H6: =IF(F6="","",IF(YEAR(F6)=2019,CEILING(I5*Para_simu!$Q$2*G6/360,0.05),IF(YEAR(F6)=2020,CEILING(I5*Para_simu!$Q$3*G6/360,0.05),IF(YEAR(F6)=2021,CEILING(I5*Para_simu!$Q$4*G6/360,0.05),IF(YEAR(F6)=2022,CEILING(I5*Para_simu!$Q$5*G6/360,0.05),CEILING(I5*'Simulation retraite'!$C$41*G6/360,0.05)))))) -> 0 | I6: 0 | K6: =IF(K5="","",IF(YEAR('Simulation retraite'!$B$24)-1=YEAR(K5),'Simulation retraite'!$B$24,IF(YEAR('Simulation retraite'!$B$24)-1<YEAR(K5),"",(EDATE(K5,12))))) -> 2022-12-31 | L6: =IF(K6="","",IF(DAY(K6)=1,DAYS360(K5,K6)-1,DAYS360(K5,K6))) -> 360 | M6: =IF(K6="","",IF(YEAR(K6)=2019,CEILING(N5*Para_simu!$Q$2*L6/360,0.05),IF(YEAR(K6)=2020,CEILING(N5*Para_simu!$Q$3*L6/360,0.05),IF(YEAR(K6)=2021,CEILING(N5*Para_simu!$Q$4*L6/360,0.05),IF(YEAR(K6)=2022,CEILING(N5*Para_simu!$Q$5*L6/360,0.05),CEILING(N5*'Simulation retraite'!$D$41*L6/360,0.05)))))) -> 0 | N6: 0
A7: =IF(A6="","",IF(YEAR('Simulation retraite'!$B$24)-1=YEAR(A6),'Simulation retraite'!$B$24,IF(YEAR('Simulation retraite'!$B$24)-1<YEAR(A6),"",(EDATE(A6,12))))) -> 2023-12-31 | B7: 360 | C7: =IF(A7="","",IF(YEAR(A7)=2019,CEILING(D6*Para_simu!$Q$2*B7/360,0.05),IF(YEAR(A7)=2020,CEILING(D6*Para_simu!$Q$3*B7/360,0.05),IF(YEAR(A7)=2021,CEILING(D6*Para_simu!$Q$4*B7/360,0.05),IF(YEAR(A7)=2022,CEILING(D6*Para_simu!$Q$5*B7/360,0.05),CEILING(D6*'Simulation retraite'!$B$41*B7/360,0.05)))))) -> 0 | D7: 0 | F7: =IF(F6="","",IF(YEAR('Simulation retraite'!$B$24)-1=YEAR(F6),'Simulation retraite'!$B$24,IF(YEAR('Simulation retraite'!$B$24)-1<YEAR(F6),"",(EDATE(F6,12))))) -> 2023-12-31 | G7: 360 | H7: =IF(F7="","",IF(YEAR(F7)=2019,CEILING(I6*Para_simu!$Q$2*G7/360,0.05),IF(YEAR(F7)=2020,CEILING(I6*Para_simu!$Q$3*G7/360,0.05),IF(YEAR(F7)=2021,CEILING(I6*Para_simu!$Q$4*G7/360,0.05),IF(YEAR(F7)=2022,CEILING(I6*Para_simu!$Q$5*G7/360,0.05),CEILING(I6*'Simulation retraite'!$C$41*G7/360,0.05)))))) -> 0 | I7: 0 | K7: =IF(K6="","",IF(YEAR('Simulation retraite'!$B$24)-1=YEAR(K6),'Simulation retraite'!$B$24,IF(YEAR('Simulation retraite'!$B$24)-1<YEAR(K6),"",(EDATE(K6,12))))) -> 2023-12-31 | L7: 360 | M7: =IF(K7="","",IF(YEAR(K7)=2019,CEILING(N6*Para_simu!$Q$2*L7/360,0.05),IF(YEAR(K7)=2020,CEILING(N6*Para_simu!$Q$3*L7/360,0.05),IF(YEAR(K7)=2021,CEILING(N6*Para_simu!$Q$4*L7/360,0.05),IF(YEAR(K7)=2022,CEILING(N6*Para_simu!$Q$5*L7/360,0.05),CEILING(N6*'Simulation retraite'!$D$41*L7/360,0.05)))))) -> 0 | N7: 0
A8: =IF(A7="","",IF(YEAR('Simulation retraite'!$B$24)-1=YEAR(A7),'Simulation retraite'!$B$24,IF(YEAR('Simulation retraite'!$B$24)-1<YEAR(A7),"",(EDATE(A7,12))))) -> 2024-03-01 | B8: 60 | C8: =IF(A8="","",IF(YEAR(A8)=2019,CEILING(D7*Para_simu!$Q$2*B8/360,0.05),IF(YEAR(A8)=2020,CEILING(D7*Para_simu!$Q$3*B8/360,0.05),IF(YEAR(A8)=2021,CEILING(D7*Para_simu!$Q$4*B8/360,0.05),IF(YEAR(A8)=2022,CEILING(D7*Para_simu!$Q$5*B8/360,0.05),CEILING(D7*'Simulation retraite'!$B$41*B8/360,0.05)))))) -> 0 | D8: 0 | F8: =IF(F7="","",IF(YEAR('Simulation retraite'!$B$24)-1=YEAR(F7),'Simulation retraite'!$B$24,IF(YEAR('Simulation retraite'!$B$24)-1<YEAR(F7),"",(EDATE(F7,12))))) -> 2024-03-01 | G8: 60 | H8: =IF(F8="","",IF(YEAR(F8)=2019,CEILING(I7*Para_simu!$Q$2*G8/360,0.05),IF(YEAR(F8)=2020,CEILING(I7*Para_simu!$Q$3*G8/360,0.05),IF(YEAR(F8)=2021,CEILING(I7*Para_simu!$Q$4*G8/360,0.05),IF(YEAR(F8)=2022,CEILING(I7*Para_simu!$Q$5*G8/360,0.05),CEILING(I7*'Simulation retraite'!$C$41*G8/360,0.05)))))) -> 0 | I8: 0 | K8: =IF(K7="","",IF(YEAR('Simulation retraite'!$B$24)-1=YEAR(K7),'Simulation retraite'!$B$24,IF(YEAR('Simulation retraite'!$B$24)-1<YEAR(K7),"",(EDATE(K7,12))))) -> 2024-03-01 | L8: 60 | M8: =IF(K8="","",IF(YEAR(K8)=2019,CEILING(N7*Para_simu!$Q$2*L8/360,0.05),IF(YEAR(K8)=2020,CEILING(N7*Para_simu!$Q$3*L8/360,0.05),IF(YEAR(K8)=2021,CEILING(N7*Para_simu!$Q$4*L8/360,0.05),IF(YEAR(K8)=2022,CEILING(N7*Para_simu!$Q$5*L8/360,0.05),CEILING(N7*'Simulation retraite'!$D$41*L8/360,0.05)))))) -> 0 | N8: 0
A9: =IF(A8="","",IF(YEAR('Simulation retraite'!$B$24)-1=YEAR(A8),'Simulation retraite'!$B$24,IF(YEAR('Simulation retraite'!$B$24)-1<YEAR(A8),"",(EDATE(A8,12))))) ->  | C9: =IF(A9="","",IF(YEAR(A9)=2019,CEILING(D8*Para_simu!$Q$2*B9/360,0.05),IF(YEAR(A9)=2020,CEILING(D8*Para_simu!$Q$3*B9/360,0.05),IF(YEAR(A9)=2021,CEILING(D8*Para_simu!$Q$4*B9/360,0.05),IF(YEAR(A9)=2022,CEILING(D8*Para_simu!$Q$5*B9/360,0.05),CEILING(D8*'Simulation retraite'!$B$41*B9/360,0.05)))))) ->  | F9: =IF(F8="","",IF(YEAR('Simulation retraite'!$B$24)-1=YEAR(F8),'Simulation retraite'!$B$24,IF(YEAR('Simulation retraite'!$B$24)-1<YEAR(F8),"",(EDATE(F8,12))))) ->  | H9: =IF(F9="","",IF(YEAR(F9)=2019,CEILING(I8*Para_simu!$Q$2*G9/360,0.05),IF(YEAR(F9)=2020,CEILING(I8*Para_simu!$Q$3*G9/360,0.05),IF(YEAR(F9)=2021,CEILING(I8*Para_simu!$Q$4*G9/360,0.05),IF(YEAR(F9)=2022,CEILING(I8*Para_simu!$Q$5*G9/360,0.05),CEILING(I8*'Simulation retraite'!$C$41*G9/360,0.05)))))) ->  | K9: =IF(K8="","",IF(YEAR('Simulation retraite'!$B$24)-1=YEAR(K8),'Simulation retraite'!$B$24,IF(YEAR('Simulation retraite'!$B$24)-1<YEAR(K8),"",(EDATE(K8,12))))) ->  | M9: =IF(K9="","",IF(YEAR(K9)=2019,CEILING(N8*Para_simu!$Q$2*L9/360,0.05),IF(YEAR(K9)=2020,CEILING(N8*Para_simu!$Q$3*L9/360,0.05),IF(YEAR(K9)=2021,CEILING(N8*Para_simu!$Q$4*L9/360,0.05),IF(YEAR(K9)=2022,CEILING(N8*Para_simu!$Q$5*L9/360,0.05),CEILING(N8*'Simulation retraite'!$D$41*L9/360,0.05)))))) -> 
A10: =IF(A9="","",IF(YEAR('Simulation retraite'!$B$24)-1=YEAR(A9),'Simulation retraite'!$B$24,IF(YEAR('Simulation retraite'!$B$24)-1<YEAR(A9),"",(EDATE(A9,12))))) ->  | C10: =IF(A10="","",IF(YEAR(A10)=2019,CEILING(D9*Para_simu!$Q$2*B10/360,0.05),IF(YEAR(A10)=2020,CEILING(D9*Para_simu!$Q$3*B10/360,0.05),IF(YEAR(A10)=2021,CEILING(D9*Para_simu!$Q$4*B10/360,0.05),IF(YEAR(A10)=2022,CEILING(D9*Para_simu!$Q$5*B10/360,0.05),CEILING(D9*'Simulation retraite'!$B$41*B10/360,0.05)))))) ->  | F10: =IF(F9="","",IF(YEAR('Simulation retraite'!$B$24)-1=YEAR(F9),'Simulation retraite'!$B$24,IF(YEAR('Simulation retraite'!$B$24)-1<YEAR(F9),"",(EDATE(F9,12))))) ->  | H10: =IF(F10="","",IF(YEAR(F10)=2019,CEILING(I9*Para_simu!$Q$2*G10/360,0.05),IF(YEAR(F10)=2020,CEILING(I9*Para_simu!$Q$3*G10/360,0.05),IF(YEAR(F10)=2021,CEILING(I9*Para_simu!$Q$4*G10/360,0.05),IF(YEAR(F10)=2022,CEILING(I9*Para_simu!$Q$5*G10/360,0.05),CEILING(I9*'Simulation retraite'!$C$41*G10/360,0.05)))))) ->  | K10: =IF(K9="","",IF(YEAR('Simulation retraite'!$B$24)-1=YEAR(K9),'Simulation retraite'!$B$24,IF(YEAR('Simulation retraite'!$B$24)-1<YEAR(K9),"",(EDATE(K9,12))))) ->  | M10: =IF(K10="","",IF(YEAR(K10)=2019,CEILING(N9*Para_simu!$Q$2*L10/360,0.05),IF(YEAR(K10)=2020,CEILING(N9*Para_simu!$Q$3*L10/360,0.05),IF(YEAR(K10)=2021,CEILING(N9*Para_simu!$Q$4*L10/360,0.05),IF(YEAR(K10)=2022,CEILING(N9*Para_simu!$Q$5*L10/360,0.05),CEILING(N9*'Simulation retraite'!$D$41*L10/360,0.05)))))) -> 
A11: =IF(A10="","",IF(YEAR('Simulation retraite'!$B$24)-1=YEAR(A10),'Simulation retraite'!$B$24,IF(YEAR('Simulation retraite'!$B$24)-1<YEAR(A10),"",(EDATE(A10,12))))) ->  | C11: =IF(A11="","",IF(YEAR(A11)=2019,CEILING(D10*Para_simu!$Q$2*B11/360,0.05),IF(YEAR(A11)=2020,CEILING(D10*Para_simu!$Q$3*B11/360,0.05),IF(YEAR(A11)=2021,CEILING(D10*Para_simu!$Q$4*B11/360,0.05),IF(YEAR(A11)=2022,CEILING(D10*Para_simu!$Q$5*B11/360,0.05),CEILING(D10*'Simulation retraite'!$B$41*B11/360,0.05)))))) ->  | F11: =IF(F10="","",IF(YEAR('Simulation retraite'!$B$24)-1=YEAR(F10),'Simulation retraite'!$B$24,IF(YEAR('Simulation retraite'!$B$24)-1<YEAR(F10),"",(EDATE(F10,12))))) ->  | H11: =IF(F11="","",IF(YEAR(F11)=2019,CEILING(I10*Para_simu!$Q$2*G11/360,0.05),IF(YEAR(F11)=2020,CEILING(I10*Para_simu!$Q$3*G11/360,0.05),IF(YEAR(F11)=2021,CEILING(I10*Para_simu!$Q$4*G11/360,0.05),IF(YEAR(F11)=2022,CEILING(I10*Para_simu!$Q$5*G11/360,0.05),CEILING(I10*'Simulation retraite'!$C$41*G11/360,0.05)))))) ->  | K11: =IF(K10="","",IF(YEAR('Simulation retraite'!$B$24)-1=YEAR(K10),'Simulation retraite'!$B$24,IF(YEAR('Simulation retraite'!$B$24)-1<YEAR(K10),"",(EDATE(K10,12))))) ->  | M11: =IF(K11="","",IF(YEAR(K11)=2019,CEILING(N10*Para_simu!$Q$2*L11/360,0.05),IF(YEAR(K11)=2020,CEILING(N10*Para_simu!$Q$3*L11/360,0.05),IF(YEAR(K11)=2021,CEILING(N10*Para_simu!$Q$4*L11/360,0.05),IF(YEAR(K11)=2022,CEILING(N10*Para_simu!$Q$5*L11/360,0.05),CEILING(N10*'Simulation retraite'!$D$41*L11/360,0.05)))))) -> 
A12: =IF(A11="","",IF(YEAR('Simulation retraite'!$B$24)-1=YEAR(A11),'Simulation retraite'!$B$24,IF(YEAR('Simulation retraite'!$B$24)-1<YEAR(A11),"",(EDATE(A11,12))))) ->  | C12: =IF(A12="","",IF(YEAR(A12)=2019,CEILING(D11*Para_simu!$Q$2*B12/360,0.05),IF(YEAR(A12)=2020,CEILING(D11*Para_simu!$Q$3*B12/360,0.05),IF(YEAR(A12)=2021,CEILING(D11*Para_simu!$Q$4*B12/360,0.05),IF(YEAR(A12)=2022,CEILING(D11*Para_simu!$Q$5*B12/360,0.05),CEILING(D11*'Simulation retraite'!$B$41*B12/360,0.05)))))) ->  | F12: =IF(F11="","",IF(YEAR('Simulation retraite'!$B$24)-1=YEAR(F11),'Simulation retraite'!$B$24,IF(YEAR('Simulation retraite'!$B$24)-1<YEAR(F11),"",(EDATE(F11,12))))) ->  | H12: =IF(F12="","",IF(YEAR(F12)=2019,CEILING(I11*Para_simu!$Q$2*G12/360,0.05),IF(YEAR(F12)=2020,CEILING(I11*Para_simu!$Q$3*G12/360,0.05),IF(YEAR(F12)=2021,CEILING(I11*Para_simu!$Q$4*G12/360,0.05),IF(YEAR(F12)=2022,CEILING(I11*Para_simu!$Q$5*G12/360,0.05),CEILING(I11*'Simulation retraite'!$C$41*G12/360,0.05)))))) ->  | K12: =IF(K11="","",IF(YEAR('Simulation retraite'!$B$24)-1=YEAR(K11),'Simulation retraite'!$B$24,IF(YEAR('Simulation retraite'!$B$24)-1<YEAR(K11),"",(EDATE(K11,12))))) ->  | M12: =IF(K12="","",IF(YEAR(K12)=2019,CEILING(N11*Para_simu!$Q$2*L12/360,0.05),IF(YEAR(K12)=2020,CEILING(N11*Para_simu!$Q$3*L12/360,0.05),IF(YEAR(K12)=2021,CEILING(N11*Para_simu!$Q$4*L12/360,0.05),IF(YEAR(K12)=2022,CEILING(N11*Para_simu!$Q$5*L12/360,0.05),CEILING(N11*'Simulation retraite'!$D$41*L12/360,0.05)))))) -> 
